Workbook

Sheet Design the AEF circuit
A1: TPSF12C1/-Q1 & TPSF12C3/-Q1 Common-Mode Active EMI Filter (AEF) Design Tool
B3: About | F3: = Input Box | I3: Terms Of Use
A6: Step 1: Select system type - single or three phase
A7: System type?
A10: Step 2: Enter CM choke and Y-capacitor data
A11: CM choke model? | E11: ® | F11: =IF(CMdata=1,"Enter CM choke impedance model parameters here:","Enter CM choke impedance (magnitude & phase) data vs. frequency in the ""CM choke"" tab") -> Enter CM choke impedance model parameters here: | J11: =IF(F9="Simple Model: L || R || C","","") ->  | K11: =IF(F9="Simple Model: L || R || C","","") -> 
F12: CM choke model #1 → | G12: Grid-side choke, LCM1 | H12: Regulator-side choke, LCM2
A13: Grid-side Y-capacitors (each)
A14: Capacitance | C14: 0.1 | D14: nF | F14: Inductance, LMAG (mH) | G14: 3 | H14: 4.4
A15: ESR | C15: 5 | D15: Ω | F15: Resistance, RPAR (kΩ) | G15: 1 | H15: 14
A16: ESL | C16: 15 | D16: nH | F16: Capacitance, CPAR (pF) | G16: 1.2 | H16: 12
F17: Inductance, LMAG2 [mH] | G17: 0.4 | H17: 0.4
A18: Regulator-side Y-capacitors (each) | F18: Resistance, RPAR2 [kW] | G18: 0.5 | H18: 0.5
A19: Capacitance | C19: 4.7 | D19: nF | F19: Inductance, LMAG3 [mH] | G19: 0.12 | H19: 0.12
A20: ESR | C20: 5 | D20: Ω | F20: Resistance, RPAR3 [kW] | G20: 1.4 | H20: 1.4
A21: ESL | C21: 15 | D21: nH
A23: Step 3: Enter source impedances
A24: Grid source impedance (each power line)
A25: LGRID | C25: 10 | D25: µH
A26: RGRID | C26: 10 | D26: mΩ
A27: LISN present? | C27: 10
A29: Regulator CM noise source impedance (parasitic)
A30: CSRC | C30: 100 | D30: pF
A31: RSRC | C31: 10 | D31: mΩ
A32: LSRC | C32: 10 | D32: nH
A34: Step 4: Enter SENSE and INJECT capacitor parameters
A35: Sense capacitors - CSENx (each)
A36: Capacitance | C36: 0.68 | D36: nF
A37: ESR | C37: 10 | D37: Ω
A38: ESL | C38: 15 | D38: nH
A40: Inject capacitor - CINJ
A41: Capacitance | C41: 4.7 | D41: nF
A42: ESR | C42: 5 | D42: Ω
A43: ESL | C43: 15 | D43: nH
A45: Step 5: Set the COMP1-to-COMP2 component values
A46: RG | C46: 1.5 | D46: kΩ
A47: CG1 | C47: 10 | D47: nF
A48: CG2 | C48: 10 | D48: pF
A50: Step 6: Review damping network component values
B51: Calculated | C51: Selected
A52: RD1 | B52: ='Stability calculations'!B52/1000 -> 1 | C52: =B52 -> 1 | D52: kΩ
A53: CD2 | B53: =ROUND('Stability calculations'!B55*1000000000,1) -> 50.2 | C53: =B53 -> 50.2 | D53: nF
A54: CD1 | B54: =ROUND('Stability calculations'!B53*1000000000,1) -> 6.3 | C54: 3.3 | D54: nF
A55: RD2 | B55: ='Stability calculations'!B56 -> 125 | C55: =B55 -> 125 | D55: Ω
A56: RD1A | B56: ='Stability calculations'!B54 -> 50 | C56: =B56 -> 50 | D56: Ω
A57: RD3 | B57: ='Stability calculations'!B57 -> 700 | C57: =B57 -> 700 | D57: Ω
A58: CD3 | B58: =ROUND('Stability calculations'!B58*1000000000,2) -> 4.7 | C58: =B58 -> 4.7 | D58: nF
A59: fLFstability | C59: ='Stability calculations'!D35/1000 -> 15.8489 | D59: kHz
A60: fRD1-CD2 | C60: ='Stability calculations'!$D$46/1000 -> 3.170417193 | D60: kHz
A61: fRD1-CD1 | C61: ='Stability calculations'!$D$42/1000 -> 48.22877063 | D61: kHz
A62: fRD2-CD2 | C62: ='Stability calculations'!$D$43/1000 -> 25.36333754 | D62: kHz
A63: fRD3-CD3 | C63: ='Stability calculations'!$D$44/1000 -> 48.37536264 | D63: kHz
A64: fRD1A-CD1 | C64: ='Stability calculations'!$D$45/1000000 -> 0.9645754127 | D64: MHz

Sheet Schematic management (hidden)
A1: =SETUP -> 1
A2: =CHOOSE(SETUP,"TPSF12C1","TPSF12C3_4wire","TPSF12C3_3wire") -> TPSF12C1

Sheet CM choke
A2: Enter/paste the CM choke impedance (magnitude & phase) data here:
C4: Grid-side CM choke | E4: Regulator-side CM choke
C5: LCM1 | E5: LCM2
A6: CM Choke Model #2 → | B6: Frequency [Hz] | C6: ZCM1 Magnitude [Ω] | D6: ZCM1 Phase [°] | E6: ZCM2 Magnitude [Ω] | F6: ZCM2 Phase [°]
A7: =IF(CMdata=1,"","Min. frequency") ->  | B7: 1000 | C7: 12.5378 | D7: 67.2251 | E7: 51.3385 | F7: 79.7848
A8: =IF(CMdata=1,"",_xlfn.CONCAT(MIN(B7:B2106)/1000," kHz")) ->  | B8: 1026.845608 | C8: 12.8157 | D8: 67.8703 | E8: 52.8981 | F8: 79.989
A9: =IF(CMdata=1,"","Max. frequency") ->  | B9: 1054.411903 | C9: 13.0805 | D9: 67.8748 | E9: 54.1489 | F9: 79.5482
A10: =IF(CMdata=1,"",_xlfn.CONCAT(MAX(B7:B2106)/1000000," MHz")) ->  | B10: 1082.718232 | C10: 13.5098 | D10: 67.874 | E10: 55.4699 | F10: 79.5679
B11: 1111.784461 | C11: 13.8375 | D11: 67.9213 | E11: 56.6572 | F11: 79.391
B12: 1141.630991 | C12: 14.1866 | D12: 67.9283 | E12: 58.1721 | F12: 79.346
B13: 1172.27877 | C13: 14.494 | D13: 67.9043 | E13: 59.7048 | F13: 79.3459
B14: 1203.749306 | C14: 14.767 | D14: 67.7766 | E14: 61.2857 | F14: 79.2401
B15: 1236.064689 | C15: 15.0994 | D15: 67.5555 | E15: 62.8796 | F15: 79.3791
B16: 1269.247597 | C16: 15.3812 | D16: 67.6369 | E16: 64.1351 | F16: 79.0088
B17: 1303.321321 | C17: 15.8874 | D17: 68.041 | E17: 65.3331 | F17: 78.8265
B18: 1338.309774 | C18: 16.1211 | D18: 67.832 | E18: 67.1792 | F18: 78.7307
B19: 1374.237514 | C19: 16.549 | D19: 67.5128 | E19: 68.9073 | F19: 78.7962
B20: 1411.129756 | C20: 16.8531 | D20: 67.9015 | E20: 70.77 | F20: 78.4399
B21: 1449.012392 | C21: 17.3522 | D21: 68.0078 | E21: 72.2298 | F21: 78.4191
B22: 1487.912011 | C22: 17.6198 | D22: 67.6003 | E22: 74.3969 | F22: 78.5098
B23: 1527.855914 | C23: 18.0127 | D23: 68.1549 | E23: 75.5068 | F23: 78.4034
B24: 1568.872135 | C24: 18.3807 | D24: 68.0353 | E24: 77.6781 | F24: 78.1253
B25: 1610.989462 | C25: 18.8637 | D25: 67.6219 | E25: 79.5213 | F25: 77.9767
B26: 1654.237454 | C26: 19.2679 | D26: 67.6957 | E26: 81.1385 | F26: 77.8062
B27: 1698.646465 | C27: 19.6612 | D27: 67.977 | E27: 83.5133 | F27: 77.5259
B28: 1744.247662 | C28: 20.0276 | D28: 68.1471 | E28: 85.4905 | F28: 77.5717
B29: 1791.073051 | C29: 20.4417 | D29: 67.5845 | E29: 87.219 | F29: 77.567
B30: 1839.155497 | C30: 21.0542 | D30: 68.2177 | E30: 88.7707 | F30: 77.6176
B31: 1888.528745 | C31: 21.3899 | D31: 67.711 | E31: 91.3656 | F31: 77.4215
B32: 1939.227447 | C32: 21.9421 | D32: 68.3304 | E32: 92.8641 | F32: 77.2857
B33: 1991.287188 | C33: 22.3687 | D33: 67.705 | E33: 95.9972 | F33: 76.9536
B34: 2044.744503 | C34: 22.822 | D34: 67.7877 | E34: 97.7684 | F34: 76.8156
B35: 2099.636913 | C35: 23.3509 | D35: 67.804 | E35: 100.137 | F35: 76.8407
B36: 2156.002943 | C36: 23.9269 | D36: 67.7983 | E36: 102.034 | F36: 76.61
B37: 2213.882153 | C37: 24.3962 | D37: 67.8221 | E37: 104.748 | F37: 76.4973
B38: 2273.315166 | C38: 24.8945 | D38: 67.8532 | E38: 107.187 | F38: 76.3315
B39: 2334.343695 | C39: 25.3477 | D39: 67.7435 | E39: 109.316 | F39: 76.1801
B40: 2397.010571 | C40: 25.8859 | D40: 67.5989 | E40: 111.884 | F40: 76.134
B41: 2461.359778 | C41: 26.5108 | D41: 67.6365 | E41: 115.14 | F41: 75.8955
B42: 2527.436478 | C42: 27.0633 | D42: 67.9169 | E42: 116.808 | F42: 75.6443
B43: 2595.287047 | C43: 27.6454 | D43: 67.7659 | E43: 119.645 | F43: 75.423
B44: 2664.959106 | C44: 28.1791 | D44: 67.5794 | E44: 122.423 | F44: 75.3852
B45: 2736.501554 | C45: 28.7873 | D45: 67.6221 | E45: 125.232 | F45: 75.3463
B46: 2809.964603 | C46: 29.417 | D46: 67.3863 | E46: 127.403 | F46: 75.0904
B47: 2885.399812 | C47: 30.0317 | D47: 67.6658 | E47: 131.019 | F47: 74.82
B48: 2962.860125 | C48: 30.5972 | D48: 67.5157 | E48: 134.256 | F48: 74.8434
B49: 3042.399907 | C49: 31.2215 | D49: 67.2541 | E49: 136.958 | F49: 74.8385
B50: 3124.074983 | C50: 31.9259 | D50: 67.2276 | E50: 139.624 | F50: 74.6431
B51: 3207.942676 | C51: 32.4904 | D51: 67.3211 | E51: 142.559 | F51: 74.3783
B52: 3294.061848 | C52: 33.3079 | D52: 67.1319 | E52: 145.902 | F52: 74.2095
B53: 3382.492942 | C53: 33.939 | D53: 67.2713 | E53: 149.146 | F53: 73.9004
B54: 3473.298022 | C54: 34.4627 | D54: 66.8998 | E54: 152.727 | F54: 73.9164
B55: 3566.54082 | C55: 35.4223 | D55: 66.9336 | E55: 155.166 | F55: 73.8595
B56: 3662.286777 | C56: 36.029 | D56: 66.8766 | E56: 159.206 | F56: 73.2689
B57: 3760.603093 | C57: 36.6712 | D57: 66.5884 | E57: 161.9 | F57: 73.478
B58: 3861.55877 | C58: 37.4658 | D58: 66.8443 | E58: 165.743 | F58: 73.0934
B59: 3965.224664 | C59: 38.4139 | D59: 66.7114 | E59: 168.924 | F59: 73.0217
B60: 4071.673532 | C60: 39.0338 | D60: 66.4487 | E60: 172.597 | F60: 72.8959
B61: 4180.980084 | C61: 39.8941 | D61: 66.2612 | E61: 176.934 | F61: 72.7765
B62: 4293.221037 | C62: 40.6309 | D62: 66.2543 | E62: 180.706 | F62: 72.5153
B63: 4408.475167 | C63: 41.4407 | D63: 66.0425 | E63: 184.792 | F63: 72.3791
B64: 4526.823364 | C64: 42.4305 | D64: 66.0972 | E64: 189.108 | F64: 72.118
B65: 4648.348691 | C65: 43.2034 | D65: 65.9026 | E65: 192.964 | F65: 72.0465
B66: 4773.136439 | C66: 44.0381 | D66: 65.3369 | E66: 196.386 | F66: 71.7941
B67: 4901.274189 | C67: 45 | D67: 65.2695 | E67: 199.687 | F67: 71.8531
B68: 5032.851876 | C68: 45.8844 | D68: 65.4491 | E68: 205.074 | F68: 71.562
B69: 5167.961846 | C69: 46.8004 | D69: 65.2189 | E69: 210.301 | F69: 71.3128
B70: 5306.698924 | C70: 47.6135 | D70: 65.2037 | E70: 213.487 | F70: 71.2206
B71: 5449.160485 | C71: 48.6964 | D71: 64.726 | E71: 218.01 | F71: 70.8824
B72: 5595.446512 | C72: 49.7353 | D72: 64.6833 | E72: 223.127 | F72: 70.6584
B73: 5745.659677 | C73: 50.5571 | D73: 64.2723 | E73: 227.099 | F73: 70.4165
B74: 5899.905405 | C74: 51.6102 | D74: 64.3047 | E74: 232.3 | F74: 70.1344
B75: 6058.291954 | C75: 52.6276 | D75: 64.0671 | E75: 236.506 | F75: 70.0201
B76: 6220.930486 | C76: 53.7603 | D76: 63.7346 | E76: 241.752 | F76: 69.7914
B77: 6387.935149 | C77: 54.7093 | D77: 63.545 | E77: 246.244 | F77: 69.6148
B78: 6559.423153 | C78: 55.73 | D78: 63.3075 | E78: 252.103 | F78: 69.4291
B79: 6735.514857 | C79: 56.634 | D79: 62.9893 | E79: 257.149 | F79: 69.1446
B80: 6916.33385 | C80: 57.9812 | D80: 62.6252 | E80: 262.214 | F80: 68.8323
B81: 7102.007039 | C81: 58.9873 | D81: 62.5367 | E81: 267.98 | F81: 68.6296
B82: 7292.664737 | C82: 60.1834 | D82: 62.187 | E82: 273.077 | F82: 68.5372
B83: 7488.440757 | C83: 61.1265 | D83: 61.8505 | E83: 280.397 | F83: 68.233
B84: 7689.472504 | C84: 62.7705 | D84: 61.7729 | E84: 283.597 | F84: 67.8757
B85: 7895.90107 | C85: 63.6782 | D85: 61.2403 | E85: 289.473 | F85: 67.6338
B86: 8107.871337 | C86: 64.7527 | D86: 61.0937 | E86: 296.318 | F86: 67.2459
B87: 8325.532074 | C87: 65.8624 | D87: 60.857 | E87: 302.547 | F87: 67.1468
B88: 8549.036046 | C88: 67.4743 | D88: 60.4161 | E88: 308.685 | F88: 66.9612
B89: 8778.540118 | C89: 68.4886 | D89: 60.2185 | E89: 313.868 | F89: 66.3069
B90: 9014.205367 | C90: 69.5692 | D90: 60.0109 | E90: 320.76 | F90: 66.2193
B91: 9256.197192 | C91: 70.9726 | D91: 59.6238 | E91: 327.73 | F91: 65.8736
B92: 9504.685436 | C92: 72.2542 | D92: 59.2615 | E92: 332.779 | F92: 65.8276
B93: 9759.844497 | C93: 73.4882 | D93: 58.943 | E93: 339.631 | F93: 65.6938
B94: 10021.85346 | C94: 74.792 | D94: 58.5356 | E94: 346.286 | F94: 65.1865
B95: 10290.89621 | C95: 76.2356 | D95: 58.2148 | E95: 353.891 | F95: 64.7799
B96: 10567.16158 | C96: 77.4671 | D96: 57.8887 | E96: 361.631 | F96: 64.2517
B97: 10850.84346 | C97: 78.6859 | D97: 57.5253 | E97: 367.169 | F97: 64.2729
B98: 11142.14095 | C98: 79.98 | D98: 57.0248 | E98: 373.371 | F98: 63.9561
B99: 11441.2585 | C99: 81.5259 | D99: 56.7365 | E99: 381.559 | F99: 63.5685
B100: 11748.40604 | C100: 82.7738 | D100: 56.3639 | E100: 388.944 | F100: 63.367
B101: 12063.79915 | C101: 84.2582 | D101: 56.0027 | E101: 395.841 | F101: 62.9313
B102: 12387.65917 | C102: 85.4929 | D102: 55.5402 | E102: 403.835 | F102: 62.6782
B103: 12720.21342 | C103: 87.0323 | D103: 55.2468 | E103: 410.401 | F103: 62.2628
B104: 13061.69528 | C104: 88.255 | D104: 54.7497 | E104: 417.251 | F104: 61.8915
B105: 13412.34444 | C105: 89.8825 | D105: 54.4655 | E105: 425.398 | F105: 61.5316
B106: 13772.40698 | C106: 91.129 | D106: 54.0676 | E106: 433.709 | F106: 61.2333
B107: 14142.13562 | C107: 92.5583 | D107: 53.7128 | E107: 441.417 | F107: 60.8198
B108: 14521.78986 | C108: 94.0744 | D108: 53.3158 | E108: 449.209 | F108: 60.3925
B109: 14911.63614 | C109: 95.5619 | D109: 52.9097 | E109: 457.013 | F109: 60.1265
B110: 15311.94808 | C110: 96.9719 | D110: 52.447 | E110: 465.569 | F110: 59.6988
B111: 15723.00664 | C111: 98.3682 | D111: 52.041 | E111: 472.76 | F111: 59.3633
B112: 16145.10031 | C112: 99.771 | D112: 51.6841 | E112: 481.538 | F112: 58.9303
B113: 16578.52535 | C113: 101.268 | D113: 51.1732 | E113: 489.476 | F113: 58.5113
B114: 17023.58595 | C114: 102.685 | D114: 50.8359 | E114: 498.803 | F114: 58.1359
B115: 17480.59446 | C115: 104.12 | D115: 50.4813 | E115: 506.43 | F115: 57.6493
B116: 17949.87165 | C116: 105.705 | D116: 50.0118 | E116: 514.729 | F116: 57.3801
B117: 18431.74688 | C117: 106.991 | D117: 49.632 | E117: 523.499 | F117: 56.9059
B118: 18926.55833 | C118: 108.524 | D118: 49.2105 | E118: 532.05 | F118: 56.537
B119: 19434.6533 | C119: 109.981 | D119: 48.9012 | E119: 540.524 | F119: 56.2227
B120: 19956.38839 | C120: 111.366 | D120: 48.4418 | E120: 548.826 | F120: 55.8408
B121: 20492.12977 | C121: 112.971 | D121: 48.0452 | E121: 557.622 | F121: 55.3755
B122: 21042.25346 | C122: 114.415 | D122: 47.6729 | E122: 566.098 | F122: 54.9518
B123: 21607.14555 | C123: 115.775 | D123: 47.2931 | E123: 574.669 | F123: 54.5991
B124: 22187.20252 | C124: 117.435 | D124: 46.8183 | E124: 583.788 | F124: 54.1731
B125: 22782.83146 | C125: 118.823 | D125: 46.5487 | E125: 592.647 | F125: 53.7861
B126: 23394.45043 | C126: 120.147 | D126: 46.1269 | E126: 600.771 | F126: 53.3807
B127: 24022.48868 | C127: 121.755 | D127: 45.6956 | E127: 610.025 | F127: 52.9422
B128: 24667.387 | C128: 123.165 | D128: 45.2932 | E128: 619.238 | F128: 52.5662
B129: 25329.59801 | C129: 124.494 | D129: 44.9921 | E129: 628.105 | F129: 52.1588
B130: 26009.58647 | C130: 125.971 | D130: 44.578 | E130: 636.959 | F130: 51.7352
B131: 26707.82964 | C131: 127.563 | D131: 44.2192 | E131: 645.617 | F131: 51.3498
B132: 27424.81757 | C132: 128.877 | D132: 43.9403 | E132: 654.629 | F132: 50.9401
B133: 28161.05348 | C133: 130.316 | D133: 43.553 | E133: 663.458 | F133: 50.5205
B134: 28917.05408 | C134: 131.814 | D134: 43.1333 | E134: 672.543 | F134: 50.1314
B135: 29693.34999 | C135: 133.242 | D135: 42.7977 | E135: 681.778 | F135: 49.7606
B136: 30490.48603 | C136: 134.739 | D136: 42.4919 | E136: 690.749 | F136: 49.3807
B137: 31309.02167 | C137: 136.191 | D137: 42.1271 | E137: 700.099 | F137: 48.9298
B138: 32149.5314 | C138: 137.581 | D138: 41.7407 | E138: 708.836 | F138: 48.5619
B139: 33012.60512 | C139: 138.996 | D139: 41.4144 | E139: 718.186 | F139: 48.2014
B140: 33898.84858 | C140: 140.413 | D140: 41.0699 | E140: 726.903 | F140: 47.8327
B141: 34808.88379 | C141: 141.942 | D141: 40.7399 | E141: 736.221 | F141: 47.4317
B142: 35743.34945 | C142: 143.338 | D142: 40.4296 | E142: 744.639 | F142: 47.0697
B143: 36702.9014 | C143: 144.562 | D143: 40.1343 | E143: 753.76 | F143: 46.7652
B144: 37688.21311 | C144: 146.024 | D144: 39.8235 | E144: 762.148 | F144: 46.3598
B145: 38699.97612 | C145: 147.433 | D145: 39.5289 | E145: 770.884 | F145: 45.9952
B146: 39738.90051 | C146: 148.862 | D146: 39.2458 | E146: 779.921 | F146: 45.6553
B147: 40805.71547 | C147: 150.214 | D147: 38.9654 | E147: 788.838 | F147: 45.3242
B148: 41901.16972 | C148: 151.572 | D148: 38.6981 | E148: 797.705 | F148: 45.002
B149: 43026.0321 | C149: 153.002 | D149: 38.4138 | E149: 806.605 | F149: 44.6622
B150: 44181.0921 | C150: 154.43 | D150: 38.1632 | E150: 815.5 | F150: 44.3606
B151: 45367.16039 | C151: 155.817 | D151: 37.8973 | E151: 824.494 | F151: 44.0567
B152: 46585.0694 | C152: 157.227 | D152: 37.6549 | E152: 833.314 | F152: 43.7294
B153: 47835.67393 | C153: 158.646 | D153: 37.4106 | E153: 842.265 | F153: 43.4417
B154: 49119.85169 | C154: 160.086 | D154: 37.164 | E154: 851.218 | F154: 43.1477
B155: 50438.50398 | C155: 161.469 | D155: 36.945 | E155: 860.046 | F155: 42.8631
B156: 51792.5563 | C156: 162.831 | D156: 36.7283 | E156: 868.774 | F156: 42.5949
B157: 53182.95897 | C157: 164.323 | D157: 36.5183 | E157: 877.66 | F157: 42.3253
B158: 54610.68785 | C158: 165.755 | D158: 36.2593 | E158: 887.166 | F158: 42.0455
B159: 56076.74498 | C159: 167.165 | D159: 36.079 | E159: 896.001 | F159: 41.8037
B160: 57582.1593 | C160: 168.557 | D160: 35.875 | E160: 905.202 | F160: 41.5581
B161: 59127.98739 | C161: 169.956 | D161: 35.685 | E161: 914.194 | F161: 41.3254
B162: 60715.31417 | C162: 171.435 | D162: 35.5288 | E162: 923.414 | F162: 41.0943
B163: 62345.25371 | C163: 172.889 | D163: 35.3663 | E163: 932.63 | F163: 40.8638
B164: 64018.94997 | C164: 174.344 | D164: 35.1795 | E164: 941.539 | F164: 40.6478
B165: 65737.57761 | C165: 175.857 | D165: 34.9821 | E165: 951.06 | F165: 40.4049
B166: 67502.34287 | C166: 177.341 | D166: 34.852 | E166: 960.511 | F166: 40.2253
B167: 69314.48432 | C167: 178.815 | D167: 34.6922 | E167: 969.685 | F167: 40.0073
B168: 71175.2738 | C168: 180.322 | D168: 34.5496 | E168: 979.318 | F168: 39.8327
B169: 73086.01732 | C169: 181.755 | D169: 34.3823 | E169: 988.731 | F169: 39.621
B170: 75048.0559 | C170: 183.283 | D170: 34.2718 | E170: 998.03 | F170: 39.4656
B171: 77062.76661 | C171: 184.815 | D171: 34.1391 | E171: 1007.95 | F171: 39.3039
B172: 79131.56345 | C172: 186.288 | D172: 34.0253 | E172: 1017.82 | F172: 39.1295
B173: 81255.8984 | C173: 187.913 | D173: 33.8865 | E173: 1027.47 | F173: 38.969
B174: 83437.26241 | C174: 189.444 | D174: 33.777 | E174: 1037.28 | F174: 38.8246
B175: 85677.18647 | C175: 191.096 | D175: 33.6195 | E175: 1048.05 | F175: 38.6401
B176: 87977.24265 | C176: 192.681 | D176: 33.5519 | E176: 1058.04 | F176: 38.5019
B177: 90339.04523 | C177: 194.327 | D177: 33.4279 | E177: 1068.15 | F177: 38.3577
B178: 92764.25185 | C178: 195.926 | D178: 33.3299 | E178: 1078.63 | F178: 38.2346
B179: 95254.56461 | C179: 197.62 | D179: 33.2392 | E179: 1089.2 | F179: 38.1138
B180: 97811.73133 | C180: 199.263 | D180: 33.1568 | E180: 1099.9 | F180: 37.983
B181: 100437.5467 | C181: 200.828 | D181: 33.0871 | E181: 1110.19 | F181: 37.8562
B182: 103133.8538 | C182: 202.582 | D182: 33.0048 | E182: 1121.01 | F182: 37.7511
B183: 105902.5448 | C183: 204.287 | D183: 32.9067 | E183: 1132.1 | F183: 37.6302
B184: 108745.563 | C184: 206.073 | D184: 32.8471 | E184: 1143.14 | F184: 37.5219
B185: 111664.9038 | C185: 207.818 | D185: 32.7364 | E185: 1154.69 | F185: 37.3796
B186: 114662.6161 | C186: 209.645 | D186: 32.6955 | E186: 1166.08 | F186: 37.2935
B187: 117740.8037 | C187: 211.334 | D187: 32.6059 | E187: 1177.6 | F187: 37.1787
B188: 120901.6272 | C188: 213.183 | D188: 32.5392 | E188: 1189.47 | F188: 37.1045
B189: 124147.3049 | C189: 215.026 | D189: 32.4798 | E189: 1201.24 | F189: 37.0115
B190: 127480.1148 | C190: 216.939 | D190: 32.401 | E190: 1212.98 | F190: 36.905
B191: 130902.3961 | C191: 218.832 | D191: 32.3553 | E191: 1225.06 | F191: 36.8283
B192: 134416.5505 | C192: 220.709 | D192: 32.2961 | E192: 1237.63 | F192: 36.7327
B193: 138025.0445 | C193: 222.628 | D193: 32.2115 | E193: 1250.05 | F193: 36.6515
B194: 141730.4108 | C194: 224.51 | D194: 32.1873 | E194: 1262.39 | F194: 36.5633
B195: 145535.2499 | C195: 226.528 | D195: 32.1184 | E195: 1275.48 | F195: 36.4709
B196: 149442.2322 | C196: 228.448 | D196: 32.0854 | E196: 1287.85 | F196: 36.4029
B197: 153454.0998 | C197: 230.55 | D197: 32.0439 | E197: 1301.33 | F197: 36.3318
B198: 157573.6684 | C198: 232.586 | D198: 31.9463 | E198: 1314.22 | F198: 36.2513
B199: 161803.8294 | C199: 234.559 | D199: 31.9353 | E199: 1328.02 | F199: 36.1631
B200: 166147.5516 | C200: 236.807 | D200: 31.8644 | E200: 1342.1 | F200: 36.0572
B201: 170607.8837 | C201: 238.79 | D201: 31.8409 | E201: 1355.64 | F201: 35.9974
B202: 175187.9561 | C202: 240.89 | D202: 31.7746 | E202: 1369.94 | F202: 35.9296
... 205 more rows

Sheet Frequency vector (hidden)
A2: Number of points per decade | B2: ndec | C2: 300 | D2: index | E2: freq_generated [Hz] | F2: freq_customer [Hz] | G2: freq_selected [Hz] | H2: freq_selected [kHz]
A3: Logscale generator | B3: klog | C3: =10^(1/C2) -> 1.007704814 | D3: 0 | E3: =10*('Frequency vector'!$C$3)^D3 -> 10 | F3: ='CM choke'!B7 -> 1000 | G3: =IF(CMdata=1,'Frequency vector'!E3,'Frequency vector'!F3) -> 10 | H3: =G3/1000 -> 0.01
D4: 1 | E4: =10*('Frequency vector'!$C$3)^D4 -> 10.07704814 | F4: =IF('CM choke'!B8=0, F3, 'CM choke'!B8) -> 1026.845608 | G4: =IF(CMdata=1,'Frequency vector'!E4,'Frequency vector'!F4) -> 10.07704814 | H4: =G4/1000 -> 0.01007704814
D5: 2 | E5: =10*('Frequency vector'!$C$3)^D5 -> 10.15468992 | F5: =IF('CM choke'!B9=0, F4, 'CM choke'!B9) -> 1054.411903 | G5: =IF(CMdata=1,'Frequency vector'!E5,'Frequency vector'!F5) -> 10.15468992 | H5: 0.01015468992
D6: 3 | E6: =10*('Frequency vector'!$C$3)^D6 -> 10.23292992 | F6: =IF('CM choke'!B10=0, F5, 'CM choke'!B10) -> 1082.718232 | G6: =IF(CMdata=1,'Frequency vector'!E6,'Frequency vector'!F6) -> 10.23292992 | H6: 0.01023292992
D7: 4 | E7: =10*('Frequency vector'!$C$3)^D7 -> 10.31177275 | F7: =IF('CM choke'!B11=0, F6, 'CM choke'!B11) -> 1111.784461 | G7: =IF(CMdata=1,'Frequency vector'!E7,'Frequency vector'!F7) -> 10.31177275 | H7: 0.01031177275
D8: 5 | E8: =10*('Frequency vector'!$C$3)^D8 -> 10.39122304 | F8: =IF('CM choke'!B12=0, F7, 'CM choke'!B12) -> 1141.630991 | G8: =IF(CMdata=1,'Frequency vector'!E8,'Frequency vector'!F8) -> 10.39122304 | H8: 0.01039122304
D9: 6 | E9: =10*('Frequency vector'!$C$3)^D9 -> 10.47128548 | F9: =IF('CM choke'!B13=0, F8, 'CM choke'!B13) -> 1172.27877 | G9: =IF(CMdata=1,'Frequency vector'!E9,'Frequency vector'!F9) -> 10.47128548 | H9: 0.01047128548
D10: 7 | E10: =10*('Frequency vector'!$C$3)^D10 -> 10.55196479 | F10: =IF('CM choke'!B14=0, F9, 'CM choke'!B14) -> 1203.749306 | G10: =IF(CMdata=1,'Frequency vector'!E10,'Frequency vector'!F10) -> 10.55196479 | H10: 0.01055196479
D11: 8 | E11: =10*('Frequency vector'!$C$3)^D11 -> 10.63326572 | F11: =IF('CM choke'!B15=0, F10, 'CM choke'!B15) -> 1236.064689 | G11: =IF(CMdata=1,'Frequency vector'!E11,'Frequency vector'!F11) -> 10.63326572 | H11: 0.01063326572
D12: 9 | E12: =10*('Frequency vector'!$C$3)^D12 -> 10.71519305 | F12: =IF('CM choke'!B16=0, F11, 'CM choke'!B16) -> 1269.247597 | G12: =IF(CMdata=1,'Frequency vector'!E12,'Frequency vector'!F12) -> 10.71519305 | H12: 0.01071519305
D13: 10 | E13: =10*('Frequency vector'!$C$3)^D13 -> 10.79775162 | F13: =IF('CM choke'!B17=0, F12, 'CM choke'!B17) -> 1303.321321 | G13: =IF(CMdata=1,'Frequency vector'!E13,'Frequency vector'!F13) -> 10.79775162 | H13: 0.01079775162
D14: 11 | E14: =10*('Frequency vector'!$C$3)^D14 -> 10.88094629 | F14: =IF('CM choke'!B18=0, F13, 'CM choke'!B18) -> 1338.309774 | G14: =IF(CMdata=1,'Frequency vector'!E14,'Frequency vector'!F14) -> 10.88094629 | H14: 0.01088094629
D15: 12 | E15: =10*('Frequency vector'!$C$3)^D15 -> 10.96478196 | F15: =IF('CM choke'!B19=0, F14, 'CM choke'!B19) -> 1374.237514 | G15: =IF(CMdata=1,'Frequency vector'!E15,'Frequency vector'!F15) -> 10.96478196 | H15: 0.01096478196
D16: 13 | E16: =10*('Frequency vector'!$C$3)^D16 -> 11.04926357 | F16: =IF('CM choke'!B20=0, F15, 'CM choke'!B20) -> 1411.129756 | G16: =IF(CMdata=1,'Frequency vector'!E16,'Frequency vector'!F16) -> 11.04926357 | H16: 0.01104926357
D17: 14 | E17: =10*('Frequency vector'!$C$3)^D17 -> 11.13439609 | F17: =IF('CM choke'!B21=0, F16, 'CM choke'!B21) -> 1449.012392 | G17: =IF(CMdata=1,'Frequency vector'!E17,'Frequency vector'!F17) -> 11.13439609 | H17: 0.01113439609
D18: 15 | E18: =10*('Frequency vector'!$C$3)^D18 -> 11.22018454 | F18: =IF('CM choke'!B22=0, F17, 'CM choke'!B22) -> 1487.912011 | G18: =IF(CMdata=1,'Frequency vector'!E18,'Frequency vector'!F18) -> 11.22018454 | H18: 0.01122018454
D19: 16 | E19: =10*('Frequency vector'!$C$3)^D19 -> 11.30663398 | F19: =IF('CM choke'!B23=0, F18, 'CM choke'!B23) -> 1527.855914 | G19: =IF(CMdata=1,'Frequency vector'!E19,'Frequency vector'!F19) -> 11.30663398 | H19: 0.01130663398
D20: 17 | E20: =10*('Frequency vector'!$C$3)^D20 -> 11.39374949 | F20: =IF('CM choke'!B24=0, F19, 'CM choke'!B24) -> 1568.872135 | G20: =IF(CMdata=1,'Frequency vector'!E20,'Frequency vector'!F20) -> 11.39374949 | H20: 0.01139374949
D21: 18 | E21: =10*('Frequency vector'!$C$3)^D21 -> 11.48153621 | F21: =IF('CM choke'!B25=0, F20, 'CM choke'!B25) -> 1610.989462 | G21: =IF(CMdata=1,'Frequency vector'!E21,'Frequency vector'!F21) -> 11.48153621 | H21: 0.01148153621
D22: 19 | E22: =10*('Frequency vector'!$C$3)^D22 -> 11.56999932 | F22: =IF('CM choke'!B26=0, F21, 'CM choke'!B26) -> 1654.237454 | G22: =IF(CMdata=1,'Frequency vector'!E22,'Frequency vector'!F22) -> 11.56999932 | H22: 0.01156999932
D23: 20 | E23: =10*('Frequency vector'!$C$3)^D23 -> 11.65914401 | F23: =IF('CM choke'!B27=0, F22, 'CM choke'!B27) -> 1698.646465 | G23: =IF(CMdata=1,'Frequency vector'!E23,'Frequency vector'!F23) -> 11.65914401 | H23: 0.01165914401
D24: 21 | E24: =10*('Frequency vector'!$C$3)^D24 -> 11.74897555 | F24: =IF('CM choke'!B28=0, F23, 'CM choke'!B28) -> 1744.247662 | G24: =IF(CMdata=1,'Frequency vector'!E24,'Frequency vector'!F24) -> 11.74897555 | H24: 0.01174897555
D25: 22 | E25: =10*('Frequency vector'!$C$3)^D25 -> 11.83949922 | F25: =IF('CM choke'!B29=0, F24, 'CM choke'!B29) -> 1791.073051 | G25: =IF(CMdata=1,'Frequency vector'!E25,'Frequency vector'!F25) -> 11.83949922 | H25: 0.01183949922
D26: 23 | E26: =10*('Frequency vector'!$C$3)^D26 -> 11.93072036 | F26: =IF('CM choke'!B30=0, F25, 'CM choke'!B30) -> 1839.155497 | G26: =IF(CMdata=1,'Frequency vector'!E26,'Frequency vector'!F26) -> 11.93072036 | H26: 0.01193072036
D27: 24 | E27: =10*('Frequency vector'!$C$3)^D27 -> 12.02264435 | F27: =IF('CM choke'!B31=0, F26, 'CM choke'!B31) -> 1888.528745 | G27: =IF(CMdata=1,'Frequency vector'!E27,'Frequency vector'!F27) -> 12.02264435 | H27: 0.01202264435
D28: 25 | E28: =10*('Frequency vector'!$C$3)^D28 -> 12.11527659 | F28: =IF('CM choke'!B32=0, F27, 'CM choke'!B32) -> 1939.227447 | G28: =IF(CMdata=1,'Frequency vector'!E28,'Frequency vector'!F28) -> 12.11527659 | H28: 0.01211527659
D29: 26 | E29: =10*('Frequency vector'!$C$3)^D29 -> 12.20862254 | F29: =IF('CM choke'!B33=0, F28, 'CM choke'!B33) -> 1991.287188 | G29: =IF(CMdata=1,'Frequency vector'!E29,'Frequency vector'!F29) -> 12.20862254 | H29: 0.01220862254
D30: 27 | E30: =10*('Frequency vector'!$C$3)^D30 -> 12.30268771 | F30: =IF('CM choke'!B34=0, F29, 'CM choke'!B34) -> 2044.744503 | G30: =IF(CMdata=1,'Frequency vector'!E30,'Frequency vector'!F30) -> 12.30268771 | H30: 0.01230268771
D31: 28 | E31: =10*('Frequency vector'!$C$3)^D31 -> 12.39747763 | F31: =IF('CM choke'!B35=0, F30, 'CM choke'!B35) -> 2099.636913 | G31: =IF(CMdata=1,'Frequency vector'!E31,'Frequency vector'!F31) -> 12.39747763 | H31: 0.01239747763
D32: 29 | E32: =10*('Frequency vector'!$C$3)^D32 -> 12.49299789 | F32: =IF('CM choke'!B36=0, F31, 'CM choke'!B36) -> 2156.002943 | G32: =IF(CMdata=1,'Frequency vector'!E32,'Frequency vector'!F32) -> 12.49299789 | H32: 0.01249299789
D33: 30 | E33: =10*('Frequency vector'!$C$3)^D33 -> 12.58925412 | F33: =IF('CM choke'!B37=0, F32, 'CM choke'!B37) -> 2213.882153 | G33: =IF(CMdata=1,'Frequency vector'!E33,'Frequency vector'!F33) -> 12.58925412 | H33: 0.01258925412
D34: 31 | E34: =10*('Frequency vector'!$C$3)^D34 -> 12.68625198 | F34: =IF('CM choke'!B38=0, F33, 'CM choke'!B38) -> 2273.315166 | G34: =IF(CMdata=1,'Frequency vector'!E34,'Frequency vector'!F34) -> 12.68625198 | H34: 0.01268625198
D35: 32 | E35: =10*('Frequency vector'!$C$3)^D35 -> 12.78399719 | F35: =IF('CM choke'!B39=0, F34, 'CM choke'!B39) -> 2334.343695 | G35: =IF(CMdata=1,'Frequency vector'!E35,'Frequency vector'!F35) -> 12.78399719 | H35: 0.01278399719
D36: 33 | E36: =10*('Frequency vector'!$C$3)^D36 -> 12.88249552 | F36: =IF('CM choke'!B40=0, F35, 'CM choke'!B40) -> 2397.010571 | G36: =IF(CMdata=1,'Frequency vector'!E36,'Frequency vector'!F36) -> 12.88249552 | H36: 0.01288249552
D37: 34 | E37: =10*('Frequency vector'!$C$3)^D37 -> 12.98175275 | F37: =IF('CM choke'!B41=0, F36, 'CM choke'!B41) -> 2461.359778 | G37: =IF(CMdata=1,'Frequency vector'!E37,'Frequency vector'!F37) -> 12.98175275 | H37: 0.01298175275
D38: 35 | E38: =10*('Frequency vector'!$C$3)^D38 -> 13.08177474 | F38: =IF('CM choke'!B42=0, F37, 'CM choke'!B42) -> 2527.436478 | G38: =IF(CMdata=1,'Frequency vector'!E38,'Frequency vector'!F38) -> 13.08177474 | H38: 0.01308177474
D39: 36 | E39: =10*('Frequency vector'!$C$3)^D39 -> 13.18256739 | F39: =IF('CM choke'!B43=0, F38, 'CM choke'!B43) -> 2595.287047 | G39: =IF(CMdata=1,'Frequency vector'!E39,'Frequency vector'!F39) -> 13.18256739 | H39: 0.01318256739
D40: 37 | E40: =10*('Frequency vector'!$C$3)^D40 -> 13.28413662 | F40: =IF('CM choke'!B44=0, F39, 'CM choke'!B44) -> 2664.959106 | G40: =IF(CMdata=1,'Frequency vector'!E40,'Frequency vector'!F40) -> 13.28413662 | H40: 0.01328413662
D41: 38 | E41: =10*('Frequency vector'!$C$3)^D41 -> 13.38648842 | F41: =IF('CM choke'!B45=0, F40, 'CM choke'!B45) -> 2736.501554 | G41: =IF(CMdata=1,'Frequency vector'!E41,'Frequency vector'!F41) -> 13.38648842 | H41: 0.01338648842
D42: 39 | E42: =10*('Frequency vector'!$C$3)^D42 -> 13.48962883 | F42: =IF('CM choke'!B46=0, F41, 'CM choke'!B46) -> 2809.964603 | G42: =IF(CMdata=1,'Frequency vector'!E42,'Frequency vector'!F42) -> 13.48962883 | H42: 0.01348962883
D43: 40 | E43: =10*('Frequency vector'!$C$3)^D43 -> 13.59356391 | F43: =IF('CM choke'!B47=0, F42, 'CM choke'!B47) -> 2885.399812 | G43: =IF(CMdata=1,'Frequency vector'!E43,'Frequency vector'!F43) -> 13.59356391 | H43: 0.01359356391
D44: 41 | E44: =10*('Frequency vector'!$C$3)^D44 -> 13.69829979 | F44: =IF('CM choke'!B48=0, F43, 'CM choke'!B48) -> 2962.860125 | G44: =IF(CMdata=1,'Frequency vector'!E44,'Frequency vector'!F44) -> 13.69829979 | H44: 0.01369829979
D45: 42 | E45: =10*('Frequency vector'!$C$3)^D45 -> 13.80384265 | F45: =IF('CM choke'!B49=0, F44, 'CM choke'!B49) -> 3042.399907 | G45: =IF(CMdata=1,'Frequency vector'!E45,'Frequency vector'!F45) -> 13.80384265 | H45: 0.01380384265
D46: 43 | E46: =10*('Frequency vector'!$C$3)^D46 -> 13.91019869 | F46: =IF('CM choke'!B50=0, F45, 'CM choke'!B50) -> 3124.074983 | G46: =IF(CMdata=1,'Frequency vector'!E46,'Frequency vector'!F46) -> 13.91019869 | H46: 0.01391019869
D47: 44 | E47: =10*('Frequency vector'!$C$3)^D47 -> 14.01737418 | F47: =IF('CM choke'!B51=0, F46, 'CM choke'!B51) -> 3207.942676 | G47: =IF(CMdata=1,'Frequency vector'!E47,'Frequency vector'!F47) -> 14.01737418 | H47: 0.01401737418
D48: 45 | E48: =10*('Frequency vector'!$C$3)^D48 -> 14.12537545 | F48: =IF('CM choke'!B52=0, F47, 'CM choke'!B52) -> 3294.061848 | G48: =IF(CMdata=1,'Frequency vector'!E48,'Frequency vector'!F48) -> 14.12537545 | H48: 0.01412537545
D49: 46 | E49: =10*('Frequency vector'!$C$3)^D49 -> 14.23420884 | F49: =IF('CM choke'!B53=0, F48, 'CM choke'!B53) -> 3382.492942 | G49: =IF(CMdata=1,'Frequency vector'!E49,'Frequency vector'!F49) -> 14.23420884 | H49: 0.01423420884
D50: 47 | E50: =10*('Frequency vector'!$C$3)^D50 -> 14.34388077 | F50: =IF('CM choke'!B54=0, F49, 'CM choke'!B54) -> 3473.298022 | G50: =IF(CMdata=1,'Frequency vector'!E50,'Frequency vector'!F50) -> 14.34388077 | H50: 0.01434388077
D51: 48 | E51: =10*('Frequency vector'!$C$3)^D51 -> 14.45439771 | F51: =IF('CM choke'!B55=0, F50, 'CM choke'!B55) -> 3566.54082 | G51: =IF(CMdata=1,'Frequency vector'!E51,'Frequency vector'!F51) -> 14.45439771 | H51: 0.01445439771
D52: 49 | E52: =10*('Frequency vector'!$C$3)^D52 -> 14.56576616 | F52: =IF('CM choke'!B56=0, F51, 'CM choke'!B56) -> 3662.286777 | G52: =IF(CMdata=1,'Frequency vector'!E52,'Frequency vector'!F52) -> 14.56576616 | H52: 0.01456576616
D53: 50 | E53: =10*('Frequency vector'!$C$3)^D53 -> 14.67799268 | F53: =IF('CM choke'!B57=0, F52, 'CM choke'!B57) -> 3760.603093 | G53: =IF(CMdata=1,'Frequency vector'!E53,'Frequency vector'!F53) -> 14.67799268 | H53: 0.01467799268
D54: 51 | E54: =10*('Frequency vector'!$C$3)^D54 -> 14.79108388 | F54: =IF('CM choke'!B58=0, F53, 'CM choke'!B58) -> 3861.55877 | G54: =IF(CMdata=1,'Frequency vector'!E54,'Frequency vector'!F54) -> 14.79108388 | H54: 0.01479108388
D55: 52 | E55: =10*('Frequency vector'!$C$3)^D55 -> 14.90504643 | F55: =IF('CM choke'!B59=0, F54, 'CM choke'!B59) -> 3965.224664 | G55: =IF(CMdata=1,'Frequency vector'!E55,'Frequency vector'!F55) -> 14.90504643 | H55: 0.01490504643
D56: 53 | E56: =10*('Frequency vector'!$C$3)^D56 -> 15.01988705 | F56: =IF('CM choke'!B60=0, F55, 'CM choke'!B60) -> 4071.673532 | G56: =IF(CMdata=1,'Frequency vector'!E56,'Frequency vector'!F56) -> 15.01988705 | H56: 0.01501988705
D57: 54 | E57: =10*('Frequency vector'!$C$3)^D57 -> 15.13561248 | F57: =IF('CM choke'!B61=0, F56, 'CM choke'!B61) -> 4180.980084 | G57: =IF(CMdata=1,'Frequency vector'!E57,'Frequency vector'!F57) -> 15.13561248 | H57: 0.01513561248
D58: 55 | E58: =10*('Frequency vector'!$C$3)^D58 -> 15.25222957 | F58: =IF('CM choke'!B62=0, F57, 'CM choke'!B62) -> 4293.221037 | G58: =IF(CMdata=1,'Frequency vector'!E58,'Frequency vector'!F58) -> 15.25222957 | H58: 0.01525222957
D59: 56 | E59: =10*('Frequency vector'!$C$3)^D59 -> 15.36974516 | F59: =IF('CM choke'!B63=0, F58, 'CM choke'!B63) -> 4408.475167 | G59: =IF(CMdata=1,'Frequency vector'!E59,'Frequency vector'!F59) -> 15.36974516 | H59: 0.01536974516
D60: 57 | E60: =10*('Frequency vector'!$C$3)^D60 -> 15.48816619 | F60: =IF('CM choke'!B64=0, F59, 'CM choke'!B64) -> 4526.823364 | G60: =IF(CMdata=1,'Frequency vector'!E60,'Frequency vector'!F60) -> 15.48816619 | H60: 0.01548816619
D61: 58 | E61: =10*('Frequency vector'!$C$3)^D61 -> 15.60749963 | F61: =IF('CM choke'!B65=0, F60, 'CM choke'!B65) -> 4648.348691 | G61: =IF(CMdata=1,'Frequency vector'!E61,'Frequency vector'!F61) -> 15.60749963 | H61: 0.01560749963
D62: 59 | E62: =10*('Frequency vector'!$C$3)^D62 -> 15.72775251 | F62: =IF('CM choke'!B66=0, F61, 'CM choke'!B66) -> 4773.136439 | G62: =IF(CMdata=1,'Frequency vector'!E62,'Frequency vector'!F62) -> 15.72775251 | H62: 0.01572775251
D63: 60 | E63: =10*('Frequency vector'!$C$3)^D63 -> 15.84893192 | F63: =IF('CM choke'!B67=0, F62, 'CM choke'!B67) -> 4901.274189 | G63: =IF(CMdata=1,'Frequency vector'!E63,'Frequency vector'!F63) -> 15.84893192 | H63: 0.01584893192
D64: 61 | E64: =10*('Frequency vector'!$C$3)^D64 -> 15.971045 | F64: =IF('CM choke'!B68=0, F63, 'CM choke'!B68) -> 5032.851876 | G64: =IF(CMdata=1,'Frequency vector'!E64,'Frequency vector'!F64) -> 15.971045 | H64: 0.015971045
D65: 62 | E65: =10*('Frequency vector'!$C$3)^D65 -> 16.09409893 | F65: =IF('CM choke'!B69=0, F64, 'CM choke'!B69) -> 5167.961846 | G65: =IF(CMdata=1,'Frequency vector'!E65,'Frequency vector'!F65) -> 16.09409893 | H65: 0.01609409893
D66: 63 | E66: =10*('Frequency vector'!$C$3)^D66 -> 16.21810097 | F66: =IF('CM choke'!B70=0, F65, 'CM choke'!B70) -> 5306.698924 | G66: =IF(CMdata=1,'Frequency vector'!E66,'Frequency vector'!F66) -> 16.21810097 | H66: 0.01621810097
D67: 64 | E67: =10*('Frequency vector'!$C$3)^D67 -> 16.34305843 | F67: =IF('CM choke'!B71=0, F66, 'CM choke'!B71) -> 5449.160485 | G67: =IF(CMdata=1,'Frequency vector'!E67,'Frequency vector'!F67) -> 16.34305843 | H67: 0.01634305843
D68: 65 | E68: =10*('Frequency vector'!$C$3)^D68 -> 16.46897865 | F68: =IF('CM choke'!B72=0, F67, 'CM choke'!B72) -> 5595.446512 | G68: =IF(CMdata=1,'Frequency vector'!E68,'Frequency vector'!F68) -> 16.46897865 | H68: =G68/1000 -> 0.01646897865
D69: 66 | E69: =10*('Frequency vector'!$C$3)^D69 -> 16.59586907 | F69: =IF('CM choke'!B73=0, F68, 'CM choke'!B73) -> 5745.659677 | G69: =IF(CMdata=1,'Frequency vector'!E69,'Frequency vector'!F69) -> 16.59586907 | H69: 0.01659586907
D70: 67 | E70: =10*('Frequency vector'!$C$3)^D70 -> 16.72373716 | F70: =IF('CM choke'!B74=0, F69, 'CM choke'!B74) -> 5899.905405 | G70: =IF(CMdata=1,'Frequency vector'!E70,'Frequency vector'!F70) -> 16.72373716 | H70: 0.01672373716
D71: 68 | E71: =10*('Frequency vector'!$C$3)^D71 -> 16.85259045 | F71: =IF('CM choke'!B75=0, F70, 'CM choke'!B75) -> 6058.291954 | G71: =IF(CMdata=1,'Frequency vector'!E71,'Frequency vector'!F71) -> 16.85259045 | H71: 0.01685259045
D72: 69 | E72: =10*('Frequency vector'!$C$3)^D72 -> 16.98243652 | F72: =IF('CM choke'!B76=0, F71, 'CM choke'!B76) -> 6220.930486 | G72: =IF(CMdata=1,'Frequency vector'!E72,'Frequency vector'!F72) -> 16.98243652 | H72: 0.01698243652
D73: 70 | E73: =10*('Frequency vector'!$C$3)^D73 -> 17.11328304 | F73: =IF('CM choke'!B77=0, F72, 'CM choke'!B77) -> 6387.935149 | G73: =IF(CMdata=1,'Frequency vector'!E73,'Frequency vector'!F73) -> 17.11328304 | H73: 0.01711328304
D74: 71 | E74: =10*('Frequency vector'!$C$3)^D74 -> 17.24513771 | F74: =IF('CM choke'!B78=0, F73, 'CM choke'!B78) -> 6559.423153 | G74: =IF(CMdata=1,'Frequency vector'!E74,'Frequency vector'!F74) -> 17.24513771 | H74: 0.01724513771
D75: 72 | E75: =10*('Frequency vector'!$C$3)^D75 -> 17.37800829 | F75: =IF('CM choke'!B79=0, F74, 'CM choke'!B79) -> 6735.514857 | G75: =IF(CMdata=1,'Frequency vector'!E75,'Frequency vector'!F75) -> 17.37800829 | H75: 0.01737800829
D76: 73 | E76: =10*('Frequency vector'!$C$3)^D76 -> 17.51190261 | F76: =IF('CM choke'!B80=0, F75, 'CM choke'!B80) -> 6916.33385 | G76: =IF(CMdata=1,'Frequency vector'!E76,'Frequency vector'!F76) -> 17.51190261 | H76: 0.01751190261
D77: 74 | E77: =10*('Frequency vector'!$C$3)^D77 -> 17.64682857 | F77: =IF('CM choke'!B81=0, F76, 'CM choke'!B81) -> 7102.007039 | G77: =IF(CMdata=1,'Frequency vector'!E77,'Frequency vector'!F77) -> 17.64682857 | H77: 0.01764682857
D78: 75 | E78: =10*('Frequency vector'!$C$3)^D78 -> 17.7827941 | F78: =IF('CM choke'!B82=0, F77, 'CM choke'!B82) -> 7292.664737 | G78: =IF(CMdata=1,'Frequency vector'!E78,'Frequency vector'!F78) -> 17.7827941 | H78: 0.0177827941
D79: 76 | E79: =10*('Frequency vector'!$C$3)^D79 -> 17.91980722 | F79: =IF('CM choke'!B83=0, F78, 'CM choke'!B83) -> 7488.440757 | G79: =IF(CMdata=1,'Frequency vector'!E79,'Frequency vector'!F79) -> 17.91980722 | H79: 0.01791980722
D80: 77 | E80: =10*('Frequency vector'!$C$3)^D80 -> 18.05787601 | F80: =IF('CM choke'!B84=0, F79, 'CM choke'!B84) -> 7689.472504 | G80: =IF(CMdata=1,'Frequency vector'!E80,'Frequency vector'!F80) -> 18.05787601 | H80: 0.01805787601
D81: 78 | E81: =10*('Frequency vector'!$C$3)^D81 -> 18.19700859 | F81: =IF('CM choke'!B85=0, F80, 'CM choke'!B85) -> 7895.90107 | G81: =IF(CMdata=1,'Frequency vector'!E81,'Frequency vector'!F81) -> 18.19700859 | H81: 0.01819700859
D82: 79 | E82: =10*('Frequency vector'!$C$3)^D82 -> 18.33721316 | F82: =IF('CM choke'!B86=0, F81, 'CM choke'!B86) -> 8107.871337 | G82: =IF(CMdata=1,'Frequency vector'!E82,'Frequency vector'!F82) -> 18.33721316 | H82: 0.01833721316
D83: 80 | E83: =10*('Frequency vector'!$C$3)^D83 -> 18.47849797 | F83: =IF('CM choke'!B87=0, F82, 'CM choke'!B87) -> 8325.532074 | G83: =IF(CMdata=1,'Frequency vector'!E83,'Frequency vector'!F83) -> 18.47849797 | H83: 0.01847849797
D84: 81 | E84: =10*('Frequency vector'!$C$3)^D84 -> 18.62087137 | F84: =IF('CM choke'!B88=0, F83, 'CM choke'!B88) -> 8549.036046 | G84: =IF(CMdata=1,'Frequency vector'!E84,'Frequency vector'!F84) -> 18.62087137 | H84: 0.01862087137
D85: 82 | E85: =10*('Frequency vector'!$C$3)^D85 -> 18.76434172 | F85: =IF('CM choke'!B89=0, F84, 'CM choke'!B89) -> 8778.540118 | G85: =IF(CMdata=1,'Frequency vector'!E85,'Frequency vector'!F85) -> 18.76434172 | H85: 0.01876434172
D86: 83 | E86: =10*('Frequency vector'!$C$3)^D86 -> 18.90891748 | F86: =IF('CM choke'!B90=0, F85, 'CM choke'!B90) -> 9014.205367 | G86: =IF(CMdata=1,'Frequency vector'!E86,'Frequency vector'!F86) -> 18.90891748 | H86: 0.01890891748
D87: 84 | E87: =10*('Frequency vector'!$C$3)^D87 -> 19.05460718 | F87: =IF('CM choke'!B91=0, F86, 'CM choke'!B91) -> 9256.197192 | G87: =IF(CMdata=1,'Frequency vector'!E87,'Frequency vector'!F87) -> 19.05460718 | H87: 0.01905460718
D88: 85 | E88: =10*('Frequency vector'!$C$3)^D88 -> 19.20141939 | F88: =IF('CM choke'!B92=0, F87, 'CM choke'!B92) -> 9504.685436 | G88: =IF(CMdata=1,'Frequency vector'!E88,'Frequency vector'!F88) -> 19.20141939 | H88: 0.01920141939
D89: 86 | E89: =10*('Frequency vector'!$C$3)^D89 -> 19.34936275 | F89: =IF('CM choke'!B93=0, F88, 'CM choke'!B93) -> 9759.844497 | G89: =IF(CMdata=1,'Frequency vector'!E89,'Frequency vector'!F89) -> 19.34936275 | H89: 0.01934936275
D90: 87 | E90: =10*('Frequency vector'!$C$3)^D90 -> 19.498446 | F90: =IF('CM choke'!B94=0, F89, 'CM choke'!B94) -> 10021.85346 | G90: =IF(CMdata=1,'Frequency vector'!E90,'Frequency vector'!F90) -> 19.498446 | H90: 0.019498446
D91: 88 | E91: =10*('Frequency vector'!$C$3)^D91 -> 19.6486779 | F91: =IF('CM choke'!B95=0, F90, 'CM choke'!B95) -> 10290.89621 | G91: =IF(CMdata=1,'Frequency vector'!E91,'Frequency vector'!F91) -> 19.6486779 | H91: 0.0196486779
D92: 89 | E92: =10*('Frequency vector'!$C$3)^D92 -> 19.80006731 | F92: =IF('CM choke'!B96=0, F91, 'CM choke'!B96) -> 10567.16158 | G92: =IF(CMdata=1,'Frequency vector'!E92,'Frequency vector'!F92) -> 19.80006731 | H92: 0.01980006731
D93: 90 | E93: =10*('Frequency vector'!$C$3)^D93 -> 19.95262315 | F93: =IF('CM choke'!B97=0, F92, 'CM choke'!B97) -> 10850.84346 | G93: =IF(CMdata=1,'Frequency vector'!E93,'Frequency vector'!F93) -> 19.95262315 | H93: 0.01995262315
D94: 91 | E94: =10*('Frequency vector'!$C$3)^D94 -> 20.1063544 | F94: =IF('CM choke'!B98=0, F93, 'CM choke'!B98) -> 11142.14095 | G94: =IF(CMdata=1,'Frequency vector'!E94,'Frequency vector'!F94) -> 20.1063544 | H94: 0.0201063544
D95: 92 | E95: =10*('Frequency vector'!$C$3)^D95 -> 20.26127013 | F95: =IF('CM choke'!B99=0, F94, 'CM choke'!B99) -> 11441.2585 | G95: =IF(CMdata=1,'Frequency vector'!E95,'Frequency vector'!F95) -> 20.26127013 | H95: 0.02026127013
D96: 93 | E96: =10*('Frequency vector'!$C$3)^D96 -> 20.41737945 | F96: =IF('CM choke'!B100=0, F95, 'CM choke'!B100) -> 11748.40604 | G96: =IF(CMdata=1,'Frequency vector'!E96,'Frequency vector'!F96) -> 20.41737945 | H96: 0.02041737945
D97: 94 | E97: =10*('Frequency vector'!$C$3)^D97 -> 20.57469156 | F97: =IF('CM choke'!B101=0, F96, 'CM choke'!B101) -> 12063.79915 | G97: =IF(CMdata=1,'Frequency vector'!E97,'Frequency vector'!F97) -> 20.57469156 | H97: 0.02057469156
D98: 95 | E98: =10*('Frequency vector'!$C$3)^D98 -> 20.73321573 | F98: =IF('CM choke'!B102=0, F97, 'CM choke'!B102) -> 12387.65917 | G98: =IF(CMdata=1,'Frequency vector'!E98,'Frequency vector'!F98) -> 20.73321573 | H98: 0.02073321573
D99: 96 | E99: =10*('Frequency vector'!$C$3)^D99 -> 20.89296131 | F99: =IF('CM choke'!B103=0, F98, 'CM choke'!B103) -> 12720.21342 | G99: =IF(CMdata=1,'Frequency vector'!E99,'Frequency vector'!F99) -> 20.89296131 | H99: 0.02089296131
D100: 97 | E100: =10*('Frequency vector'!$C$3)^D100 -> 21.05393769 | F100: =IF('CM choke'!B104=0, F99, 'CM choke'!B104) -> 13061.69528 | G100: =IF(CMdata=1,'Frequency vector'!E100,'Frequency vector'!F100) -> 21.05393769 | H100: 0.02105393769
D101: 98 | E101: =10*('Frequency vector'!$C$3)^D101 -> 21.21615437 | F101: =IF('CM choke'!B105=0, F100, 'CM choke'!B105) -> 13412.34444 | G101: =IF(CMdata=1,'Frequency vector'!E101,'Frequency vector'!F101) -> 21.21615437 | H101: 0.02121615437
D102: 99 | E102: =10*('Frequency vector'!$C$3)^D102 -> 21.3796209 | F102: =IF('CM choke'!B106=0, F101, 'CM choke'!B106) -> 13772.40698 | G102: =IF(CMdata=1,'Frequency vector'!E102,'Frequency vector'!F102) -> 21.3796209 | H102: 0.0213796209
D103: 100 | E103: =10*('Frequency vector'!$C$3)^D103 -> 21.5443469 | F103: =IF('CM choke'!B107=0, F102, 'CM choke'!B107) -> 14142.13562 | G103: =IF(CMdata=1,'Frequency vector'!E103,'Frequency vector'!F103) -> 21.5443469 | H103: 0.0215443469
D104: 101 | E104: =10*('Frequency vector'!$C$3)^D104 -> 21.71034209 | F104: =IF('CM choke'!B108=0, F103, 'CM choke'!B108) -> 14521.78986 | G104: =IF(CMdata=1,'Frequency vector'!E104,'Frequency vector'!F104) -> 21.71034209 | H104: 0.02171034209
D105: 102 | E105: =10*('Frequency vector'!$C$3)^D105 -> 21.87761624 | F105: =IF('CM choke'!B109=0, F104, 'CM choke'!B109) -> 14911.63614 | G105: =IF(CMdata=1,'Frequency vector'!E105,'Frequency vector'!F105) -> 21.87761624 | H105: 0.02187761624
D106: 103 | E106: =10*('Frequency vector'!$C$3)^D106 -> 22.04617921 | F106: =IF('CM choke'!B110=0, F105, 'CM choke'!B110) -> 15311.94808 | G106: =IF(CMdata=1,'Frequency vector'!E106,'Frequency vector'!F106) -> 22.04617921 | H106: 0.02204617921
D107: 104 | E107: =10*('Frequency vector'!$C$3)^D107 -> 22.21604092 | F107: =IF('CM choke'!B111=0, F106, 'CM choke'!B111) -> 15723.00664 | G107: =IF(CMdata=1,'Frequency vector'!E107,'Frequency vector'!F107) -> 22.21604092 | H107: 0.02221604092
D108: 105 | E108: =10*('Frequency vector'!$C$3)^D108 -> 22.38721139 | F108: =IF('CM choke'!B112=0, F107, 'CM choke'!B112) -> 16145.10031 | G108: =IF(CMdata=1,'Frequency vector'!E108,'Frequency vector'!F108) -> 22.38721139 | H108: 0.02238721139
D109: 106 | E109: =10*('Frequency vector'!$C$3)^D109 -> 22.55970069 | F109: =IF('CM choke'!B113=0, F108, 'CM choke'!B113) -> 16578.52535 | G109: =IF(CMdata=1,'Frequency vector'!E109,'Frequency vector'!F109) -> 22.55970069 | H109: 0.02255970069
D110: 107 | E110: =10*('Frequency vector'!$C$3)^D110 -> 22.73351899 | F110: =IF('CM choke'!B114=0, F109, 'CM choke'!B114) -> 17023.58595 | G110: =IF(CMdata=1,'Frequency vector'!E110,'Frequency vector'!F110) -> 22.73351899 | H110: 0.02273351899
D111: 108 | E111: =10*('Frequency vector'!$C$3)^D111 -> 22.90867653 | F111: =IF('CM choke'!B115=0, F110, 'CM choke'!B115) -> 17480.59446 | G111: =IF(CMdata=1,'Frequency vector'!E111,'Frequency vector'!F111) -> 22.90867653 | H111: 0.02290867653
D112: 109 | E112: =10*('Frequency vector'!$C$3)^D112 -> 23.08518362 | F112: =IF('CM choke'!B116=0, F111, 'CM choke'!B116) -> 17949.87165 | G112: =IF(CMdata=1,'Frequency vector'!E112,'Frequency vector'!F112) -> 23.08518362 | H112: 0.02308518362
D113: 110 | E113: =10*('Frequency vector'!$C$3)^D113 -> 23.26305067 | F113: =IF('CM choke'!B117=0, F112, 'CM choke'!B117) -> 18431.74688 | G113: =IF(CMdata=1,'Frequency vector'!E113,'Frequency vector'!F113) -> 23.26305067 | H113: 0.02326305067
D114: 111 | E114: =10*('Frequency vector'!$C$3)^D114 -> 23.44228815 | F114: =IF('CM choke'!B118=0, F113, 'CM choke'!B118) -> 18926.55833 | G114: =IF(CMdata=1,'Frequency vector'!E114,'Frequency vector'!F114) -> 23.44228815 | H114: 0.02344228815
D115: 112 | E115: =10*('Frequency vector'!$C$3)^D115 -> 23.62290663 | F115: =IF('CM choke'!B119=0, F114, 'CM choke'!B119) -> 19434.6533 | G115: =IF(CMdata=1,'Frequency vector'!E115,'Frequency vector'!F115) -> 23.62290663 | H115: 0.02362290663
D116: 113 | E116: =10*('Frequency vector'!$C$3)^D116 -> 23.80491673 | F116: =IF('CM choke'!B120=0, F115, 'CM choke'!B120) -> 19956.38839 | G116: =IF(CMdata=1,'Frequency vector'!E116,'Frequency vector'!F116) -> 23.80491673 | H116: 0.02380491673
D117: 114 | E117: =10*('Frequency vector'!$C$3)^D117 -> 23.98832919 | F117: =IF('CM choke'!B121=0, F116, 'CM choke'!B121) -> 20492.12977 | G117: =IF(CMdata=1,'Frequency vector'!E117,'Frequency vector'!F117) -> 23.98832919 | H117: 0.02398832919
D118: 115 | E118: =10*('Frequency vector'!$C$3)^D118 -> 24.17315481 | F118: =IF('CM choke'!B122=0, F117, 'CM choke'!B122) -> 21042.25346 | G118: =IF(CMdata=1,'Frequency vector'!E118,'Frequency vector'!F118) -> 24.17315481 | H118: 0.02417315481
D119: 116 | E119: =10*('Frequency vector'!$C$3)^D119 -> 24.35940447 | F119: =IF('CM choke'!B123=0, F118, 'CM choke'!B123) -> 21607.14555 | G119: =IF(CMdata=1,'Frequency vector'!E119,'Frequency vector'!F119) -> 24.35940447 | H119: 0.02435940447
D120: 117 | E120: =10*('Frequency vector'!$C$3)^D120 -> 24.54708916 | F120: =IF('CM choke'!B124=0, F119, 'CM choke'!B124) -> 22187.20252 | G120: =IF(CMdata=1,'Frequency vector'!E120,'Frequency vector'!F120) -> 24.54708916 | H120: 0.02454708916
D121: 118 | E121: =10*('Frequency vector'!$C$3)^D121 -> 24.73621992 | F121: =IF('CM choke'!B125=0, F120, 'CM choke'!B125) -> 22782.83146 | G121: =IF(CMdata=1,'Frequency vector'!E121,'Frequency vector'!F121) -> 24.73621992 | H121: 0.02473621992
D122: 119 | E122: =10*('Frequency vector'!$C$3)^D122 -> 24.92680789 | F122: =IF('CM choke'!B126=0, F121, 'CM choke'!B126) -> 23394.45043 | G122: =IF(CMdata=1,'Frequency vector'!E122,'Frequency vector'!F122) -> 24.92680789 | H122: 0.02492680789
D123: 120 | E123: =10*('Frequency vector'!$C$3)^D123 -> 25.11886432 | F123: =IF('CM choke'!B127=0, F122, 'CM choke'!B127) -> 24022.48868 | G123: =IF(CMdata=1,'Frequency vector'!E123,'Frequency vector'!F123) -> 25.11886432 | H123: 0.02511886432
D124: 121 | E124: =10*('Frequency vector'!$C$3)^D124 -> 25.3124005 | F124: =IF('CM choke'!B128=0, F123, 'CM choke'!B128) -> 24667.387 | G124: =IF(CMdata=1,'Frequency vector'!E124,'Frequency vector'!F124) -> 25.3124005 | H124: 0.0253124005
D125: 122 | E125: =10*('Frequency vector'!$C$3)^D125 -> 25.50742784 | F125: =IF('CM choke'!B129=0, F124, 'CM choke'!B129) -> 25329.59801 | G125: =IF(CMdata=1,'Frequency vector'!E125,'Frequency vector'!F125) -> 25.50742784 | H125: 0.02550742784
D126: 123 | E126: =10*('Frequency vector'!$C$3)^D126 -> 25.70395783 | F126: =IF('CM choke'!B130=0, F125, 'CM choke'!B130) -> 26009.58647 | G126: =IF(CMdata=1,'Frequency vector'!E126,'Frequency vector'!F126) -> 25.70395783 | H126: 0.02570395783
D127: 124 | E127: =10*('Frequency vector'!$C$3)^D127 -> 25.90200205 | F127: =IF('CM choke'!B131=0, F126, 'CM choke'!B131) -> 26707.82964 | G127: =IF(CMdata=1,'Frequency vector'!E127,'Frequency vector'!F127) -> 25.90200205 | H127: 0.02590200205
D128: 125 | E128: =10*('Frequency vector'!$C$3)^D128 -> 26.10157216 | F128: =IF('CM choke'!B132=0, F127, 'CM choke'!B132) -> 27424.81757 | G128: =IF(CMdata=1,'Frequency vector'!E128,'Frequency vector'!F128) -> 26.10157216 | H128: 0.02610157216
D129: 126 | E129: =10*('Frequency vector'!$C$3)^D129 -> 26.30267992 | F129: =IF('CM choke'!B133=0, F128, 'CM choke'!B133) -> 28161.05348 | G129: =IF(CMdata=1,'Frequency vector'!E129,'Frequency vector'!F129) -> 26.30267992 | H129: 0.02630267992
D130: 127 | E130: =10*('Frequency vector'!$C$3)^D130 -> 26.50533718 | F130: =IF('CM choke'!B134=0, F129, 'CM choke'!B134) -> 28917.05408 | G130: =IF(CMdata=1,'Frequency vector'!E130,'Frequency vector'!F130) -> 26.50533718 | H130: 0.02650533718
D131: 128 | E131: =10*('Frequency vector'!$C$3)^D131 -> 26.70955588 | F131: =IF('CM choke'!B135=0, F130, 'CM choke'!B135) -> 29693.34999 | G131: =IF(CMdata=1,'Frequency vector'!E131,'Frequency vector'!F131) -> 26.70955588 | H131: 0.02670955588
D132: 129 | E132: =10*('Frequency vector'!$C$3)^D132 -> 26.91534804 | F132: =IF('CM choke'!B136=0, F131, 'CM choke'!B136) -> 30490.48603 | G132: =IF(CMdata=1,'Frequency vector'!E132,'Frequency vector'!F132) -> 26.91534804 | H132: =G132/1000 -> 0.02691534804
D133: 130 | E133: =10*('Frequency vector'!$C$3)^D133 -> 27.12272579 | F133: =IF('CM choke'!B137=0, F132, 'CM choke'!B137) -> 31309.02167 | G133: =IF(CMdata=1,'Frequency vector'!E133,'Frequency vector'!F133) -> 27.12272579 | H133: 0.02712272579
D134: 131 | E134: =10*('Frequency vector'!$C$3)^D134 -> 27.33170135 | F134: =IF('CM choke'!B138=0, F133, 'CM choke'!B138) -> 32149.5314 | G134: =IF(CMdata=1,'Frequency vector'!E134,'Frequency vector'!F134) -> 27.33170135 | H134: 0.02733170135
D135: 132 | E135: =10*('Frequency vector'!$C$3)^D135 -> 27.54228703 | F135: =IF('CM choke'!B139=0, F134, 'CM choke'!B139) -> 33012.60512 | G135: =IF(CMdata=1,'Frequency vector'!E135,'Frequency vector'!F135) -> 27.54228703 | H135: 0.02754228703
D136: 133 | E136: =10*('Frequency vector'!$C$3)^D136 -> 27.75449524 | F136: =IF('CM choke'!B140=0, F135, 'CM choke'!B140) -> 33898.84858 | G136: =IF(CMdata=1,'Frequency vector'!E136,'Frequency vector'!F136) -> 27.75449524 | H136: 0.02775449524
D137: 134 | E137: =10*('Frequency vector'!$C$3)^D137 -> 27.96833846 | F137: =IF('CM choke'!B141=0, F136, 'CM choke'!B141) -> 34808.88379 | G137: =IF(CMdata=1,'Frequency vector'!E137,'Frequency vector'!F137) -> 27.96833846 | H137: 0.02796833846
D138: 135 | E138: =10*('Frequency vector'!$C$3)^D138 -> 28.18382931 | F138: =IF('CM choke'!B142=0, F137, 'CM choke'!B142) -> 35743.34945 | G138: =IF(CMdata=1,'Frequency vector'!E138,'Frequency vector'!F138) -> 28.18382931 | H138: 0.02818382931
D139: 136 | E139: =10*('Frequency vector'!$C$3)^D139 -> 28.40098048 | F139: =IF('CM choke'!B143=0, F138, 'CM choke'!B143) -> 36702.9014 | G139: =IF(CMdata=1,'Frequency vector'!E139,'Frequency vector'!F139) -> 28.40098048 | H139: 0.02840098048
D140: 137 | E140: =10*('Frequency vector'!$C$3)^D140 -> 28.61980476 | F140: =IF('CM choke'!B144=0, F139, 'CM choke'!B144) -> 37688.21311 | G140: =IF(CMdata=1,'Frequency vector'!E140,'Frequency vector'!F140) -> 28.61980476 | H140: 0.02861980476
D141: 138 | E141: =10*('Frequency vector'!$C$3)^D141 -> 28.84031503 | F141: =IF('CM choke'!B145=0, F140, 'CM choke'!B145) -> 38699.97612 | G141: =IF(CMdata=1,'Frequency vector'!E141,'Frequency vector'!F141) -> 28.84031503 | H141: 0.02884031503
D142: 139 | E142: =10*('Frequency vector'!$C$3)^D142 -> 29.0625243 | F142: =IF('CM choke'!B146=0, F141, 'CM choke'!B146) -> 39738.90051 | G142: =IF(CMdata=1,'Frequency vector'!E142,'Frequency vector'!F142) -> 29.0625243 | H142: 0.0290625243
D143: 140 | E143: =10*('Frequency vector'!$C$3)^D143 -> 29.28644565 | F143: =IF('CM choke'!B147=0, F142, 'CM choke'!B147) -> 40805.71547 | G143: =IF(CMdata=1,'Frequency vector'!E143,'Frequency vector'!F143) -> 29.28644565 | H143: 0.02928644565
D144: 141 | E144: =10*('Frequency vector'!$C$3)^D144 -> 29.51209227 | F144: =IF('CM choke'!B148=0, F143, 'CM choke'!B148) -> 41901.16972 | G144: =IF(CMdata=1,'Frequency vector'!E144,'Frequency vector'!F144) -> 29.51209227 | H144: 0.02951209227
D145: 142 | E145: =10*('Frequency vector'!$C$3)^D145 -> 29.73947745 | F145: =IF('CM choke'!B149=0, F144, 'CM choke'!B149) -> 43026.0321 | G145: =IF(CMdata=1,'Frequency vector'!E145,'Frequency vector'!F145) -> 29.73947745 | H145: 0.02973947745
D146: 143 | E146: =10*('Frequency vector'!$C$3)^D146 -> 29.9686146 | F146: =IF('CM choke'!B150=0, F145, 'CM choke'!B150) -> 44181.0921 | G146: =IF(CMdata=1,'Frequency vector'!E146,'Frequency vector'!F146) -> 29.9686146 | H146: 0.0299686146
D147: 144 | E147: =10*('Frequency vector'!$C$3)^D147 -> 30.1995172 | F147: =IF('CM choke'!B151=0, F146, 'CM choke'!B151) -> 45367.16039 | G147: =IF(CMdata=1,'Frequency vector'!E147,'Frequency vector'!F147) -> 30.1995172 | H147: 0.0301995172
D148: 145 | E148: =10*('Frequency vector'!$C$3)^D148 -> 30.43219887 | F148: =IF('CM choke'!B152=0, F147, 'CM choke'!B152) -> 46585.0694 | G148: =IF(CMdata=1,'Frequency vector'!E148,'Frequency vector'!F148) -> 30.43219887 | H148: 0.03043219887
D149: 146 | E149: =10*('Frequency vector'!$C$3)^D149 -> 30.66667331 | F149: =IF('CM choke'!B153=0, F148, 'CM choke'!B153) -> 47835.67393 | G149: =IF(CMdata=1,'Frequency vector'!E149,'Frequency vector'!F149) -> 30.66667331 | H149: 0.03066667331
D150: 147 | E150: =10*('Frequency vector'!$C$3)^D150 -> 30.90295433 | F150: =IF('CM choke'!B154=0, F149, 'CM choke'!B154) -> 49119.85169 | G150: =IF(CMdata=1,'Frequency vector'!E150,'Frequency vector'!F150) -> 30.90295433 | H150: 0.03090295433
D151: 148 | E151: =10*('Frequency vector'!$C$3)^D151 -> 31.14105584 | F151: =IF('CM choke'!B155=0, F150, 'CM choke'!B155) -> 50438.50398 | G151: =IF(CMdata=1,'Frequency vector'!E151,'Frequency vector'!F151) -> 31.14105584 | H151: 0.03114105584
D152: 149 | E152: =10*('Frequency vector'!$C$3)^D152 -> 31.38099189 | F152: =IF('CM choke'!B156=0, F151, 'CM choke'!B156) -> 51792.5563 | G152: =IF(CMdata=1,'Frequency vector'!E152,'Frequency vector'!F152) -> 31.38099189 | H152: 0.03138099189
D153: 150 | E153: =10*('Frequency vector'!$C$3)^D153 -> 31.6227766 | F153: =IF('CM choke'!B157=0, F152, 'CM choke'!B157) -> 53182.95897 | G153: =IF(CMdata=1,'Frequency vector'!E153,'Frequency vector'!F153) -> 31.6227766 | H153: 0.0316227766
D154: 151 | E154: =10*('Frequency vector'!$C$3)^D154 -> 31.86642422 | F154: =IF('CM choke'!B158=0, F153, 'CM choke'!B158) -> 54610.68785 | G154: =IF(CMdata=1,'Frequency vector'!E154,'Frequency vector'!F154) -> 31.86642422 | H154: 0.03186642422
D155: 152 | E155: =10*('Frequency vector'!$C$3)^D155 -> 32.11194909 | F155: =IF('CM choke'!B159=0, F154, 'CM choke'!B159) -> 56076.74498 | G155: =IF(CMdata=1,'Frequency vector'!E155,'Frequency vector'!F155) -> 32.11194909 | H155: 0.03211194909
D156: 153 | E156: =10*('Frequency vector'!$C$3)^D156 -> 32.35936569 | F156: =IF('CM choke'!B160=0, F155, 'CM choke'!B160) -> 57582.1593 | G156: =IF(CMdata=1,'Frequency vector'!E156,'Frequency vector'!F156) -> 32.35936569 | H156: 0.03235936569
D157: 154 | E157: =10*('Frequency vector'!$C$3)^D157 -> 32.60868859 | F157: =IF('CM choke'!B161=0, F156, 'CM choke'!B161) -> 59127.98739 | G157: =IF(CMdata=1,'Frequency vector'!E157,'Frequency vector'!F157) -> 32.60868859 | H157: 0.03260868859
D158: 155 | E158: =10*('Frequency vector'!$C$3)^D158 -> 32.85993248 | F158: =IF('CM choke'!B162=0, F157, 'CM choke'!B162) -> 60715.31417 | G158: =IF(CMdata=1,'Frequency vector'!E158,'Frequency vector'!F158) -> 32.85993248 | H158: 0.03285993248
D159: 156 | E159: =10*('Frequency vector'!$C$3)^D159 -> 33.11311215 | F159: =IF('CM choke'!B163=0, F158, 'CM choke'!B163) -> 62345.25371 | G159: =IF(CMdata=1,'Frequency vector'!E159,'Frequency vector'!F159) -> 33.11311215 | H159: 0.03311311215
D160: 157 | E160: =10*('Frequency vector'!$C$3)^D160 -> 33.36824252 | F160: =IF('CM choke'!B164=0, F159, 'CM choke'!B164) -> 64018.94997 | G160: =IF(CMdata=1,'Frequency vector'!E160,'Frequency vector'!F160) -> 33.36824252 | H160: 0.03336824252
D161: 158 | E161: =10*('Frequency vector'!$C$3)^D161 -> 33.62533863 | F161: =IF('CM choke'!B165=0, F160, 'CM choke'!B165) -> 65737.57761 | G161: =IF(CMdata=1,'Frequency vector'!E161,'Frequency vector'!F161) -> 33.62533863 | H161: 0.03362533863
D162: 159 | E162: =10*('Frequency vector'!$C$3)^D162 -> 33.88441561 | F162: =IF('CM choke'!B166=0, F161, 'CM choke'!B166) -> 67502.34287 | G162: =IF(CMdata=1,'Frequency vector'!E162,'Frequency vector'!F162) -> 33.88441561 | H162: 0.03388441561
D163: 160 | E163: =10*('Frequency vector'!$C$3)^D163 -> 34.14548874 | F163: =IF('CM choke'!B167=0, F162, 'CM choke'!B167) -> 69314.48432 | G163: =IF(CMdata=1,'Frequency vector'!E163,'Frequency vector'!F163) -> 34.14548874 | H163: 0.03414548874
D164: 161 | E164: =10*('Frequency vector'!$C$3)^D164 -> 34.40857338 | F164: =IF('CM choke'!B168=0, F163, 'CM choke'!B168) -> 71175.2738 | G164: =IF(CMdata=1,'Frequency vector'!E164,'Frequency vector'!F164) -> 34.40857338 | H164: 0.03440857338
D165: 162 | E165: =10*('Frequency vector'!$C$3)^D165 -> 34.67368505 | F165: =IF('CM choke'!B169=0, F164, 'CM choke'!B169) -> 73086.01732 | G165: =IF(CMdata=1,'Frequency vector'!E165,'Frequency vector'!F165) -> 34.67368505 | H165: 0.03467368505
D166: 163 | E166: =10*('Frequency vector'!$C$3)^D166 -> 34.94083934 | F166: =IF('CM choke'!B170=0, F165, 'CM choke'!B170) -> 75048.0559 | G166: =IF(CMdata=1,'Frequency vector'!E166,'Frequency vector'!F166) -> 34.94083934 | H166: 0.03494083934
D167: 164 | E167: =10*('Frequency vector'!$C$3)^D167 -> 35.21005202 | F167: =IF('CM choke'!B171=0, F166, 'CM choke'!B171) -> 77062.76661 | G167: =IF(CMdata=1,'Frequency vector'!E167,'Frequency vector'!F167) -> 35.21005202 | H167: 0.03521005202
D168: 165 | E168: =10*('Frequency vector'!$C$3)^D168 -> 35.48133892 | F168: =IF('CM choke'!B172=0, F167, 'CM choke'!B172) -> 79131.56345 | G168: =IF(CMdata=1,'Frequency vector'!E168,'Frequency vector'!F168) -> 35.48133892 | H168: 0.03548133892
D169: 166 | E169: =10*('Frequency vector'!$C$3)^D169 -> 35.75471605 | F169: =IF('CM choke'!B173=0, F168, 'CM choke'!B173) -> 81255.8984 | G169: =IF(CMdata=1,'Frequency vector'!E169,'Frequency vector'!F169) -> 35.75471605 | H169: 0.03575471605
D170: 167 | E170: =10*('Frequency vector'!$C$3)^D170 -> 36.03019949 | F170: =IF('CM choke'!B174=0, F169, 'CM choke'!B174) -> 83437.26241 | G170: =IF(CMdata=1,'Frequency vector'!E170,'Frequency vector'!F170) -> 36.03019949 | H170: 0.03603019949
D171: 168 | E171: =10*('Frequency vector'!$C$3)^D171 -> 36.30780548 | F171: =IF('CM choke'!B175=0, F170, 'CM choke'!B175) -> 85677.18647 | G171: =IF(CMdata=1,'Frequency vector'!E171,'Frequency vector'!F171) -> 36.30780548 | H171: 0.03630780548
D172: 169 | E172: =10*('Frequency vector'!$C$3)^D172 -> 36.58755037 | F172: =IF('CM choke'!B176=0, F171, 'CM choke'!B176) -> 87977.24265 | G172: =IF(CMdata=1,'Frequency vector'!E172,'Frequency vector'!F172) -> 36.58755037 | H172: 0.03658755037
D173: 170 | E173: =10*('Frequency vector'!$C$3)^D173 -> 36.86945065 | F173: =IF('CM choke'!B177=0, F172, 'CM choke'!B177) -> 90339.04523 | G173: =IF(CMdata=1,'Frequency vector'!E173,'Frequency vector'!F173) -> 36.86945065 | H173: 0.03686945065
D174: 171 | E174: =10*('Frequency vector'!$C$3)^D174 -> 37.15352291 | F174: =IF('CM choke'!B178=0, F173, 'CM choke'!B178) -> 92764.25185 | G174: =IF(CMdata=1,'Frequency vector'!E174,'Frequency vector'!F174) -> 37.15352291 | H174: 0.03715352291
D175: 172 | E175: =10*('Frequency vector'!$C$3)^D175 -> 37.4397839 | F175: =IF('CM choke'!B179=0, F174, 'CM choke'!B179) -> 95254.56461 | G175: =IF(CMdata=1,'Frequency vector'!E175,'Frequency vector'!F175) -> 37.4397839 | H175: 0.0374397839
D176: 173 | E176: =10*('Frequency vector'!$C$3)^D176 -> 37.72825047 | F176: =IF('CM choke'!B180=0, F175, 'CM choke'!B180) -> 97811.73133 | G176: =IF(CMdata=1,'Frequency vector'!E176,'Frequency vector'!F176) -> 37.72825047 | H176: 0.03772825047
D177: 174 | E177: =10*('Frequency vector'!$C$3)^D177 -> 38.01893963 | F177: =IF('CM choke'!B181=0, F176, 'CM choke'!B181) -> 100437.5467 | G177: =IF(CMdata=1,'Frequency vector'!E177,'Frequency vector'!F177) -> 38.01893963 | H177: 0.03801893963
D178: 175 | E178: =10*('Frequency vector'!$C$3)^D178 -> 38.3118685 | F178: =IF('CM choke'!B182=0, F177, 'CM choke'!B182) -> 103133.8538 | G178: =IF(CMdata=1,'Frequency vector'!E178,'Frequency vector'!F178) -> 38.3118685 | H178: 0.0383118685
D179: 176 | E179: =10*('Frequency vector'!$C$3)^D179 -> 38.60705432 | F179: =IF('CM choke'!B183=0, F178, 'CM choke'!B183) -> 105902.5448 | G179: =IF(CMdata=1,'Frequency vector'!E179,'Frequency vector'!F179) -> 38.60705432 | H179: 0.03860705432
D180: 177 | E180: =10*('Frequency vector'!$C$3)^D180 -> 38.9045145 | F180: =IF('CM choke'!B184=0, F179, 'CM choke'!B184) -> 108745.563 | G180: =IF(CMdata=1,'Frequency vector'!E180,'Frequency vector'!F180) -> 38.9045145 | H180: 0.0389045145
D181: 178 | E181: =10*('Frequency vector'!$C$3)^D181 -> 39.20426655 | F181: =IF('CM choke'!B185=0, F180, 'CM choke'!B185) -> 111664.9038 | G181: =IF(CMdata=1,'Frequency vector'!E181,'Frequency vector'!F181) -> 39.20426655 | H181: 0.03920426655
D182: 179 | E182: =10*('Frequency vector'!$C$3)^D182 -> 39.50632814 | F182: =IF('CM choke'!B186=0, F181, 'CM choke'!B186) -> 114662.6161 | G182: =IF(CMdata=1,'Frequency vector'!E182,'Frequency vector'!F182) -> 39.50632814 | H182: 0.03950632814
D183: 180 | E183: =10*('Frequency vector'!$C$3)^D183 -> 39.81071706 | F183: =IF('CM choke'!B187=0, F182, 'CM choke'!B187) -> 117740.8037 | G183: =IF(CMdata=1,'Frequency vector'!E183,'Frequency vector'!F183) -> 39.81071706 | H183: 0.03981071706
D184: 181 | E184: =10*('Frequency vector'!$C$3)^D184 -> 40.11745123 | F184: =IF('CM choke'!B188=0, F183, 'CM choke'!B188) -> 120901.6272 | G184: =IF(CMdata=1,'Frequency vector'!E184,'Frequency vector'!F184) -> 40.11745123 | H184: 0.04011745123
D185: 182 | E185: =10*('Frequency vector'!$C$3)^D185 -> 40.42654874 | F185: =IF('CM choke'!B189=0, F184, 'CM choke'!B189) -> 124147.3049 | G185: =IF(CMdata=1,'Frequency vector'!E185,'Frequency vector'!F185) -> 40.42654874 | H185: 0.04042654874
D186: 183 | E186: =10*('Frequency vector'!$C$3)^D186 -> 40.73802778 | F186: =IF('CM choke'!B190=0, F185, 'CM choke'!B190) -> 127480.1148 | G186: =IF(CMdata=1,'Frequency vector'!E186,'Frequency vector'!F186) -> 40.73802778 | H186: 0.04073802778
D187: 184 | E187: =10*('Frequency vector'!$C$3)^D187 -> 41.05190671 | F187: =IF('CM choke'!B191=0, F186, 'CM choke'!B191) -> 130902.3961 | G187: =IF(CMdata=1,'Frequency vector'!E187,'Frequency vector'!F187) -> 41.05190671 | H187: 0.04105190671
D188: 185 | E188: =10*('Frequency vector'!$C$3)^D188 -> 41.36820402 | F188: =IF('CM choke'!B192=0, F187, 'CM choke'!B192) -> 134416.5505 | G188: =IF(CMdata=1,'Frequency vector'!E188,'Frequency vector'!F188) -> 41.36820402 | H188: 0.04136820402
D189: 186 | E189: =10*('Frequency vector'!$C$3)^D189 -> 41.68693835 | F189: =IF('CM choke'!B193=0, F188, 'CM choke'!B193) -> 138025.0445 | G189: =IF(CMdata=1,'Frequency vector'!E189,'Frequency vector'!F189) -> 41.68693835 | H189: 0.04168693835
D190: 187 | E190: =10*('Frequency vector'!$C$3)^D190 -> 42.00812846 | F190: =IF('CM choke'!B194=0, F189, 'CM choke'!B194) -> 141730.4108 | G190: =IF(CMdata=1,'Frequency vector'!E190,'Frequency vector'!F190) -> 42.00812846 | H190: 0.04200812846
D191: 188 | E191: =10*('Frequency vector'!$C$3)^D191 -> 42.33179328 | F191: =IF('CM choke'!B195=0, F190, 'CM choke'!B195) -> 145535.2499 | G191: =IF(CMdata=1,'Frequency vector'!E191,'Frequency vector'!F191) -> 42.33179328 | H191: 0.04233179328
D192: 189 | E192: =10*('Frequency vector'!$C$3)^D192 -> 42.65795188 | F192: =IF('CM choke'!B196=0, F191, 'CM choke'!B196) -> 149442.2322 | G192: =IF(CMdata=1,'Frequency vector'!E192,'Frequency vector'!F192) -> 42.65795188 | H192: 0.04265795188
D193: 190 | E193: =10*('Frequency vector'!$C$3)^D193 -> 42.98662347 | F193: =IF('CM choke'!B197=0, F192, 'CM choke'!B197) -> 153454.0998 | G193: =IF(CMdata=1,'Frequency vector'!E193,'Frequency vector'!F193) -> 42.98662347 | H193: 0.04298662347
D194: 191 | E194: =10*('Frequency vector'!$C$3)^D194 -> 43.31782742 | F194: =IF('CM choke'!B198=0, F193, 'CM choke'!B198) -> 157573.6684 | G194: =IF(CMdata=1,'Frequency vector'!E194,'Frequency vector'!F194) -> 43.31782742 | H194: 0.04331782742
D195: 192 | E195: =10*('Frequency vector'!$C$3)^D195 -> 43.65158322 | F195: =IF('CM choke'!B199=0, F194, 'CM choke'!B199) -> 161803.8294 | G195: =IF(CMdata=1,'Frequency vector'!E195,'Frequency vector'!F195) -> 43.65158322 | H195: 0.04365158322
D196: 193 | E196: =10*('Frequency vector'!$C$3)^D196 -> 43.98791056 | F196: =IF('CM choke'!B200=0, F195, 'CM choke'!B200) -> 166147.5516 | G196: =IF(CMdata=1,'Frequency vector'!E196,'Frequency vector'!F196) -> 43.98791056 | H196: =G196/1000 -> 0.04398791056
D197: 194 | E197: =10*('Frequency vector'!$C$3)^D197 -> 44.32682923 | F197: =IF('CM choke'!B201=0, F196, 'CM choke'!B201) -> 170607.8837 | G197: =IF(CMdata=1,'Frequency vector'!E197,'Frequency vector'!F197) -> 44.32682923 | H197: 0.04432682923
D198: 195 | E198: =10*('Frequency vector'!$C$3)^D198 -> 44.66835922 | F198: =IF('CM choke'!B202=0, F197, 'CM choke'!B202) -> 175187.9561 | G198: =IF(CMdata=1,'Frequency vector'!E198,'Frequency vector'!F198) -> 44.66835922 | H198: 0.04466835922
D199: 196 | E199: =10*('Frequency vector'!$C$3)^D199 -> 45.01252062 | F199: =IF('CM choke'!B203=0, F198, 'CM choke'!B203) -> 179890.9833 | G199: =IF(CMdata=1,'Frequency vector'!E199,'Frequency vector'!F199) -> 45.01252062 | H199: 0.04501252062
D200: 197 | E200: =10*('Frequency vector'!$C$3)^D200 -> 45.35933373 | F200: =IF('CM choke'!B204=0, F199, 'CM choke'!B204) -> 184720.2662 | G200: =IF(CMdata=1,'Frequency vector'!E200,'Frequency vector'!F200) -> 45.35933373 | H200: 0.04535933373
D201: 198 | E201: =10*('Frequency vector'!$C$3)^D201 -> 45.70881896 | F201: =IF('CM choke'!B205=0, F200, 'CM choke'!B205) -> 189679.1941 | G201: =IF(CMdata=1,'Frequency vector'!E201,'Frequency vector'!F201) -> 45.70881896 | H201: 0.04570881896
... 924 more rows

Sheet Choke impedance calculations (hidden)
C1: ZL1 (mag, phase) | E1: ZL2 (mag, phase) | G1: ZL1 (real, imag) | I1: ZL2 (real, imag) | K1: ZL1 (complex) | L1: ZL2 (complex) | O1: Lcm1 | Q1: Lcm2
A2: freq_selected [Hz] | B2: j*w [rad] | C2: ZL1_mag [Ω] | D2: ZL1_phase [°] | E2: ZL2_mag [Ω] | F2: ZL2_phase [°] | G2: ZL1_real [Ω] | H2: ZL1_imag [Ω] | I2: ZL2_real [Ω] | J2: ZL2_imag [Ω] | K2: Zch1 [Ω] | L2: Zch2 [Ω]
A3: ='Frequency vector'!G3 -> 10 | B3: =COMPLEX(0,2*PI()*'Frequency vector'!G3,"j") -> 62.8318530717959j | C3: =IF(CMdata=1,IMABS(K3),'CM choke'!C7) -> 0.2211681191 | D3: =IF(CMdata=1,DEGREES(IMARGUMENT(K3)),'CM choke'!D7) -> 89.99045766 | E3: =IF(CMdata=1,IMABS(L3),'CM choke'!E7) -> 0.2764601535 | F3: =IF(CMdata=1,DEGREES(IMARGUMENT(L3)),'CM choke'!F7) -> 89.99886857 | G3: =C3*COS(RADIANS(D3)) -> 3.683449032e-05 | H3: =C3*SIN(RADIANS(D3)) -> 0.2211681161 | I3: =E3*COS(RADIANS(F3)) -> 5.459301177e-06 | J3: =E3*SIN(RADIANS(F3)) -> 0.2764601535 | K3: =IF(CMdata=1, IF(Lcm1_core=1, IMDIV(1,IMSUM(IMDIV(1,IMPRODUCT(B3,'Design the AEF circuit'!$G$14*0.001)),IMDIV(1,'Design the AEF circuit'!$G$15*1000),IMPRODUCT(B3,'Design the AEF circuit'!$G$16*0.000000000001))), O3),COMPLEX(G3,H3,"j")) -> 0.0000368344903152681+0.221168116055335j | L3: =IF(CMdata=1, IF(Lcm2_core=1, IMDIV(1, IMSUM(IMDIV(1,IMPRODUCT(B3,'Design the AEF circuit'!$H$14*0.001)), IMDIV(1,'Design the AEF circuit'!$H$15*1000), IMPRODUCT(B3,'Design the AEF circuit'!$H$16*0.000000000001))), Q3), COMPLEX(I3,J3,"j")) -> 5.45930117743538E-06+0.276460153465723j | N3: =IMSUM(IMDIV(1,IMSUM(IMDIV(1,IMPRODUCT(B3,'Design the AEF circuit'!$G$14*0.001)),IMDIV(1,'Design the AEF circuit'!$G$15*1000))), IMDIV(1,IMSUM(IMDIV(1,IMPRODUCT(B3,'Design the AEF circuit'!$G$17*0.001)),IMDIV(1,'Design the AEF circuit'!$G$18*1000))), IMDIV(1,IMSUM(IMDIV(1,IMPRODUCT(B3,'Design the AEF circuit'!$G$19*0.001)),IMDIV(1,'Design the AEF circuit'!$G$20*1000))) ) -> 0.0000368344903140395+0.221168116051647j | O3: =IMDIV(1, IMSUM( IMDIV(1, N3), IMPRODUCT(B3,'Design the AEF circuit'!$G$16*0.000000000001) ) ) -> 0.0000368344903152681+0.221168116055335j | P3: =IMSUM(IMDIV(1,IMSUM(IMDIV(1,IMPRODUCT(B3,'Design the AEF circuit'!$H$14*0.001)),IMDIV(1,'Design the AEF circuit'!$H$15*1000))), IMDIV(1,IMSUM(IMDIV(1,IMPRODUCT(B3,'Design the AEF circuit'!$H$17*0.001)),IMDIV(1,'Design the AEF circuit'!$H$18*1000))), IMDIV(1,IMSUM(IMDIV(1,IMPRODUCT(B3,'Design the AEF circuit'!$H$19*0.001)),IMDIV(1,'Design the AEF circuit'!$H$20*1000))) ) -> 6.76321690769887E-06+0.309132716941711j | Q3: =IMDIV(1, IMSUM( IMDIV(1, P3), IMPRODUCT(B3,'Design the AEF circuit'!$H$16*0.000000000001) ) ) -> 0.0000067632169108516+0.309132717013763j
A4: ='Frequency vector'!G4 -> 10.07704814 | B4: =COMPLEX(0,2*PI()*'Frequency vector'!G4,"j") -> 63.3159608215411j | C4: =IF(IF(CMdata=1,IMABS(K4),'CM choke'!C8)=0, C3, IF(CMdata=1,IMABS(K4),'CM choke'!C8)) -> 0.2228721783 | D4: =IF(IF(CMdata=1,DEGREES(IMARGUMENT(K4)),'CM choke'!D8)=0, D3, IF(CMdata=1,DEGREES(IMARGUMENT(K4)),'CM choke'!D8)) -> 89.99038414 | E4: =IF(IF(CMdata=1,IMABS(L4),'CM choke'!E8)=0, E3, IF(CMdata=1,IMABS(L4),'CM choke'!E8)) -> 0.2785902276 | F4: =IF(IF(CMdata=1,DEGREES(IMARGUMENT(L4)),'CM choke'!F8)=0, F3, IF(CMdata=1,DEGREES(IMARGUMENT(L4)),'CM choke'!F8)) -> 89.99885985 | G4: =C4*COS(RADIANS(D4)) -> 3.740428275e-05 | H4: 0.2228721752 | I4: 5.543751066e-06 | J4: 0.2785902276 | K4: =IF(CMdata=1, IF(Lcm1_core=1, IMDIV(1,IMSUM(IMDIV(1,IMPRODUCT(B4,'Design the AEF circuit'!$G$14*0.001)),IMDIV(1,'Design the AEF circuit'!$G$15*1000),IMPRODUCT(B4,'Design the AEF circuit'!$G$16*0.000000000001))), O4),COMPLEX(G4,H4,"j")) -> 0.0000374042827473697+0.222872175177038j | L4: =IF(CMdata=1, IF(Lcm2_core=1, IMDIV(1, IMSUM(IMDIV(1,IMPRODUCT(B4,'Design the AEF circuit'!$H$14*0.001)), IMDIV(1,'Design the AEF circuit'!$H$15*1000), IMPRODUCT(B4,'Design the AEF circuit'!$H$16*0.000000000001))), Q4), COMPLEX(I4,J4,"j")) -> 5.54375106604135E-06+0.278590227563434j | N4: =IMSUM(IMDIV(1,IMSUM(IMDIV(1,IMPRODUCT(B4,'Design the AEF circuit'!$G$14*0.001)),IMDIV(1,'Design the AEF circuit'!$G$15*1000))), IMDIV(1,IMSUM(IMDIV(1,IMPRODUCT(B4,'Design the AEF circuit'!$G$17*0.001)),IMDIV(1,'Design the AEF circuit'!$G$18*1000))), IMDIV(1,IMSUM(IMDIV(1,IMPRODUCT(B4,'Design the AEF circuit'!$G$19*0.001)),IMDIV(1,'Design the AEF circuit'!$G$20*1000))) ) -> 0.0000374042827461029+0.222872175173264j | O4: =IMDIV(1, IMSUM( IMDIV(1, N4), IMPRODUCT(B4,'Design the AEF circuit'!$G$16*0.000000000001))) -> 0.0000374042827473697+0.222872175177038j | P4: =IMSUM(IMDIV(1,IMSUM(IMDIV(1,IMPRODUCT(B4,'Design the AEF circuit'!$H$14*0.001)),IMDIV(1,'Design the AEF circuit'!$H$15*1000))), IMDIV(1,IMSUM(IMDIV(1,IMPRODUCT(B4,'Design the AEF circuit'!$H$17*0.001)),IMDIV(1,'Design the AEF circuit'!$H$18*1000))), IMDIV(1,IMSUM(IMDIV(1,IMPRODUCT(B4,'Design the AEF circuit'!$H$19*0.001)),IMDIV(1,'Design the AEF circuit'!$H$20*1000))) ) -> 6.86783705878373E-06+0.311514527066463j | Q4: =IMDIV(1, IMSUM( IMDIV(1, P4), IMPRODUCT(B4,'Design the AEF circuit'!$H$16*0.000000000001) ) ) -> 6.86783706203477E-06+0.311514527140194j
A5: ='Frequency vector'!G5 -> 10.15468992 | B5: =COMPLEX(0,2*PI()*'Frequency vector'!G5,"j") -> 63.8037985315199j | C5: =IF(IF(CMdata=1,IMABS(K5),'CM choke'!C9)=0, C4, IF(CMdata=1,IMABS(K5),'CM choke'!C9)) -> 0.224589367 | D5: =IF(IF(CMdata=1,DEGREES(IMARGUMENT(K5)),'CM choke'!D9)=0, D4, IF(CMdata=1,DEGREES(IMARGUMENT(K5)),'CM choke'!D9)) -> 89.99031005 | E5: =IF(IF(CMdata=1,IMABS(L5),'CM choke'!E9)=0, E4, IF(CMdata=1,IMABS(L5),'CM choke'!E9)) -> 0.2807367135 | F5: =IF(IF(CMdata=1,DEGREES(IMARGUMENT(L5)),'CM choke'!F9)=0, F4, IF(CMdata=1,DEGREES(IMARGUMENT(L5)),'CM choke'!F9)) -> 89.99885107 | G5: 3.798288929e-05 | H5: 0.2245893638 | I5: 5.629507309e-06 | J5: 0.2807367135 | K5: =IF(CMdata=1, IF(Lcm1_core=1, IMDIV(1,IMSUM(IMDIV(1,IMPRODUCT(B5,'Design the AEF circuit'!$G$14*0.001)),IMDIV(1,'Design the AEF circuit'!$G$15*1000),IMPRODUCT(B5,'Design the AEF circuit'!$G$16*0.000000000001))), O5),COMPLEX(G5,H5,"j")) -> 0.000037982889293673+0.224589363755098j | L5: =IF(CMdata=1, IF(Lcm2_core=1, IMDIV(1, IMSUM(IMDIV(1,IMPRODUCT(B5,'Design the AEF circuit'!$H$14*0.001)), IMDIV(1,'Design the AEF circuit'!$H$15*1000), IMPRODUCT(B5,'Design the AEF circuit'!$H$16*0.000000000001))), Q5), COMPLEX(I5,J5,"j")) -> 5.62950730933523E-06+0.280736713486145j | N5: =IMSUM(IMDIV(1,IMSUM(IMDIV(1,IMPRODUCT(B5,'Design the AEF circuit'!$G$14*0.001)),IMDIV(1,'Design the AEF circuit'!$G$15*1000))), IMDIV(1,IMSUM(IMDIV(1,IMPRODUCT(B5,'Design the AEF circuit'!$G$17*0.001)),IMDIV(1,'Design the AEF circuit'!$G$18*1000))), IMDIV(1,IMSUM(IMDIV(1,IMPRODUCT(B5,'Design the AEF circuit'!$G$19*0.001)),IMDIV(1,'Design the AEF circuit'!$G$20*1000))) ) -> 0.0000379828892923668+0.224589363751236j | O5: =IMDIV(1, IMSUM( IMDIV(1, N5), IMPRODUCT(B5,'Design the AEF circuit'!$G$16*0.000000000001))) -> 0.000037982889293673+0.224589363755098j | P5: =IMSUM(IMDIV(1,IMSUM(IMDIV(1,IMPRODUCT(B5,'Design the AEF circuit'!$H$14*0.001)),IMDIV(1,'Design the AEF circuit'!$H$15*1000))), IMDIV(1,IMSUM(IMDIV(1,IMPRODUCT(B5,'Design the AEF circuit'!$H$17*0.001)),IMDIV(1,'Design the AEF circuit'!$H$18*1000))), IMDIV(1,IMSUM(IMDIV(1,IMPRODUCT(B5,'Design the AEF circuit'!$H$19*0.001)),IMDIV(1,'Design the AEF circuit'!$H$20*1000))) ) -> 0.0000069740755781915+0.31391468859547j | Q5: =IMDIV(1, IMSUM( IMDIV(1, P5), IMPRODUCT(B5,'Design the AEF circuit'!$H$16*0.000000000001) ) ) -> 6.97407558154392E-06+0.313914688670919j
A6: ='Frequency vector'!G6 -> 10.23292992 | B6: =COMPLEX(0,2*PI()*'Frequency vector'!G6,"j") -> 64.2953949403827j | C6: =IF(IF(CMdata=1,IMABS(K6),'CM choke'!C10)=0, C5, IF(CMdata=1,IMABS(K6),'CM choke'!C10)) -> 0.2263197862 | D6: =IF(IF(CMdata=1,DEGREES(IMARGUMENT(K6)),'CM choke'!D10)=0, D5, IF(CMdata=1,DEGREES(IMARGUMENT(K6)),'CM choke'!D10)) -> 89.99023539 | E6: =IF(IF(CMdata=1,IMABS(L6),'CM choke'!E10)=0, E5, IF(CMdata=1,IMABS(L6),'CM choke'!E10)) -> 0.2828997377 | F6: =IF(IF(CMdata=1,DEGREES(IMARGUMENT(L6)),'CM choke'!F10)=0, F5, IF(CMdata=1,DEGREES(IMARGUMENT(L6)),'CM choke'!F10)) -> 89.99884222 | G6: 3.85704463e-05 | H6: 0.2263197829 | I6: 5.716590115e-06 | J6: 0.2828997377 | K6: =IF(CMdata=1, IF(Lcm1_core=1, IMDIV(1,IMSUM(IMDIV(1,IMPRODUCT(B6,'Design the AEF circuit'!$G$14*0.001)),IMDIV(1,'Design the AEF circuit'!$G$15*1000),IMPRODUCT(B6,'Design the AEF circuit'!$G$16*0.000000000001))), O6),COMPLEX(G6,H6,"j")) -> 0.000038570446299624+0.226319782949475j | L6: =IF(CMdata=1, IF(Lcm2_core=1, IMDIV(1, IMSUM(IMDIV(1,IMPRODUCT(B6,'Design the AEF circuit'!$H$14*0.001)), IMDIV(1,'Design the AEF circuit'!$H$15*1000), IMPRODUCT(B6,'Design the AEF circuit'!$H$16*0.000000000001))), Q6), COMPLEX(I6,J6,"j")) -> 5.71659011530772E-06+0.282899737683917j | N6: =IMSUM(IMDIV(1,IMSUM(IMDIV(1,IMPRODUCT(B6,'Design the AEF circuit'!$G$14*0.001)),IMDIV(1,'Design the AEF circuit'!$G$15*1000))), IMDIV(1,IMSUM(IMDIV(1,IMPRODUCT(B6,'Design the AEF circuit'!$G$17*0.001)),IMDIV(1,'Design the AEF circuit'!$G$18*1000))), IMDIV(1,IMSUM(IMDIV(1,IMPRODUCT(B6,'Design the AEF circuit'!$G$19*0.001)),IMDIV(1,'Design the AEF circuit'!$G$20*1000))) ) -> 0.0000385704462982772+0.226319782945524j | O6: =IMDIV(1, IMSUM( IMDIV(1, N6), IMPRODUCT(B6,'Design the AEF circuit'!$G$16*0.000000000001))) -> 0.000038570446299624+0.226319782949475j | P6: =IMSUM(IMDIV(1,IMSUM(IMDIV(1,IMPRODUCT(B6,'Design the AEF circuit'!$H$14*0.001)),IMDIV(1,'Design the AEF circuit'!$H$15*1000))), IMDIV(1,IMSUM(IMDIV(1,IMPRODUCT(B6,'Design the AEF circuit'!$H$17*0.001)),IMDIV(1,'Design the AEF circuit'!$H$18*1000))), IMDIV(1,IMSUM(IMDIV(1,IMPRODUCT(B6,'Design the AEF circuit'!$H$19*0.001)),IMDIV(1,'Design the AEF circuit'!$H$20*1000))) ) -> 7.08195750044936E-06+0.31633334292289j | Q6: =IMDIV(1, IMSUM( IMDIV(1, P6), IMPRODUCT(B6,'Design the AEF circuit'!$H$16*0.000000000001) ) ) -> 7.08195750390625E-06+0.316333343000095j
A7: ='Frequency vector'!G7 -> 10.31177275 | B7: =COMPLEX(0,2*PI()*'Frequency vector'!G7,"j") -> 64.7907790082058j | C7: =IF(IF(CMdata=1,IMABS(K7),'CM choke'!C11)=0, C6, IF(CMdata=1,IMABS(K7),'CM choke'!C11)) -> 0.2280635381 | D7: =IF(IF(CMdata=1,DEGREES(IMARGUMENT(K7)),'CM choke'!D11)=0, D6, IF(CMdata=1,DEGREES(IMARGUMENT(K7)),'CM choke'!D11)) -> 89.99016016 | E7: =IF(IF(CMdata=1,IMABS(L7),'CM choke'!E11)=0, E6, IF(CMdata=1,IMABS(L7),'CM choke'!E11)) -> 0.2850794276 | F7: =IF(IF(CMdata=1,DEGREES(IMARGUMENT(L7)),'CM choke'!F11)=0, F6, IF(CMdata=1,DEGREES(IMARGUMENT(L7)),'CM choke'!F11)) -> 89.9988333 | G7: 3.916709222e-05 | H7: 0.2280635347 | I7: 5.805020005e-06 | J7: 0.2850794276 | K7: =IF(CMdata=1, IF(Lcm1_core=1, IMDIV(1,IMSUM(IMDIV(1,IMPRODUCT(B7,'Design the AEF circuit'!$G$14*0.001)),IMDIV(1,'Design the AEF circuit'!$G$15*1000),IMPRODUCT(B7,'Design the AEF circuit'!$G$16*0.000000000001))), O7),COMPLEX(G7,H7,"j")) -> 0.0000391670922197961+0.228063534699557j | L7: =IF(CMdata=1, IF(Lcm2_core=1, IMDIV(1, IMSUM(IMDIV(1,IMPRODUCT(B7,'Design the AEF circuit'!$H$14*0.001)), IMDIV(1,'Design the AEF circuit'!$H$15*1000), IMPRODUCT(B7,'Design the AEF circuit'!$H$16*0.000000000001))), Q7), COMPLEX(I7,J7,"j")) -> 5.80502000454699E-06+0.285079427581086j | N7: =IMSUM(IMDIV(1,IMSUM(IMDIV(1,IMPRODUCT(B7,'Design the AEF circuit'!$G$14*0.001)),IMDIV(1,'Design the AEF circuit'!$G$15*1000))), IMDIV(1,IMSUM(IMDIV(1,IMPRODUCT(B7,'Design the AEF circuit'!$G$17*0.001)),IMDIV(1,'Design the AEF circuit'!$G$18*1000))), IMDIV(1,IMSUM(IMDIV(1,IMPRODUCT(B7,'Design the AEF circuit'!$G$19*0.001)),IMDIV(1,'Design the AEF circuit'!$G$20*1000))) ) -> 0.0000391670922184071+0.228063534695513j | O7: =IMDIV(1, IMSUM( IMDIV(1, N7), IMPRODUCT(B7,'Design the AEF circuit'!$G$16*0.000000000001))) -> 0.0000391670922197961+0.228063534699557j | P7: =IMSUM(IMDIV(1,IMSUM(IMDIV(1,IMPRODUCT(B7,'Design the AEF circuit'!$H$14*0.001)),IMDIV(1,'Design the AEF circuit'!$H$15*1000))), IMDIV(1,IMSUM(IMDIV(1,IMPRODUCT(B7,'Design the AEF circuit'!$H$17*0.001)),IMDIV(1,'Design the AEF circuit'!$H$18*1000))), IMDIV(1,IMSUM(IMDIV(1,IMPRODUCT(B7,'Design the AEF circuit'!$H$19*0.001)),IMDIV(1,'Design the AEF circuit'!$H$20*1000))) ) -> 7.19150824734355E-06+0.318770632532299j | Q7: =IMDIV(1, IMSUM( IMDIV(1, P7), IMPRODUCT(B7,'Design the AEF circuit'!$H$16*0.000000000001) ) ) -> 7.19150825090824E-06+0.318770632611303j
A8: ='Frequency vector'!G8 -> 10.39122304 | B8: =COMPLEX(0,2*PI()*'Frequency vector'!G8,"j") -> 65.2899799181974j | C8: =IF(IF(CMdata=1,IMABS(K8),'CM choke'!C12)=0, C7, IF(CMdata=1,IMABS(K8),'CM choke'!C12)) -> 0.2298207252 | D8: =IF(IF(CMdata=1,DEGREES(IMARGUMENT(K8)),'CM choke'!D12)=0, D7, IF(CMdata=1,DEGREES(IMARGUMENT(K8)),'CM choke'!D12)) -> 89.99008434 | E8: =IF(IF(CMdata=1,IMABS(L8),'CM choke'!E12)=0, E7, IF(CMdata=1,IMABS(L8),'CM choke'!E12)) -> 0.2872759116 | F8: =IF(IF(CMdata=1,DEGREES(IMARGUMENT(L8)),'CM choke'!F12)=0, F7, IF(CMdata=1,DEGREES(IMARGUMENT(L8)),'CM choke'!F12)) -> 89.99882431 | G8: 3.977296765e-05 | H8: 0.2298207217 | I8: 5.894817815e-06 | J8: 0.2872759116 | K8: =IF(CMdata=1, IF(Lcm1_core=1, IMDIV(1,IMSUM(IMDIV(1,IMPRODUCT(B8,'Design the AEF circuit'!$G$14*0.001)),IMDIV(1,'Design the AEF circuit'!$G$15*1000),IMPRODUCT(B8,'Design the AEF circuit'!$G$16*0.000000000001))), O8),COMPLEX(G8,H8,"j")) -> 0.0000397729676505135+0.229820721730142j | L8: =IF(CMdata=1, IF(Lcm2_core=1, IMDIV(1, IMSUM(IMDIV(1,IMPRODUCT(B8,'Design the AEF circuit'!$H$14*0.001)), IMDIV(1,'Design the AEF circuit'!$H$15*1000), IMPRODUCT(B8,'Design the AEF circuit'!$H$16*0.000000000001))), Q8), COMPLEX(I8,J8,"j")) -> 5.89481781507383E-06+0.287275911583768j | N8: =IMSUM(IMDIV(1,IMSUM(IMDIV(1,IMPRODUCT(B8,'Design the AEF circuit'!$G$14*0.001)),IMDIV(1,'Design the AEF circuit'!$G$15*1000))), IMDIV(1,IMSUM(IMDIV(1,IMPRODUCT(B8,'Design the AEF circuit'!$G$17*0.001)),IMDIV(1,'Design the AEF circuit'!$G$18*1000))), IMDIV(1,IMSUM(IMDIV(1,IMPRODUCT(B8,'Design the AEF circuit'!$G$19*0.001)),IMDIV(1,'Design the AEF circuit'!$G$20*1000))) ) -> 0.0000397729676490812+0.229820721726004j | O8: =IMDIV(1, IMSUM( IMDIV(1, N8), IMPRODUCT(B8,'Design the AEF circuit'!$G$16*0.000000000001))) -> 0.0000397729676505135+0.229820721730142j | P8: =IMSUM(IMDIV(1,IMSUM(IMDIV(1,IMPRODUCT(B8,'Design the AEF circuit'!$H$14*0.001)),IMDIV(1,'Design the AEF circuit'!$H$15*1000))), IMDIV(1,IMSUM(IMDIV(1,IMPRODUCT(B8,'Design the AEF circuit'!$H$17*0.001)),IMDIV(1,'Design the AEF circuit'!$H$18*1000))), IMDIV(1,IMSUM(IMDIV(1,IMPRODUCT(B8,'Design the AEF circuit'!$H$19*0.001)),IMDIV(1,'Design the AEF circuit'!$H$20*1000))) ) -> 7.30275363390964E-06+0.321226701005077j | Q8: =IMDIV(1, IMSUM( IMDIV(1, P8), IMPRODUCT(B8,'Design the AEF circuit'!$H$16*0.000000000001) ) ) -> 7.30275363758548E-06+0.321226701085922j
A9: ='Frequency vector'!G9 -> 10.47128548 | B9: =COMPLEX(0,2*PI()*'Frequency vector'!G9,"j") -> 65.7930270784171j | C9: =IF(IF(CMdata=1,IMABS(K9),'CM choke'!C13)=0, C8, IF(CMdata=1,IMABS(K9),'CM choke'!C13)) -> 0.2315914511 | D9: =IF(IF(CMdata=1,DEGREES(IMARGUMENT(K9)),'CM choke'!D13)=0, D8, IF(CMdata=1,DEGREES(IMARGUMENT(K9)),'CM choke'!D13)) -> 89.99000795 | E9: =IF(IF(CMdata=1,IMABS(L9),'CM choke'!E13)=0, E8, IF(CMdata=1,IMABS(L9),'CM choke'!E13)) -> 0.2894893191 | F9: =IF(IF(CMdata=1,DEGREES(IMARGUMENT(L9)),'CM choke'!F13)=0, F8, IF(CMdata=1,DEGREES(IMARGUMENT(L9)),'CM choke'!F13)) -> 89.99881525 | G9: 4.038821536e-05 | H9: 0.2315914476 | I9: 5.986004707e-06 | J9: 0.2894893191 | K9: =IF(CMdata=1, IF(Lcm1_core=1, IMDIV(1,IMSUM(IMDIV(1,IMPRODUCT(B9,'Design the AEF circuit'!$G$14*0.001)),IMDIV(1,'Design the AEF circuit'!$G$15*1000),IMPRODUCT(B9,'Design the AEF circuit'!$G$16*0.000000000001))), O9),COMPLEX(G9,H9,"j")) -> 0.0000403882153629837+0.231591447557509j | L9: =IF(CMdata=1, IF(Lcm2_core=1, IMDIV(1, IMSUM(IMDIV(1,IMPRODUCT(B9,'Design the AEF circuit'!$H$14*0.001)), IMDIV(1,'Design the AEF circuit'!$H$15*1000), IMPRODUCT(B9,'Design the AEF circuit'!$H$16*0.000000000001))), Q9), COMPLEX(I9,J9,"j")) -> 5.98600470725228E-06+0.289489319087423j | N9: =IMSUM(IMDIV(1,IMSUM(IMDIV(1,IMPRODUCT(B9,'Design the AEF circuit'!$G$14*0.001)),IMDIV(1,'Design the AEF circuit'!$G$15*1000))), IMDIV(1,IMSUM(IMDIV(1,IMPRODUCT(B9,'Design the AEF circuit'!$G$17*0.001)),IMDIV(1,'Design the AEF circuit'!$G$18*1000))), IMDIV(1,IMSUM(IMDIV(1,IMPRODUCT(B9,'Design the AEF circuit'!$G$19*0.001)),IMDIV(1,'Design the AEF circuit'!$G$20*1000))) ) -> 0.0000403882153615068+0.231591447553275j | O9: =IMDIV(1, IMSUM( IMDIV(1, N9), IMPRODUCT(B9,'Design the AEF circuit'!$G$16*0.000000000001))) -> 0.0000403882153629837+0.231591447557509j | P9: =IMSUM(IMDIV(1,IMSUM(IMDIV(1,IMPRODUCT(B9,'Design the AEF circuit'!$H$14*0.001)),IMDIV(1,'Design the AEF circuit'!$H$15*1000))), IMDIV(1,IMSUM(IMDIV(1,IMPRODUCT(B9,'Design the AEF circuit'!$H$17*0.001)),IMDIV(1,'Design the AEF circuit'!$H$18*1000))), IMDIV(1,IMSUM(IMDIV(1,IMPRODUCT(B9,'Design the AEF circuit'!$H$19*0.001)),IMDIV(1,'Design the AEF circuit'!$H$20*1000))) ) -> 7.41571987451574E-06+0.323701693028875j | Q9: =IMDIV(1, IMSUM( IMDIV(1, P9), IMPRODUCT(B9,'Design the AEF circuit'!$H$16*0.000000000001) ) ) -> 7.41571987830621E-06+0.323701693111604j
A10: ='Frequency vector'!G10 -> 10.55196479 | B10: =COMPLEX(0,2*PI()*'Frequency vector'!G10,"j") -> 66.299950123508j | C10: =IF(IF(CMdata=1,IMABS(K10),'CM choke'!C14)=0, C9, IF(CMdata=1,IMABS(K10),'CM choke'!C14)) -> 0.2333758201 | D10: =IF(IF(CMdata=1,DEGREES(IMARGUMENT(K10)),'CM choke'!D14)=0, D9, IF(CMdata=1,DEGREES(IMARGUMENT(K10)),'CM choke'!D14)) -> 89.98993096 | E10: =IF(IF(CMdata=1,IMABS(L10),'CM choke'!E14)=0, E9, IF(CMdata=1,IMABS(L10),'CM choke'!E14)) -> 0.2917197805 | F10: =IF(IF(CMdata=1,DEGREES(IMARGUMENT(L10)),'CM choke'!F14)=0, F9, IF(CMdata=1,DEGREES(IMARGUMENT(L10)),'CM choke'!F14)) -> 89.99880612 | G10: 4.101298034e-05 | H10: 0.2333758165 | I10: 6.078602169e-06 | J10: 0.2917197805 | K10: =IF(CMdata=1, IF(Lcm1_core=1, IMDIV(1,IMSUM(IMDIV(1,IMPRODUCT(B10,'Design the AEF circuit'!$G$14*0.001)),IMDIV(1,'Design the AEF circuit'!$G$15*1000),IMPRODUCT(B10,'Design the AEF circuit'!$G$16*0.000000000001))), O10),COMPLEX(G10,H10,"j")) -> 0.0000410129803369407+0.23337581649551j | L10: =IF(CMdata=1, IF(Lcm2_core=1, IMDIV(1, IMSUM(IMDIV(1,IMPRODUCT(B10,'Design the AEF circuit'!$H$14*0.001)), IMDIV(1,'Design the AEF circuit'!$H$15*1000), IMPRODUCT(B10,'Design the AEF circuit'!$H$16*0.000000000001))), Q10), COMPLEX(I10,J10,"j")) -> 6.07860216877591E-06+0.29171978048448j | N10: =IMSUM(IMDIV(1,IMSUM(IMDIV(1,IMPRODUCT(B10,'Design the AEF circuit'!$G$14*0.001)),IMDIV(1,'Design the AEF circuit'!$G$15*1000))), IMDIV(1,IMSUM(IMDIV(1,IMPRODUCT(B10,'Design the AEF circuit'!$G$17*0.001)),IMDIV(1,'Design the AEF circuit'!$G$18*1000))), IMDIV(1,IMSUM(IMDIV(1,IMPRODUCT(B10,'Design the AEF circuit'!$G$19*0.001)),IMDIV(1,'Design the AEF circuit'!$G$20*1000))) ) -> 0.0000410129803354178+0.233375816491177j | O10: =IMDIV(1, IMSUM( IMDIV(1, N10), IMPRODUCT(B10,'Design the AEF circuit'!$G$16*0.000000000001))) -> 0.0000410129803369407+0.23337581649551j | P10: =IMSUM(IMDIV(1,IMSUM(IMDIV(1,IMPRODUCT(B10,'Design the AEF circuit'!$H$14*0.001)),IMDIV(1,'Design the AEF circuit'!$H$15*1000))), IMDIV(1,IMSUM(IMDIV(1,IMPRODUCT(B10,'Design the AEF circuit'!$H$17*0.001)),IMDIV(1,'Design the AEF circuit'!$H$18*1000))), IMDIV(1,IMSUM(IMDIV(1,IMPRODUCT(B10,'Design the AEF circuit'!$H$19*0.001)),IMDIV(1,'Design the AEF circuit'!$H$20*1000))) ) -> 7.53043358903996E-06+0.326195754406134j | Q10: =IMDIV(1, IMSUM( IMDIV(1, P10), IMPRODUCT(B10,'Design the AEF circuit'!$H$16*0.000000000001) ) ) -> 7.53043359294856E-06+0.326195754490788j
A11: ='Frequency vector'!G11 -> 10.63326572 | B11: =COMPLEX(0,2*PI()*'Frequency vector'!G11,"j") -> 66.8107789164426j | C11: =IF(IF(CMdata=1,IMABS(K11),'CM choke'!C15)=0, C10, IF(CMdata=1,IMABS(K11),'CM choke'!C15)) -> 0.2351739373 | D11: =IF(IF(CMdata=1,DEGREES(IMARGUMENT(K11)),'CM choke'!D15)=0, D10, IF(CMdata=1,DEGREES(IMARGUMENT(K11)),'CM choke'!D15)) -> 89.98985338 | E11: =IF(IF(CMdata=1,IMABS(L11),'CM choke'!E15)=0, E10, IF(CMdata=1,IMABS(L11),'CM choke'!E15)) -> 0.2939674272 | F11: =IF(IF(CMdata=1,DEGREES(IMARGUMENT(L11)),'CM choke'!F15)=0, F10, IF(CMdata=1,DEGREES(IMARGUMENT(L11)),'CM choke'!F15)) -> 89.99879692 | G11: 4.164740979e-05 | H11: 0.2351739337 | I11: 6.17263202e-06 | J11: 0.2939674272 | K11: =IF(CMdata=1, IF(Lcm1_core=1, IMDIV(1,IMSUM(IMDIV(1,IMPRODUCT(B11,'Design the AEF circuit'!$G$14*0.001)),IMDIV(1,'Design the AEF circuit'!$G$15*1000),IMPRODUCT(B11,'Design the AEF circuit'!$G$16*0.000000000001))), O11),COMPLEX(G11,H11,"j")) -> 0.0000416474097948081+0.235173933661712j | L11: =IF(CMdata=1, IF(Lcm2_core=1, IMDIV(1, IMSUM(IMDIV(1,IMPRODUCT(B11,'Design the AEF circuit'!$H$14*0.001)), IMDIV(1,'Design the AEF circuit'!$H$15*1000), IMPRODUCT(B11,'Design the AEF circuit'!$H$16*0.000000000001))), Q11), COMPLEX(I11,J11,"j")) -> 6.17263201973125E-06+0.293967427172019j | N11: =IMSUM(IMDIV(1,IMSUM(IMDIV(1,IMPRODUCT(B11,'Design the AEF circuit'!$G$14*0.001)),IMDIV(1,'Design the AEF circuit'!$G$15*1000))), IMDIV(1,IMSUM(IMDIV(1,IMPRODUCT(B11,'Design the AEF circuit'!$G$17*0.001)),IMDIV(1,'Design the AEF circuit'!$G$18*1000))), IMDIV(1,IMSUM(IMDIV(1,IMPRODUCT(B11,'Design the AEF circuit'!$G$19*0.001)),IMDIV(1,'Design the AEF circuit'!$G$20*1000))) ) -> 0.0000416474097932377+0.235173933657278j | O11: =IMDIV(1, IMSUM( IMDIV(1, N11), IMPRODUCT(B11,'Design the AEF circuit'!$G$16*0.000000000001))) -> 0.0000416474097948081+0.235173933661712j | P11: =IMSUM(IMDIV(1,IMSUM(IMDIV(1,IMPRODUCT(B11,'Design the AEF circuit'!$H$14*0.001)),IMDIV(1,'Design the AEF circuit'!$H$15*1000))), IMDIV(1,IMSUM(IMDIV(1,IMPRODUCT(B11,'Design the AEF circuit'!$H$17*0.001)),IMDIV(1,'Design the AEF circuit'!$H$18*1000))), IMDIV(1,IMSUM(IMDIV(1,IMPRODUCT(B11,'Design the AEF circuit'!$H$19*0.001)),IMDIV(1,'Design the AEF circuit'!$H$20*1000))) ) -> 7.64692180914296E-06+0.328709032062678j | Q11: =IMDIV(1, IMSUM( IMDIV(1, P11), IMPRODUCT(B11,'Design the AEF circuit'!$H$16*0.000000000001) ) ) -> 7.64692181317346E-06+0.328709032149305j
A12: ='Frequency vector'!G12 -> 10.71519305 | B12: =COMPLEX(0,2*PI()*'Frequency vector'!G12,"j") -> 67.3255435502821j | C12: =IF(IF(CMdata=1,IMABS(K12),'CM choke'!C16)=0, C11, IF(CMdata=1,IMABS(K12),'CM choke'!C16)) -> 0.2369859088 | D12: =IF(IF(CMdata=1,DEGREES(IMARGUMENT(K12)),'CM choke'!D16)=0, D11, IF(CMdata=1,DEGREES(IMARGUMENT(K12)),'CM choke'!D16)) -> 89.9897752 | E12: =IF(IF(CMdata=1,IMABS(L12),'CM choke'!E16)=0, E11, IF(CMdata=1,IMABS(L12),'CM choke'!E16)) -> 0.2962323916 | F12: =IF(IF(CMdata=1,DEGREES(IMARGUMENT(L12)),'CM choke'!F16)=0, F11, IF(CMdata=1,DEGREES(IMARGUMENT(L12)),'CM choke'!F16)) -> 89.99878765 | G12: 4.229165324e-05 | H12: 0.236985905 | I12: 6.268116418e-06 | J12: 0.2962323916 | K12: =IF(CMdata=1, IF(Lcm1_core=1, IMDIV(1,IMSUM(IMDIV(1,IMPRODUCT(B12,'Design the AEF circuit'!$G$14*0.001)),IMDIV(1,'Design the AEF circuit'!$G$15*1000),IMPRODUCT(B12,'Design the AEF circuit'!$G$16*0.000000000001))), O12),COMPLEX(G12,H12,"j")) -> 0.0000422916532363904+0.236985904983591j | L12: =IF(CMdata=1, IF(Lcm2_core=1, IMDIV(1, IMSUM(IMDIV(1,IMPRODUCT(B12,'Design the AEF circuit'!$H$14*0.001)), IMDIV(1,'Design the AEF circuit'!$H$15*1000), IMPRODUCT(B12,'Design the AEF circuit'!$H$16*0.000000000001))), Q12), COMPLEX(I12,J12,"j")) -> 6.26811641773963E-06+0.296232391559508j | N12: =IMSUM(IMDIV(1,IMSUM(IMDIV(1,IMPRODUCT(B12,'Design the AEF circuit'!$G$14*0.001)),IMDIV(1,'Design the AEF circuit'!$G$15*1000))), IMDIV(1,IMSUM(IMDIV(1,IMPRODUCT(B12,'Design the AEF circuit'!$G$17*0.001)),IMDIV(1,'Design the AEF circuit'!$G$18*1000))), IMDIV(1,IMSUM(IMDIV(1,IMPRODUCT(B12,'Design the AEF circuit'!$G$19*0.001)),IMDIV(1,'Design the AEF circuit'!$G$20*1000))) ) -> 0.000042291653234771+0.236985904979054j | O12: =IMDIV(1, IMSUM( IMDIV(1, N12), IMPRODUCT(B12,'Design the AEF circuit'!$G$16*0.000000000001))) -> 0.0000422916532363904+0.236985904983591j | P12: =IMSUM(IMDIV(1,IMSUM(IMDIV(1,IMPRODUCT(B12,'Design the AEF circuit'!$H$14*0.001)),IMDIV(1,'Design the AEF circuit'!$H$15*1000))), IMDIV(1,IMSUM(IMDIV(1,IMPRODUCT(B12,'Design the AEF circuit'!$H$17*0.001)),IMDIV(1,'Design the AEF circuit'!$H$18*1000))), IMDIV(1,IMSUM(IMDIV(1,IMPRODUCT(B12,'Design the AEF circuit'!$H$19*0.001)),IMDIV(1,'Design the AEF circuit'!$H$20*1000))) ) -> 7.76521198463808E-06+0.331241674056366j | Q12: =IMDIV(1, IMSUM( IMDIV(1, P12), IMPRODUCT(B12,'Design the AEF circuit'!$H$16*0.000000000001) ) ) -> 7.76521198879424E-06+0.331241674145011j
A13: ='Frequency vector'!G13 -> 10.79775162 | B13: =COMPLEX(0,2*PI()*'Frequency vector'!G13,"j") -> 67.8442743499492j | C13: =IF(IF(CMdata=1,IMABS(K13),'CM choke'!C17)=0, C12, IF(CMdata=1,IMABS(K13),'CM choke'!C17)) -> 0.2388118411 | D13: =IF(IF(CMdata=1,DEGREES(IMARGUMENT(K13)),'CM choke'!D17)=0, D12, IF(CMdata=1,DEGREES(IMARGUMENT(K13)),'CM choke'!D17)) -> 89.98969642 | E13: =IF(IF(CMdata=1,IMABS(L13),'CM choke'!E17)=0, E12, IF(CMdata=1,IMABS(L13),'CM choke'!E17)) -> 0.2985148071 | F13: =IF(IF(CMdata=1,DEGREES(IMARGUMENT(L13)),'CM choke'!F17)=0, F12, IF(CMdata=1,DEGREES(IMARGUMENT(L13)),'CM choke'!F17)) -> 89.99877831 | G13: 4.294586247e-05 | H13: 0.2388118372 | I13: 6.365077863e-06 | J13: 0.2985148071 | K13: =IF(CMdata=1, IF(Lcm1_core=1, IMDIV(1,IMSUM(IMDIV(1,IMPRODUCT(B13,'Design the AEF circuit'!$G$14*0.001)),IMDIV(1,'Design the AEF circuit'!$G$15*1000),IMPRODUCT(B13,'Design the AEF circuit'!$G$16*0.000000000001))), O13),COMPLEX(G13,H13,"j")) -> 0.0000429458624741045+0.238811837204775j | L13: =IF(CMdata=1, IF(Lcm2_core=1, IMDIV(1, IMSUM(IMDIV(1,IMPRODUCT(B13,'Design the AEF circuit'!$H$14*0.001)), IMDIV(1,'Design the AEF circuit'!$H$15*1000), IMPRODUCT(B13,'Design the AEF circuit'!$H$16*0.000000000001))), Q13), COMPLEX(I13,J13,"j")) -> 0.0000063650778631784+0.298514807076606j | N13: =IMSUM(IMDIV(1,IMSUM(IMDIV(1,IMPRODUCT(B13,'Design the AEF circuit'!$G$14*0.001)),IMDIV(1,'Design the AEF circuit'!$G$15*1000))), IMDIV(1,IMSUM(IMDIV(1,IMPRODUCT(B13,'Design the AEF circuit'!$G$17*0.001)),IMDIV(1,'Design the AEF circuit'!$G$18*1000))), IMDIV(1,IMSUM(IMDIV(1,IMPRODUCT(B13,'Design the AEF circuit'!$G$19*0.001)),IMDIV(1,'Design the AEF circuit'!$G$20*1000))) ) -> 0.0000429458624724346+0.238811837200132j | O13: =IMDIV(1, IMSUM( IMDIV(1, N13), IMPRODUCT(B13,'Design the AEF circuit'!$G$16*0.000000000001))) -> 0.0000429458624741045+0.238811837204775j | P13: =IMSUM(IMDIV(1,IMSUM(IMDIV(1,IMPRODUCT(B13,'Design the AEF circuit'!$H$14*0.001)),IMDIV(1,'Design the AEF circuit'!$H$15*1000))), IMDIV(1,IMSUM(IMDIV(1,IMPRODUCT(B13,'Design the AEF circuit'!$H$17*0.001)),IMDIV(1,'Design the AEF circuit'!$H$18*1000))), IMDIV(1,IMSUM(IMDIV(1,IMPRODUCT(B13,'Design the AEF circuit'!$H$19*0.001)),IMDIV(1,'Design the AEF circuit'!$H$20*1000))) ) -> 7.88533198995957E-06+0.333793829585814j | Q13: =IMDIV(1, IMSUM( IMDIV(1, P13), IMPRODUCT(B13,'Design the AEF circuit'!$H$16*0.000000000001) ) ) -> 7.88533199424525E-06+0.333793829676523j
A14: ='Frequency vector'!G14 -> 10.88094629 | B14: =COMPLEX(0,2*PI()*'Frequency vector'!G14,"j") -> 68.3670018740144j | C14: =IF(IF(CMdata=1,IMABS(K14),'CM choke'!C18)=0, C13, IF(CMdata=1,IMABS(K14),'CM choke'!C18)) -> 0.2406518418 | D14: =IF(IF(CMdata=1,DEGREES(IMARGUMENT(K14)),'CM choke'!D18)=0, D13, IF(CMdata=1,DEGREES(IMARGUMENT(K14)),'CM choke'!D18)) -> 89.98961703 | E14: =IF(IF(CMdata=1,IMABS(L14),'CM choke'!E18)=0, E13, IF(CMdata=1,IMABS(L14),'CM choke'!E18)) -> 0.3008148083 | F14: =IF(IF(CMdata=1,DEGREES(IMARGUMENT(L14)),'CM choke'!F18)=0, F13, IF(CMdata=1,DEGREES(IMARGUMENT(L14)),'CM choke'!F18)) -> 89.9987689 | G14: 4.361019167e-05 | H14: 0.2406518379 | I14: 6.463539204e-06 | J14: 0.3008148082 | K14: =IF(CMdata=1, IF(Lcm1_core=1, IMDIV(1,IMSUM(IMDIV(1,IMPRODUCT(B14,'Design the AEF circuit'!$G$14*0.001)),IMDIV(1,'Design the AEF circuit'!$G$15*1000),IMPRODUCT(B14,'Design the AEF circuit'!$G$16*0.000000000001))), O14),COMPLEX(G14,H14,"j")) -> 0.0000436101916687498+0.24065183789133j | L14: =IF(CMdata=1, IF(Lcm2_core=1, IMDIV(1, IMSUM(IMDIV(1,IMPRODUCT(B14,'Design the AEF circuit'!$H$14*0.001)), IMDIV(1,'Design the AEF circuit'!$H$15*1000), IMPRODUCT(B14,'Design the AEF circuit'!$H$16*0.000000000001))), Q14), COMPLEX(I14,J14,"j")) -> 6.46353920448293E-06+0.30081480818102j | N14: =IMSUM(IMDIV(1,IMSUM(IMDIV(1,IMPRODUCT(B14,'Design the AEF circuit'!$G$14*0.001)),IMDIV(1,'Design the AEF circuit'!$G$15*1000))), IMDIV(1,IMSUM(IMDIV(1,IMPRODUCT(B14,'Design the AEF circuit'!$G$17*0.001)),IMDIV(1,'Design the AEF circuit'!$G$18*1000))), IMDIV(1,IMSUM(IMDIV(1,IMPRODUCT(B14,'Design the AEF circuit'!$G$19*0.001)),IMDIV(1,'Design the AEF circuit'!$G$20*1000))) ) -> 0.0000436101916670278+0.240651837886579j | O14: =IMDIV(1, IMSUM( IMDIV(1, N14), IMPRODUCT(B14,'Design the AEF circuit'!$G$16*0.000000000001))) -> 0.0000436101916687498+0.24065183789133j | P14: =IMSUM(IMDIV(1,IMSUM(IMDIV(1,IMPRODUCT(B14,'Design the AEF circuit'!$H$14*0.001)),IMDIV(1,'Design the AEF circuit'!$H$15*1000))), IMDIV(1,IMSUM(IMDIV(1,IMPRODUCT(B14,'Design the AEF circuit'!$H$17*0.001)),IMDIV(1,'Design the AEF circuit'!$H$18*1000))), IMDIV(1,IMSUM(IMDIV(1,IMPRODUCT(B14,'Design the AEF circuit'!$H$19*0.001)),IMDIV(1,'Design the AEF circuit'!$H$20*1000))) ) -> 8.00731013073087E-06+0.336365648999183j | Q14: =IMDIV(1, IMSUM( IMDIV(1, P14), IMPRODUCT(B14,'Design the AEF circuit'!$H$16*0.000000000001) ) ) -> 8.00731013515019E-06+0.336365649092005j
A15: ='Frequency vector'!G15 -> 10.96478196 | B15: =COMPLEX(0,2*PI()*'Frequency vector'!G15,"j") -> 68.8937569164964j | C15: =IF(IF(CMdata=1,IMABS(K15),'CM choke'!C19)=0, C14, IF(CMdata=1,IMABS(K15),'CM choke'!C19)) -> 0.2425060195 | D15: =IF(IF(CMdata=1,DEGREES(IMARGUMENT(K15)),'CM choke'!D19)=0, D14, IF(CMdata=1,DEGREES(IMARGUMENT(K15)),'CM choke'!D19)) -> 89.98953703 | E15: =IF(IF(CMdata=1,IMABS(L15),'CM choke'!E19)=0, E14, IF(CMdata=1,IMABS(L15),'CM choke'!E19)) -> 0.3031325304 | F15: =IF(IF(CMdata=1,DEGREES(IMARGUMENT(L15)),'CM choke'!F19)=0, F14, IF(CMdata=1,DEGREES(IMARGUMENT(L15)),'CM choke'!F19)) -> 89.99875941 | G15: 4.428479737e-05 | H15: 0.2425060154 | I15: 6.563523644e-06 | J15: 0.3031325304 | K15: =IF(CMdata=1, IF(Lcm1_core=1, IMDIV(1,IMSUM(IMDIV(1,IMPRODUCT(B15,'Design the AEF circuit'!$G$14*0.001)),IMDIV(1,'Design the AEF circuit'!$G$15*1000),IMPRODUCT(B15,'Design the AEF circuit'!$G$16*0.000000000001))), O15),COMPLEX(G15,H15,"j")) -> 0.0000442847973658384+0.242506015438096j | L15: =IF(CMdata=1, IF(Lcm2_core=1, IMDIV(1, IMSUM(IMDIV(1,IMPRODUCT(B15,'Design the AEF circuit'!$H$14*0.001)), IMDIV(1,'Design the AEF circuit'!$H$15*1000), IMPRODUCT(B15,'Design the AEF circuit'!$H$16*0.000000000001))), Q15), COMPLEX(I15,J15,"j")) -> 6.56352364353127E-06+0.303132530366436j | N15: =IMSUM(IMDIV(1,IMSUM(IMDIV(1,IMPRODUCT(B15,'Design the AEF circuit'!$G$14*0.001)),IMDIV(1,'Design the AEF circuit'!$G$15*1000))), IMDIV(1,IMSUM(IMDIV(1,IMPRODUCT(B15,'Design the AEF circuit'!$G$17*0.001)),IMDIV(1,'Design the AEF circuit'!$G$18*1000))), IMDIV(1,IMSUM(IMDIV(1,IMPRODUCT(B15,'Design the AEF circuit'!$G$19*0.001)),IMDIV(1,'Design the AEF circuit'!$G$20*1000))) ) -> 0.0000442847973640628+0.242506015433234j | O15: =IMDIV(1, IMSUM( IMDIV(1, N15), IMPRODUCT(B15,'Design the AEF circuit'!$G$16*0.000000000001))) -> 0.0000442847973658384+0.242506015438096j | P15: =IMSUM(IMDIV(1,IMSUM(IMDIV(1,IMPRODUCT(B15,'Design the AEF circuit'!$H$14*0.001)),IMDIV(1,'Design the AEF circuit'!$H$15*1000))), IMDIV(1,IMSUM(IMDIV(1,IMPRODUCT(B15,'Design the AEF circuit'!$H$17*0.001)),IMDIV(1,'Design the AEF circuit'!$H$18*1000))), IMDIV(1,IMSUM(IMDIV(1,IMPRODUCT(B15,'Design the AEF circuit'!$H$19*0.001)),IMDIV(1,'Design the AEF circuit'!$H$20*1000))) ) -> 8.13117515043534E-06+0.338957283803048j | Q15: =IMDIV(1, IMSUM( IMDIV(1, P15), IMPRODUCT(B15,'Design the AEF circuit'!$H$16*0.000000000001) ) ) -> 8.13117515499248E-06+0.338957283898033j
A16: ='Frequency vector'!G16 -> 11.04926357 | B16: =COMPLEX(0,2*PI()*'Frequency vector'!G16,"j") -> 69.424570508676j | C16: =IF(IF(CMdata=1,IMABS(K16),'CM choke'!C20)=0, C15, IF(CMdata=1,IMABS(K16),'CM choke'!C20)) -> 0.2443744832 | D16: =IF(IF(CMdata=1,DEGREES(IMARGUMENT(K16)),'CM choke'!D20)=0, D15, IF(CMdata=1,DEGREES(IMARGUMENT(K16)),'CM choke'!D20)) -> 89.98945642 | E16: =IF(IF(CMdata=1,IMABS(L16),'CM choke'!E20)=0, E15, IF(CMdata=1,IMABS(L16),'CM choke'!E20)) -> 0.3054681102 | F16: =IF(IF(CMdata=1,DEGREES(IMARGUMENT(L16)),'CM choke'!F20)=0, F15, IF(CMdata=1,DEGREES(IMARGUMENT(L16)),'CM choke'!F20)) -> 89.99874985 | G16: 4.496983853e-05 | H16: 0.2443744791 | I16: 6.665054741e-06 | J16: 0.3054681102 | K16: =IF(CMdata=1, IF(Lcm1_core=1, IMDIV(1,IMSUM(IMDIV(1,IMPRODUCT(B16,'Design the AEF circuit'!$G$14*0.001)),IMDIV(1,'Design the AEF circuit'!$G$15*1000),IMPRODUCT(B16,'Design the AEF circuit'!$G$16*0.000000000001))), O16),COMPLEX(G16,H16,"j")) -> 0.0000449698385324829+0.244374479075075j | L16: =IF(CMdata=1, IF(Lcm2_core=1, IMDIV(1, IMSUM(IMDIV(1,IMPRODUCT(B16,'Design the AEF circuit'!$H$14*0.001)), IMDIV(1,'Design the AEF circuit'!$H$15*1000), IMPRODUCT(B16,'Design the AEF circuit'!$H$16*0.000000000001))), Q16), COMPLEX(I16,J16,"j")) -> 6.66505474111075E-06+0.305468110170485j | N16: =IMSUM(IMDIV(1,IMSUM(IMDIV(1,IMPRODUCT(B16,'Design the AEF circuit'!$G$14*0.001)),IMDIV(1,'Design the AEF circuit'!$G$15*1000))), IMDIV(1,IMSUM(IMDIV(1,IMPRODUCT(B16,'Design the AEF circuit'!$G$17*0.001)),IMDIV(1,'Design the AEF circuit'!$G$18*1000))), IMDIV(1,IMSUM(IMDIV(1,IMPRODUCT(B16,'Design the AEF circuit'!$G$19*0.001)),IMDIV(1,'Design the AEF circuit'!$G$20*1000))) ) -> 0.0000449698385306519+0.2443744790701j | O16: =IMDIV(1, IMSUM( IMDIV(1, N16), IMPRODUCT(B16,'Design the AEF circuit'!$G$16*0.000000000001))) -> 0.0000449698385324829+0.244374479075075j | P16: =IMSUM(IMDIV(1,IMSUM(IMDIV(1,IMPRODUCT(B16,'Design the AEF circuit'!$H$14*0.001)),IMDIV(1,'Design the AEF circuit'!$H$15*1000))), IMDIV(1,IMSUM(IMDIV(1,IMPRODUCT(B16,'Design the AEF circuit'!$H$17*0.001)),IMDIV(1,'Design the AEF circuit'!$H$18*1000))), IMDIV(1,IMSUM(IMDIV(1,IMPRODUCT(B16,'Design the AEF circuit'!$H$19*0.001)),IMDIV(1,'Design the AEF circuit'!$H$20*1000))) ) -> 8.25695623718859E-06+0.341568886671304j | Q16: =IMDIV(1, IMSUM( IMDIV(1, P16), IMPRODUCT(B16,'Design the AEF circuit'!$H$16*0.000000000001) ) ) -> 8.25695624188775E-06+0.3415688867685j
A17: ='Frequency vector'!G17 -> 11.13439609 | B17: =COMPLEX(0,2*PI()*'Frequency vector'!G17,"j") -> 69.9594739209242j | C17: =IF(IF(CMdata=1,IMABS(K17),'CM choke'!C21)=0, C16, IF(CMdata=1,IMABS(K17),'CM choke'!C21)) -> 0.2462573431 | D17: =IF(IF(CMdata=1,DEGREES(IMARGUMENT(K17)),'CM choke'!D21)=0, D16, IF(CMdata=1,DEGREES(IMARGUMENT(K17)),'CM choke'!D21)) -> 89.98937518 | E17: =IF(IF(CMdata=1,IMABS(L17),'CM choke'!E21)=0, E16, IF(CMdata=1,IMABS(L17),'CM choke'!E21)) -> 0.3078216853 | F17: =IF(IF(CMdata=1,DEGREES(IMARGUMENT(L17)),'CM choke'!F21)=0, F16, IF(CMdata=1,DEGREES(IMARGUMENT(L17)),'CM choke'!F21)) -> 89.99874022 | G17: 4.566547659e-05 | H17: 0.2462573389 | I17: 6.768156422e-06 | J17: 0.3078216852 | K17: =IF(CMdata=1, IF(Lcm1_core=1, IMDIV(1,IMSUM(IMDIV(1,IMPRODUCT(B17,'Design the AEF circuit'!$G$14*0.001)),IMDIV(1,'Design the AEF circuit'!$G$15*1000),IMPRODUCT(B17,'Design the AEF circuit'!$G$16*0.000000000001))), O17),COMPLEX(G17,H17,"j")) -> 0.0000456654765948553+0.246257338873863j | L17: =IF(CMdata=1, IF(Lcm2_core=1, IMDIV(1, IMSUM(IMDIV(1,IMPRODUCT(B17,'Design the AEF circuit'!$H$14*0.001)), IMDIV(1,'Design the AEF circuit'!$H$15*1000), IMPRODUCT(B17,'Design the AEF circuit'!$H$16*0.000000000001))), Q17), COMPLEX(I17,J17,"j")) -> 6.76815642247046E-06+0.307821685182799j | N17: =IMSUM(IMDIV(1,IMSUM(IMDIV(1,IMPRODUCT(B17,'Design the AEF circuit'!$G$14*0.001)),IMDIV(1,'Design the AEF circuit'!$G$15*1000))), IMDIV(1,IMSUM(IMDIV(1,IMPRODUCT(B17,'Design the AEF circuit'!$G$17*0.001)),IMDIV(1,'Design the AEF circuit'!$G$18*1000))), IMDIV(1,IMSUM(IMDIV(1,IMPRODUCT(B17,'Design the AEF circuit'!$G$19*0.001)),IMDIV(1,'Design the AEF circuit'!$G$20*1000))) ) -> 0.0000456654765929672+0.246257338868772j | O17: =IMDIV(1, IMSUM( IMDIV(1, N17), IMPRODUCT(B17,'Design the AEF circuit'!$G$16*0.000000000001))) -> 0.0000456654765948553+0.246257338873863j | P17: =IMSUM(IMDIV(1,IMSUM(IMDIV(1,IMPRODUCT(B17,'Design the AEF circuit'!$H$14*0.001)),IMDIV(1,'Design the AEF circuit'!$H$15*1000))), IMDIV(1,IMSUM(IMDIV(1,IMPRODUCT(B17,'Design the AEF circuit'!$H$17*0.001)),IMDIV(1,'Design the AEF circuit'!$H$18*1000))), IMDIV(1,IMSUM(IMDIV(1,IMPRODUCT(B17,'Design the AEF circuit'!$H$19*0.001)),IMDIV(1,'Design the AEF circuit'!$H$20*1000))) ) -> 8.38468303061733E-06+0.344200611454175j | Q17: =IMDIV(1, IMSUM( IMDIV(1, P17), IMPRODUCT(B17,'Design the AEF circuit'!$H$16*0.000000000001) ) ) -> 8.38468303546301E-06+0.344200611553635j
A18: ='Frequency vector'!G18 -> 11.22018454 | B18: =COMPLEX(0,2*PI()*'Frequency vector'!G18,"j") -> 70.4984986645446j | C18: =IF(IF(CMdata=1,IMABS(K18),'CM choke'!C22)=0, C17, IF(CMdata=1,IMABS(K18),'CM choke'!C22)) -> 0.2481547101 | D18: =IF(IF(CMdata=1,DEGREES(IMARGUMENT(K18)),'CM choke'!D22)=0, D17, IF(CMdata=1,DEGREES(IMARGUMENT(K18)),'CM choke'!D22)) -> 89.98929332 | E18: =IF(IF(CMdata=1,IMABS(L18),'CM choke'!E22)=0, E17, IF(CMdata=1,IMABS(L18),'CM choke'!E22)) -> 0.3101933941 | F18: =IF(IF(CMdata=1,DEGREES(IMARGUMENT(L18)),'CM choke'!F22)=0, F17, IF(CMdata=1,DEGREES(IMARGUMENT(L18)),'CM choke'!F22)) -> 89.99873052 | G18: 4.637187548e-05 | H18: 0.2481547058 | I18: 6.872852983e-06 | J18: 0.3101933941 | K18: =IF(CMdata=1, IF(Lcm1_core=1, IMDIV(1,IMSUM(IMDIV(1,IMPRODUCT(B18,'Design the AEF circuit'!$G$14*0.001)),IMDIV(1,'Design the AEF circuit'!$G$15*1000),IMPRODUCT(B18,'Design the AEF circuit'!$G$16*0.000000000001))), O18),COMPLEX(G18,H18,"j")) -> 0.0000463718754762278+0.248154705754135j | L18: =IF(CMdata=1, IF(Lcm2_core=1, IMDIV(1, IMSUM(IMDIV(1,IMPRODUCT(B18,'Design the AEF circuit'!$H$14*0.001)), IMDIV(1,'Design the AEF circuit'!$H$15*1000), IMPRODUCT(B18,'Design the AEF circuit'!$H$16*0.000000000001))), Q18), COMPLEX(I18,J18,"j")) -> 6.87285298295913E-06+0.310193394053116j | N18: =IMSUM(IMDIV(1,IMSUM(IMDIV(1,IMPRODUCT(B18,'Design the AEF circuit'!$G$14*0.001)),IMDIV(1,'Design the AEF circuit'!$G$15*1000))), IMDIV(1,IMSUM(IMDIV(1,IMPRODUCT(B18,'Design the AEF circuit'!$G$17*0.001)),IMDIV(1,'Design the AEF circuit'!$G$18*1000))), IMDIV(1,IMSUM(IMDIV(1,IMPRODUCT(B18,'Design the AEF circuit'!$G$19*0.001)),IMDIV(1,'Design the AEF circuit'!$G$20*1000))) ) -> 0.0000463718754742807+0.248154705748925j | O18: =IMDIV(1, IMSUM( IMDIV(1, N18), IMPRODUCT(B18,'Design the AEF circuit'!$G$16*0.000000000001))) -> 0.0000463718754762278+0.248154705754135j | P18: =IMSUM(IMDIV(1,IMSUM(IMDIV(1,IMPRODUCT(B18,'Design the AEF circuit'!$H$14*0.001)),IMDIV(1,'Design the AEF circuit'!$H$15*1000))), IMDIV(1,IMSUM(IMDIV(1,IMPRODUCT(B18,'Design the AEF circuit'!$H$17*0.001)),IMDIV(1,'Design the AEF circuit'!$H$18*1000))), IMDIV(1,IMSUM(IMDIV(1,IMPRODUCT(B18,'Design the AEF circuit'!$H$19*0.001)),IMDIV(1,'Design the AEF circuit'!$H$20*1000))) ) -> 8.51438562884326E-06+0.346852613187273j | Q18: =IMDIV(1, IMSUM( IMDIV(1, P18), IMPRODUCT(B18,'Design the AEF circuit'!$H$16*0.000000000001) ) ) -> 8.51438563384001E-06+0.34685261328905j
A19: ='Frequency vector'!G19 -> 11.30663398 | B19: =COMPLEX(0,2*PI()*'Frequency vector'!G19,"j") -> 71.0416764936293j | C19: =IF(IF(CMdata=1,IMABS(K19),'CM choke'!C23)=0, C18, IF(CMdata=1,IMABS(K19),'CM choke'!C23)) -> 0.2500666959 | D19: =IF(IF(CMdata=1,DEGREES(IMARGUMENT(K19)),'CM choke'!D23)=0, D18, IF(CMdata=1,DEGREES(IMARGUMENT(K19)),'CM choke'!D23)) -> 89.98921083 | E19: =IF(IF(CMdata=1,IMABS(L19),'CM choke'!E23)=0, E18, IF(CMdata=1,IMABS(L19),'CM choke'!E23)) -> 0.3125833766 | F19: =IF(IF(CMdata=1,DEGREES(IMARGUMENT(L19)),'CM choke'!F23)=0, F18, IF(CMdata=1,DEGREES(IMARGUMENT(L19)),'CM choke'!F23)) -> 89.99872074 | G19: 4.708920164e-05 | H19: 0.2500666915 | I19: 6.979169094e-06 | J19: 0.3125833765 | K19: =IF(CMdata=1, IF(Lcm1_core=1, IMDIV(1,IMSUM(IMDIV(1,IMPRODUCT(B19,'Design the AEF circuit'!$G$14*0.001)),IMDIV(1,'Design the AEF circuit'!$G$15*1000),IMPRODUCT(B19,'Design the AEF circuit'!$G$16*0.000000000001))), O19),COMPLEX(G19,H19,"j")) -> 0.0000470892016355992+0.25006669149018j | L19: =IF(CMdata=1, IF(Lcm2_core=1, IMDIV(1, IMSUM(IMDIV(1,IMPRODUCT(B19,'Design the AEF circuit'!$H$14*0.001)), IMDIV(1,'Design the AEF circuit'!$H$15*1000), IMPRODUCT(B19,'Design the AEF circuit'!$H$16*0.000000000001))), Q19), COMPLEX(I19,J19,"j")) -> 6.97916909374988E-06+0.312583376499438j | N19: =IMSUM(IMDIV(1,IMSUM(IMDIV(1,IMPRODUCT(B19,'Design the AEF circuit'!$G$14*0.001)),IMDIV(1,'Design the AEF circuit'!$G$15*1000))), IMDIV(1,IMSUM(IMDIV(1,IMPRODUCT(B19,'Design the AEF circuit'!$G$17*0.001)),IMDIV(1,'Design the AEF circuit'!$G$18*1000))), IMDIV(1,IMSUM(IMDIV(1,IMPRODUCT(B19,'Design the AEF circuit'!$G$19*0.001)),IMDIV(1,'Design the AEF circuit'!$G$20*1000))) ) -> 0.0000470892016335916+0.250066691484849j | O19: =IMDIV(1, IMSUM( IMDIV(1, N19), IMPRODUCT(B19,'Design the AEF circuit'!$G$16*0.000000000001))) -> 0.0000470892016355992+0.25006669149018j | P19: =IMSUM(IMDIV(1,IMSUM(IMDIV(1,IMPRODUCT(B19,'Design the AEF circuit'!$H$14*0.001)),IMDIV(1,'Design the AEF circuit'!$H$15*1000))), IMDIV(1,IMSUM(IMDIV(1,IMPRODUCT(B19,'Design the AEF circuit'!$H$17*0.001)),IMDIV(1,'Design the AEF circuit'!$H$18*1000))), IMDIV(1,IMSUM(IMDIV(1,IMPRODUCT(B19,'Design the AEF circuit'!$H$19*0.001)),IMDIV(1,'Design the AEF circuit'!$H$20*1000))) ) -> 8.64609459557568E-06+0.349525048100726j | Q19: =IMDIV(1, IMSUM( IMDIV(1, P19), IMPRODUCT(B19,'Design the AEF circuit'!$H$16*0.000000000001) ) ) -> 8.64609460072822E-06+0.349525048204874j
A20: ='Frequency vector'!G20 -> 11.39374949 | B20: =COMPLEX(0,2*PI()*'Frequency vector'!G20,"j") -> 71.5890394069299j | C20: =IF(IF(CMdata=1,IMABS(K20),'CM choke'!C24)=0, C19, IF(CMdata=1,IMABS(K20),'CM choke'!C24)) -> 0.2519934133 | D20: =IF(IF(CMdata=1,DEGREES(IMARGUMENT(K20)),'CM choke'!D24)=0, D19, IF(CMdata=1,DEGREES(IMARGUMENT(K20)),'CM choke'!D24)) -> 89.9891277 | E20: =IF(IF(CMdata=1,IMABS(L20),'CM choke'!E24)=0, E19, IF(CMdata=1,IMABS(L20),'CM choke'!E24)) -> 0.3149917734 | F20: =IF(IF(CMdata=1,DEGREES(IMARGUMENT(L20)),'CM choke'!F24)=0, F19, IF(CMdata=1,DEGREES(IMARGUMENT(L20)),'CM choke'!F24)) -> 89.99871088 | G20: 4.781762411e-05 | H20: 0.2519934087 | I20: 7.087129808e-06 | J20: 0.3149917733 | K20: =IF(CMdata=1, IF(Lcm1_core=1, IMDIV(1,IMSUM(IMDIV(1,IMPRODUCT(B20,'Design the AEF circuit'!$G$14*0.001)),IMDIV(1,'Design the AEF circuit'!$G$15*1000),IMPRODUCT(B20,'Design the AEF circuit'!$G$16*0.000000000001))), O20),COMPLEX(G20,H20,"j")) -> 0.0000478176241069206+0.251993408717485j | L20: =IF(CMdata=1, IF(Lcm2_core=1, IMDIV(1, IMSUM(IMDIV(1,IMPRODUCT(B20,'Design the AEF circuit'!$H$14*0.001)), IMDIV(1,'Design the AEF circuit'!$H$15*1000), IMPRODUCT(B20,'Design the AEF circuit'!$H$16*0.000000000001))), Q20), COMPLEX(I20,J20,"j")) -> 7.08712980765409E-06+0.314991773316272j | N20: =IMSUM(IMDIV(1,IMSUM(IMDIV(1,IMPRODUCT(B20,'Design the AEF circuit'!$G$14*0.001)),IMDIV(1,'Design the AEF circuit'!$G$15*1000))), IMDIV(1,IMSUM(IMDIV(1,IMPRODUCT(B20,'Design the AEF circuit'!$G$17*0.001)),IMDIV(1,'Design the AEF circuit'!$G$18*1000))), IMDIV(1,IMSUM(IMDIV(1,IMPRODUCT(B20,'Design the AEF circuit'!$G$19*0.001)),IMDIV(1,'Design the AEF circuit'!$G$20*1000))) ) -> 0.0000478176241048502+0.25199340871203j | O20: =IMDIV(1, IMSUM( IMDIV(1, N20), IMPRODUCT(B20,'Design the AEF circuit'!$G$16*0.000000000001))) -> 0.0000478176241069206+0.251993408717485j | P20: =IMSUM(IMDIV(1,IMSUM(IMDIV(1,IMPRODUCT(B20,'Design the AEF circuit'!$H$14*0.001)),IMDIV(1,'Design the AEF circuit'!$H$15*1000))), IMDIV(1,IMSUM(IMDIV(1,IMPRODUCT(B20,'Design the AEF circuit'!$H$17*0.001)),IMDIV(1,'Design the AEF circuit'!$H$18*1000))), IMDIV(1,IMSUM(IMDIV(1,IMPRODUCT(B20,'Design the AEF circuit'!$H$19*0.001)),IMDIV(1,'Design the AEF circuit'!$H$20*1000))) ) -> 8.77984096731373E-06+0.352218073628391j | Q20: =IMDIV(1, IMSUM( IMDIV(1, P20), IMPRODUCT(B20,'Design the AEF circuit'!$H$16*0.000000000001) ) ) -> 8.77984097262692E-06+0.352218073734965j
A21: ='Frequency vector'!G21 -> 11.48153621 | B21: =COMPLEX(0,2*PI()*'Frequency vector'!G21,"j") -> 72.1406196497426j | C21: =IF(IF(CMdata=1,IMABS(K21),'CM choke'!C25)=0, C20, IF(CMdata=1,IMABS(K21),'CM choke'!C25)) -> 0.2539349756 | D21: =IF(IF(CMdata=1,DEGREES(IMARGUMENT(K21)),'CM choke'!D25)=0, D20, IF(CMdata=1,DEGREES(IMARGUMENT(K21)),'CM choke'!D25)) -> 89.98904393 | E21: =IF(IF(CMdata=1,IMABS(L21),'CM choke'!E25)=0, E20, IF(CMdata=1,IMABS(L21),'CM choke'!E25)) -> 0.3174187265 | F21: =IF(IF(CMdata=1,DEGREES(IMARGUMENT(L21)),'CM choke'!F25)=0, F20, IF(CMdata=1,DEGREES(IMARGUMENT(L21)),'CM choke'!F25)) -> 89.99870095 | G21: 4.855731454e-05 | H21: 0.2539349709 | I21: 7.196760565e-06 | J21: 0.3174187264 | K21: =IF(CMdata=1, IF(Lcm1_core=1, IMDIV(1,IMSUM(IMDIV(1,IMPRODUCT(B21,'Design the AEF circuit'!$G$14*0.001)),IMDIV(1,'Design the AEF circuit'!$G$15*1000),IMPRODUCT(B21,'Design the AEF circuit'!$G$16*0.000000000001))), O21),COMPLEX(G21,H21,"j")) -> 0.0000485573145389271+0.253934970939376j | L21: =IF(CMdata=1, IF(Lcm2_core=1, IMDIV(1, IMSUM(IMDIV(1,IMPRODUCT(B21,'Design the AEF circuit'!$H$14*0.001)), IMDIV(1,'Design the AEF circuit'!$H$15*1000), IMPRODUCT(B21,'Design the AEF circuit'!$H$16*0.000000000001))), Q21), COMPLEX(I21,J21,"j")) -> 7.19676056502481E-06+0.317418726382918j | N21: =IMSUM(IMDIV(1,IMSUM(IMDIV(1,IMPRODUCT(B21,'Design the AEF circuit'!$G$14*0.001)),IMDIV(1,'Design the AEF circuit'!$G$15*1000))), IMDIV(1,IMSUM(IMDIV(1,IMPRODUCT(B21,'Design the AEF circuit'!$G$17*0.001)),IMDIV(1,'Design the AEF circuit'!$G$18*1000))), IMDIV(1,IMSUM(IMDIV(1,IMPRODUCT(B21,'Design the AEF circuit'!$G$19*0.001)),IMDIV(1,'Design the AEF circuit'!$G$20*1000))) ) -> 0.0000485573145367921+0.253934970933793j | O21: =IMDIV(1, IMSUM( IMDIV(1, N21), IMPRODUCT(B21,'Design the AEF circuit'!$G$16*0.000000000001))) -> 0.0000485573145389271+0.253934970939376j | P21: =IMSUM(IMDIV(1,IMSUM(IMDIV(1,IMPRODUCT(B21,'Design the AEF circuit'!$H$14*0.001)),IMDIV(1,'Design the AEF circuit'!$H$15*1000))), IMDIV(1,IMSUM(IMDIV(1,IMPRODUCT(B21,'Design the AEF circuit'!$H$17*0.001)),IMDIV(1,'Design the AEF circuit'!$H$18*1000))), IMDIV(1,IMSUM(IMDIV(1,IMPRODUCT(B21,'Design the AEF circuit'!$H$19*0.001)),IMDIV(1,'Design the AEF circuit'!$H$20*1000))) ) -> 8.91565626065983E-06+0.354931848417119j | Q21: =IMDIV(1, IMSUM( IMDIV(1, P21), IMPRODUCT(B21,'Design the AEF circuit'!$H$16*0.000000000001) ) ) -> 8.91565626613873E-06+0.354931848526176j
A22: ='Frequency vector'!G22 -> 11.56999932 | B22: =COMPLEX(0,2*PI()*'Frequency vector'!G22,"j") -> 72.6964497158072j | C22: =IF(IF(CMdata=1,IMABS(K22),'CM choke'!C26)=0, C21, IF(CMdata=1,IMABS(K22),'CM choke'!C26)) -> 0.2558914973 | D22: =IF(IF(CMdata=1,DEGREES(IMARGUMENT(K22)),'CM choke'!D26)=0, D21, IF(CMdata=1,DEGREES(IMARGUMENT(K22)),'CM choke'!D26)) -> 89.98895952 | E22: =IF(IF(CMdata=1,IMABS(L22),'CM choke'!E26)=0, E21, IF(CMdata=1,IMABS(L22),'CM choke'!E26)) -> 0.3198643788 | F22: =IF(IF(CMdata=1,DEGREES(IMARGUMENT(L22)),'CM choke'!F26)=0, F21, IF(CMdata=1,DEGREES(IMARGUMENT(L22)),'CM choke'!F26)) -> 89.99869094 | G22: 4.930844724e-05 | H22: 0.2558914925 | I22: 7.3080872e-06 | J22: 0.3198643787 | K22: =IF(CMdata=1, IF(Lcm1_core=1, IMDIV(1,IMSUM(IMDIV(1,IMPRODUCT(B22,'Design the AEF circuit'!$G$14*0.001)),IMDIV(1,'Design the AEF circuit'!$G$15*1000),IMPRODUCT(B22,'Design the AEF circuit'!$G$16*0.000000000001))), O22),COMPLEX(G22,H22,"j")) -> 0.0000493084472355856+0.25589149253369j | L22: =IF(CMdata=1, IF(Lcm2_core=1, IMDIV(1, IMSUM(IMDIV(1,IMPRODUCT(B22,'Design the AEF circuit'!$H$14*0.001)), IMDIV(1,'Design the AEF circuit'!$H$15*1000), IMPRODUCT(B22,'Design the AEF circuit'!$H$16*0.000000000001))), Q22), COMPLEX(I22,J22,"j")) -> 7.30808719975191E-06+0.319864378671834j | N22: =IMSUM(IMDIV(1,IMSUM(IMDIV(1,IMPRODUCT(B22,'Design the AEF circuit'!$G$14*0.001)),IMDIV(1,'Design the AEF circuit'!$G$15*1000))), IMDIV(1,IMSUM(IMDIV(1,IMPRODUCT(B22,'Design the AEF circuit'!$G$17*0.001)),IMDIV(1,'Design the AEF circuit'!$G$18*1000))), IMDIV(1,IMSUM(IMDIV(1,IMPRODUCT(B22,'Design the AEF circuit'!$G$19*0.001)),IMDIV(1,'Design the AEF circuit'!$G$20*1000))) ) -> 0.0000493084472333839+0.255891492527977j | O22: =IMDIV(1, IMSUM( IMDIV(1, N22), IMPRODUCT(B22,'Design the AEF circuit'!$G$16*0.000000000001))) -> 0.0000493084472355856+0.25589149253369j | P22: =IMSUM(IMDIV(1,IMSUM(IMDIV(1,IMPRODUCT(B22,'Design the AEF circuit'!$H$14*0.001)),IMDIV(1,'Design the AEF circuit'!$H$15*1000))), IMDIV(1,IMSUM(IMDIV(1,IMPRODUCT(B22,'Design the AEF circuit'!$H$17*0.001)),IMDIV(1,'Design the AEF circuit'!$H$18*1000))), IMDIV(1,IMSUM(IMDIV(1,IMPRODUCT(B22,'Design the AEF circuit'!$H$19*0.001)),IMDIV(1,'Design the AEF circuit'!$H$20*1000))) ) -> 9.05357247974667E-06+0.35766653233611j | Q22: =IMDIV(1, IMSUM( IMDIV(1, P22), IMPRODUCT(B22,'Design the AEF circuit'!$H$16*0.000000000001) ) ) -> 9.05357248539636E-06+0.357666532447707j
A23: ='Frequency vector'!G23 -> 11.65914401 | B23: =COMPLEX(0,2*PI()*'Frequency vector'!G23,"j") -> 73.2565623492222j | C23: =IF(IF(CMdata=1,IMABS(K23),'CM choke'!C27)=0, C22, IF(CMdata=1,IMABS(K23),'CM choke'!C27)) -> 0.2578630936 | D23: =IF(IF(CMdata=1,DEGREES(IMARGUMENT(K23)),'CM choke'!D27)=0, D22, IF(CMdata=1,DEGREES(IMARGUMENT(K23)),'CM choke'!D27)) -> 89.98887445 | E23: =IF(IF(CMdata=1,IMABS(L23),'CM choke'!E27)=0, E22, IF(CMdata=1,IMABS(L23),'CM choke'!E27)) -> 0.3223288743 | F23: =IF(IF(CMdata=1,DEGREES(IMARGUMENT(L23)),'CM choke'!F27)=0, F22, IF(CMdata=1,DEGREES(IMARGUMENT(L23)),'CM choke'!F27)) -> 89.99868085 | G23: 5.00711992e-05 | H23: 0.2578630888 | I23: 7.421135945e-06 | J23: 0.3223288743 | K23: =IF(CMdata=1, IF(Lcm1_core=1, IMDIV(1,IMSUM(IMDIV(1,IMPRODUCT(B23,'Design the AEF circuit'!$G$14*0.001)),IMDIV(1,'Design the AEF circuit'!$G$15*1000),IMPRODUCT(B23,'Design the AEF circuit'!$G$16*0.000000000001))), O23),COMPLEX(G23,H23,"j")) -> 0.0000500711991971686+0.257863088759526j | L23: =IF(CMdata=1, IF(Lcm2_core=1, IMDIV(1, IMSUM(IMDIV(1,IMPRODUCT(B23,'Design the AEF circuit'!$H$14*0.001)), IMDIV(1,'Design the AEF circuit'!$H$15*1000), IMPRODUCT(B23,'Design the AEF circuit'!$H$16*0.000000000001))), Q23), COMPLEX(I23,J23,"j")) -> 7.42113594534932E-06+0.32232887425705j | N23: =IMSUM(IMDIV(1,IMSUM(IMDIV(1,IMPRODUCT(B23,'Design the AEF circuit'!$G$14*0.001)),IMDIV(1,'Design the AEF circuit'!$G$15*1000))), IMDIV(1,IMSUM(IMDIV(1,IMPRODUCT(B23,'Design the AEF circuit'!$G$17*0.001)),IMDIV(1,'Design the AEF circuit'!$G$18*1000))), IMDIV(1,IMSUM(IMDIV(1,IMPRODUCT(B23,'Design the AEF circuit'!$G$19*0.001)),IMDIV(1,'Design the AEF circuit'!$G$20*1000))) ) -> 0.0000500711991948985+0.257863088753681j | O23: =IMDIV(1, IMSUM( IMDIV(1, N23), IMPRODUCT(B23,'Design the AEF circuit'!$G$16*0.000000000001))) -> 0.0000500711991971686+0.257863088759526j | P23: =IMSUM(IMDIV(1,IMSUM(IMDIV(1,IMPRODUCT(B23,'Design the AEF circuit'!$H$14*0.001)),IMDIV(1,'Design the AEF circuit'!$H$15*1000))), IMDIV(1,IMSUM(IMDIV(1,IMPRODUCT(B23,'Design the AEF circuit'!$H$17*0.001)),IMDIV(1,'Design the AEF circuit'!$H$18*1000))), IMDIV(1,IMSUM(IMDIV(1,IMPRODUCT(B23,'Design the AEF circuit'!$H$19*0.001)),IMDIV(1,'Design the AEF circuit'!$H$20*1000))) ) -> 9.19362212377843E-06+0.360422286486324j | Q23: =IMDIV(1, IMSUM( IMDIV(1, P23), IMPRODUCT(B23,'Design the AEF circuit'!$H$16*0.000000000001) ) ) -> 9.19362212960425E-06+0.36042228660052j
A24: ='Frequency vector'!G24 -> 11.74897555 | B24: =COMPLEX(0,2*PI()*'Frequency vector'!G24,"j") -> 73.8209905463729j | C24: =IF(IF(CMdata=1,IMABS(K24),'CM choke'!C28)=0, C23, IF(CMdata=1,IMABS(K24),'CM choke'!C28)) -> 0.2598498807 | D24: =IF(IF(CMdata=1,DEGREES(IMARGUMENT(K24)),'CM choke'!D28)=0, D23, IF(CMdata=1,DEGREES(IMARGUMENT(K24)),'CM choke'!D28)) -> 89.98878873 | E24: =IF(IF(CMdata=1,IMABS(L24),'CM choke'!E28)=0, E23, IF(CMdata=1,IMABS(L24),'CM choke'!E28)) -> 0.3248123584 | F24: =IF(IF(CMdata=1,DEGREES(IMARGUMENT(L24)),'CM choke'!F28)=0, F23, IF(CMdata=1,DEGREES(IMARGUMENT(L24)),'CM choke'!F28)) -> 89.99867069 | G24: 5.084575016e-05 | H24: 0.2598498758 | I24: 7.535933441e-06 | J24: 0.3248123583 | K24: =IF(CMdata=1, IF(Lcm1_core=1, IMDIV(1,IMSUM(IMDIV(1,IMPRODUCT(B24,'Design the AEF circuit'!$G$14*0.001)),IMDIV(1,'Design the AEF circuit'!$G$15*1000),IMPRODUCT(B24,'Design the AEF circuit'!$G$16*0.000000000001))), O24),COMPLEX(G24,H24,"j")) -> 0.000050845750161964+0.259849875764035j | L24: =IF(CMdata=1, IF(Lcm2_core=1, IMDIV(1, IMSUM(IMDIV(1,IMPRODUCT(B24,'Design the AEF circuit'!$H$14*0.001)), IMDIV(1,'Design the AEF circuit'!$H$15*1000), IMPRODUCT(B24,'Design the AEF circuit'!$H$16*0.000000000001))), Q24), COMPLEX(I24,J24,"j")) -> 7.53593344113706E-06+0.324812358322661j | N24: =IMSUM(IMDIV(1,IMSUM(IMDIV(1,IMPRODUCT(B24,'Design the AEF circuit'!$G$14*0.001)),IMDIV(1,'Design the AEF circuit'!$G$15*1000))), IMDIV(1,IMSUM(IMDIV(1,IMPRODUCT(B24,'Design the AEF circuit'!$G$17*0.001)),IMDIV(1,'Design the AEF circuit'!$G$18*1000))), IMDIV(1,IMSUM(IMDIV(1,IMPRODUCT(B24,'Design the AEF circuit'!$G$19*0.001)),IMDIV(1,'Design the AEF circuit'!$G$20*1000))) ) -> 0.0000508457501596231+0.259849875758053j | O24: =IMDIV(1, IMSUM( IMDIV(1, N24), IMPRODUCT(B24,'Design the AEF circuit'!$G$16*0.000000000001))) -> 0.000050845750161964+0.259849875764035j | P24: =IMSUM(IMDIV(1,IMSUM(IMDIV(1,IMPRODUCT(B24,'Design the AEF circuit'!$H$14*0.001)),IMDIV(1,'Design the AEF circuit'!$H$15*1000))), IMDIV(1,IMSUM(IMDIV(1,IMPRODUCT(B24,'Design the AEF circuit'!$H$17*0.001)),IMDIV(1,'Design the AEF circuit'!$H$18*1000))), IMDIV(1,IMSUM(IMDIV(1,IMPRODUCT(B24,'Design the AEF circuit'!$H$19*0.001)),IMDIV(1,'Design the AEF circuit'!$H$20*1000))) ) -> 9.33583819468931E-06+0.363199273209974j | Q24: =IMDIV(1, IMSUM( IMDIV(1, P24), IMPRODUCT(B24,'Design the AEF circuit'!$H$16*0.000000000001) ) ) -> 9.33583820069676E-06+0.36319927332683j
A25: ='Frequency vector'!G25 -> 11.83949922 | B25: =COMPLEX(0,2*PI()*'Frequency vector'!G25,"j") -> 74.3897675578758j | C25: =IF(IF(CMdata=1,IMABS(K25),'CM choke'!C29)=0, C24, IF(CMdata=1,IMABS(K25),'CM choke'!C29)) -> 0.2618519757 | D25: =IF(IF(CMdata=1,DEGREES(IMARGUMENT(K25)),'CM choke'!D29)=0, D24, IF(CMdata=1,DEGREES(IMARGUMENT(K25)),'CM choke'!D29)) -> 89.98870235 | E25: =IF(IF(CMdata=1,IMABS(L25),'CM choke'!E29)=0, E24, IF(CMdata=1,IMABS(L25),'CM choke'!E29)) -> 0.3273149773 | F25: =IF(IF(CMdata=1,DEGREES(IMARGUMENT(L25)),'CM choke'!F29)=0, F24, IF(CMdata=1,DEGREES(IMARGUMENT(L25)),'CM choke'!F29)) -> 89.99866045 | G25: 5.163228265e-05 | H25: 0.2618519706 | I25: 7.652506739e-06 | J25: 0.3273149772 | K25: =IF(CMdata=1, IF(Lcm1_core=1, IMDIV(1,IMSUM(IMDIV(1,IMPRODUCT(B25,'Design the AEF circuit'!$G$14*0.001)),IMDIV(1,'Design the AEF circuit'!$G$15*1000),IMPRODUCT(B25,'Design the AEF circuit'!$G$16*0.000000000001))), O25),COMPLEX(G25,H25,"j")) -> 0.0000516322826486286+0.261851970589252j | L25: =IF(CMdata=1, IF(Lcm2_core=1, IMDIV(1, IMSUM(IMDIV(1,IMPRODUCT(B25,'Design the AEF circuit'!$H$14*0.001)), IMDIV(1,'Design the AEF circuit'!$H$15*1000), IMPRODUCT(B25,'Design the AEF circuit'!$H$16*0.000000000001))), Q25), COMPLEX(I25,J25,"j")) -> 7.65250673851864E-06+0.327314977171379j | N25: =IMSUM(IMDIV(1,IMSUM(IMDIV(1,IMPRODUCT(B25,'Design the AEF circuit'!$G$14*0.001)),IMDIV(1,'Design the AEF circuit'!$G$15*1000))), IMDIV(1,IMSUM(IMDIV(1,IMPRODUCT(B25,'Design the AEF circuit'!$G$17*0.001)),IMDIV(1,'Design the AEF circuit'!$G$18*1000))), IMDIV(1,IMSUM(IMDIV(1,IMPRODUCT(B25,'Design the AEF circuit'!$G$19*0.001)),IMDIV(1,'Design the AEF circuit'!$G$20*1000))) ) -> 0.0000516322826462146+0.261851970583131j | O25: =IMDIV(1, IMSUM( IMDIV(1, N25), IMPRODUCT(B25,'Design the AEF circuit'!$G$16*0.000000000001))) -> 0.0000516322826486286+0.261851970589252j | P25: =IMSUM(IMDIV(1,IMSUM(IMDIV(1,IMPRODUCT(B25,'Design the AEF circuit'!$H$14*0.001)),IMDIV(1,'Design the AEF circuit'!$H$15*1000))), IMDIV(1,IMSUM(IMDIV(1,IMPRODUCT(B25,'Design the AEF circuit'!$H$17*0.001)),IMDIV(1,'Design the AEF circuit'!$H$18*1000))), IMDIV(1,IMSUM(IMDIV(1,IMPRODUCT(B25,'Design the AEF circuit'!$H$19*0.001)),IMDIV(1,'Design the AEF circuit'!$H$20*1000))) ) -> 9.48025420492013E-06+0.365997656100088j | Q25: =IMDIV(1, IMSUM( IMDIV(1, P25), IMPRODUCT(B25,'Design the AEF circuit'!$H$16*0.000000000001) ) ) -> 9.48025421111491E-06+0.365997656219667j
A26: ='Frequency vector'!G26 -> 11.93072036 | B26: =COMPLEX(0,2*PI()*'Frequency vector'!G26,"j") -> 74.9629268905372j | C26: =IF(IF(CMdata=1,IMABS(K26),'CM choke'!C30)=0, C25, IF(CMdata=1,IMABS(K26),'CM choke'!C30)) -> 0.2638694964 | D26: =IF(IF(CMdata=1,DEGREES(IMARGUMENT(K26)),'CM choke'!D30)=0, D25, IF(CMdata=1,DEGREES(IMARGUMENT(K26)),'CM choke'!D30)) -> 89.9886153 | E26: =IF(IF(CMdata=1,IMABS(L26),'CM choke'!E30)=0, E25, IF(CMdata=1,IMABS(L26),'CM choke'!E30)) -> 0.3298368783 | F26: =IF(IF(CMdata=1,DEGREES(IMARGUMENT(L26)),'CM choke'!F30)=0, F25, IF(CMdata=1,DEGREES(IMARGUMENT(L26)),'CM choke'!F30)) -> 89.99865012 | G26: 5.2430982e-05 | H26: 0.2638694912 | I26: 7.770883307e-06 | J26: 0.3298368782 | K26: =IF(CMdata=1, IF(Lcm1_core=1, IMDIV(1,IMSUM(IMDIV(1,IMPRODUCT(B26,'Design the AEF circuit'!$G$14*0.001)),IMDIV(1,'Design the AEF circuit'!$G$15*1000),IMPRODUCT(B26,'Design the AEF circuit'!$G$16*0.000000000001))), O26),COMPLEX(G26,H26,"j")) -> 0.000052430981999198+0.263869491179002j | L26: =IF(CMdata=1, IF(Lcm2_core=1, IMDIV(1, IMSUM(IMDIV(1,IMPRODUCT(B26,'Design the AEF circuit'!$H$14*0.001)), IMDIV(1,'Design the AEF circuit'!$H$15*1000), IMPRODUCT(B26,'Design the AEF circuit'!$H$16*0.000000000001))), Q26), COMPLEX(I26,J26,"j")) -> 7.77088330735543E-06+0.329836878233149j | N26: =IMSUM(IMDIV(1,IMSUM(IMDIV(1,IMPRODUCT(B26,'Design the AEF circuit'!$G$14*0.001)),IMDIV(1,'Design the AEF circuit'!$G$15*1000))), IMDIV(1,IMSUM(IMDIV(1,IMPRODUCT(B26,'Design the AEF circuit'!$G$17*0.001)),IMDIV(1,'Design the AEF circuit'!$G$18*1000))), IMDIV(1,IMSUM(IMDIV(1,IMPRODUCT(B26,'Design the AEF circuit'!$G$19*0.001)),IMDIV(1,'Design the AEF circuit'!$G$20*1000))) ) -> 0.0000524309819967089+0.263869491172738j | O26: =IMDIV(1, IMSUM( IMDIV(1, N26), IMPRODUCT(B26,'Design the AEF circuit'!$G$16*0.000000000001))) -> 0.000052430981999198+0.263869491179002j | P26: =IMSUM(IMDIV(1,IMSUM(IMDIV(1,IMPRODUCT(B26,'Design the AEF circuit'!$H$14*0.001)),IMDIV(1,'Design the AEF circuit'!$H$15*1000))), IMDIV(1,IMSUM(IMDIV(1,IMPRODUCT(B26,'Design the AEF circuit'!$H$17*0.001)),IMDIV(1,'Design the AEF circuit'!$H$18*1000))), IMDIV(1,IMSUM(IMDIV(1,IMPRODUCT(B26,'Design the AEF circuit'!$H$19*0.001)),IMDIV(1,'Design the AEF circuit'!$H$20*1000))) ) -> 9.62690418531546E-06+0.368817600010152j | Q26: =IMDIV(1, IMSUM( IMDIV(1, P26), IMPRODUCT(B26,'Design the AEF circuit'!$H$16*0.000000000001) ) ) -> 9.62690419170332E-06+0.368817600132515j
A27: ='Frequency vector'!G27 -> 12.02264435 | B27: =COMPLEX(0,2*PI()*'Frequency vector'!G27,"j") -> 75.5405023093272j | C27: =IF(IF(CMdata=1,IMABS(K27),'CM choke'!C31)=0, C26, IF(CMdata=1,IMABS(K27),'CM choke'!C31)) -> 0.2659025617 | D27: =IF(IF(CMdata=1,DEGREES(IMARGUMENT(K27)),'CM choke'!D31)=0, D26, IF(CMdata=1,DEGREES(IMARGUMENT(K27)),'CM choke'!D31)) -> 89.98852759 | E27: =IF(IF(CMdata=1,IMABS(L27),'CM choke'!E31)=0, E26, IF(CMdata=1,IMABS(L27),'CM choke'!E31)) -> 0.3323782102 | F27: =IF(IF(CMdata=1,DEGREES(IMARGUMENT(L27)),'CM choke'!F31)=0, F26, IF(CMdata=1,DEGREES(IMARGUMENT(L27)),'CM choke'!F31)) -> 89.99863972 | G27: 5.324203642e-05 | H27: 0.2659025564 | I27: 7.891091042e-06 | J27: 0.3323782101 | K27: =IF(CMdata=1, IF(Lcm1_core=1, IMDIV(1,IMSUM(IMDIV(1,IMPRODUCT(B27,'Design the AEF circuit'!$G$14*0.001)),IMDIV(1,'Design the AEF circuit'!$G$15*1000),IMPRODUCT(B27,'Design the AEF circuit'!$G$16*0.000000000001))), O27),COMPLEX(G27,H27,"j")) -> 0.0000532420364227612+0.26590255638584j | L27: =IF(CMdata=1, IF(Lcm2_core=1, IMDIV(1, IMSUM(IMDIV(1,IMPRODUCT(B27,'Design the AEF circuit'!$H$14*0.001)), IMDIV(1,'Design the AEF circuit'!$H$15*1000), IMPRODUCT(B27,'Design the AEF circuit'!$H$16*0.000000000001))), Q27), COMPLEX(I27,J27,"j")) -> 7.89109104243993E-06+0.33237821007384j | N27: =IMSUM(IMDIV(1,IMSUM(IMDIV(1,IMPRODUCT(B27,'Design the AEF circuit'!$G$14*0.001)),IMDIV(1,'Design the AEF circuit'!$G$15*1000))), IMDIV(1,IMSUM(IMDIV(1,IMPRODUCT(B27,'Design the AEF circuit'!$G$17*0.001)),IMDIV(1,'Design the AEF circuit'!$G$18*1000))), IMDIV(1,IMSUM(IMDIV(1,IMPRODUCT(B27,'Design the AEF circuit'!$G$19*0.001)),IMDIV(1,'Design the AEF circuit'!$G$20*1000))) ) -> 0.0000532420364201944+0.26590255637943j | O27: =IMDIV(1, IMSUM( IMDIV(1, N27), IMPRODUCT(B27,'Design the AEF circuit'!$G$16*0.000000000001))) -> 0.0000532420364227612+0.26590255638584j | P27: =IMSUM(IMDIV(1,IMSUM(IMDIV(1,IMPRODUCT(B27,'Design the AEF circuit'!$H$14*0.001)),IMDIV(1,'Design the AEF circuit'!$H$15*1000))), IMDIV(1,IMSUM(IMDIV(1,IMPRODUCT(B27,'Design the AEF circuit'!$H$17*0.001)),IMDIV(1,'Design the AEF circuit'!$H$18*1000))), IMDIV(1,IMSUM(IMDIV(1,IMPRODUCT(B27,'Design the AEF circuit'!$H$19*0.001)),IMDIV(1,'Design the AEF circuit'!$H$20*1000))) ) -> 0.0000097758226931427+0.371659271063813j | Q27: =IMDIV(1, IMSUM( IMDIV(1, P27), IMPRODUCT(B27,'Design the AEF circuit'!$H$16*0.000000000001) ) ) -> 9.77582269972972E-06+0.371659271189026j
A28: ='Frequency vector'!G28 -> 12.11527659 | B28: =COMPLEX(0,2*PI()*'Frequency vector'!G28,"j") -> 76.1225278393685j | C28: =IF(IF(CMdata=1,IMABS(K28),'CM choke'!C32)=0, C27, IF(CMdata=1,IMABS(K28),'CM choke'!C32)) -> 0.2679512914 | D28: =IF(IF(CMdata=1,DEGREES(IMARGUMENT(K28)),'CM choke'!D32)=0, D27, IF(CMdata=1,DEGREES(IMARGUMENT(K28)),'CM choke'!D32)) -> 89.98843919 | E28: =IF(IF(CMdata=1,IMABS(L28),'CM choke'!E32)=0, E27, IF(CMdata=1,IMABS(L28),'CM choke'!E32)) -> 0.3349391225 | F28: =IF(IF(CMdata=1,DEGREES(IMARGUMENT(L28)),'CM choke'!F32)=0, F27, IF(CMdata=1,DEGREES(IMARGUMENT(L28)),'CM choke'!F32)) -> 89.99862924 | G28: 5.406563704e-05 | H28: 0.267951286 | I28: 8.01315827e-06 | J28: 0.3349391224 | K28: =IF(CMdata=1, IF(Lcm1_core=1, IMDIV(1,IMSUM(IMDIV(1,IMPRODUCT(B28,'Design the AEF circuit'!$G$14*0.001)),IMDIV(1,'Design the AEF circuit'!$G$15*1000),IMPRODUCT(B28,'Design the AEF circuit'!$G$16*0.000000000001))), O28),COMPLEX(G28,H28,"j")) -> 0.0000540656370398104+0.267951285978056j | L28: =IF(CMdata=1, IF(Lcm2_core=1, IMDIV(1, IMSUM(IMDIV(1,IMPRODUCT(B28,'Design the AEF circuit'!$H$14*0.001)), IMDIV(1,'Design the AEF circuit'!$H$15*1000), IMPRODUCT(B28,'Design the AEF circuit'!$H$16*0.000000000001))), Q28), COMPLEX(I28,J28,"j")) -> 8.01315827006894E-06+0.334939122403989j | N28: =IMSUM(IMDIV(1,IMSUM(IMDIV(1,IMPRODUCT(B28,'Design the AEF circuit'!$G$14*0.001)),IMDIV(1,'Design the AEF circuit'!$G$15*1000))), IMDIV(1,IMSUM(IMDIV(1,IMPRODUCT(B28,'Design the AEF circuit'!$G$17*0.001)),IMDIV(1,'Design the AEF circuit'!$G$18*1000))), IMDIV(1,IMSUM(IMDIV(1,IMPRODUCT(B28,'Design the AEF circuit'!$G$19*0.001)),IMDIV(1,'Design the AEF circuit'!$G$20*1000))) ) -> 0.0000540656370371636+0.267951285971497j | O28: =IMDIV(1, IMSUM( IMDIV(1, N28), IMPRODUCT(B28,'Design the AEF circuit'!$G$16*0.000000000001))) -> 0.0000540656370398104+0.267951285978056j | P28: =IMSUM(IMDIV(1,IMSUM(IMDIV(1,IMPRODUCT(B28,'Design the AEF circuit'!$H$14*0.001)),IMDIV(1,'Design the AEF circuit'!$H$15*1000))), IMDIV(1,IMSUM(IMDIV(1,IMPRODUCT(B28,'Design the AEF circuit'!$H$17*0.001)),IMDIV(1,'Design the AEF circuit'!$H$18*1000))), IMDIV(1,IMSUM(IMDIV(1,IMPRODUCT(B28,'Design the AEF circuit'!$H$19*0.001)),IMDIV(1,'Design the AEF circuit'!$H$20*1000))) ) -> 9.92704482023535E-06+0.374522836664672j | Q28: =IMDIV(1, IMSUM( IMDIV(1, P28), IMPRODUCT(B28,'Design the AEF circuit'!$H$16*0.000000000001) ) ) -> 9.92704482702777E-06+0.374522836792803j
A29: ='Frequency vector'!G29 -> 12.20862254 | B29: =COMPLEX(0,2*PI()*'Frequency vector'!G29,"j") -> 76.7090377679413j | C29: =IF(IF(CMdata=1,IMABS(K29),'CM choke'!C33)=0, C28, IF(CMdata=1,IMABS(K29),'CM choke'!C33)) -> 0.2700158062 | D29: =IF(IF(CMdata=1,DEGREES(IMARGUMENT(K29)),'CM choke'!D33)=0, D28, IF(CMdata=1,DEGREES(IMARGUMENT(K29)),'CM choke'!D33)) -> 89.98835012 | E29: =IF(IF(CMdata=1,IMABS(L29),'CM choke'!E33)=0, E28, IF(CMdata=1,IMABS(L29),'CM choke'!E33)) -> 0.3375197662 | F29: =IF(IF(CMdata=1,DEGREES(IMARGUMENT(L29)),'CM choke'!F33)=0, F28, IF(CMdata=1,DEGREES(IMARGUMENT(L29)),'CM choke'!F33)) -> 89.99861868 | G29: 5.490197793e-05 | H29: 0.2700158006 | I29: 8.137113755e-06 | J29: 0.3375197661 | K29: =IF(CMdata=1, IF(Lcm1_core=1, IMDIV(1,IMSUM(IMDIV(1,IMPRODUCT(B29,'Design the AEF circuit'!$G$14*0.001)),IMDIV(1,'Design the AEF circuit'!$G$15*1000),IMPRODUCT(B29,'Design the AEF circuit'!$G$16*0.000000000001))), O29),COMPLEX(G29,H29,"j")) -> 0.0000549019779272788+0.270015800646731j | L29: =IF(CMdata=1, IF(Lcm2_core=1, IMDIV(1, IMSUM(IMDIV(1,IMPRODUCT(B29,'Design the AEF circuit'!$H$14*0.001)), IMDIV(1,'Design the AEF circuit'!$H$15*1000), IMPRODUCT(B29,'Design the AEF circuit'!$H$16*0.000000000001))), Q29), COMPLEX(I29,J29,"j")) -> 8.13711375471875E-06+0.337519766087632j | N29: =IMSUM(IMDIV(1,IMSUM(IMDIV(1,IMPRODUCT(B29,'Design the AEF circuit'!$G$14*0.001)),IMDIV(1,'Design the AEF circuit'!$G$15*1000))), IMDIV(1,IMSUM(IMDIV(1,IMPRODUCT(B29,'Design the AEF circuit'!$G$17*0.001)),IMDIV(1,'Design the AEF circuit'!$G$18*1000))), IMDIV(1,IMSUM(IMDIV(1,IMPRODUCT(B29,'Design the AEF circuit'!$G$19*0.001)),IMDIV(1,'Design the AEF circuit'!$G$20*1000))) ) -> 0.0000549019779245496+0.27001580064002j | O29: =IMDIV(1, IMSUM( IMDIV(1, N29), IMPRODUCT(B29,'Design the AEF circuit'!$G$16*0.000000000001))) -> 0.0000549019779272788+0.270015800646731j | P29: =IMSUM(IMDIV(1,IMSUM(IMDIV(1,IMPRODUCT(B29,'Design the AEF circuit'!$H$14*0.001)),IMDIV(1,'Design the AEF circuit'!$H$15*1000))), IMDIV(1,IMSUM(IMDIV(1,IMPRODUCT(B29,'Design the AEF circuit'!$H$17*0.001)),IMDIV(1,'Design the AEF circuit'!$H$18*1000))), IMDIV(1,IMSUM(IMDIV(1,IMPRODUCT(B29,'Design the AEF circuit'!$H$19*0.001)),IMDIV(1,'Design the AEF circuit'!$H$20*1000))) ) -> 0.0000100806062012624+0.377408465506147j | Q29: =IMDIV(1, IMSUM( IMDIV(1, P29), IMPRODUCT(B29,'Design the AEF circuit'!$H$16*0.000000000001) ) ) -> 0.0000100806062082666+0.377408465637262j
A30: ='Frequency vector'!G30 -> 12.30268771 | B30: =COMPLEX(0,2*PI()*'Frequency vector'!G30,"j") -> 77.3000666465026j | C30: =IF(IF(CMdata=1,IMABS(K30),'CM choke'!C34)=0, C29, IF(CMdata=1,IMABS(K30),'CM choke'!C34)) -> 0.2720962277 | D30: =IF(IF(CMdata=1,DEGREES(IMARGUMENT(K30)),'CM choke'!D34)=0, D29, IF(CMdata=1,DEGREES(IMARGUMENT(K30)),'CM choke'!D34)) -> 89.98826036 | E30: =IF(IF(CMdata=1,IMABS(L30),'CM choke'!E34)=0, E29, IF(CMdata=1,IMABS(L30),'CM choke'!E34)) -> 0.3401202933 | F30: =IF(IF(CMdata=1,DEGREES(IMARGUMENT(L30)),'CM choke'!F34)=0, F29, IF(CMdata=1,DEGREES(IMARGUMENT(L30)),'CM choke'!F34)) -> 89.99860804 | G30: 5.575125616e-05 | H30: 0.272096222 | I30: 8.262986706e-06 | J30: 0.3401202932 | K30: =IF(CMdata=1, IF(Lcm1_core=1, IMDIV(1,IMSUM(IMDIV(1,IMPRODUCT(B30,'Design the AEF circuit'!$G$14*0.001)),IMDIV(1,'Design the AEF circuit'!$G$15*1000),IMPRODUCT(B30,'Design the AEF circuit'!$G$16*0.000000000001))), O30),COMPLEX(G30,H30,"j")) -> 0.0000557512561642729+0.272096222012846j | L30: =IF(CMdata=1, IF(Lcm2_core=1, IMDIV(1, IMSUM(IMDIV(1,IMPRODUCT(B30,'Design the AEF circuit'!$H$14*0.001)), IMDIV(1,'Design the AEF circuit'!$H$15*1000), IMPRODUCT(B30,'Design the AEF circuit'!$H$16*0.000000000001))), Q30), COMPLEX(I30,J30,"j")) -> 8.26298670582269E-06+0.340120293151174j | N30: =IMSUM(IMDIV(1,IMSUM(IMDIV(1,IMPRODUCT(B30,'Design the AEF circuit'!$G$14*0.001)),IMDIV(1,'Design the AEF circuit'!$G$15*1000))), IMDIV(1,IMSUM(IMDIV(1,IMPRODUCT(B30,'Design the AEF circuit'!$G$17*0.001)),IMDIV(1,'Design the AEF circuit'!$G$18*1000))), IMDIV(1,IMSUM(IMDIV(1,IMPRODUCT(B30,'Design the AEF circuit'!$G$19*0.001)),IMDIV(1,'Design the AEF circuit'!$G$20*1000))) ) -> 0.0000557512561614587+0.272096222005979j | O30: =IMDIV(1, IMSUM( IMDIV(1, N30), IMPRODUCT(B30,'Design the AEF circuit'!$G$16*0.000000000001))) -> 0.0000557512561642729+0.272096222012846j | P30: =IMSUM(IMDIV(1,IMSUM(IMDIV(1,IMPRODUCT(B30,'Design the AEF circuit'!$H$14*0.001)),IMDIV(1,'Design the AEF circuit'!$H$15*1000))), IMDIV(1,IMSUM(IMDIV(1,IMPRODUCT(B30,'Design the AEF circuit'!$H$17*0.001)),IMDIV(1,'Design the AEF circuit'!$H$18*1000))), IMDIV(1,IMSUM(IMDIV(1,IMPRODUCT(B30,'Design the AEF circuit'!$H$19*0.001)),IMDIV(1,'Design the AEF circuit'!$H$20*1000))) ) -> 0.0000102365430221248+0.380316327581398j | Q30: =IMDIV(1, IMSUM( IMDIV(1, P30), IMPRODUCT(B30,'Design the AEF circuit'!$H$16*0.000000000001) ) ) -> 0.0000102365430293473+0.380316327715566j
A31: ='Frequency vector'!G31 -> 12.39747763 | B31: =COMPLEX(0,2*PI()*'Frequency vector'!G31,"j") -> 77.8956492927224j | C31: =IF(IF(CMdata=1,IMABS(K31),'CM choke'!C35)=0, C30, IF(CMdata=1,IMABS(K31),'CM choke'!C35)) -> 0.2741926785 | D31: =IF(IF(CMdata=1,DEGREES(IMARGUMENT(K31)),'CM choke'!D35)=0, D30, IF(CMdata=1,DEGREES(IMARGUMENT(K31)),'CM choke'!D35)) -> 89.98816991 | E31: =IF(IF(CMdata=1,IMABS(L31),'CM choke'!E35)=0, E30, IF(CMdata=1,IMABS(L31),'CM choke'!E35)) -> 0.3427408569 | F31: =IF(IF(CMdata=1,DEGREES(IMARGUMENT(L31)),'CM choke'!F35)=0, F30, IF(CMdata=1,DEGREES(IMARGUMENT(L31)),'CM choke'!F35)) -> 89.99859731 | G31: 5.661367188e-05 | H31: 0.2741926726 | I31: 8.390806785e-06 | J31: 0.3427408568 | K31: =IF(CMdata=1, IF(Lcm1_core=1, IMDIV(1,IMSUM(IMDIV(1,IMPRODUCT(B31,'Design the AEF circuit'!$G$14*0.001)),IMDIV(1,'Design the AEF circuit'!$G$15*1000),IMPRODUCT(B31,'Design the AEF circuit'!$G$16*0.000000000001))), O31),COMPLEX(G31,H31,"j")) -> 0.0000566136718785127+0.274192672634447j | L31: =IF(CMdata=1, IF(Lcm2_core=1, IMDIV(1, IMSUM(IMDIV(1,IMPRODUCT(B31,'Design the AEF circuit'!$H$14*0.001)), IMDIV(1,'Design the AEF circuit'!$H$15*1000), IMPRODUCT(B31,'Design the AEF circuit'!$H$16*0.000000000001))), Q31), COMPLEX(I31,J31,"j")) -> 8.39080678465506E-06+0.342740856792366j | N31: =IMSUM(IMDIV(1,IMSUM(IMDIV(1,IMPRODUCT(B31,'Design the AEF circuit'!$G$14*0.001)),IMDIV(1,'Design the AEF circuit'!$G$15*1000))), IMDIV(1,IMSUM(IMDIV(1,IMPRODUCT(B31,'Design the AEF circuit'!$G$17*0.001)),IMDIV(1,'Design the AEF circuit'!$G$18*1000))), IMDIV(1,IMSUM(IMDIV(1,IMPRODUCT(B31,'Design the AEF circuit'!$G$19*0.001)),IMDIV(1,'Design the AEF circuit'!$G$20*1000))) ) -> 0.0000566136718756108+0.27419267262742j | O31: =IMDIV(1, IMSUM( IMDIV(1, N31), IMPRODUCT(B31,'Design the AEF circuit'!$G$16*0.000000000001))) -> 0.0000566136718785127+0.274192672634447j | P31: =IMSUM(IMDIV(1,IMSUM(IMDIV(1,IMPRODUCT(B31,'Design the AEF circuit'!$H$14*0.001)),IMDIV(1,'Design the AEF circuit'!$H$15*1000))), IMDIV(1,IMSUM(IMDIV(1,IMPRODUCT(B31,'Design the AEF circuit'!$H$17*0.001)),IMDIV(1,'Design the AEF circuit'!$H$18*1000))), IMDIV(1,IMSUM(IMDIV(1,IMPRODUCT(B31,'Design the AEF circuit'!$H$19*0.001)),IMDIV(1,'Design the AEF circuit'!$H$20*1000))) ) -> 0.0000103948920284835+0.383246594193361j | Q31: =IMDIV(1, IMSUM( IMDIV(1, P31), IMPRODUCT(B31,'Design the AEF circuit'!$H$16*0.000000000001) ) ) -> 0.0000103948920359312+0.383246594330655j
A32: ='Frequency vector'!G32 -> 12.49299789 | B32: =COMPLEX(0,2*PI()*'Frequency vector'!G32,"j") -> 78.495820792534j | C32: =IF(IF(CMdata=1,IMABS(K32),'CM choke'!C36)=0, C31, IF(CMdata=1,IMABS(K32),'CM choke'!C36)) -> 0.276305282 | D32: =IF(IF(CMdata=1,DEGREES(IMARGUMENT(K32)),'CM choke'!D36)=0, D31, IF(CMdata=1,DEGREES(IMARGUMENT(K32)),'CM choke'!D36)) -> 89.98807876 | E32: =IF(IF(CMdata=1,IMABS(L32),'CM choke'!E36)=0, E31, IF(CMdata=1,IMABS(L32),'CM choke'!E36)) -> 0.3453816115 | F32: =IF(IF(CMdata=1,DEGREES(IMARGUMENT(L32)),'CM choke'!F36)=0, F31, IF(CMdata=1,DEGREES(IMARGUMENT(L32)),'CM choke'!F36)) -> 89.99858651 | G32: 5.748942829e-05 | H32: 0.276305276 | I32: 8.520604111e-06 | J32: 0.3453816114 | K32: =IF(CMdata=1, IF(Lcm1_core=1, IMDIV(1,IMSUM(IMDIV(1,IMPRODUCT(B32,'Design the AEF circuit'!$G$14*0.001)),IMDIV(1,'Design the AEF circuit'!$G$15*1000),IMPRODUCT(B32,'Design the AEF circuit'!$G$16*0.000000000001))), O32),COMPLEX(G32,H32,"j")) -> 0.0000574894282934922+0.276305276013865j | L32: =IF(CMdata=1, IF(Lcm2_core=1, IMDIV(1, IMSUM(IMDIV(1,IMPRODUCT(B32,'Design the AEF circuit'!$H$14*0.001)), IMDIV(1,'Design the AEF circuit'!$H$15*1000), IMPRODUCT(B32,'Design the AEF circuit'!$H$16*0.000000000001))), Q32), COMPLEX(I32,J32,"j")) -> 8.52060411131977E-06+0.34538161138931j | N32: =IMSUM(IMDIV(1,IMSUM(IMDIV(1,IMPRODUCT(B32,'Design the AEF circuit'!$G$14*0.001)),IMDIV(1,'Design the AEF circuit'!$G$15*1000))), IMDIV(1,IMSUM(IMDIV(1,IMPRODUCT(B32,'Design the AEF circuit'!$G$17*0.001)),IMDIV(1,'Design the AEF circuit'!$G$18*1000))), IMDIV(1,IMSUM(IMDIV(1,IMPRODUCT(B32,'Design the AEF circuit'!$G$19*0.001)),IMDIV(1,'Design the AEF circuit'!$G$20*1000))) ) -> 0.0000574894282905+0.276305276006674j | O32: =IMDIV(1, IMSUM( IMDIV(1, N32), IMPRODUCT(B32,'Design the AEF circuit'!$G$16*0.000000000001))) -> 0.0000574894282934922+0.276305276013865j | P32: =IMSUM(IMDIV(1,IMSUM(IMDIV(1,IMPRODUCT(B32,'Design the AEF circuit'!$H$14*0.001)),IMDIV(1,'Design the AEF circuit'!$H$15*1000))), IMDIV(1,IMSUM(IMDIV(1,IMPRODUCT(B32,'Design the AEF circuit'!$H$17*0.001)),IMDIV(1,'Design the AEF circuit'!$H$18*1000))), IMDIV(1,IMSUM(IMDIV(1,IMPRODUCT(B32,'Design the AEF circuit'!$H$19*0.001)),IMDIV(1,'Design the AEF circuit'!$H$20*1000))) ) -> 0.0000105556905344173+0.38619943796482j | Q32: =IMDIV(1, IMSUM( IMDIV(1, P32), IMPRODUCT(B32,'Design the AEF circuit'!$H$16*0.000000000001) ) ) -> 0.0000105556905420972+0.386199438105311j
A33: ='Frequency vector'!G33 -> 12.58925412 | B33: =COMPLEX(0,2*PI()*'Frequency vector'!G33,"j") -> 79.1006165022014j | C33: =IF(IF(CMdata=1,IMABS(K33),'CM choke'!C37)=0, C32, IF(CMdata=1,IMABS(K33),'CM choke'!C37)) -> 0.2784341627 | D33: =IF(IF(CMdata=1,DEGREES(IMARGUMENT(K33)),'CM choke'!D37)=0, D32, IF(CMdata=1,DEGREES(IMARGUMENT(K33)),'CM choke'!D37)) -> 89.98798691 | E33: =IF(IF(CMdata=1,IMABS(L33),'CM choke'!E37)=0, E32, IF(CMdata=1,IMABS(L33),'CM choke'!E37)) -> 0.3480427126 | F33: =IF(IF(CMdata=1,DEGREES(IMARGUMENT(L33)),'CM choke'!F37)=0, F32, IF(CMdata=1,DEGREES(IMARGUMENT(L33)),'CM choke'!F37)) -> 89.99857562 | G33: 5.837873178e-05 | H33: 0.2784341566 | I33: 8.652409272e-06 | J33: 0.3480427125 | K33: =IF(CMdata=1, IF(Lcm1_core=1, IMDIV(1,IMSUM(IMDIV(1,IMPRODUCT(B33,'Design the AEF circuit'!$G$14*0.001)),IMDIV(1,'Design the AEF circuit'!$G$15*1000),IMPRODUCT(B33,'Design the AEF circuit'!$G$16*0.000000000001))), O33),COMPLEX(G33,H33,"j")) -> 0.0000583787317763654+0.278434156604989j | L33: =IF(CMdata=1, IF(Lcm2_core=1, IMDIV(1, IMSUM(IMDIV(1,IMPRODUCT(B33,'Design the AEF circuit'!$H$14*0.001)), IMDIV(1,'Design the AEF circuit'!$H$15*1000), IMPRODUCT(B33,'Design the AEF circuit'!$H$16*0.000000000001))), Q33), COMPLEX(I33,J33,"j")) -> 8.65240927184863E-06+0.348042712509566j | N33: =IMSUM(IMDIV(1,IMSUM(IMDIV(1,IMPRODUCT(B33,'Design the AEF circuit'!$G$14*0.001)),IMDIV(1,'Design the AEF circuit'!$G$15*1000))), IMDIV(1,IMSUM(IMDIV(1,IMPRODUCT(B33,'Design the AEF circuit'!$G$17*0.001)),IMDIV(1,'Design the AEF circuit'!$G$18*1000))), IMDIV(1,IMSUM(IMDIV(1,IMPRODUCT(B33,'Design the AEF circuit'!$G$19*0.001)),IMDIV(1,'Design the AEF circuit'!$G$20*1000))) ) -> 0.0000583787317732796+0.27843415659763j | O33: =IMDIV(1, IMSUM( IMDIV(1, N33), IMPRODUCT(B33,'Design the AEF circuit'!$G$16*0.000000000001))) -> 0.0000583787317763654+0.278434156604989j | P33: =IMSUM(IMDIV(1,IMSUM(IMDIV(1,IMPRODUCT(B33,'Design the AEF circuit'!$H$14*0.001)),IMDIV(1,'Design the AEF circuit'!$H$15*1000))), IMDIV(1,IMSUM(IMDIV(1,IMPRODUCT(B33,'Design the AEF circuit'!$H$17*0.001)),IMDIV(1,'Design the AEF circuit'!$H$18*1000))), IMDIV(1,IMSUM(IMDIV(1,IMPRODUCT(B33,'Design the AEF circuit'!$H$19*0.001)),IMDIV(1,'Design the AEF circuit'!$H$20*1000))) ) -> 0.0000107189764312164+0.389175032848593j | Q33: =IMDIV(1, IMSUM( IMDIV(1, P33), IMPRODUCT(B33,'Design the AEF circuit'!$H$16*0.000000000001) ) ) -> 0.0000107189764391358+0.389175032992358j
A34: ='Frequency vector'!G34 -> 12.68625198 | B34: =COMPLEX(0,2*PI()*'Frequency vector'!G34,"j") -> 79.7100720504022j | C34: =IF(IF(CMdata=1,IMABS(K34),'CM choke'!C38)=0, C33, IF(CMdata=1,IMABS(K34),'CM choke'!C38)) -> 0.2805794461 | D34: =IF(IF(CMdata=1,DEGREES(IMARGUMENT(K34)),'CM choke'!D38)=0, D33, IF(CMdata=1,DEGREES(IMARGUMENT(K34)),'CM choke'!D38)) -> 89.98789435 | E34: =IF(IF(CMdata=1,IMABS(L34),'CM choke'!E38)=0, E33, IF(CMdata=1,IMABS(L34),'CM choke'!E38)) -> 0.350724317 | F34: =IF(IF(CMdata=1,DEGREES(IMARGUMENT(L34)),'CM choke'!F38)=0, F33, IF(CMdata=1,DEGREES(IMARGUMENT(L34)),'CM choke'!F38)) -> 89.99856464 | G34: 5.928179189e-05 | H34: 0.2805794398 | I34: 8.786253325e-06 | J34: 0.3507243169 | K34: =IF(CMdata=1, IF(Lcm1_core=1, IMDIV(1,IMSUM(IMDIV(1,IMPRODUCT(B34,'Design the AEF circuit'!$G$14*0.001)),IMDIV(1,'Design the AEF circuit'!$G$15*1000),IMPRODUCT(B34,'Design the AEF circuit'!$G$16*0.000000000001))), O34),COMPLEX(G34,H34,"j")) -> 0.0000592817918865776+0.280579439820603j | L34: =IF(CMdata=1, IF(Lcm2_core=1, IMDIV(1, IMSUM(IMDIV(1,IMPRODUCT(B34,'Design the AEF circuit'!$H$14*0.001)), IMDIV(1,'Design the AEF circuit'!$H$15*1000), IMPRODUCT(B34,'Design the AEF circuit'!$H$16*0.000000000001))), Q34), COMPLEX(I34,J34,"j")) -> 8.78625332540862E-06+0.350724316919318j | N34: =IMSUM(IMDIV(1,IMSUM(IMDIV(1,IMPRODUCT(B34,'Design the AEF circuit'!$G$14*0.001)),IMDIV(1,'Design the AEF circuit'!$G$15*1000))), IMDIV(1,IMSUM(IMDIV(1,IMPRODUCT(B34,'Design the AEF circuit'!$G$17*0.001)),IMDIV(1,'Design the AEF circuit'!$G$18*1000))), IMDIV(1,IMSUM(IMDIV(1,IMPRODUCT(B34,'Design the AEF circuit'!$G$19*0.001)),IMDIV(1,'Design the AEF circuit'!$G$20*1000))) ) -> 0.0000592817918833958+0.280579439813073j | O34: =IMDIV(1, IMSUM( IMDIV(1, N34), IMPRODUCT(B34,'Design the AEF circuit'!$G$16*0.000000000001))) -> 0.0000592817918865776+0.280579439820603j | P34: =IMSUM(IMDIV(1,IMSUM(IMDIV(1,IMPRODUCT(B34,'Design the AEF circuit'!$H$14*0.001)),IMDIV(1,'Design the AEF circuit'!$H$15*1000))), IMDIV(1,IMSUM(IMDIV(1,IMPRODUCT(B34,'Design the AEF circuit'!$H$17*0.001)),IMDIV(1,'Design the AEF circuit'!$H$18*1000))), IMDIV(1,IMSUM(IMDIV(1,IMPRODUCT(B34,'Design the AEF circuit'!$H$19*0.001)),IMDIV(1,'Design the AEF circuit'!$H$20*1000))) ) -> 0.0000108847881963114+0.39217355413777j | Q34: =IMDIV(1, IMSUM( IMDIV(1, P34), IMPRODUCT(B34,'Design the AEF circuit'!$H$16*0.000000000001) ) ) -> 0.0000108847882044777+0.392173554284883j
A35: ='Frequency vector'!G35 -> 12.78399719 | B35: =COMPLEX(0,2*PI()*'Frequency vector'!G35,"j") -> 80.324223340326j | C35: =IF(IF(CMdata=1,IMABS(K35),'CM choke'!C39)=0, C34, IF(CMdata=1,IMABS(K35),'CM choke'!C39)) -> 0.2827412584 | D35: =IF(IF(CMdata=1,DEGREES(IMARGUMENT(K35)),'CM choke'!D39)=0, D34, IF(CMdata=1,DEGREES(IMARGUMENT(K35)),'CM choke'!D39)) -> 89.98780108 | E35: =IF(IF(CMdata=1,IMABS(L35),'CM choke'!E39)=0, E34, IF(CMdata=1,IMABS(L35),'CM choke'!E39)) -> 0.3534265827 | F35: =IF(IF(CMdata=1,DEGREES(IMARGUMENT(L35)),'CM choke'!F39)=0, F34, IF(CMdata=1,DEGREES(IMARGUMENT(L35)),'CM choke'!F39)) -> 89.99855358 | G35: 6.019882143e-05 | H35: 0.282741252 | I35: 8.922167812e-06 | J35: 0.3534265826 | K35: =IF(CMdata=1, IF(Lcm1_core=1, IMDIV(1,IMSUM(IMDIV(1,IMPRODUCT(B35,'Design the AEF circuit'!$G$14*0.001)),IMDIV(1,'Design the AEF circuit'!$G$15*1000),IMPRODUCT(B35,'Design the AEF circuit'!$G$16*0.000000000001))), O35),COMPLEX(G35,H35,"j")) -> 0.0000601988214252458+0.282741252039765j | L35: =IF(CMdata=1, IF(Lcm2_core=1, IMDIV(1, IMSUM(IMDIV(1,IMPRODUCT(B35,'Design the AEF circuit'!$H$14*0.001)), IMDIV(1,'Design the AEF circuit'!$H$15*1000), IMPRODUCT(B35,'Design the AEF circuit'!$H$16*0.000000000001))), Q35), COMPLEX(I35,J35,"j")) -> 8.92216781162042E-06+0.353426582592596j | N35: =IMSUM(IMDIV(1,IMSUM(IMDIV(1,IMPRODUCT(B35,'Design the AEF circuit'!$G$14*0.001)),IMDIV(1,'Design the AEF circuit'!$G$15*1000))), IMDIV(1,IMSUM(IMDIV(1,IMPRODUCT(B35,'Design the AEF circuit'!$G$17*0.001)),IMDIV(1,'Design the AEF circuit'!$G$18*1000))), IMDIV(1,IMSUM(IMDIV(1,IMPRODUCT(B35,'Design the AEF circuit'!$G$19*0.001)),IMDIV(1,'Design the AEF circuit'!$G$20*1000))) ) -> 0.0000601988214219645+0.282741252032059j | O35: =IMDIV(1, IMSUM( IMDIV(1, N35), IMPRODUCT(B35,'Design the AEF circuit'!$G$16*0.000000000001))) -> 0.0000601988214252458+0.282741252039765j | P35: =IMSUM(IMDIV(1,IMSUM(IMDIV(1,IMPRODUCT(B35,'Design the AEF circuit'!$H$14*0.001)),IMDIV(1,'Design the AEF circuit'!$H$15*1000))), IMDIV(1,IMSUM(IMDIV(1,IMPRODUCT(B35,'Design the AEF circuit'!$H$17*0.001)),IMDIV(1,'Design the AEF circuit'!$H$18*1000))), IMDIV(1,IMSUM(IMDIV(1,IMPRODUCT(B35,'Design the AEF circuit'!$H$19*0.001)),IMDIV(1,'Design the AEF circuit'!$H$20*1000))) ) -> 0.0000110531649023392+0.395195178476036j | Q35: =IMDIV(1, IMSUM( IMDIV(1, P35), IMPRODUCT(B35,'Design the AEF circuit'!$H$16*0.000000000001) ) ) -> 0.0000110531649107601+0.395195178626576j
A36: ='Frequency vector'!G36 -> 12.88249552 | B36: =COMPLEX(0,2*PI()*'Frequency vector'!G36,"j") -> 80.9431065517901j | C36: =IF(IF(CMdata=1,IMABS(K36),'CM choke'!C40)=0, C35, IF(CMdata=1,IMABS(K36),'CM choke'!C40)) -> 0.2849197272 | D36: =IF(IF(CMdata=1,DEGREES(IMARGUMENT(K36)),'CM choke'!D40)=0, D35, IF(CMdata=1,DEGREES(IMARGUMENT(K36)),'CM choke'!D40)) -> 89.98770709 | E36: =IF(IF(CMdata=1,IMABS(L36),'CM choke'!E40)=0, E35, IF(CMdata=1,IMABS(L36),'CM choke'!E40)) -> 0.3561496688 | F36: =IF(IF(CMdata=1,DEGREES(IMARGUMENT(L36)),'CM choke'!F40)=0, F35, IF(CMdata=1,DEGREES(IMARGUMENT(L36)),'CM choke'!F40)) -> 89.99854244 | G36: 6.113003649e-05 | H36: 0.2849197206 | I36: 9.060184758e-06 | J36: 0.3561496687 | K36: =IF(CMdata=1, IF(Lcm1_core=1, IMDIV(1,IMSUM(IMDIV(1,IMPRODUCT(B36,'Design the AEF circuit'!$G$14*0.001)),IMDIV(1,'Design the AEF circuit'!$G$15*1000),IMPRODUCT(B36,'Design the AEF circuit'!$G$16*0.000000000001))), O36),COMPLEX(G36,H36,"j")) -> 0.0000611300364853042+0.284919720615264j | L36: =IF(CMdata=1, IF(Lcm2_core=1, IMDIV(1, IMSUM(IMDIV(1,IMPRODUCT(B36,'Design the AEF circuit'!$H$14*0.001)), IMDIV(1,'Design the AEF circuit'!$H$15*1000), IMPRODUCT(B36,'Design the AEF circuit'!$H$16*0.000000000001))), Q36), COMPLEX(I36,J36,"j")) -> 9.06018475799123E-06+0.356149668720596j | N36: =IMSUM(IMDIV(1,IMSUM(IMDIV(1,IMPRODUCT(B36,'Design the AEF circuit'!$G$14*0.001)),IMDIV(1,'Design the AEF circuit'!$G$15*1000))), IMDIV(1,IMSUM(IMDIV(1,IMPRODUCT(B36,'Design the AEF circuit'!$G$17*0.001)),IMDIV(1,'Design the AEF circuit'!$G$18*1000))), IMDIV(1,IMSUM(IMDIV(1,IMPRODUCT(B36,'Design the AEF circuit'!$G$19*0.001)),IMDIV(1,'Design the AEF circuit'!$G$20*1000))) ) -> 0.0000611300364819208+0.284919720607379j | O36: =IMDIV(1, IMSUM( IMDIV(1, N36), IMPRODUCT(B36,'Design the AEF circuit'!$G$16*0.000000000001))) -> 0.0000611300364853042+0.284919720615264j | P36: =IMSUM(IMDIV(1,IMSUM(IMDIV(1,IMPRODUCT(B36,'Design the AEF circuit'!$H$14*0.001)),IMDIV(1,'Design the AEF circuit'!$H$15*1000))), IMDIV(1,IMSUM(IMDIV(1,IMPRODUCT(B36,'Design the AEF circuit'!$H$17*0.001)),IMDIV(1,'Design the AEF circuit'!$H$18*1000))), IMDIV(1,IMSUM(IMDIV(1,IMPRODUCT(B36,'Design the AEF circuit'!$H$19*0.001)),IMDIV(1,'Design the AEF circuit'!$H$20*1000))) ) -> 0.0000112241462263517+0.398240083868092j | Q36: =IMDIV(1, IMSUM( IMDIV(1, P36), IMPRODUCT(B36,'Design the AEF circuit'!$H$16*0.000000000001) ) ) -> 0.0000112241462350351+0.398240084022139j
A37: ='Frequency vector'!G37 -> 12.98175275 | B37: =COMPLEX(0,2*PI()*'Frequency vector'!G37,"j") -> 81.5667581433706j | C37: =IF(IF(CMdata=1,IMABS(K37),'CM choke'!C41)=0, C36, IF(CMdata=1,IMABS(K37),'CM choke'!C41)) -> 0.2871149806 | D37: =IF(IF(CMdata=1,DEGREES(IMARGUMENT(K37)),'CM choke'!D41)=0, D36, IF(CMdata=1,DEGREES(IMARGUMENT(K37)),'CM choke'!D41)) -> 89.98761237 | E37: =IF(IF(CMdata=1,IMABS(L37),'CM choke'!E41)=0, E36, IF(CMdata=1,IMABS(L37),'CM choke'!E41)) -> 0.3588937358 | F37: =IF(IF(CMdata=1,DEGREES(IMARGUMENT(L37)),'CM choke'!F41)=0, F36, IF(CMdata=1,DEGREES(IMARGUMENT(L37)),'CM choke'!F41)) -> 89.99853121 | G37: 6.20756565e-05 | H37: 0.2871149739 | I37: 9.200336687e-06 | J37: 0.3588937357 | K37: =IF(CMdata=1, IF(Lcm1_core=1, IMDIV(1,IMSUM(IMDIV(1,IMPRODUCT(B37,'Design the AEF circuit'!$G$14*0.001)),IMDIV(1,'Design the AEF circuit'!$G$15*1000),IMPRODUCT(B37,'Design the AEF circuit'!$G$16*0.000000000001))), O37),COMPLEX(G37,H37,"j")) -> 0.000062075656502427+0.287114973881114j | L37: =IF(CMdata=1, IF(Lcm2_core=1, IMDIV(1, IMSUM(IMDIV(1,IMPRODUCT(B37,'Design the AEF circuit'!$H$14*0.001)), IMDIV(1,'Design the AEF circuit'!$H$15*1000), IMPRODUCT(B37,'Design the AEF circuit'!$H$16*0.000000000001))), Q37), COMPLEX(I37,J37,"j")) -> 9.20033668746131E-06+0.358893735721052j | N37: =IMSUM(IMDIV(1,IMSUM(IMDIV(1,IMPRODUCT(B37,'Design the AEF circuit'!$G$14*0.001)),IMDIV(1,'Design the AEF circuit'!$G$15*1000))), IMDIV(1,IMSUM(IMDIV(1,IMPRODUCT(B37,'Design the AEF circuit'!$G$17*0.001)),IMDIV(1,'Design the AEF circuit'!$G$18*1000))), IMDIV(1,IMSUM(IMDIV(1,IMPRODUCT(B37,'Design the AEF circuit'!$G$19*0.001)),IMDIV(1,'Design the AEF circuit'!$G$20*1000))) ) -> 0.0000620756564989379+0.287114973873045j | O37: =IMDIV(1, IMSUM( IMDIV(1, N37), IMPRODUCT(B37,'Design the AEF circuit'!$G$16*0.000000000001))) -> 0.000062075656502427+0.287114973881114j | P37: =IMSUM(IMDIV(1,IMSUM(IMDIV(1,IMPRODUCT(B37,'Design the AEF circuit'!$H$14*0.001)),IMDIV(1,'Design the AEF circuit'!$H$15*1000))), IMDIV(1,IMSUM(IMDIV(1,IMPRODUCT(B37,'Design the AEF circuit'!$H$17*0.001)),IMDIV(1,'Design the AEF circuit'!$H$18*1000))), IMDIV(1,IMSUM(IMDIV(1,IMPRODUCT(B37,'Design the AEF circuit'!$H$19*0.001)),IMDIV(1,'Design the AEF circuit'!$H$20*1000))) ) -> 0.0000113977724591648+0.401308449690127j | Q37: =IMDIV(1, IMSUM( IMDIV(1, P37), IMPRODUCT(B37,'Design the AEF circuit'!$H$16*0.000000000001) ) ) -> 0.0000113977724681189+0.401308449847761j
A38: ='Frequency vector'!G38 -> 13.08177474 | B38: =COMPLEX(0,2*PI()*'Frequency vector'!G38,"j") -> 82.1952148545498j | C38: =IF(IF(CMdata=1,IMABS(K38),'CM choke'!C42)=0, C37, IF(CMdata=1,IMABS(K38),'CM choke'!C42)) -> 0.289327148 | D38: =IF(IF(CMdata=1,DEGREES(IMARGUMENT(K38)),'CM choke'!D42)=0, D37, IF(CMdata=1,DEGREES(IMARGUMENT(K38)),'CM choke'!D42)) -> 89.98751693 | E38: =IF(IF(CMdata=1,IMABS(L38),'CM choke'!E42)=0, E37, IF(CMdata=1,IMABS(L38),'CM choke'!E42)) -> 0.3616589454 | F38: =IF(IF(CMdata=1,DEGREES(IMARGUMENT(L38)),'CM choke'!F42)=0, F37, IF(CMdata=1,DEGREES(IMARGUMENT(L38)),'CM choke'!F42)) -> 89.99851989 | G38: 6.303590431e-05 | H38: 0.2893271412 | I38: 9.342656626e-06 | J38: 0.3616589452 | K38: =IF(CMdata=1, IF(Lcm1_core=1, IMDIV(1,IMSUM(IMDIV(1,IMPRODUCT(B38,'Design the AEF circuit'!$G$14*0.001)),IMDIV(1,'Design the AEF circuit'!$G$15*1000),IMPRODUCT(B38,'Design the AEF circuit'!$G$16*0.000000000001))), O38),COMPLEX(G38,H38,"j")) -> 0.000063035904306733+0.28932714116011j | L38: =IF(CMdata=1, IF(Lcm2_core=1, IMDIV(1, IMSUM(IMDIV(1,IMPRODUCT(B38,'Design the AEF circuit'!$H$14*0.001)), IMDIV(1,'Design the AEF circuit'!$H$15*1000), IMPRODUCT(B38,'Design the AEF circuit'!$H$16*0.000000000001))), Q38), COMPLEX(I38,J38,"j")) -> 9.34265662606794E-06+0.361658945247682j | N38: =IMSUM(IMDIV(1,IMSUM(IMDIV(1,IMPRODUCT(B38,'Design the AEF circuit'!$G$14*0.001)),IMDIV(1,'Design the AEF circuit'!$G$15*1000))), IMDIV(1,IMSUM(IMDIV(1,IMPRODUCT(B38,'Design the AEF circuit'!$G$17*0.001)),IMDIV(1,'Design the AEF circuit'!$G$18*1000))), IMDIV(1,IMSUM(IMDIV(1,IMPRODUCT(B38,'Design the AEF circuit'!$G$19*0.001)),IMDIV(1,'Design the AEF circuit'!$G$20*1000))) ) -> 0.0000630359043031354+0.289327141151854j | O38: =IMDIV(1, IMSUM( IMDIV(1, N38), IMPRODUCT(B38,'Design the AEF circuit'!$G$16*0.000000000001))) -> 0.000063035904306733+0.28932714116011j | P38: =IMSUM(IMDIV(1,IMSUM(IMDIV(1,IMPRODUCT(B38,'Design the AEF circuit'!$H$14*0.001)),IMDIV(1,'Design the AEF circuit'!$H$15*1000))), IMDIV(1,IMSUM(IMDIV(1,IMPRODUCT(B38,'Design the AEF circuit'!$H$17*0.001)),IMDIV(1,'Design the AEF circuit'!$H$18*1000))), IMDIV(1,IMSUM(IMDIV(1,IMPRODUCT(B38,'Design the AEF circuit'!$H$19*0.001)),IMDIV(1,'Design the AEF circuit'!$H$20*1000))) ) -> 0.0000115740845148521+0.404400456700388j | Q38: =IMDIV(1, IMSUM( IMDIV(1, P38), IMPRODUCT(B38,'Design the AEF circuit'!$H$16*0.000000000001) ) ) -> 0.0000115740845240853+0.404400456861693j
A39: ='Frequency vector'!G39 -> 13.18256739 | B39: =COMPLEX(0,2*PI()*'Frequency vector'!G39,"j") -> 82.8285137078813j | C39: =IF(IF(CMdata=1,IMABS(K39),'CM choke'!C43)=0, C38, IF(CMdata=1,IMABS(K39),'CM choke'!C43)) -> 0.2915563598 | D39: =IF(IF(CMdata=1,DEGREES(IMARGUMENT(K39)),'CM choke'!D43)=0, D38, IF(CMdata=1,DEGREES(IMARGUMENT(K39)),'CM choke'!D43)) -> 89.98742075 | E39: =IF(IF(CMdata=1,IMABS(L39),'CM choke'!E43)=0, E38, IF(CMdata=1,IMABS(L39),'CM choke'!E43)) -> 0.3644454603 | F39: =IF(IF(CMdata=1,DEGREES(IMARGUMENT(L39)),'CM choke'!F43)=0, F38, IF(CMdata=1,DEGREES(IMARGUMENT(L39)),'CM choke'!F43)) -> 89.99850849 | G39: 6.401100618e-05 | H39: 0.2915563528 | I39: 9.487178111e-06 | J39: 0.3644454602 | K39: =IF(CMdata=1, IF(Lcm1_core=1, IMDIV(1,IMSUM(IMDIV(1,IMPRODUCT(B39,'Design the AEF circuit'!$G$14*0.001)),IMDIV(1,'Design the AEF circuit'!$G$15*1000),IMPRODUCT(B39,'Design the AEF circuit'!$G$16*0.000000000001))), O39),COMPLEX(G39,H39,"j")) -> 0.0000640110061752996+0.291556352771463j | L39: =IF(CMdata=1, IF(Lcm2_core=1, IMDIV(1, IMSUM(IMDIV(1,IMPRODUCT(B39,'Design the AEF circuit'!$H$14*0.001)), IMDIV(1,'Design the AEF circuit'!$H$15*1000), IMPRODUCT(B39,'Design the AEF circuit'!$H$16*0.000000000001))), Q39), COMPLEX(I39,J39,"j")) -> 9.48717811072826E-06+0.364445460199725j | N39: =IMSUM(IMDIV(1,IMSUM(IMDIV(1,IMPRODUCT(B39,'Design the AEF circuit'!$G$14*0.001)),IMDIV(1,'Design the AEF circuit'!$G$15*1000))), IMDIV(1,IMSUM(IMDIV(1,IMPRODUCT(B39,'Design the AEF circuit'!$G$17*0.001)),IMDIV(1,'Design the AEF circuit'!$G$18*1000))), IMDIV(1,IMSUM(IMDIV(1,IMPRODUCT(B39,'Design the AEF circuit'!$G$19*0.001)),IMDIV(1,'Design the AEF circuit'!$G$20*1000))) ) -> 0.0000640110061715897+0.291556352763014j | O39: =IMDIV(1, IMSUM( IMDIV(1, N39), IMPRODUCT(B39,'Design the AEF circuit'!$G$16*0.000000000001))) -> 0.0000640110061752996+0.291556352771463j | P39: =IMSUM(IMDIV(1,IMSUM(IMDIV(1,IMPRODUCT(B39,'Design the AEF circuit'!$H$14*0.001)),IMDIV(1,'Design the AEF circuit'!$H$15*1000))), IMDIV(1,IMSUM(IMDIV(1,IMPRODUCT(B39,'Design the AEF circuit'!$H$17*0.001)),IMDIV(1,'Design the AEF circuit'!$H$18*1000))), IMDIV(1,IMSUM(IMDIV(1,IMPRODUCT(B39,'Design the AEF circuit'!$H$19*0.001)),IMDIV(1,'Design the AEF circuit'!$H$20*1000))) ) -> 0.0000117531239403874+0.407516287049834j | Q39: =IMDIV(1, IMSUM( IMDIV(1, P39), IMPRODUCT(B39,'Design the AEF circuit'!$H$16*0.000000000001) ) ) -> 0.0000117531239499085+0.407516287214897j
A40: ='Frequency vector'!G40 -> 13.28413662 | B40: =COMPLEX(0,2*PI()*'Frequency vector'!G40,"j") -> 83.4666920111703j | C40: =IF(IF(CMdata=1,IMABS(K40),'CM choke'!C44)=0, C39, IF(CMdata=1,IMABS(K40),'CM choke'!C44)) -> 0.2938027472 | D40: =IF(IF(CMdata=1,DEGREES(IMARGUMENT(K40)),'CM choke'!D44)=0, D39, IF(CMdata=1,DEGREES(IMARGUMENT(K40)),'CM choke'!D44)) -> 89.98732383 | E40: =IF(IF(CMdata=1,IMABS(L40),'CM choke'!E44)=0, E39, IF(CMdata=1,IMABS(L40),'CM choke'!E44)) -> 0.3672534449 | F40: =IF(IF(CMdata=1,DEGREES(IMARGUMENT(L40)),'CM choke'!F44)=0, F39, IF(CMdata=1,DEGREES(IMARGUMENT(L40)),'CM choke'!F44)) -> 89.99849699 | G40: 6.500119189e-05 | H40: 0.29380274 | I40: 9.633935197e-06 | J40: 0.3672534447 | K40: =IF(CMdata=1, IF(Lcm1_core=1, IMDIV(1,IMSUM(IMDIV(1,IMPRODUCT(B40,'Design the AEF circuit'!$G$14*0.001)),IMDIV(1,'Design the AEF circuit'!$G$15*1000),IMPRODUCT(B40,'Design the AEF circuit'!$G$16*0.000000000001))), O40),COMPLEX(G40,H40,"j")) -> 0.0000650011918854791+0.293802740038458j | L40: =IF(CMdata=1, IF(Lcm2_core=1, IMDIV(1, IMSUM(IMDIV(1,IMPRODUCT(B40,'Design the AEF circuit'!$H$14*0.001)), IMDIV(1,'Design the AEF circuit'!$H$15*1000), IMPRODUCT(B40,'Design the AEF circuit'!$H$16*0.000000000001))), Q40), COMPLEX(I40,J40,"j")) -> 9.63393519714141E-06+0.367253444731519j | N40: =IMSUM(IMDIV(1,IMSUM(IMDIV(1,IMPRODUCT(B40,'Design the AEF circuit'!$G$14*0.001)),IMDIV(1,'Design the AEF circuit'!$G$15*1000))), IMDIV(1,IMSUM(IMDIV(1,IMPRODUCT(B40,'Design the AEF circuit'!$G$17*0.001)),IMDIV(1,'Design the AEF circuit'!$G$18*1000))), IMDIV(1,IMSUM(IMDIV(1,IMPRODUCT(B40,'Design the AEF circuit'!$G$19*0.001)),IMDIV(1,'Design the AEF circuit'!$G$20*1000))) ) -> 0.0000650011918816534+0.293802740029812j | O40: =IMDIV(1, IMSUM( IMDIV(1, N40), IMPRODUCT(B40,'Design the AEF circuit'!$G$16*0.000000000001))) -> 0.0000650011918854791+0.293802740038458j | P40: =IMSUM(IMDIV(1,IMSUM(IMDIV(1,IMPRODUCT(B40,'Design the AEF circuit'!$H$14*0.001)),IMDIV(1,'Design the AEF circuit'!$H$15*1000))), IMDIV(1,IMSUM(IMDIV(1,IMPRODUCT(B40,'Design the AEF circuit'!$H$17*0.001)),IMDIV(1,'Design the AEF circuit'!$H$18*1000))), IMDIV(1,IMSUM(IMDIV(1,IMPRODUCT(B40,'Design the AEF circuit'!$H$19*0.001)),IMDIV(1,'Design the AEF circuit'!$H$20*1000))) ) -> 0.0000119349329254339+0.410656124292863j | Q40: =IMDIV(1, IMSUM( IMDIV(1, P40), IMPRODUCT(B40,'Design the AEF circuit'!$H$16*0.000000000001) ) ) -> 0.0000119349329352519+0.410656124461772j
A41: ='Frequency vector'!G41 -> 13.38648842 | B41: =COMPLEX(0,2*PI()*'Frequency vector'!G41,"j") -> 84.1097873596718j | C41: =IF(IF(CMdata=1,IMABS(K41),'CM choke'!C45)=0, C40, IF(CMdata=1,IMABS(K41),'CM choke'!C45)) -> 0.2960664427 | D41: =IF(IF(CMdata=1,DEGREES(IMARGUMENT(K41)),'CM choke'!D45)=0, D40, IF(CMdata=1,DEGREES(IMARGUMENT(K41)),'CM choke'!D45)) -> 89.98722616 | E41: =IF(IF(CMdata=1,IMABS(L41),'CM choke'!E45)=0, E40, IF(CMdata=1,IMABS(L41),'CM choke'!E45)) -> 0.3700830644 | F41: =IF(IF(CMdata=1,DEGREES(IMARGUMENT(L41)),'CM choke'!F45)=0, F40, IF(CMdata=1,DEGREES(IMARGUMENT(L41)),'CM choke'!F45)) -> 89.99848541 | G41: 6.600669477e-05 | H41: 0.2960664353 | I41: 9.782962468e-06 | J41: 0.3700830643 | K41: =IF(CMdata=1, IF(Lcm1_core=1, IMDIV(1,IMSUM(IMDIV(1,IMPRODUCT(B41,'Design the AEF circuit'!$G$14*0.001)),IMDIV(1,'Design the AEF circuit'!$G$15*1000),IMPRODUCT(B41,'Design the AEF circuit'!$G$16*0.000000000001))), O41),COMPLEX(G41,H41,"j")) -> 0.0000660066947690462+0.296066435296203j | L41: =IF(CMdata=1, IF(Lcm2_core=1, IMDIV(1, IMSUM(IMDIV(1,IMPRODUCT(B41,'Design the AEF circuit'!$H$14*0.001)), IMDIV(1,'Design the AEF circuit'!$H$15*1000), IMPRODUCT(B41,'Design the AEF circuit'!$H$16*0.000000000001))), Q41), COMPLEX(I41,J41,"j")) -> 9.78296246781399E-06+0.370083064262186j | N41: =IMSUM(IMDIV(1,IMSUM(IMDIV(1,IMPRODUCT(B41,'Design the AEF circuit'!$G$14*0.001)),IMDIV(1,'Design the AEF circuit'!$G$15*1000))), IMDIV(1,IMSUM(IMDIV(1,IMPRODUCT(B41,'Design the AEF circuit'!$G$17*0.001)),IMDIV(1,'Design the AEF circuit'!$G$18*1000))), IMDIV(1,IMSUM(IMDIV(1,IMPRODUCT(B41,'Design the AEF circuit'!$G$19*0.001)),IMDIV(1,'Design the AEF circuit'!$G$20*1000))) ) -> 0.0000660066947651013+0.296066435287356j | O41: =IMDIV(1, IMSUM( IMDIV(1, N41), IMPRODUCT(B41,'Design the AEF circuit'!$G$16*0.000000000001))) -> 0.0000660066947690462+0.296066435296203j | P41: =IMSUM(IMDIV(1,IMSUM(IMDIV(1,IMPRODUCT(B41,'Design the AEF circuit'!$H$14*0.001)),IMDIV(1,'Design the AEF circuit'!$H$15*1000))), IMDIV(1,IMSUM(IMDIV(1,IMPRODUCT(B41,'Design the AEF circuit'!$H$17*0.001)),IMDIV(1,'Design the AEF circuit'!$H$18*1000))), IMDIV(1,IMSUM(IMDIV(1,IMPRODUCT(B41,'Design the AEF circuit'!$H$19*0.001)),IMDIV(1,'Design the AEF circuit'!$H$20*1000))) ) -> 0.0000121195543122864+0.413820153398126j | Q41: =IMDIV(1, IMSUM( IMDIV(1, P41), IMPRODUCT(B41,'Design the AEF circuit'!$H$16*0.000000000001) ) ) -> 0.0000121195543224105+0.413820153570969j
A42: ='Frequency vector'!G42 -> 13.48962883 | B42: =COMPLEX(0,2*PI()*'Frequency vector'!G42,"j") -> 84.7578376383053j | C42: =IF(IF(CMdata=1,IMABS(K42),'CM choke'!C46)=0, C41, IF(CMdata=1,IMABS(K42),'CM choke'!C46)) -> 0.2983475794 | D42: =IF(IF(CMdata=1,DEGREES(IMARGUMENT(K42)),'CM choke'!D46)=0, D41, IF(CMdata=1,DEGREES(IMARGUMENT(K42)),'CM choke'!D46)) -> 89.98712774 | E42: =IF(IF(CMdata=1,IMABS(L42),'CM choke'!E46)=0, E41, IF(CMdata=1,IMABS(L42),'CM choke'!E46)) -> 0.3729344856 | F42: =IF(IF(CMdata=1,DEGREES(IMARGUMENT(L42)),'CM choke'!F46)=0, F41, IF(CMdata=1,DEGREES(IMARGUMENT(L42)),'CM choke'!F46)) -> 89.99847374 | G42: 6.702775177e-05 | H42: 0.2983475719 | I42: 9.93429504e-06 | J42: 0.3729344855 | K42: =IF(CMdata=1, IF(Lcm1_core=1, IMDIV(1,IMSUM(IMDIV(1,IMPRODUCT(B42,'Design the AEF circuit'!$G$14*0.001)),IMDIV(1,'Design the AEF circuit'!$G$15*1000),IMPRODUCT(B42,'Design the AEF circuit'!$G$16*0.000000000001))), O42),COMPLEX(G42,H42,"j")) -> 0.0000670277517671827+0.298347571899417j | L42: =IF(CMdata=1, IF(Lcm2_core=1, IMDIV(1, IMSUM(IMDIV(1,IMPRODUCT(B42,'Design the AEF circuit'!$H$14*0.001)), IMDIV(1,'Design the AEF circuit'!$H$15*1000), IMPRODUCT(B42,'Design the AEF circuit'!$H$16*0.000000000001))), Q42), COMPLEX(I42,J42,"j")) -> 9.93429504020902E-06+0.372934485485368j | N42: =IMSUM(IMDIV(1,IMSUM(IMDIV(1,IMPRODUCT(B42,'Design the AEF circuit'!$G$14*0.001)),IMDIV(1,'Design the AEF circuit'!$G$15*1000))), IMDIV(1,IMSUM(IMDIV(1,IMPRODUCT(B42,'Design the AEF circuit'!$G$17*0.001)),IMDIV(1,'Design the AEF circuit'!$G$18*1000))), IMDIV(1,IMSUM(IMDIV(1,IMPRODUCT(B42,'Design the AEF circuit'!$G$19*0.001)),IMDIV(1,'Design the AEF circuit'!$G$20*1000))) ) -> 0.000067027751763115+0.298347571890364j | O42: =IMDIV(1, IMSUM( IMDIV(1, N42), IMPRODUCT(B42,'Design the AEF circuit'!$G$16*0.000000000001))) -> 0.0000670277517671827+0.298347571899417j | P42: =IMSUM(IMDIV(1,IMSUM(IMDIV(1,IMPRODUCT(B42,'Design the AEF circuit'!$H$14*0.001)),IMDIV(1,'Design the AEF circuit'!$H$15*1000))), IMDIV(1,IMSUM(IMDIV(1,IMPRODUCT(B42,'Design the AEF circuit'!$H$17*0.001)),IMDIV(1,'Design the AEF circuit'!$H$18*1000))), IMDIV(1,IMSUM(IMDIV(1,IMPRODUCT(B42,'Design the AEF circuit'!$H$19*0.001)),IMDIV(1,'Design the AEF circuit'!$H$20*1000))) ) -> 0.0000123070316059669+0.417008560759417j | Q42: =IMDIV(1, IMSUM( IMDIV(1, P42), IMPRODUCT(B42,'Design the AEF circuit'!$H$16*0.000000000001) ) ) -> 0.0000123070316164066+0.417008560936285j
A43: ='Frequency vector'!G43 -> 13.59356391 | B43: =COMPLEX(0,2*PI()*'Frequency vector'!G43,"j") -> 85.4108810238866j | C43: =IF(IF(CMdata=1,IMABS(K43),'CM choke'!C47)=0, C42, IF(CMdata=1,IMABS(K43),'CM choke'!C47)) -> 0.3006462919 | D43: =IF(IF(CMdata=1,DEGREES(IMARGUMENT(K43)),'CM choke'!D47)=0, D42, IF(CMdata=1,DEGREES(IMARGUMENT(K43)),'CM choke'!D47)) -> 89.98702856 | E43: =IF(IF(CMdata=1,IMABS(L43),'CM choke'!E47)=0, E42, IF(CMdata=1,IMABS(L43),'CM choke'!E47)) -> 0.3758078765 | F43: =IF(IF(CMdata=1,DEGREES(IMARGUMENT(L43)),'CM choke'!F47)=0, F42, IF(CMdata=1,DEGREES(IMARGUMENT(L43)),'CM choke'!F47)) -> 89.99846199 | G43: 6.806460349e-05 | H43: 0.3006462842 | I43: 1.008796857e-05 | J43: 0.3758078764 | K43: =IF(CMdata=1, IF(Lcm1_core=1, IMDIV(1,IMSUM(IMDIV(1,IMPRODUCT(B43,'Design the AEF circuit'!$G$14*0.001)),IMDIV(1,'Design the AEF circuit'!$G$15*1000),IMPRODUCT(B43,'Design the AEF circuit'!$G$16*0.000000000001))), O43),COMPLEX(G43,H43,"j")) -> 0.0000680646034863085+0.300646284230293j | L43: =IF(CMdata=1, IF(Lcm2_core=1, IMDIV(1, IMSUM(IMDIV(1,IMPRODUCT(B43,'Design the AEF circuit'!$H$14*0.001)), IMDIV(1,'Design the AEF circuit'!$H$15*1000), IMPRODUCT(B43,'Design the AEF circuit'!$H$16*0.000000000001))), Q43), COMPLEX(I43,J43,"j")) -> 0.0000100879685750217+0.375807876379058j | N43: =IMSUM(IMDIV(1,IMSUM(IMDIV(1,IMPRODUCT(B43,'Design the AEF circuit'!$G$14*0.001)),IMDIV(1,'Design the AEF circuit'!$G$15*1000))), IMDIV(1,IMSUM(IMDIV(1,IMPRODUCT(B43,'Design the AEF circuit'!$G$17*0.001)),IMDIV(1,'Design the AEF circuit'!$G$18*1000))), IMDIV(1,IMSUM(IMDIV(1,IMPRODUCT(B43,'Design the AEF circuit'!$G$19*0.001)),IMDIV(1,'Design the AEF circuit'!$G$20*1000))) ) -> 0.000068064603482114+0.300646284221029j | O43: =IMDIV(1, IMSUM( IMDIV(1, N43), IMPRODUCT(B43,'Design the AEF circuit'!$G$16*0.000000000001))) -> 0.0000680646034863085+0.300646284230293j | P43: =IMSUM(IMDIV(1,IMSUM(IMDIV(1,IMPRODUCT(B43,'Design the AEF circuit'!$H$14*0.001)),IMDIV(1,'Design the AEF circuit'!$H$15*1000))), IMDIV(1,IMSUM(IMDIV(1,IMPRODUCT(B43,'Design the AEF circuit'!$H$17*0.001)),IMDIV(1,'Design the AEF circuit'!$H$18*1000))), IMDIV(1,IMSUM(IMDIV(1,IMPRODUCT(B43,'Design the AEF circuit'!$H$19*0.001)),IMDIV(1,'Design the AEF circuit'!$H$20*1000))) ) -> 0.0000124974089844765+0.42022153420667j | Q43: =IMDIV(1, IMSUM( IMDIV(1, P43), IMPRODUCT(B43,'Design the AEF circuit'!$H$16*0.000000000001) ) ) -> 0.0000124974089952417+0.420221534387658j
A44: ='Frequency vector'!G44 -> 13.69829979 | B44: =COMPLEX(0,2*PI()*'Frequency vector'!G44,"j") -> 86.0689559873765j | C44: =IF(IF(CMdata=1,IMABS(K44),'CM choke'!C48)=0, C43, IF(CMdata=1,IMABS(K44),'CM choke'!C48)) -> 0.3029627156 | D44: =IF(IF(CMdata=1,DEGREES(IMARGUMENT(K44)),'CM choke'!D48)=0, D43, IF(CMdata=1,DEGREES(IMARGUMENT(K44)),'CM choke'!D48)) -> 89.98692862 | E44: =IF(IF(CMdata=1,IMABS(L44),'CM choke'!E48)=0, E43, IF(CMdata=1,IMABS(L44),'CM choke'!E48)) -> 0.3787034064 | F44: =IF(IF(CMdata=1,DEGREES(IMARGUMENT(L44)),'CM choke'!F48)=0, F43, IF(CMdata=1,DEGREES(IMARGUMENT(L44)),'CM choke'!F48)) -> 89.99845014 | G44: 6.911749425e-05 | H44: 0.3029627077 | I44: 1.024401928e-05 | J44: 0.3787034062 | K44: =IF(CMdata=1, IF(Lcm1_core=1, IMDIV(1,IMSUM(IMDIV(1,IMPRODUCT(B44,'Design the AEF circuit'!$G$14*0.001)),IMDIV(1,'Design the AEF circuit'!$G$15*1000),IMPRODUCT(B44,'Design the AEF circuit'!$G$16*0.000000000001))), O44),COMPLEX(G44,H44,"j")) -> 0.0000691174942547811+0.302962707706406j | L44: =IF(CMdata=1, IF(Lcm2_core=1, IMDIV(1, IMSUM(IMDIV(1,IMPRODUCT(B44,'Design the AEF circuit'!$H$14*0.001)), IMDIV(1,'Design the AEF circuit'!$H$15*1000), IMPRODUCT(B44,'Design the AEF circuit'!$H$16*0.000000000001))), Q44), COMPLEX(I44,J44,"j")) -> 0.0000102440192845818+0.378703406215478j | N44: =IMSUM(IMDIV(1,IMSUM(IMDIV(1,IMPRODUCT(B44,'Design the AEF circuit'!$G$14*0.001)),IMDIV(1,'Design the AEF circuit'!$G$15*1000))), IMDIV(1,IMSUM(IMDIV(1,IMPRODUCT(B44,'Design the AEF circuit'!$G$17*0.001)),IMDIV(1,'Design the AEF circuit'!$G$18*1000))), IMDIV(1,IMSUM(IMDIV(1,IMPRODUCT(B44,'Design the AEF circuit'!$G$19*0.001)),IMDIV(1,'Design the AEF circuit'!$G$20*1000))) ) -> 0.0000691174942504556+0.302962707696926j | O44: =IMDIV(1, IMSUM( IMDIV(1, N44), IMPRODUCT(B44,'Design the AEF circuit'!$G$16*0.000000000001))) -> 0.0000691174942547811+0.302962707706406j | P44: =IMSUM(IMDIV(1,IMSUM(IMDIV(1,IMPRODUCT(B44,'Design the AEF circuit'!$H$14*0.001)),IMDIV(1,'Design the AEF circuit'!$H$15*1000))), IMDIV(1,IMSUM(IMDIV(1,IMPRODUCT(B44,'Design the AEF circuit'!$H$17*0.001)),IMDIV(1,'Design the AEF circuit'!$H$18*1000))), IMDIV(1,IMSUM(IMDIV(1,IMPRODUCT(B44,'Design the AEF circuit'!$H$19*0.001)),IMDIV(1,'Design the AEF circuit'!$H$20*1000))) ) -> 0.0000126907313092051+0.423459263017004j | Q44: =IMDIV(1, IMSUM( IMDIV(1, P44), IMPRODUCT(B44,'Design the AEF circuit'!$H$16*0.000000000001) ) ) -> 0.0000126907313203059+0.423459263202208j
A45: ='Frequency vector'!G45 -> 13.80384265 | B45: =COMPLEX(0,2*PI()*'Frequency vector'!G45,"j") -> 86.7321012961478j | C45: =IF(IF(CMdata=1,IMABS(K45),'CM choke'!C49)=0, C44, IF(CMdata=1,IMABS(K45),'CM choke'!C49)) -> 0.3052969869 | D45: =IF(IF(CMdata=1,DEGREES(IMARGUMENT(K45)),'CM choke'!D49)=0, D44, IF(CMdata=1,DEGREES(IMARGUMENT(K45)),'CM choke'!D49)) -> 89.98682791 | E45: =IF(IF(CMdata=1,IMABS(L45),'CM choke'!E49)=0, E44, IF(CMdata=1,IMABS(L45),'CM choke'!E49)) -> 0.3816212457 | F45: =IF(IF(CMdata=1,DEGREES(IMARGUMENT(L45)),'CM choke'!F49)=0, F44, IF(CMdata=1,DEGREES(IMARGUMENT(L45)),'CM choke'!F49)) -> 89.99843819 | G45: 7.018667218e-05 | H45: 0.3052969788 | I45: 1.040248394e-05 | J45: 0.3816212456 | K45: =IF(CMdata=1, IF(Lcm1_core=1, IMDIV(1,IMSUM(IMDIV(1,IMPRODUCT(B45,'Design the AEF circuit'!$G$14*0.001)),IMDIV(1,'Design the AEF circuit'!$G$15*1000),IMPRODUCT(B45,'Design the AEF circuit'!$G$16*0.000000000001))), O45),COMPLEX(G45,H45,"j")) -> 0.0000701866721804703+0.305296978788702j | L45: =IF(CMdata=1, IF(Lcm2_core=1, IMDIV(1, IMSUM(IMDIV(1,IMPRODUCT(B45,'Design the AEF circuit'!$H$14*0.001)), IMDIV(1,'Design the AEF circuit'!$H$15*1000), IMPRODUCT(B45,'Design the AEF circuit'!$H$16*0.000000000001))), Q45), COMPLEX(I45,J45,"j")) -> 0.0000104024839413874+0.381621245571067j | N45: =IMSUM(IMDIV(1,IMSUM(IMDIV(1,IMPRODUCT(B45,'Design the AEF circuit'!$G$14*0.001)),IMDIV(1,'Design the AEF circuit'!$G$15*1000))), IMDIV(1,IMSUM(IMDIV(1,IMPRODUCT(B45,'Design the AEF circuit'!$G$17*0.001)),IMDIV(1,'Design the AEF circuit'!$G$18*1000))), IMDIV(1,IMSUM(IMDIV(1,IMPRODUCT(B45,'Design the AEF circuit'!$G$19*0.001)),IMDIV(1,'Design the AEF circuit'!$G$20*1000))) ) -> 0.0000701866721760099+0.305296978779001j | O45: =IMDIV(1, IMSUM( IMDIV(1, N45), IMPRODUCT(B45,'Design the AEF circuit'!$G$16*0.000000000001))) -> 0.0000701866721804703+0.305296978788702j | P45: =IMSUM(IMDIV(1,IMSUM(IMDIV(1,IMPRODUCT(B45,'Design the AEF circuit'!$H$14*0.001)),IMDIV(1,'Design the AEF circuit'!$H$15*1000))), IMDIV(1,IMSUM(IMDIV(1,IMPRODUCT(B45,'Design the AEF circuit'!$H$17*0.001)),IMDIV(1,'Design the AEF circuit'!$H$18*1000))), IMDIV(1,IMSUM(IMDIV(1,IMPRODUCT(B45,'Design the AEF circuit'!$H$19*0.001)),IMDIV(1,'Design the AEF circuit'!$H$20*1000))) ) -> 0.0000128870441355031+0.426721937925889j | Q45: =IMDIV(1, IMSUM( IMDIV(1, P45), IMPRODUCT(B45,'Design the AEF circuit'!$H$16*0.000000000001) ) ) -> 0.0000128870441469501+0.426721938115408j
A46: ='Frequency vector'!G46 -> 13.91019869 | B46: =COMPLEX(0,2*PI()*'Frequency vector'!G46,"j") -> 87.4003560162684j | C46: =IF(IF(CMdata=1,IMABS(K46),'CM choke'!C50)=0, C45, IF(CMdata=1,IMABS(K46),'CM choke'!C50)) -> 0.3076492432 | D46: =IF(IF(CMdata=1,DEGREES(IMARGUMENT(K46)),'CM choke'!D50)=0, D45, IF(CMdata=1,DEGREES(IMARGUMENT(K46)),'CM choke'!D50)) -> 89.98672642 | E46: =IF(IF(CMdata=1,IMABS(L46),'CM choke'!E50)=0, E45, IF(CMdata=1,IMABS(L46),'CM choke'!E50)) -> 0.3845615665 | F46: =IF(IF(CMdata=1,DEGREES(IMARGUMENT(L46)),'CM choke'!F50)=0, F45, IF(CMdata=1,DEGREES(IMARGUMENT(L46)),'CM choke'!F50)) -> 89.99842616 | G46: 7.127238921e-05 | H46: 0.307649235 | I46: 1.056339989e-05 | J46: 0.3845615663 | K46: =IF(CMdata=1, IF(Lcm1_core=1, IMDIV(1,IMSUM(IMDIV(1,IMPRODUCT(B46,'Design the AEF circuit'!$G$14*0.001)),IMDIV(1,'Design the AEF circuit'!$G$15*1000),IMPRODUCT(B46,'Design the AEF circuit'!$G$16*0.000000000001))), O46),COMPLEX(G46,H46,"j")) -> 0.0000712723892092208+0.307649234989522j | L46: =IF(CMdata=1, IF(Lcm2_core=1, IMDIV(1, IMSUM(IMDIV(1,IMPRODUCT(B46,'Design the AEF circuit'!$H$14*0.001)), IMDIV(1,'Design the AEF circuit'!$H$15*1000), IMPRODUCT(B46,'Design the AEF circuit'!$H$16*0.000000000001))), Q46), COMPLEX(I46,J46,"j")) -> 0.0000105633998867704+0.384561566336523j | N46: =IMSUM(IMDIV(1,IMSUM(IMDIV(1,IMPRODUCT(B46,'Design the AEF circuit'!$G$14*0.001)),IMDIV(1,'Design the AEF circuit'!$G$15*1000))), IMDIV(1,IMSUM(IMDIV(1,IMPRODUCT(B46,'Design the AEF circuit'!$G$17*0.001)),IMDIV(1,'Design the AEF circuit'!$G$18*1000))), IMDIV(1,IMSUM(IMDIV(1,IMPRODUCT(B46,'Design the AEF circuit'!$G$19*0.001)),IMDIV(1,'Design the AEF circuit'!$G$20*1000))) ) -> 0.0000712723892046215+0.307649234979596j | O46: =IMDIV(1, IMSUM( IMDIV(1, N46), IMPRODUCT(B46,'Design the AEF circuit'!$G$16*0.000000000001))) -> 0.0000712723892092208+0.307649234989522j | P46: =IMSUM(IMDIV(1,IMSUM(IMDIV(1,IMPRODUCT(B46,'Design the AEF circuit'!$H$14*0.001)),IMDIV(1,'Design the AEF circuit'!$H$15*1000))), IMDIV(1,IMSUM(IMDIV(1,IMPRODUCT(B46,'Design the AEF circuit'!$H$17*0.001)),IMDIV(1,'Design the AEF circuit'!$H$18*1000))), IMDIV(1,IMSUM(IMDIV(1,IMPRODUCT(B46,'Design the AEF circuit'!$H$19*0.001)),IMDIV(1,'Design the AEF circuit'!$H$20*1000))) ) -> 0.0000130863937234165+0.430009751138375j | Q46: =IMDIV(1, IMSUM( IMDIV(1, P46), IMPRODUCT(B46,'Design the AEF circuit'!$H$16*0.000000000001) ) ) -> 0.0000130863937352202+0.430009751332306j
A47: ='Frequency vector'!G47 -> 14.01737418 | B47: =COMPLEX(0,2*PI()*'Frequency vector'!G47,"j") -> 88.0737595148031j | C47: =IF(IF(CMdata=1,IMABS(K47),'CM choke'!C51)=0, C46, IF(CMdata=1,IMABS(K47),'CM choke'!C51)) -> 0.3100196233 | D47: =IF(IF(CMdata=1,DEGREES(IMARGUMENT(K47)),'CM choke'!D51)=0, D46, IF(CMdata=1,DEGREES(IMARGUMENT(K47)),'CM choke'!D51)) -> 89.98662415 | E47: =IF(IF(CMdata=1,IMABS(L47),'CM choke'!E51)=0, E46, IF(CMdata=1,IMABS(L47),'CM choke'!E51)) -> 0.3875245419 | F47: =IF(IF(CMdata=1,DEGREES(IMARGUMENT(L47)),'CM choke'!F51)=0, F46, IF(CMdata=1,DEGREES(IMARGUMENT(L47)),'CM choke'!F51)) -> 89.99841403 | G47: 7.237490118e-05 | H47: 0.3100196149 | I47: 1.072680504e-05 | J47: 0.3875245417 | K47: =IF(CMdata=1, IF(Lcm1_core=1, IMDIV(1,IMSUM(IMDIV(1,IMPRODUCT(B47,'Design the AEF circuit'!$G$14*0.001)),IMDIV(1,'Design the AEF circuit'!$G$15*1000),IMPRODUCT(B47,'Design the AEF circuit'!$G$16*0.000000000001))), O47),COMPLEX(G47,H47,"j")) -> 0.0000723749011842255+0.310019614880719j | L47: =IF(CMdata=1, IF(Lcm2_core=1, IMDIV(1, IMSUM(IMDIV(1,IMPRODUCT(B47,'Design the AEF circuit'!$H$14*0.001)), IMDIV(1,'Design the AEF circuit'!$H$15*1000), IMPRODUCT(B47,'Design the AEF circuit'!$H$16*0.000000000001))), Q47), COMPLEX(I47,J47,"j")) -> 0.0000107268050396951+0.387524541726931j | N47: =IMSUM(IMDIV(1,IMSUM(IMDIV(1,IMPRODUCT(B47,'Design the AEF circuit'!$G$14*0.001)),IMDIV(1,'Design the AEF circuit'!$G$15*1000))), IMDIV(1,IMSUM(IMDIV(1,IMPRODUCT(B47,'Design the AEF circuit'!$G$17*0.001)),IMDIV(1,'Design the AEF circuit'!$G$18*1000))), IMDIV(1,IMSUM(IMDIV(1,IMPRODUCT(B47,'Design the AEF circuit'!$G$19*0.001)),IMDIV(1,'Design the AEF circuit'!$G$20*1000))) ) -> 0.0000723749011794827+0.310019614870561j | O47: =IMDIV(1, IMSUM( IMDIV(1, N47), IMPRODUCT(B47,'Design the AEF circuit'!$G$16*0.000000000001))) -> 0.0000723749011842255+0.310019614880719j | P47: =IMSUM(IMDIV(1,IMSUM(IMDIV(1,IMPRODUCT(B47,'Design the AEF circuit'!$H$14*0.001)),IMDIV(1,'Design the AEF circuit'!$H$15*1000))), IMDIV(1,IMSUM(IMDIV(1,IMPRODUCT(B47,'Design the AEF circuit'!$H$17*0.001)),IMDIV(1,'Design the AEF circuit'!$H$18*1000))), IMDIV(1,IMSUM(IMDIV(1,IMPRODUCT(B47,'Design the AEF circuit'!$H$19*0.001)),IMDIV(1,'Design the AEF circuit'!$H$20*1000))) ) -> 0.0000132888270485873+0.433322896340411j | Q47: =IMDIV(1, IMSUM( IMDIV(1, P47), IMPRODUCT(B47,'Design the AEF circuit'!$H$16*0.000000000001) ) ) -> 0.0000132888270607592+0.433322896538863j
A48: ='Frequency vector'!G48 -> 14.12537545 | B48: =COMPLEX(0,2*PI()*'Frequency vector'!G48,"j") -> 88.7523514621326j | C48: =IF(IF(CMdata=1,IMABS(K48),'CM choke'!C52)=0, C47, IF(CMdata=1,IMABS(K48),'CM choke'!C52)) -> 0.3124082667 | D48: =IF(IF(CMdata=1,DEGREES(IMARGUMENT(K48)),'CM choke'!D52)=0, D47, IF(CMdata=1,DEGREES(IMARGUMENT(K48)),'CM choke'!D52)) -> 89.98652109 | E48: =IF(IF(CMdata=1,IMABS(L48),'CM choke'!E52)=0, E47, IF(CMdata=1,IMABS(L48),'CM choke'!E52)) -> 0.3905103464 | F48: =IF(IF(CMdata=1,DEGREES(IMARGUMENT(L48)),'CM choke'!F52)=0, F47, IF(CMdata=1,DEGREES(IMARGUMENT(L48)),'CM choke'!F52)) -> 89.99840181 | G48: 7.349446791e-05 | H48: 0.3124082581 | I48: 1.089273791e-05 | J48: 0.3905103463 | K48: =IF(CMdata=1, IF(Lcm1_core=1, IMDIV(1,IMSUM(IMDIV(1,IMPRODUCT(B48,'Design the AEF circuit'!$G$14*0.001)),IMDIV(1,'Design the AEF circuit'!$G$15*1000),IMPRODUCT(B48,'Design the AEF circuit'!$G$16*0.000000000001))), O48),COMPLEX(G48,H48,"j")) -> 0.0000734944679063103+0.312408258101803j | L48: =IF(CMdata=1, IF(Lcm2_core=1, IMDIV(1, IMSUM(IMDIV(1,IMPRODUCT(B48,'Design the AEF circuit'!$H$14*0.001)), IMDIV(1,'Design the AEF circuit'!$H$15*1000), IMPRODUCT(B48,'Design the AEF circuit'!$H$16*0.000000000001))), Q48), COMPLEX(I48,J48,"j")) -> 0.0000108927379056942+0.390510346291961j | N48: =IMSUM(IMDIV(1,IMSUM(IMDIV(1,IMPRODUCT(B48,'Design the AEF circuit'!$G$14*0.001)),IMDIV(1,'Design the AEF circuit'!$G$15*1000))), IMDIV(1,IMSUM(IMDIV(1,IMPRODUCT(B48,'Design the AEF circuit'!$G$17*0.001)),IMDIV(1,'Design the AEF circuit'!$G$18*1000))), IMDIV(1,IMSUM(IMDIV(1,IMPRODUCT(B48,'Design the AEF circuit'!$G$19*0.001)),IMDIV(1,'Design the AEF circuit'!$G$20*1000))) ) -> 0.0000734944679014199+0.312408258091409j | O48: =IMDIV(1, IMSUM( IMDIV(1, N48), IMPRODUCT(B48,'Design the AEF circuit'!$G$16*0.000000000001))) -> 0.0000734944679063103+0.312408258101803j | P48: =IMSUM(IMDIV(1,IMSUM(IMDIV(1,IMPRODUCT(B48,'Design the AEF circuit'!$H$14*0.001)),IMDIV(1,'Design the AEF circuit'!$H$15*1000))), IMDIV(1,IMSUM(IMDIV(1,IMPRODUCT(B48,'Design the AEF circuit'!$H$17*0.001)),IMDIV(1,'Design the AEF circuit'!$H$18*1000))), IMDIV(1,IMSUM(IMDIV(1,IMPRODUCT(B48,'Design the AEF circuit'!$H$19*0.001)),IMDIV(1,'Design the AEF circuit'!$H$20*1000))) ) -> 0.0000134943918133236+0.436661568710269j | Q48: =IMDIV(1, IMSUM( IMDIV(1, P48), IMPRODUCT(B48,'Design the AEF circuit'!$H$16*0.000000000001) ) ) -> 0.0000134943918258749+0.436661568913342j
A49: ='Frequency vector'!G49 -> 14.23420884 | B49: =COMPLEX(0,2*PI()*'Frequency vector'!G49,"j") -> 89.4361718342905j | C49: =IF(IF(CMdata=1,IMABS(K49),'CM choke'!C53)=0, C48, IF(CMdata=1,IMABS(K49),'CM choke'!C53)) -> 0.3148153142 | D49: =IF(IF(CMdata=1,DEGREES(IMARGUMENT(K49)),'CM choke'!D53)=0, D48, IF(CMdata=1,DEGREES(IMARGUMENT(K49)),'CM choke'!D53)) -> 89.98641724 | E49: =IF(IF(CMdata=1,IMABS(L49),'CM choke'!E53)=0, E48, IF(CMdata=1,IMABS(L49),'CM choke'!E53)) -> 0.3935191561 | F49: =IF(IF(CMdata=1,DEGREES(IMARGUMENT(L49)),'CM choke'!F53)=0, F48, IF(CMdata=1,DEGREES(IMARGUMENT(L49)),'CM choke'!F53)) -> 89.9983895 | G49: 7.46313532e-05 | H49: 0.3148153054 | I49: 1.106123759e-05 | J49: 0.3935191559 | K49: =IF(CMdata=1, IF(Lcm1_core=1, IMDIV(1,IMSUM(IMDIV(1,IMPRODUCT(B49,'Design the AEF circuit'!$G$14*0.001)),IMDIV(1,'Design the AEF circuit'!$G$15*1000),IMPRODUCT(B49,'Design the AEF circuit'!$G$16*0.000000000001))), O49),COMPLEX(G49,H49,"j")) -> 0.000074631353195157+0.314815305368186j | L49: =IF(CMdata=1, IF(Lcm2_core=1, IMDIV(1, IMSUM(IMDIV(1,IMPRODUCT(B49,'Design the AEF circuit'!$H$14*0.001)), IMDIV(1,'Design the AEF circuit'!$H$15*1000), IMPRODUCT(B49,'Design the AEF circuit'!$H$16*0.000000000001))), Q49), COMPLEX(I49,J49,"j")) -> 0.000011061237585942+0.39351915592616j | N49: =IMSUM(IMDIV(1,IMSUM(IMDIV(1,IMPRODUCT(B49,'Design the AEF circuit'!$G$14*0.001)),IMDIV(1,'Design the AEF circuit'!$G$15*1000))), IMDIV(1,IMSUM(IMDIV(1,IMPRODUCT(B49,'Design the AEF circuit'!$G$17*0.001)),IMDIV(1,'Design the AEF circuit'!$G$18*1000))), IMDIV(1,IMSUM(IMDIV(1,IMPRODUCT(B49,'Design the AEF circuit'!$G$19*0.001)),IMDIV(1,'Design the AEF circuit'!$G$20*1000))) ) -> 0.0000746313531901142+0.31481530535755j | O49: =IMDIV(1, IMSUM( IMDIV(1, N49), IMPRODUCT(B49,'Design the AEF circuit'!$G$16*0.000000000001))) -> 0.000074631353195157+0.314815305368186j | P49: =IMSUM(IMDIV(1,IMSUM(IMDIV(1,IMPRODUCT(B49,'Design the AEF circuit'!$H$14*0.001)),IMDIV(1,'Design the AEF circuit'!$H$15*1000))), IMDIV(1,IMSUM(IMDIV(1,IMPRODUCT(B49,'Design the AEF circuit'!$H$17*0.001)),IMDIV(1,'Design the AEF circuit'!$H$18*1000))), IMDIV(1,IMSUM(IMDIV(1,IMPRODUCT(B49,'Design the AEF circuit'!$H$19*0.001)),IMDIV(1,'Design the AEF circuit'!$H$20*1000))) ) -> 0.0000137031364578401+0.440025964930025j | Q49: =IMDIV(1, IMSUM( IMDIV(1, P49), IMPRODUCT(B49,'Design the AEF circuit'!$H$16*0.000000000001) ) ) -> 0.0000137031364707827+0.440025965137827j
A50: ='Frequency vector'!G50 -> 14.34388077 | B50: =COMPLEX(0,2*PI()*'Frequency vector'!G50,"j") -> 90.1252609153184j | C50: =IF(IF(CMdata=1,IMABS(K50),'CM choke'!C54)=0, C49, IF(CMdata=1,IMABS(K50),'CM choke'!C54)) -> 0.3172409075 | D50: =IF(IF(CMdata=1,DEGREES(IMARGUMENT(K50)),'CM choke'!D54)=0, D49, IF(CMdata=1,DEGREES(IMARGUMENT(K50)),'CM choke'!D54)) -> 89.98631258 | E50: =IF(IF(CMdata=1,IMABS(L50),'CM choke'!E54)=0, E49, IF(CMdata=1,IMABS(L50),'CM choke'!E54)) -> 0.396551148 | F50: =IF(IF(CMdata=1,DEGREES(IMARGUMENT(L50)),'CM choke'!F54)=0, F49, IF(CMdata=1,DEGREES(IMARGUMENT(L50)),'CM choke'!F54)) -> 89.99837709 | G50: 7.578582495e-05 | H50: 0.3172408985 | I50: 1.123234379e-05 | J50: 0.3965511479 | K50: =IF(CMdata=1, IF(Lcm1_core=1, IMDIV(1,IMSUM(IMDIV(1,IMPRODUCT(B50,'Design the AEF circuit'!$G$14*0.001)),IMDIV(1,'Design the AEF circuit'!$G$15*1000),IMPRODUCT(B50,'Design the AEF circuit'!$G$16*0.000000000001))), O50),COMPLEX(G50,H50,"j")) -> 0.000075785824951469+0.317240898479459j | L50: =IF(CMdata=1, IF(Lcm2_core=1, IMDIV(1, IMSUM(IMDIV(1,IMPRODUCT(B50,'Design the AEF circuit'!$H$14*0.001)), IMDIV(1,'Design the AEF circuit'!$H$15*1000), IMPRODUCT(B50,'Design the AEF circuit'!$H$16*0.000000000001))), Q50), COMPLEX(I50,J50,"j")) -> 0.000011232343786469+0.396551147879313j | N50: =IMSUM(IMDIV(1,IMSUM(IMDIV(1,IMPRODUCT(B50,'Design the AEF circuit'!$G$14*0.001)),IMDIV(1,'Design the AEF circuit'!$G$15*1000))), IMDIV(1,IMSUM(IMDIV(1,IMPRODUCT(B50,'Design the AEF circuit'!$G$17*0.001)),IMDIV(1,'Design the AEF circuit'!$G$18*1000))), IMDIV(1,IMSUM(IMDIV(1,IMPRODUCT(B50,'Design the AEF circuit'!$G$19*0.001)),IMDIV(1,'Design the AEF circuit'!$G$20*1000))) ) -> 0.0000757858249462685+0.317240898468574j | O50: =IMDIV(1, IMSUM( IMDIV(1, N50), IMPRODUCT(B50,'Design the AEF circuit'!$G$16*0.000000000001))) -> 0.000075785824951469+0.317240898479459j | P50: =IMSUM(IMDIV(1,IMSUM(IMDIV(1,IMPRODUCT(B50,'Design the AEF circuit'!$H$14*0.001)),IMDIV(1,'Design the AEF circuit'!$H$15*1000))), IMDIV(1,IMSUM(IMDIV(1,IMPRODUCT(B50,'Design the AEF circuit'!$H$17*0.001)),IMDIV(1,'Design the AEF circuit'!$H$18*1000))), IMDIV(1,IMSUM(IMDIV(1,IMPRODUCT(B50,'Design the AEF circuit'!$H$19*0.001)),IMDIV(1,'Design the AEF circuit'!$H$20*1000))) ) -> 0.0000139151101716728+0.44341628319716j | Q50: =IMDIV(1, IMSUM( IMDIV(1, P50), IMPRODUCT(B50,'Design the AEF circuit'!$H$16*0.000000000001) ) ) -> 0.0000139151101850189+0.443416283409801j
A51: ='Frequency vector'!G51 -> 14.45439771 | B51: =COMPLEX(0,2*PI()*'Frequency vector'!G51,"j") -> 90.8196592996388j | C51: =IF(IF(CMdata=1,IMABS(K51),'CM choke'!C55)=0, C50, IF(CMdata=1,IMABS(K51),'CM choke'!C55)) -> 0.3196851896 | D51: =IF(IF(CMdata=1,DEGREES(IMARGUMENT(K51)),'CM choke'!D55)=0, D50, IF(CMdata=1,DEGREES(IMARGUMENT(K51)),'CM choke'!D55)) -> 89.98620713 | E51: =IF(IF(CMdata=1,IMABS(L51),'CM choke'!E55)=0, E50, IF(CMdata=1,IMABS(L51),'CM choke'!E55)) -> 0.3996065009 | F51: =IF(IF(CMdata=1,DEGREES(IMARGUMENT(L51)),'CM choke'!F55)=0, F50, IF(CMdata=1,DEGREES(IMARGUMENT(L51)),'CM choke'!F55)) -> 89.99836459 | G51: 7.695815522e-05 | H51: 0.3196851803 | I51: 1.140609683e-05 | J51: 0.3996065008 | K51: =IF(CMdata=1, IF(Lcm1_core=1, IMDIV(1,IMSUM(IMDIV(1,IMPRODUCT(B51,'Design the AEF circuit'!$G$14*0.001)),IMDIV(1,'Design the AEF circuit'!$G$15*1000),IMPRODUCT(B51,'Design the AEF circuit'!$G$16*0.000000000001))), O51),COMPLEX(G51,H51,"j")) -> 0.000076958155220101+0.319685180327746j | L51: =IF(CMdata=1, IF(Lcm2_core=1, IMDIV(1, IMSUM(IMDIV(1,IMPRODUCT(B51,'Design the AEF circuit'!$H$14*0.001)), IMDIV(1,'Design the AEF circuit'!$H$15*1000), IMPRODUCT(B51,'Design the AEF circuit'!$H$16*0.000000000001))), Q51), COMPLEX(I51,J51,"j")) -> 0.0000114060968275175+0.399606500766874j | N51: =IMSUM(IMDIV(1,IMSUM(IMDIV(1,IMPRODUCT(B51,'Design the AEF circuit'!$G$14*0.001)),IMDIV(1,'Design the AEF circuit'!$G$15*1000))), IMDIV(1,IMSUM(IMDIV(1,IMPRODUCT(B51,'Design the AEF circuit'!$G$17*0.001)),IMDIV(1,'Design the AEF circuit'!$G$18*1000))), IMDIV(1,IMSUM(IMDIV(1,IMPRODUCT(B51,'Design the AEF circuit'!$G$19*0.001)),IMDIV(1,'Design the AEF circuit'!$G$20*1000))) ) -> 0.0000769581552147388+0.319685180316609j | O51: =IMDIV(1, IMSUM( IMDIV(1, N51), IMPRODUCT(B51,'Design the AEF circuit'!$G$16*0.000000000001))) -> 0.000076958155220101+0.319685180327746j | P51: =IMSUM(IMDIV(1,IMSUM(IMDIV(1,IMPRODUCT(B51,'Design the AEF circuit'!$H$14*0.001)),IMDIV(1,'Design the AEF circuit'!$H$15*1000))), IMDIV(1,IMSUM(IMDIV(1,IMPRODUCT(B51,'Design the AEF circuit'!$H$17*0.001)),IMDIV(1,'Design the AEF circuit'!$H$18*1000))), IMDIV(1,IMSUM(IMDIV(1,IMPRODUCT(B51,'Design the AEF circuit'!$H$19*0.001)),IMDIV(1,'Design the AEF circuit'!$H$20*1000))) ) -> 0.0000141303629052699+0.446832723236224j | Q51: =IMDIV(1, IMSUM( IMDIV(1, P51), IMPRODUCT(B51,'Design the AEF circuit'!$H$16*0.000000000001) ) ) -> 0.0000141303629190322+0.44683272345382j
A52: ='Frequency vector'!G52 -> 14.56576616 | B52: =COMPLEX(0,2*PI()*'Frequency vector'!G52,"j") -> 91.5194078944469j | C52: =IF(IF(CMdata=1,IMABS(K52),'CM choke'!C56)=0, C51, IF(CMdata=1,IMABS(K52),'CM choke'!C56)) -> 0.3221483044 | D52: =IF(IF(CMdata=1,DEGREES(IMARGUMENT(K52)),'CM choke'!D56)=0, D51, IF(CMdata=1,DEGREES(IMARGUMENT(K52)),'CM choke'!D56)) -> 89.98610085 | E52: =IF(IF(CMdata=1,IMABS(L52),'CM choke'!E56)=0, E51, IF(CMdata=1,IMABS(L52),'CM choke'!E56)) -> 0.4026853947 | F52: =IF(IF(CMdata=1,DEGREES(IMARGUMENT(L52)),'CM choke'!F56)=0, F51, IF(CMdata=1,DEGREES(IMARGUMENT(L52)),'CM choke'!F56)) -> 89.99835199 | G52: 7.814862025e-05 | H52: 0.3221482949 | I52: 1.158253765e-05 | J52: 0.4026853946 | K52: =IF(CMdata=1, IF(Lcm1_core=1, IMDIV(1,IMSUM(IMDIV(1,IMPRODUCT(B52,'Design the AEF circuit'!$G$14*0.001)),IMDIV(1,'Design the AEF circuit'!$G$15*1000),IMPRODUCT(B52,'Design the AEF circuit'!$G$16*0.000000000001))), O52),COMPLEX(G52,H52,"j")) -> 0.0000781486202541672+0.322148294906132j | L52: =IF(CMdata=1, IF(Lcm2_core=1, IMDIV(1, IMSUM(IMDIV(1,IMPRODUCT(B52,'Design the AEF circuit'!$H$14*0.001)), IMDIV(1,'Design the AEF circuit'!$H$15*1000), IMPRODUCT(B52,'Design the AEF circuit'!$H$16*0.000000000001))), Q52), COMPLEX(I52,J52,"j")) -> 0.0000115825376530434+0.4026853945805j | N52: =IMSUM(IMDIV(1,IMSUM(IMDIV(1,IMPRODUCT(B52,'Design the AEF circuit'!$G$14*0.001)),IMDIV(1,'Design the AEF circuit'!$G$15*1000))), IMDIV(1,IMSUM(IMDIV(1,IMPRODUCT(B52,'Design the AEF circuit'!$G$17*0.001)),IMDIV(1,'Design the AEF circuit'!$G$18*1000))), IMDIV(1,IMSUM(IMDIV(1,IMPRODUCT(B52,'Design the AEF circuit'!$G$19*0.001)),IMDIV(1,'Design the AEF circuit'!$G$20*1000))) ) -> 0.0000781486202486376+0.322148294894735j | O52: =IMDIV(1, IMSUM( IMDIV(1, N52), IMPRODUCT(B52,'Design the AEF circuit'!$G$16*0.000000000001))) -> 0.0000781486202541672+0.322148294906132j | P52: =IMSUM(IMDIV(1,IMSUM(IMDIV(1,IMPRODUCT(B52,'Design the AEF circuit'!$H$14*0.001)),IMDIV(1,'Design the AEF circuit'!$H$15*1000))), IMDIV(1,IMSUM(IMDIV(1,IMPRODUCT(B52,'Design the AEF circuit'!$H$17*0.001)),IMDIV(1,'Design the AEF circuit'!$H$18*1000))), IMDIV(1,IMSUM(IMDIV(1,IMPRODUCT(B52,'Design the AEF circuit'!$H$19*0.001)),IMDIV(1,'Design the AEF circuit'!$H$20*1000))) ) -> 0.0000143489453817634+0.450275486310615j | Q52: =IMDIV(1, IMSUM( IMDIV(1, P52), IMPRODUCT(B52,'Design the AEF circuit'!$H$16*0.000000000001) ) ) -> 0.0000143489453959547+0.45027548653328j
A53: ='Frequency vector'!G53 -> 14.67799268 | B53: =COMPLEX(0,2*PI()*'Frequency vector'!G53,"j") -> 92.2245479221199j | C53: =IF(IF(CMdata=1,IMABS(K53),'CM choke'!C57)=0, C52, IF(CMdata=1,IMABS(K53),'CM choke'!C57)) -> 0.324630397 | D53: =IF(IF(CMdata=1,DEGREES(IMARGUMENT(K53)),'CM choke'!D57)=0, D52, IF(CMdata=1,DEGREES(IMARGUMENT(K53)),'CM choke'!D57)) -> 89.98599376 | E53: =IF(IF(CMdata=1,IMABS(L53),'CM choke'!E57)=0, E52, IF(CMdata=1,IMABS(L53),'CM choke'!E57)) -> 0.4057880109 | F53: =IF(IF(CMdata=1,DEGREES(IMARGUMENT(L53)),'CM choke'!F57)=0, F52, IF(CMdata=1,DEGREES(IMARGUMENT(L53)),'CM choke'!F57)) -> 89.99833929 | G53: 7.935750058e-05 | H53: 0.3246303873 | I53: 1.176170784e-05 | J53: 0.4057880107 | K53: =IF(CMdata=1, IF(Lcm1_core=1, IMDIV(1,IMSUM(IMDIV(1,IMPRODUCT(B53,'Design the AEF circuit'!$G$14*0.001)),IMDIV(1,'Design the AEF circuit'!$G$15*1000),IMPRODUCT(B53,'Design the AEF circuit'!$G$16*0.000000000001))), O53),COMPLEX(G53,H53,"j")) -> 0.0000793575005801338+0.32463038731713j | L53: =IF(CMdata=1, IF(Lcm2_core=1, IMDIV(1, IMSUM(IMDIV(1,IMPRODUCT(B53,'Design the AEF circuit'!$H$14*0.001)), IMDIV(1,'Design the AEF circuit'!$H$15*1000), IMPRODUCT(B53,'Design the AEF circuit'!$H$16*0.000000000001))), Q53), COMPLEX(I53,J53,"j")) -> 0.0000117617078403645+0.405788010698648j | N53: =IMSUM(IMDIV(1,IMSUM(IMDIV(1,IMPRODUCT(B53,'Design the AEF circuit'!$G$14*0.001)),IMDIV(1,'Design the AEF circuit'!$G$15*1000))), IMDIV(1,IMSUM(IMDIV(1,IMPRODUCT(B53,'Design the AEF circuit'!$G$17*0.001)),IMDIV(1,'Design the AEF circuit'!$G$18*1000))), IMDIV(1,IMSUM(IMDIV(1,IMPRODUCT(B53,'Design the AEF circuit'!$G$19*0.001)),IMDIV(1,'Design the AEF circuit'!$G$20*1000))) ) -> 0.0000793575005744316+0.324630387305467j | O53: =IMDIV(1, IMSUM( IMDIV(1, N53), IMPRODUCT(B53,'Design the AEF circuit'!$G$16*0.000000000001))) -> 0.0000793575005801338+0.32463038731713j | P53: =IMSUM(IMDIV(1,IMSUM(IMDIV(1,IMPRODUCT(B53,'Design the AEF circuit'!$H$14*0.001)),IMDIV(1,'Design the AEF circuit'!$H$15*1000))), IMDIV(1,IMSUM(IMDIV(1,IMPRODUCT(B53,'Design the AEF circuit'!$H$17*0.001)),IMDIV(1,'Design the AEF circuit'!$H$18*1000))), IMDIV(1,IMSUM(IMDIV(1,IMPRODUCT(B53,'Design the AEF circuit'!$H$19*0.001)),IMDIV(1,'Design the AEF circuit'!$H$20*1000))) ) -> 0.0000145709091089202+0.45374477523442j | Q53: =IMDIV(1, IMSUM( IMDIV(1, P53), IMPRODUCT(B53,'Design the AEF circuit'!$H$16*0.000000000001) ) ) -> 0.0000145709091235539+0.45374477546227j
A54: ='Frequency vector'!G54 -> 14.79108388 | B54: =COMPLEX(0,2*PI()*'Frequency vector'!G54,"j") -> 92.935120922646j | C54: =IF(IF(CMdata=1,IMABS(K54),'CM choke'!C58)=0, C53, IF(CMdata=1,IMABS(K54),'CM choke'!C58)) -> 0.3271316137 | D54: =IF(IF(CMdata=1,DEGREES(IMARGUMENT(K54)),'CM choke'!D58)=0, D53, IF(CMdata=1,DEGREES(IMARGUMENT(K54)),'CM choke'!D58)) -> 89.98588585 | E54: =IF(IF(CMdata=1,IMABS(L54),'CM choke'!E58)=0, E53, IF(CMdata=1,IMABS(L54),'CM choke'!E58)) -> 0.4089145321 | F54: =IF(IF(CMdata=1,DEGREES(IMARGUMENT(L54)),'CM choke'!F58)=0, F53, IF(CMdata=1,DEGREES(IMARGUMENT(L54)),'CM choke'!F58)) -> 89.99832649 | G54: 8.058508106e-05 | H54: 0.3271316038 | I54: 1.194364961e-05 | J54: 0.4089145319 | K54: =IF(CMdata=1, IF(Lcm1_core=1, IMDIV(1,IMSUM(IMDIV(1,IMPRODUCT(B54,'Design the AEF circuit'!$G$14*0.001)),IMDIV(1,'Design the AEF circuit'!$G$15*1000),IMPRODUCT(B54,'Design the AEF circuit'!$G$16*0.000000000001))), O54),COMPLEX(G54,H54,"j")) -> 0.0000805850810639272+0.327131603781239j | L54: =IF(CMdata=1, IF(Lcm2_core=1, IMDIV(1, IMSUM(IMDIV(1,IMPRODUCT(B54,'Design the AEF circuit'!$H$14*0.001)), IMDIV(1,'Design the AEF circuit'!$H$15*1000), IMPRODUCT(B54,'Design the AEF circuit'!$H$16*0.000000000001))), Q54), COMPLEX(I54,J54,"j")) -> 0.000011943649609958+0.408914531897267j | N54: =IMSUM(IMDIV(1,IMSUM(IMDIV(1,IMPRODUCT(B54,'Design the AEF circuit'!$G$14*0.001)),IMDIV(1,'Design the AEF circuit'!$G$15*1000))), IMDIV(1,IMSUM(IMDIV(1,IMPRODUCT(B54,'Design the AEF circuit'!$G$17*0.001)),IMDIV(1,'Design the AEF circuit'!$G$18*1000))), IMDIV(1,IMSUM(IMDIV(1,IMPRODUCT(B54,'Design the AEF circuit'!$G$19*0.001)),IMDIV(1,'Design the AEF circuit'!$G$20*1000))) ) -> 0.0000805850810580476+0.327131603769305j | O54: =IMDIV(1, IMSUM( IMDIV(1, N54), IMPRODUCT(B54,'Design the AEF circuit'!$G$16*0.000000000001))) -> 0.0000805850810639272+0.327131603781239j | P54: =IMSUM(IMDIV(1,IMSUM(IMDIV(1,IMPRODUCT(B54,'Design the AEF circuit'!$H$14*0.001)),IMDIV(1,'Design the AEF circuit'!$H$15*1000))), IMDIV(1,IMSUM(IMDIV(1,IMPRODUCT(B54,'Design the AEF circuit'!$H$17*0.001)),IMDIV(1,'Design the AEF circuit'!$H$18*1000))), IMDIV(1,IMSUM(IMDIV(1,IMPRODUCT(B54,'Design the AEF circuit'!$H$19*0.001)),IMDIV(1,'Design the AEF circuit'!$H$20*1000))) ) -> 0.0000147963063912812+0.457240794384373j | Q54: =IMDIV(1, IMSUM( IMDIV(1, P54), IMPRODUCT(B54,'Design the AEF circuit'!$H$16*0.000000000001) ) ) -> 0.0000147963064063712+0.457240794617531j
A55: ='Frequency vector'!G55 -> 14.90504643 | B55: =COMPLEX(0,2*PI()*'Frequency vector'!G55,"j") -> 93.6511687560715j | C55: =IF(IF(CMdata=1,IMABS(K55),'CM choke'!C59)=0, C54, IF(CMdata=1,IMABS(K55),'CM choke'!C59)) -> 0.3296521018 | D55: =IF(IF(CMdata=1,DEGREES(IMARGUMENT(K55)),'CM choke'!D59)=0, D54, IF(CMdata=1,DEGREES(IMARGUMENT(K55)),'CM choke'!D59)) -> 89.9857771 | E55: =IF(IF(CMdata=1,IMABS(L55),'CM choke'!E59)=0, E54, IF(CMdata=1,IMABS(L55),'CM choke'!E59)) -> 0.4120651425 | F55: =IF(IF(CMdata=1,DEGREES(IMARGUMENT(L55)),'CM choke'!F59)=0, F54, IF(CMdata=1,DEGREES(IMARGUMENT(L55)),'CM choke'!F59)) -> 89.9983136 | G55: 8.183165098e-05 | H55: 0.3296520916 | I55: 1.212840584e-05 | J55: 0.4120651424 | K55: =IF(CMdata=1, IF(Lcm1_core=1, IMDIV(1,IMSUM(IMDIV(1,IMPRODUCT(B55,'Design the AEF circuit'!$G$14*0.001)),IMDIV(1,'Design the AEF circuit'!$G$15*1000),IMPRODUCT(B55,'Design the AEF circuit'!$G$16*0.000000000001))), O55),COMPLEX(G55,H55,"j")) -> 0.0000818316509780628+0.329652091645562j | L55: =IF(CMdata=1, IF(Lcm2_core=1, IMDIV(1, IMSUM(IMDIV(1,IMPRODUCT(B55,'Design the AEF circuit'!$H$14*0.001)), IMDIV(1,'Design the AEF circuit'!$H$15*1000), IMPRODUCT(B55,'Design the AEF circuit'!$H$16*0.000000000001))), Q55), COMPLEX(I55,J55,"j")) -> 0.0000121284058354089+0.412065142360558j | N55: =IMSUM(IMDIV(1,IMSUM(IMDIV(1,IMPRODUCT(B55,'Design the AEF circuit'!$G$14*0.001)),IMDIV(1,'Design the AEF circuit'!$G$15*1000))), IMDIV(1,IMSUM(IMDIV(1,IMPRODUCT(B55,'Design the AEF circuit'!$G$17*0.001)),IMDIV(1,'Design the AEF circuit'!$G$18*1000))), IMDIV(1,IMSUM(IMDIV(1,IMPRODUCT(B55,'Design the AEF circuit'!$G$19*0.001)),IMDIV(1,'Design the AEF circuit'!$G$20*1000))) ) -> 0.0000818316509719996+0.329652091633349j | O55: =IMDIV(1, IMSUM( IMDIV(1, N55), IMPRODUCT(B55,'Design the AEF circuit'!$G$16*0.000000000001))) -> 0.0000818316509780628+0.329652091645562j | P55: =IMSUM(IMDIV(1,IMSUM(IMDIV(1,IMPRODUCT(B55,'Design the AEF circuit'!$H$14*0.001)),IMDIV(1,'Design the AEF circuit'!$H$15*1000))), IMDIV(1,IMSUM(IMDIV(1,IMPRODUCT(B55,'Design the AEF circuit'!$H$17*0.001)),IMDIV(1,'Design the AEF circuit'!$H$18*1000))), IMDIV(1,IMSUM(IMDIV(1,IMPRODUCT(B55,'Design the AEF circuit'!$H$19*0.001)),IMDIV(1,'Design the AEF circuit'!$H$20*1000))) ) -> 0.0000150251903424854+0.460763749711899j | Q55: =IMDIV(1, IMSUM( IMDIV(1, P55), IMPRODUCT(B55,'Design the AEF circuit'!$H$16*0.000000000001) ) ) -> 0.0000150251903580458+0.460763749950487j
A56: ='Frequency vector'!G56 -> 15.01988705 | B56: =COMPLEX(0,2*PI()*'Frequency vector'!G56,"j") -> 94.3727336049659j | C56: =IF(IF(CMdata=1,IMABS(K56),'CM choke'!C60)=0, C55, IF(CMdata=1,IMABS(K56),'CM choke'!C60)) -> 0.3321920098 | D56: =IF(IF(CMdata=1,DEGREES(IMARGUMENT(K56)),'CM choke'!D60)=0, D55, IF(CMdata=1,DEGREES(IMARGUMENT(K56)),'CM choke'!D60)) -> 89.98566752 | E56: =IF(IF(CMdata=1,IMABS(L56),'CM choke'!E60)=0, E55, IF(CMdata=1,IMABS(L56),'CM choke'!E60)) -> 0.4152400279 | F56: =IF(IF(CMdata=1,DEGREES(IMARGUMENT(L56)),'CM choke'!F60)=0, F55, IF(CMdata=1,DEGREES(IMARGUMENT(L56)),'CM choke'!F60)) -> 89.99830061 | G56: 8.309750407e-05 | H56: 0.3321919994 | I56: 1.231602005e-05 | J56: 0.4152400277 | K56: =IF(CMdata=1, IF(Lcm1_core=1, IMDIV(1,IMSUM(IMDIV(1,IMPRODUCT(B56,'Design the AEF circuit'!$G$14*0.001)),IMDIV(1,'Design the AEF circuit'!$G$15*1000),IMPRODUCT(B56,'Design the AEF circuit'!$G$16*0.000000000001))), O56),COMPLEX(G56,H56,"j")) -> 0.000083097504069803+0.332191999392471j | L56: =IF(CMdata=1, IF(Lcm2_core=1, IMDIV(1, IMSUM(IMDIV(1,IMPRODUCT(B56,'Design the AEF circuit'!$H$14*0.001)), IMDIV(1,'Design the AEF circuit'!$H$15*1000), IMPRODUCT(B56,'Design the AEF circuit'!$H$16*0.000000000001))), Q56), COMPLEX(I56,J56,"j")) -> 0.0000123160200535135+0.415240027691821j | N56: =IMSUM(IMDIV(1,IMSUM(IMDIV(1,IMPRODUCT(B56,'Design the AEF circuit'!$G$14*0.001)),IMDIV(1,'Design the AEF circuit'!$G$15*1000))), IMDIV(1,IMSUM(IMDIV(1,IMPRODUCT(B56,'Design the AEF circuit'!$G$17*0.001)),IMDIV(1,'Design the AEF circuit'!$G$18*1000))), IMDIV(1,IMSUM(IMDIV(1,IMPRODUCT(B56,'Design the AEF circuit'!$G$19*0.001)),IMDIV(1,'Design the AEF circuit'!$G$20*1000))) ) -> 0.0000830975040635503+0.332191999379973j | O56: =IMDIV(1, IMSUM( IMDIV(1, N56), IMPRODUCT(B56,'Design the AEF circuit'!$G$16*0.000000000001))) -> 0.000083097504069803+0.332191999392471j | P56: =IMSUM(IMDIV(1,IMSUM(IMDIV(1,IMPRODUCT(B56,'Design the AEF circuit'!$H$14*0.001)),IMDIV(1,'Design the AEF circuit'!$H$15*1000))), IMDIV(1,IMSUM(IMDIV(1,IMPRODUCT(B56,'Design the AEF circuit'!$H$17*0.001)),IMDIV(1,'Design the AEF circuit'!$H$18*1000))), IMDIV(1,IMSUM(IMDIV(1,IMPRODUCT(B56,'Design the AEF circuit'!$H$19*0.001)),IMDIV(1,'Design the AEF circuit'!$H$20*1000))) ) -> 0.0000152576148977862+0.464313848755228j | Q56: =IMDIV(1, IMSUM( IMDIV(1, P56), IMPRODUCT(B56,'Design the AEF circuit'!$H$16*0.000000000001) ) ) -> 0.0000152576149138317+0.464313848999373j
A57: ='Frequency vector'!G57 -> 15.13561248 | B57: =COMPLEX(0,2*PI()*'Frequency vector'!G57,"j") -> 95.0998579769083j | C57: =IF(IF(CMdata=1,IMABS(K57),'CM choke'!C61)=0, C56, IF(CMdata=1,IMABS(K57),'CM choke'!C61)) -> 0.3347514873 | D57: =IF(IF(CMdata=1,DEGREES(IMARGUMENT(K57)),'CM choke'!D61)=0, D56, IF(CMdata=1,DEGREES(IMARGUMENT(K57)),'CM choke'!D61)) -> 89.98555709 | E57: =IF(IF(CMdata=1,IMABS(L57),'CM choke'!E61)=0, E56, IF(CMdata=1,IMABS(L57),'CM choke'!E61)) -> 0.4184393751 | F57: =IF(IF(CMdata=1,DEGREES(IMARGUMENT(L57)),'CM choke'!F61)=0, F56, IF(CMdata=1,DEGREES(IMARGUMENT(L57)),'CM choke'!F61)) -> 89.99828751 | G57: 8.438293863e-05 | H57: 0.3347514766 | I57: 1.250653647e-05 | J57: 0.4184393749 | K57: =IF(CMdata=1, IF(Lcm1_core=1, IMDIV(1,IMSUM(IMDIV(1,IMPRODUCT(B57,'Design the AEF circuit'!$G$14*0.001)),IMDIV(1,'Design the AEF circuit'!$G$15*1000),IMPRODUCT(B57,'Design the AEF circuit'!$G$16*0.000000000001))), O57),COMPLEX(G57,H57,"j")) -> 0.0000843829386303841+0.334751476648368j | L57: =IF(CMdata=1, IF(Lcm2_core=1, IMDIV(1, IMSUM(IMDIV(1,IMPRODUCT(B57,'Design the AEF circuit'!$H$14*0.001)), IMDIV(1,'Design the AEF circuit'!$H$15*1000), IMPRODUCT(B57,'Design the AEF circuit'!$H$16*0.000000000001))), Q57), COMPLEX(I57,J57,"j")) -> 0.0000125065364745388+0.418439374924409j | N57: =IMSUM(IMDIV(1,IMSUM(IMDIV(1,IMPRODUCT(B57,'Design the AEF circuit'!$G$14*0.001)),IMDIV(1,'Design the AEF circuit'!$G$15*1000))), IMDIV(1,IMSUM(IMDIV(1,IMPRODUCT(B57,'Design the AEF circuit'!$G$17*0.001)),IMDIV(1,'Design the AEF circuit'!$G$18*1000))), IMDIV(1,IMSUM(IMDIV(1,IMPRODUCT(B57,'Design the AEF circuit'!$G$19*0.001)),IMDIV(1,'Design the AEF circuit'!$G$20*1000))) ) -> 0.000084382938623937+0.33475147663558j | O57: =IMDIV(1, IMSUM( IMDIV(1, N57), IMPRODUCT(B57,'Design the AEF circuit'!$G$16*0.000000000001))) -> 0.0000843829386303841+0.334751476648368j | P57: =IMSUM(IMDIV(1,IMSUM(IMDIV(1,IMPRODUCT(B57,'Design the AEF circuit'!$H$14*0.001)),IMDIV(1,'Design the AEF circuit'!$H$15*1000))), IMDIV(1,IMSUM(IMDIV(1,IMPRODUCT(B57,'Design the AEF circuit'!$H$17*0.001)),IMDIV(1,'Design the AEF circuit'!$H$18*1000))), IMDIV(1,IMSUM(IMDIV(1,IMPRODUCT(B57,'Design the AEF circuit'!$H$19*0.001)),IMDIV(1,'Design the AEF circuit'!$H$20*1000))) ) -> 0.0000154936348267615+0.467891300651648j | Q57: =IMDIV(1, IMSUM( IMDIV(1, P57), IMPRODUCT(B57,'Design the AEF circuit'!$H$16*0.000000000001) ) ) -> 0.0000154936348433074+0.467891300901482j
A58: ='Frequency vector'!G58 -> 15.25222957 | B58: =COMPLEX(0,2*PI()*'Frequency vector'!G58,"j") -> 95.8325847069902j | C58: =IF(IF(CMdata=1,IMABS(K58),'CM choke'!C62)=0, C57, IF(CMdata=1,IMABS(K58),'CM choke'!C62)) -> 0.3373306851 | D58: =IF(IF(CMdata=1,DEGREES(IMARGUMENT(K58)),'CM choke'!D62)=0, D57, IF(CMdata=1,DEGREES(IMARGUMENT(K58)),'CM choke'!D62)) -> 89.98544581 | E58: =IF(IF(CMdata=1,IMABS(L58),'CM choke'!E62)=0, E57, IF(CMdata=1,IMABS(L58),'CM choke'!E62)) -> 0.4216633727 | F58: =IF(IF(CMdata=1,DEGREES(IMARGUMENT(L58)),'CM choke'!F62)=0, F57, IF(CMdata=1,DEGREES(IMARGUMENT(L58)),'CM choke'!F62)) -> 89.99827432 | G58: 8.568825757e-05 | H58: 0.3373306742 | I58: 1.269999999e-05 | J58: 0.4216633725 | K58: =IF(CMdata=1, IF(Lcm1_core=1, IMDIV(1,IMSUM(IMDIV(1,IMPRODUCT(B58,'Design the AEF circuit'!$G$14*0.001)),IMDIV(1,'Design the AEF circuit'!$G$15*1000),IMPRODUCT(B58,'Design the AEF circuit'!$G$16*0.000000000001))), O58),COMPLEX(G58,H58,"j")) -> 0.0000856882575653045+0.337330674192493j | L58: =IF(CMdata=1, IF(Lcm2_core=1, IMDIV(1, IMSUM(IMDIV(1,IMPRODUCT(B58,'Design the AEF circuit'!$H$14*0.001)), IMDIV(1,'Design the AEF circuit'!$H$15*1000), IMPRODUCT(B58,'Design the AEF circuit'!$H$16*0.000000000001))), Q58), COMPLEX(I58,J58,"j")) -> 0.0000126999999926396+0.421663372532717j | N58: =IMSUM(IMDIV(1,IMSUM(IMDIV(1,IMPRODUCT(B58,'Design the AEF circuit'!$G$14*0.001)),IMDIV(1,'Design the AEF circuit'!$G$15*1000))), IMDIV(1,IMSUM(IMDIV(1,IMPRODUCT(B58,'Design the AEF circuit'!$G$17*0.001)),IMDIV(1,'Design the AEF circuit'!$G$18*1000))), IMDIV(1,IMSUM(IMDIV(1,IMPRODUCT(B58,'Design the AEF circuit'!$G$19*0.001)),IMDIV(1,'Design the AEF circuit'!$G$20*1000))) ) -> 0.0000856882575586566+0.337330674179407j | O58: =IMDIV(1, IMSUM( IMDIV(1, N58), IMPRODUCT(B58,'Design the AEF circuit'!$G$16*0.000000000001))) -> 0.0000856882575653045+0.337330674192493j | P58: =IMSUM(IMDIV(1,IMSUM(IMDIV(1,IMPRODUCT(B58,'Design the AEF circuit'!$H$14*0.001)),IMDIV(1,'Design the AEF circuit'!$H$15*1000))), IMDIV(1,IMSUM(IMDIV(1,IMPRODUCT(B58,'Design the AEF circuit'!$H$17*0.001)),IMDIV(1,'Design the AEF circuit'!$H$18*1000))), IMDIV(1,IMSUM(IMDIV(1,IMPRODUCT(B58,'Design the AEF circuit'!$H$19*0.001)),IMDIV(1,'Design the AEF circuit'!$H$20*1000))) ) -> 0.0000157333057462188+0.471496316149798j | Q58: =IMDIV(1, IMSUM( IMDIV(1, P58), IMPRODUCT(B58,'Design the AEF circuit'!$H$16*0.000000000001) ) ) -> 0.0000157333057632805+0.47149631640545j
A59: ='Frequency vector'!G59 -> 15.36974516 | B59: =COMPLEX(0,2*PI()*'Frequency vector'!G59,"j") -> 96.5709569603401j | C59: =IF(IF(CMdata=1,IMABS(K59),'CM choke'!C63)=0, C58, IF(CMdata=1,IMABS(K59),'CM choke'!C63)) -> 0.3399297551 | D59: =IF(IF(CMdata=1,DEGREES(IMARGUMENT(K59)),'CM choke'!D63)=0, D58, IF(CMdata=1,DEGREES(IMARGUMENT(K59)),'CM choke'!D63)) -> 89.98533367 | E59: =IF(IF(CMdata=1,IMABS(L59),'CM choke'!E63)=0, E58, IF(CMdata=1,IMABS(L59),'CM choke'!E63)) -> 0.4249122106 | F59: =IF(IF(CMdata=1,DEGREES(IMARGUMENT(L59)),'CM choke'!F63)=0, F58, IF(CMdata=1,DEGREES(IMARGUMENT(L59)),'CM choke'!F63)) -> 89.99826102 | G59: 8.701376847e-05 | H59: 0.339929744 | I59: 1.28964562e-05 | J59: 0.4249122104 | K59: =IF(CMdata=1, IF(Lcm1_core=1, IMDIV(1,IMSUM(IMDIV(1,IMPRODUCT(B59,'Design the AEF circuit'!$G$14*0.001)),IMDIV(1,'Design the AEF circuit'!$G$15*1000),IMPRODUCT(B59,'Design the AEF circuit'!$G$16*0.000000000001))), O59),COMPLEX(G59,H59,"j")) -> 0.0000870137684657024+0.339929743965809j | L59: =IF(CMdata=1, IF(Lcm2_core=1, IMDIV(1, IMSUM(IMDIV(1,IMPRODUCT(B59,'Design the AEF circuit'!$H$14*0.001)), IMDIV(1,'Design the AEF circuit'!$H$15*1000), IMPRODUCT(B59,'Design the AEF circuit'!$H$16*0.000000000001))), Q59), COMPLEX(I59,J59,"j")) -> 0.0000128964561964383+0.424912210443308j | N59: =IMSUM(IMDIV(1,IMSUM(IMDIV(1,IMPRODUCT(B59,'Design the AEF circuit'!$G$14*0.001)),IMDIV(1,'Design the AEF circuit'!$G$15*1000))), IMDIV(1,IMSUM(IMDIV(1,IMPRODUCT(B59,'Design the AEF circuit'!$G$17*0.001)),IMDIV(1,'Design the AEF circuit'!$G$18*1000))), IMDIV(1,IMSUM(IMDIV(1,IMPRODUCT(B59,'Design the AEF circuit'!$G$19*0.001)),IMDIV(1,'Design the AEF circuit'!$G$20*1000))) ) -> 0.0000870137684588468+0.339929743952418j | O59: =IMDIV(1, IMSUM( IMDIV(1, N59), IMPRODUCT(B59,'Design the AEF circuit'!$G$16*0.000000000001))) -> 0.0000870137684657024+0.339929743965809j | P59: =IMSUM(IMDIV(1,IMSUM(IMDIV(1,IMPRODUCT(B59,'Design the AEF circuit'!$H$14*0.001)),IMDIV(1,'Design the AEF circuit'!$H$15*1000))), IMDIV(1,IMSUM(IMDIV(1,IMPRODUCT(B59,'Design the AEF circuit'!$H$17*0.001)),IMDIV(1,'Design the AEF circuit'!$H$18*1000))), IMDIV(1,IMSUM(IMDIV(1,IMPRODUCT(B59,'Design the AEF circuit'!$H$19*0.001)),IMDIV(1,'Design the AEF circuit'!$H$20*1000))) ) -> 0.0000159766841333019+0.475129107622102j | Q59: =IMDIV(1, IMSUM( IMDIV(1, P59), IMPRODUCT(B59,'Design the AEF circuit'!$H$16*0.000000000001) ) ) -> 0.0000159766841508956+0.47512910788371j
A60: ='Frequency vector'!G60 -> 15.48816619 | B60: =COMPLEX(0,2*PI()*'Frequency vector'!G60,"j") -> 97.3150182346652j | C60: =IF(IF(CMdata=1,IMABS(K60),'CM choke'!C64)=0, C59, IF(CMdata=1,IMABS(K60),'CM choke'!C64)) -> 0.3425488505 | D60: =IF(IF(CMdata=1,DEGREES(IMARGUMENT(K60)),'CM choke'!D64)=0, D59, IF(CMdata=1,DEGREES(IMARGUMENT(K60)),'CM choke'!D64)) -> 89.98522067 | E60: =IF(IF(CMdata=1,IMABS(L60),'CM choke'!E64)=0, E59, IF(CMdata=1,IMABS(L60),'CM choke'!E64)) -> 0.4281860802 | F60: =IF(IF(CMdata=1,DEGREES(IMARGUMENT(L60)),'CM choke'!F64)=0, F59, IF(CMdata=1,DEGREES(IMARGUMENT(L60)),'CM choke'!F64)) -> 89.99824762 | G60: 8.835978368e-05 | H60: 0.3425488391 | I60: 1.309595138e-05 | J60: 0.42818608 | K60: =IF(CMdata=1, IF(Lcm1_core=1, IMDIV(1,IMSUM(IMDIV(1,IMPRODUCT(B60,'Design the AEF circuit'!$G$14*0.001)),IMDIV(1,'Design the AEF circuit'!$G$15*1000),IMPRODUCT(B60,'Design the AEF circuit'!$G$16*0.000000000001))), O60),COMPLEX(G60,H60,"j")) -> 0.0000883597836808382+0.34254883907995j | L60: =IF(CMdata=1, IF(Lcm2_core=1, IMDIV(1, IMSUM(IMDIV(1,IMPRODUCT(B60,'Design the AEF circuit'!$H$14*0.001)), IMDIV(1,'Design the AEF circuit'!$H$15*1000), IMPRODUCT(B60,'Design the AEF circuit'!$H$16*0.000000000001))), Q60), COMPLEX(I60,J60,"j")) -> 0.0000130959513797676+0.428186080046096j | N60: =IMSUM(IMDIV(1,IMSUM(IMDIV(1,IMPRODUCT(B60,'Design the AEF circuit'!$G$14*0.001)),IMDIV(1,'Design the AEF circuit'!$G$15*1000))), IMDIV(1,IMSUM(IMDIV(1,IMPRODUCT(B60,'Design the AEF circuit'!$G$17*0.001)),IMDIV(1,'Design the AEF circuit'!$G$18*1000))), IMDIV(1,IMSUM(IMDIV(1,IMPRODUCT(B60,'Design the AEF circuit'!$G$19*0.001)),IMDIV(1,'Design the AEF circuit'!$G$20*1000))) ) -> 0.0000883597836737687+0.342548839066247j | O60: =IMDIV(1, IMSUM( IMDIV(1, N60), IMPRODUCT(B60,'Design the AEF circuit'!$G$16*0.000000000001))) -> 0.0000883597836808382+0.34254883907995j | P60: =IMSUM(IMDIV(1,IMSUM(IMDIV(1,IMPRODUCT(B60,'Design the AEF circuit'!$H$14*0.001)),IMDIV(1,'Design the AEF circuit'!$H$15*1000))), IMDIV(1,IMSUM(IMDIV(1,IMPRODUCT(B60,'Design the AEF circuit'!$H$17*0.001)),IMDIV(1,'Design the AEF circuit'!$H$18*1000))), IMDIV(1,IMSUM(IMDIV(1,IMPRODUCT(B60,'Design the AEF circuit'!$H$19*0.001)),IMDIV(1,'Design the AEF circuit'!$H$20*1000))) ) -> 0.0000162238273387993+0.478789889077277j | Q60: =IMDIV(1, IMSUM( IMDIV(1, P60), IMPRODUCT(B60,'Design the AEF circuit'!$H$16*0.000000000001) ) ) -> 0.0000162238273569415+0.478789889344979j
A61: ='Frequency vector'!G61 -> 15.60749963 | B61: =COMPLEX(0,2*PI()*'Frequency vector'!G61,"j") -> 98.0648123628149j | C61: =IF(IF(CMdata=1,IMABS(K61),'CM choke'!C65)=0, C60, IF(CMdata=1,IMABS(K61),'CM choke'!C65)) -> 0.3451881255 | D61: =IF(IF(CMdata=1,DEGREES(IMARGUMENT(K61)),'CM choke'!D65)=0, D60, IF(CMdata=1,DEGREES(IMARGUMENT(K61)),'CM choke'!D65)) -> 89.9851068 | E61: =IF(IF(CMdata=1,IMABS(L61),'CM choke'!E65)=0, E60, IF(CMdata=1,IMABS(L61),'CM choke'!E65)) -> 0.4314851744 | F61: =IF(IF(CMdata=1,DEGREES(IMARGUMENT(L61)),'CM choke'!F65)=0, F60, IF(CMdata=1,DEGREES(IMARGUMENT(L61)),'CM choke'!F65)) -> 89.99823412 | G61: 8.972662039e-05 | H61: 0.3451881138 | I61: 1.329853255e-05 | J61: 0.4314851742 | K61: =IF(CMdata=1, IF(Lcm1_core=1, IMDIV(1,IMSUM(IMDIV(1,IMPRODUCT(B61,'Design the AEF circuit'!$G$14*0.001)),IMDIV(1,'Design the AEF circuit'!$G$15*1000),IMPRODUCT(B61,'Design the AEF circuit'!$G$16*0.000000000001))), O61),COMPLEX(G61,H61,"j")) -> 0.0000897266203916953+0.345188113826242j | L61: =IF(CMdata=1, IF(Lcm2_core=1, IMDIV(1, IMSUM(IMDIV(1,IMPRODUCT(B61,'Design the AEF circuit'!$H$14*0.001)), IMDIV(1,'Design the AEF circuit'!$H$15*1000), IMPRODUCT(B61,'Design the AEF circuit'!$H$16*0.000000000001))), Q61), COMPLEX(I61,J61,"j")) -> 0.0000132985325525785+0.431485174205612j | N61: =IMSUM(IMDIV(1,IMSUM(IMDIV(1,IMPRODUCT(B61,'Design the AEF circuit'!$G$14*0.001)),IMDIV(1,'Design the AEF circuit'!$G$15*1000))), IMDIV(1,IMSUM(IMDIV(1,IMPRODUCT(B61,'Design the AEF circuit'!$G$17*0.001)),IMDIV(1,'Design the AEF circuit'!$G$18*1000))), IMDIV(1,IMSUM(IMDIV(1,IMPRODUCT(B61,'Design the AEF circuit'!$G$19*0.001)),IMDIV(1,'Design the AEF circuit'!$G$20*1000))) ) -> 0.0000897266203844058+0.34518811381222j | O61: =IMDIV(1, IMSUM( IMDIV(1, N61), IMPRODUCT(B61,'Design the AEF circuit'!$G$16*0.000000000001))) -> 0.0000897266203916953+0.345188113826242j | P61: =IMSUM(IMDIV(1,IMSUM(IMDIV(1,IMPRODUCT(B61,'Design the AEF circuit'!$H$14*0.001)),IMDIV(1,'Design the AEF circuit'!$H$15*1000))), IMDIV(1,IMSUM(IMDIV(1,IMPRODUCT(B61,'Design the AEF circuit'!$H$17*0.001)),IMDIV(1,'Design the AEF circuit'!$H$18*1000))), IMDIV(1,IMSUM(IMDIV(1,IMPRODUCT(B61,'Design the AEF circuit'!$H$19*0.001)),IMDIV(1,'Design the AEF circuit'!$H$20*1000))) ) -> 0.0000164747936006577+0.482478876172929j | Q61: =IMDIV(1, IMSUM( IMDIV(1, P61), IMPRODUCT(B61,'Design the AEF circuit'!$H$16*0.000000000001) ) ) -> 0.0000164747936193655+0.482478876446866j
A62: ='Frequency vector'!G62 -> 15.72775251 | B62: =COMPLEX(0,2*PI()*'Frequency vector'!G62,"j") -> 98.8203835153623j | C62: =IF(IF(CMdata=1,IMABS(K62),'CM choke'!C66)=0, C61, IF(CMdata=1,IMABS(K62),'CM choke'!C66)) -> 0.3478477356 | D62: =IF(IF(CMdata=1,DEGREES(IMARGUMENT(K62)),'CM choke'!D66)=0, D61, IF(CMdata=1,DEGREES(IMARGUMENT(K62)),'CM choke'!D66)) -> 89.98499205 | E62: =IF(IF(CMdata=1,IMABS(L62),'CM choke'!E66)=0, E61, IF(CMdata=1,IMABS(L62),'CM choke'!E66)) -> 0.4348096875 | F62: =IF(IF(CMdata=1,DEGREES(IMARGUMENT(L62)),'CM choke'!F66)=0, F61, IF(CMdata=1,DEGREES(IMARGUMENT(L62)),'CM choke'!F66)) -> 89.99822052 | G62: 9.111460069e-05 | H62: 0.3478477237 | I62: 1.350424745e-05 | J62: 0.4348096873 | K62: =IF(CMdata=1, IF(Lcm1_core=1, IMDIV(1,IMSUM(IMDIV(1,IMPRODUCT(B62,'Design the AEF circuit'!$G$14*0.001)),IMDIV(1,'Design the AEF circuit'!$G$15*1000),IMPRODUCT(B62,'Design the AEF circuit'!$G$16*0.000000000001))), O62),COMPLEX(G62,H62,"j")) -> 0.0000911146006857271+0.347847723684791j | L62: =IF(CMdata=1, IF(Lcm2_core=1, IMDIV(1, IMSUM(IMDIV(1,IMPRODUCT(B62,'Design the AEF circuit'!$H$14*0.001)), IMDIV(1,'Design the AEF circuit'!$H$15*1000), IMPRODUCT(B62,'Design the AEF circuit'!$H$16*0.000000000001))), Q62), COMPLEX(I62,J62,"j")) -> 0.0000135042474520189+0.434809687272375j | N62: =IMSUM(IMDIV(1,IMSUM(IMDIV(1,IMPRODUCT(B62,'Design the AEF circuit'!$G$14*0.001)),IMDIV(1,'Design the AEF circuit'!$G$15*1000))), IMDIV(1,IMSUM(IMDIV(1,IMPRODUCT(B62,'Design the AEF circuit'!$G$17*0.001)),IMDIV(1,'Design the AEF circuit'!$G$18*1000))), IMDIV(1,IMSUM(IMDIV(1,IMPRODUCT(B62,'Design the AEF circuit'!$G$19*0.001)),IMDIV(1,'Design the AEF circuit'!$G$20*1000))) ) -> 0.0000911146006782103+0.347847723670443j | O62: =IMDIV(1, IMSUM( IMDIV(1, N62), IMPRODUCT(B62,'Design the AEF circuit'!$G$16*0.000000000001))) -> 0.0000911146006857271+0.347847723684791j | P62: =IMSUM(IMDIV(1,IMSUM(IMDIV(1,IMPRODUCT(B62,'Design the AEF circuit'!$H$14*0.001)),IMDIV(1,'Design the AEF circuit'!$H$15*1000))), IMDIV(1,IMSUM(IMDIV(1,IMPRODUCT(B62,'Design the AEF circuit'!$H$17*0.001)),IMDIV(1,'Design the AEF circuit'!$H$18*1000))), IMDIV(1,IMSUM(IMDIV(1,IMPRODUCT(B62,'Design the AEF circuit'!$H$19*0.001)),IMDIV(1,'Design the AEF circuit'!$H$20*1000))) ) -> 0.0000167296420577066+0.486196286228271j | Q62: =IMDIV(1, IMSUM( IMDIV(1, P62), IMPRODUCT(B62,'Design the AEF circuit'!$H$16*0.000000000001) ) ) -> 0.0000167296420769975+0.486196286508587j
A63: ='Frequency vector'!G63 -> 15.84893192 | B63: =COMPLEX(0,2*PI()*'Frequency vector'!G63,"j") -> 99.5817762032067j | C63: =IF(IF(CMdata=1,IMABS(K63),'CM choke'!C67)=0, C62, IF(CMdata=1,IMABS(K63),'CM choke'!C67)) -> 0.3505278375 | D63: =IF(IF(CMdata=1,DEGREES(IMARGUMENT(K63)),'CM choke'!D67)=0, D62, IF(CMdata=1,DEGREES(IMARGUMENT(K63)),'CM choke'!D67)) -> 89.98487641 | E63: =IF(IF(CMdata=1,IMABS(L63),'CM choke'!E67)=0, E62, IF(CMdata=1,IMABS(L63),'CM choke'!E67)) -> 0.4381598153 | F63: =IF(IF(CMdata=1,DEGREES(IMARGUMENT(L63)),'CM choke'!F67)=0, F62, IF(CMdata=1,DEGREES(IMARGUMENT(L63)),'CM choke'!F67)) -> 89.99820681 | G63: 9.252405163e-05 | H63: 0.3505278253 | I63: 1.371314455e-05 | J63: 0.4381598151 | K63: =IF(CMdata=1, IF(Lcm1_core=1, IMDIV(1,IMSUM(IMDIV(1,IMPRODUCT(B63,'Design the AEF circuit'!$G$14*0.001)),IMDIV(1,'Design the AEF circuit'!$G$15*1000),IMPRODUCT(B63,'Design the AEF circuit'!$G$16*0.000000000001))), O63),COMPLEX(G63,H63,"j")) -> 0.0000925240516327503+0.350527825333647j | L63: =IF(CMdata=1, IF(Lcm2_core=1, IMDIV(1, IMSUM(IMDIV(1,IMPRODUCT(B63,'Design the AEF circuit'!$H$14*0.001)), IMDIV(1,'Design the AEF circuit'!$H$15*1000), IMPRODUCT(B63,'Design the AEF circuit'!$H$16*0.000000000001))), Q63), COMPLEX(I63,J63,"j")) -> 0.0000137131445536829+0.438159815094345j | N63: =IMSUM(IMDIV(1,IMSUM(IMDIV(1,IMPRODUCT(B63,'Design the AEF circuit'!$G$14*0.001)),IMDIV(1,'Design the AEF circuit'!$G$15*1000))), IMDIV(1,IMSUM(IMDIV(1,IMPRODUCT(B63,'Design the AEF circuit'!$G$17*0.001)),IMDIV(1,'Design the AEF circuit'!$G$18*1000))), IMDIV(1,IMSUM(IMDIV(1,IMPRODUCT(B63,'Design the AEF circuit'!$G$19*0.001)),IMDIV(1,'Design the AEF circuit'!$G$20*1000))) ) -> 0.0000925240516249988+0.350527825318964j | O63: =IMDIV(1, IMSUM( IMDIV(1, N63), IMPRODUCT(B63,'Design the AEF circuit'!$G$16*0.000000000001))) -> 0.0000925240516327503+0.350527825333647j | P63: =IMSUM(IMDIV(1,IMSUM(IMDIV(1,IMPRODUCT(B63,'Design the AEF circuit'!$H$14*0.001)),IMDIV(1,'Design the AEF circuit'!$H$15*1000))), IMDIV(1,IMSUM(IMDIV(1,IMPRODUCT(B63,'Design the AEF circuit'!$H$17*0.001)),IMDIV(1,'Design the AEF circuit'!$H$18*1000))), IMDIV(1,IMSUM(IMDIV(1,IMPRODUCT(B63,'Design the AEF circuit'!$H$19*0.001)),IMDIV(1,'Design the AEF circuit'!$H$20*1000))) ) -> 0.000016988432763594+0.489942338236923j | Q63: =IMDIV(1, IMSUM( IMDIV(1, P63), IMPRODUCT(B63,'Design the AEF circuit'!$H$16*0.000000000001) ) ) -> 0.0000169884327834865+0.48994233852377j
A64: ='Frequency vector'!G64 -> 15.971045 | B64: =COMPLEX(0,2*PI()*'Frequency vector'!G64,"j") -> 100.349035280196j | C64: =IF(IF(CMdata=1,IMABS(K64),'CM choke'!C68)=0, C63, IF(CMdata=1,IMABS(K64),'CM choke'!C68)) -> 0.3532285892 | D64: =IF(IF(CMdata=1,DEGREES(IMARGUMENT(K64)),'CM choke'!D68)=0, D63, IF(CMdata=1,DEGREES(IMARGUMENT(K64)),'CM choke'!D68)) -> 89.98475989 | E64: =IF(IF(CMdata=1,IMABS(L64),'CM choke'!E68)=0, E63, IF(CMdata=1,IMABS(L64),'CM choke'!E68)) -> 0.4415357552 | F64: =IF(IF(CMdata=1,DEGREES(IMARGUMENT(L64)),'CM choke'!F68)=0, F63, IF(CMdata=1,DEGREES(IMARGUMENT(L64)),'CM choke'!F68)) -> 89.99819299 | G64: 9.395530536e-05 | H64: 0.3532285767 | I64: 1.392527308e-05 | J64: 0.441535755 | K64: =IF(CMdata=1, IF(Lcm1_core=1, IMDIV(1,IMSUM(IMDIV(1,IMPRODUCT(B64,'Design the AEF circuit'!$G$14*0.001)),IMDIV(1,'Design the AEF circuit'!$G$15*1000),IMPRODUCT(B64,'Design the AEF circuit'!$G$16*0.000000000001))), O64),COMPLEX(G64,H64,"j")) -> 0.0000939553053620187+0.353228576658029j | L64: =IF(CMdata=1, IF(Lcm2_core=1, IMDIV(1, IMSUM(IMDIV(1,IMPRODUCT(B64,'Design the AEF circuit'!$H$14*0.001)), IMDIV(1,'Design the AEF circuit'!$H$15*1000), IMPRODUCT(B64,'Design the AEF circuit'!$H$16*0.000000000001))), Q64), COMPLEX(I64,J64,"j")) -> 0.0000139252730830323+0.441535755028445j | N64: =IMSUM(IMDIV(1,IMSUM(IMDIV(1,IMPRODUCT(B64,'Design the AEF circuit'!$G$14*0.001)),IMDIV(1,'Design the AEF circuit'!$G$15*1000))), IMDIV(1,IMSUM(IMDIV(1,IMPRODUCT(B64,'Design the AEF circuit'!$G$17*0.001)),IMDIV(1,'Design the AEF circuit'!$G$18*1000))), IMDIV(1,IMSUM(IMDIV(1,IMPRODUCT(B64,'Design the AEF circuit'!$G$19*0.001)),IMDIV(1,'Design the AEF circuit'!$G$20*1000))) ) -> 0.0000939553053540262+0.353228576643005j | O64: =IMDIV(1, IMSUM( IMDIV(1, N64), IMPRODUCT(B64,'Design the AEF circuit'!$G$16*0.000000000001))) -> 0.0000939553053620187+0.353228576658029j | P64: =IMSUM(IMDIV(1,IMSUM(IMDIV(1,IMPRODUCT(B64,'Design the AEF circuit'!$H$14*0.001)),IMDIV(1,'Design the AEF circuit'!$H$15*1000))), IMDIV(1,IMSUM(IMDIV(1,IMPRODUCT(B64,'Design the AEF circuit'!$H$17*0.001)),IMDIV(1,'Design the AEF circuit'!$H$18*1000))), IMDIV(1,IMSUM(IMDIV(1,IMPRODUCT(B64,'Design the AEF circuit'!$H$19*0.001)),IMDIV(1,'Design the AEF circuit'!$H$20*1000))) ) -> 0.0000172512267009367+0.493717252879804j | Q64: =IMDIV(1, IMSUM( IMDIV(1, P64), IMPRODUCT(B64,'Design the AEF circuit'!$H$16*0.000000000001) ) ) -> 0.0000172512267214495+0.493717253173334j
A65: ='Frequency vector'!G65 -> 16.09409893 | B65: =COMPLEX(0,2*PI()*'Frequency vector'!G65,"j") -> 101.122205945767j | C65: =IF(IF(CMdata=1,IMABS(K65),'CM choke'!C69)=0, C64, IF(CMdata=1,IMABS(K65),'CM choke'!C69)) -> 0.3559501495 | D65: =IF(IF(CMdata=1,DEGREES(IMARGUMENT(K65)),'CM choke'!D69)=0, D64, IF(CMdata=1,DEGREES(IMARGUMENT(K65)),'CM choke'!D69)) -> 89.98464247 | E65: =IF(IF(CMdata=1,IMABS(L65),'CM choke'!E69)=0, E64, IF(CMdata=1,IMABS(L65),'CM choke'!E69)) -> 0.4449377062 | F65: =IF(IF(CMdata=1,DEGREES(IMARGUMENT(L65)),'CM choke'!F69)=0, F64, IF(CMdata=1,DEGREES(IMARGUMENT(L65)),'CM choke'!F69)) -> 89.99817907 | G65: 9.540869914e-05 | H65: 0.3559501368 | I65: 1.414068303e-05 | J65: 0.444937706 | K65: =IF(CMdata=1, IF(Lcm1_core=1, IMDIV(1,IMSUM(IMDIV(1,IMPRODUCT(B65,'Design the AEF circuit'!$G$14*0.001)),IMDIV(1,'Design the AEF circuit'!$G$15*1000),IMPRODUCT(B65,'Design the AEF circuit'!$G$16*0.000000000001))), O65),COMPLEX(G65,H65,"j")) -> 0.0000954086991404886+0.355950136759626j | L65: =IF(CMdata=1, IF(Lcm2_core=1, IMDIV(1, IMSUM(IMDIV(1,IMPRODUCT(B65,'Design the AEF circuit'!$H$14*0.001)), IMDIV(1,'Design the AEF circuit'!$H$15*1000), IMPRODUCT(B65,'Design the AEF circuit'!$H$16*0.000000000001))), Q65), COMPLEX(I65,J65,"j")) -> 0.0000141406830269973+0.444937705952196j | N65: =IMSUM(IMDIV(1,IMSUM(IMDIV(1,IMPRODUCT(B65,'Design the AEF circuit'!$G$14*0.001)),IMDIV(1,'Design the AEF circuit'!$G$15*1000))), IMDIV(1,IMSUM(IMDIV(1,IMPRODUCT(B65,'Design the AEF circuit'!$G$17*0.001)),IMDIV(1,'Design the AEF circuit'!$G$18*1000))), IMDIV(1,IMSUM(IMDIV(1,IMPRODUCT(B65,'Design the AEF circuit'!$G$19*0.001)),IMDIV(1,'Design the AEF circuit'!$G$20*1000))) ) -> 0.000095408699132246+0.35595013674425j | O65: =IMDIV(1, IMSUM( IMDIV(1, N65), IMPRODUCT(B65,'Design the AEF circuit'!$G$16*0.000000000001))) -> 0.0000954086991404886+0.355950136759626j | P65: =IMSUM(IMDIV(1,IMSUM(IMDIV(1,IMPRODUCT(B65,'Design the AEF circuit'!$H$14*0.001)),IMDIV(1,'Design the AEF circuit'!$H$15*1000))), IMDIV(1,IMSUM(IMDIV(1,IMPRODUCT(B65,'Design the AEF circuit'!$H$17*0.001)),IMDIV(1,'Design the AEF circuit'!$H$18*1000))), IMDIV(1,IMSUM(IMDIV(1,IMPRODUCT(B65,'Design the AEF circuit'!$H$19*0.001)),IMDIV(1,'Design the AEF circuit'!$H$20*1000))) ) -> 0.0000175180857956907+0.497521252538138j | Q65: =IMDIV(1, IMSUM( IMDIV(1, P65), IMPRODUCT(B65,'Design the AEF circuit'!$H$16*0.000000000001) ) ) -> 0.000017518085816843+0.497521252838505j
A66: ='Frequency vector'!G66 -> 16.21810097 | B66: =COMPLEX(0,2*PI()*'Frequency vector'!G66,"j") -> 101.901333747612j | C66: =IF(IF(CMdata=1,IMABS(K66),'CM choke'!C70)=0, C65, IF(CMdata=1,IMABS(K66),'CM choke'!C70)) -> 0.3586926791 | D66: =IF(IF(CMdata=1,DEGREES(IMARGUMENT(K66)),'CM choke'!D70)=0, D65, IF(CMdata=1,DEGREES(IMARGUMENT(K66)),'CM choke'!D70)) -> 89.98452414 | E66: =IF(IF(CMdata=1,IMABS(L66),'CM choke'!E70)=0, E65, IF(CMdata=1,IMABS(L66),'CM choke'!E70)) -> 0.4483658685 | F66: =IF(IF(CMdata=1,DEGREES(IMARGUMENT(L66)),'CM choke'!F70)=0, F65, IF(CMdata=1,DEGREES(IMARGUMENT(L66)),'CM choke'!F70)) -> 89.99816504 | G66: 9.688457545e-05 | H66: 0.358692666 | I66: 1.435942515e-05 | J66: 0.4483658683 | K66: =IF(CMdata=1, IF(Lcm1_core=1, IMDIV(1,IMSUM(IMDIV(1,IMPRODUCT(B66,'Design the AEF circuit'!$G$14*0.001)),IMDIV(1,'Design the AEF circuit'!$G$15*1000),IMPRODUCT(B66,'Design the AEF circuit'!$G$16*0.000000000001))), O66),COMPLEX(G66,H66,"j")) -> 0.0000968845754522897+0.358692665965968j | L66: =IF(CMdata=1, IF(Lcm2_core=1, IMDIV(1, IMSUM(IMDIV(1,IMPRODUCT(B66,'Design the AEF circuit'!$H$14*0.001)), IMDIV(1,'Design the AEF circuit'!$H$15*1000), IMPRODUCT(B66,'Design the AEF circuit'!$H$16*0.000000000001))), Q66), COMPLEX(I66,J66,"j")) -> 0.000014359425145756+0.448365868275442j | N66: =IMSUM(IMDIV(1,IMSUM(IMDIV(1,IMPRODUCT(B66,'Design the AEF circuit'!$G$14*0.001)),IMDIV(1,'Design the AEF circuit'!$G$15*1000))), IMDIV(1,IMSUM(IMDIV(1,IMPRODUCT(B66,'Design the AEF circuit'!$G$17*0.001)),IMDIV(1,'Design the AEF circuit'!$G$18*1000))), IMDIV(1,IMSUM(IMDIV(1,IMPRODUCT(B66,'Design the AEF circuit'!$G$19*0.001)),IMDIV(1,'Design the AEF circuit'!$G$20*1000))) ) -> 0.0000968845754437908+0.358692665950235j | O66: =IMDIV(1, IMSUM( IMDIV(1, N66), IMPRODUCT(B66,'Design the AEF circuit'!$G$16*0.000000000001))) -> 0.0000968845754522897+0.358692665965968j | P66: =IMSUM(IMDIV(1,IMSUM(IMDIV(1,IMPRODUCT(B66,'Design the AEF circuit'!$H$14*0.001)),IMDIV(1,'Design the AEF circuit'!$H$15*1000))), IMDIV(1,IMSUM(IMDIV(1,IMPRODUCT(B66,'Design the AEF circuit'!$H$17*0.001)),IMDIV(1,'Design the AEF circuit'!$H$18*1000))), IMDIV(1,IMSUM(IMDIV(1,IMPRODUCT(B66,'Design the AEF circuit'!$H$19*0.001)),IMDIV(1,'Design the AEF circuit'!$H$20*1000))) ) -> 0.0000177890729317455+0.50135456130656j | Q66: =IMDIV(1, IMSUM( IMDIV(1, P66), IMPRODUCT(B66,'Design the AEF circuit'!$H$16*0.000000000001) ) ) -> 0.0000177890729535573+0.501354561613923j
A67: ='Frequency vector'!G67 -> 16.34305843 | B67: =COMPLEX(0,2*PI()*'Frequency vector'!G67,"j") -> 102.686464584358j | C67: =IF(IF(CMdata=1,IMABS(K67),'CM choke'!C71)=0, C66, IF(CMdata=1,IMABS(K67),'CM choke'!C71)) -> 0.3614563392 | D67: =IF(IF(CMdata=1,DEGREES(IMARGUMENT(K67)),'CM choke'!D71)=0, D66, IF(CMdata=1,DEGREES(IMARGUMENT(K67)),'CM choke'!D71)) -> 89.9844049 | E67: =IF(IF(CMdata=1,IMABS(L67),'CM choke'!E71)=0, E66, IF(CMdata=1,IMABS(L67),'CM choke'!E71)) -> 0.4518204442 | F67: =IF(IF(CMdata=1,DEGREES(IMARGUMENT(L67)),'CM choke'!F71)=0, F66, IF(CMdata=1,DEGREES(IMARGUMENT(L67)),'CM choke'!F71)) -> 89.9981509 | G67: =C67*COS(RADIANS(D67)) -> 9.838328208e-05 | H67: =C67*SIN(RADIANS(D67)) -> 0.3614563258 | I67: =E67*COS(RADIANS(F67)) -> 1.458155098e-05 | J67: =E67*SIN(RADIANS(F67)) -> 0.451820444 | K67: =IF(CMdata=1, IF(Lcm1_core=1, IMDIV(1,IMSUM(IMDIV(1,IMPRODUCT(B67,'Design the AEF circuit'!$G$14*0.001)),IMDIV(1,'Design the AEF circuit'!$G$15*1000),IMPRODUCT(B67,'Design the AEF circuit'!$G$16*0.000000000001))), O67),COMPLEX(G67,H67,"j")) -> 0.0000983832820794351+0.361456325839876j | L67: =IF(CMdata=1, IF(Lcm2_core=1, IMDIV(1, IMSUM(IMDIV(1,IMPRODUCT(B67,'Design the AEF circuit'!$H$14*0.001)), IMDIV(1,'Design the AEF circuit'!$H$15*1000), IMPRODUCT(B67,'Design the AEF circuit'!$H$16*0.000000000001))), Q67), COMPLEX(I67,J67,"j")) -> 0.0000145815509846949+0.451820443952139j | N67: =IMSUM(IMDIV(1,IMSUM(IMDIV(1,IMPRODUCT(B67,'Design the AEF circuit'!$G$14*0.001)),IMDIV(1,'Design the AEF circuit'!$G$15*1000))), IMDIV(1,IMSUM(IMDIV(1,IMPRODUCT(B67,'Design the AEF circuit'!$G$17*0.001)),IMDIV(1,'Design the AEF circuit'!$G$18*1000))), IMDIV(1,IMSUM(IMDIV(1,IMPRODUCT(B67,'Design the AEF circuit'!$G$19*0.001)),IMDIV(1,'Design the AEF circuit'!$G$20*1000))) ) -> 0.0000983832820706717+0.361456325823778j | O67: =IMDIV(1, IMSUM( IMDIV(1, N67), IMPRODUCT(B67,'Design the AEF circuit'!$G$16*0.000000000001))) -> 0.0000983832820794351+0.361456325839876j | P67: =IMSUM(IMDIV(1,IMSUM(IMDIV(1,IMPRODUCT(B67,'Design the AEF circuit'!$H$14*0.001)),IMDIV(1,'Design the AEF circuit'!$H$15*1000))), IMDIV(1,IMSUM(IMDIV(1,IMPRODUCT(B67,'Design the AEF circuit'!$H$17*0.001)),IMDIV(1,'Design the AEF circuit'!$H$18*1000))), IMDIV(1,IMSUM(IMDIV(1,IMPRODUCT(B67,'Design the AEF circuit'!$H$19*0.001)),IMDIV(1,'Design the AEF circuit'!$H$20*1000))) ) -> 0.0000180642519657398+0.505217405006307j | Q67: =IMDIV(1, IMSUM( IMDIV(1, P67), IMPRODUCT(B67,'Design the AEF circuit'!$H$16*0.000000000001) ) ) -> 0.0000180642519882316+0.50521740532083j
A68: ='Frequency vector'!G68 -> 16.46897865 | B68: =COMPLEX(0,2*PI()*'Frequency vector'!G68,"j") -> 103.477644708274j | C68: =IF(IF(CMdata=1,IMABS(K68),'CM choke'!C72)=0, C67, IF(CMdata=1,IMABS(K68),'CM choke'!C72)) -> 0.3642412929 | D68: =IF(IF(CMdata=1,DEGREES(IMARGUMENT(K68)),'CM choke'!D72)=0, D67, IF(CMdata=1,DEGREES(IMARGUMENT(K68)),'CM choke'!D72)) -> 89.98428475 | E68: =IF(IF(CMdata=1,IMABS(L68),'CM choke'!E72)=0, E67, IF(CMdata=1,IMABS(L68),'CM choke'!E72)) -> 0.4553016367 | F68: =IF(IF(CMdata=1,DEGREES(IMARGUMENT(L68)),'CM choke'!F72)=0, F67, IF(CMdata=1,DEGREES(IMARGUMENT(L68)),'CM choke'!F72)) -> 89.99813665 | G68: 9.990517218e-05 | H68: 0.3642412792 | I68: 1.480711289e-05 | J68: 0.4553016365 | K68: =IF(CMdata=1, IF(Lcm1_core=1, IMDIV(1,IMSUM(IMDIV(1,IMPRODUCT(B68,'Design the AEF circuit'!$G$14*0.001)),IMDIV(1,'Design the AEF circuit'!$G$15*1000),IMPRODUCT(B68,'Design the AEF circuit'!$G$16*0.000000000001))), O68),COMPLEX(G68,H68,"j")) -> 0.0000999051721837733+0.364241279188988j | L68: =IF(CMdata=1, IF(Lcm2_core=1, IMDIV(1, IMSUM(IMDIV(1,IMPRODUCT(B68,'Design the AEF circuit'!$H$14*0.001)), IMDIV(1,'Design the AEF circuit'!$H$15*1000), IMPRODUCT(B68,'Design the AEF circuit'!$H$16*0.000000000001))), Q68), COMPLEX(I68,J68,"j")) -> 0.0000148071128865561+0.455301636492266j | N68: =IMSUM(IMDIV(1,IMSUM(IMDIV(1,IMPRODUCT(B68,'Design the AEF circuit'!$G$14*0.001)),IMDIV(1,'Design the AEF circuit'!$G$15*1000))), IMDIV(1,IMSUM(IMDIV(1,IMPRODUCT(B68,'Design the AEF circuit'!$G$17*0.001)),IMDIV(1,'Design the AEF circuit'!$G$18*1000))), IMDIV(1,IMSUM(IMDIV(1,IMPRODUCT(B68,'Design the AEF circuit'!$G$19*0.001)),IMDIV(1,'Design the AEF circuit'!$G$20*1000))) ) -> 0.000099905172174736+0.364241279172514j | O68: =IMDIV(1, IMSUM( IMDIV(1, N68), IMPRODUCT(B68,'Design the AEF circuit'!$G$16*0.000000000001))) -> 0.0000999051721837733+0.364241279188988j | P68: =IMSUM(IMDIV(1,IMSUM(IMDIV(1,IMPRODUCT(B68,'Design the AEF circuit'!$H$14*0.001)),IMDIV(1,'Design the AEF circuit'!$H$15*1000))), IMDIV(1,IMSUM(IMDIV(1,IMPRODUCT(B68,'Design the AEF circuit'!$H$17*0.001)),IMDIV(1,'Design the AEF circuit'!$H$18*1000))), IMDIV(1,IMSUM(IMDIV(1,IMPRODUCT(B68,'Design the AEF circuit'!$H$19*0.001)),IMDIV(1,'Design the AEF circuit'!$H$20*1000))) ) -> 0.0000183436877421105+0.509110011198534j | Q68: =IMDIV(1, IMSUM( IMDIV(1, P68), IMPRODUCT(B68,'Design the AEF circuit'!$H$16*0.000000000001) ) ) -> 0.0000183436877653035+0.509110011520383j
A69: ='Frequency vector'!G69 -> 16.59586907 | B69: =COMPLEX(0,2*PI()*'Frequency vector'!G69,"j") -> 104.274920727994j | C69: =IF(IF(CMdata=1,IMABS(K69),'CM choke'!C73)=0, C68, IF(CMdata=1,IMABS(K69),'CM choke'!C73)) -> 0.3670477041 | D69: =IF(IF(CMdata=1,DEGREES(IMARGUMENT(K69)),'CM choke'!D73)=0, D68, IF(CMdata=1,DEGREES(IMARGUMENT(K69)),'CM choke'!D73)) -> 89.98416366 | E69: =IF(IF(CMdata=1,IMABS(L69),'CM choke'!E73)=0, E68, IF(CMdata=1,IMABS(L69),'CM choke'!E73)) -> 0.4588096512 | F69: =IF(IF(CMdata=1,DEGREES(IMARGUMENT(L69)),'CM choke'!F73)=0, F68, IF(CMdata=1,DEGREES(IMARGUMENT(L69)),'CM choke'!F73)) -> 89.9981223 | G69: 0.0001014506044 | H69: 0.3670476901 | I69: 1.5036164e-05 | J69: 0.458809651 | K69: =IF(CMdata=1, IF(Lcm1_core=1, IMDIV(1,IMSUM(IMDIV(1,IMPRODUCT(B69,'Design the AEF circuit'!$G$14*0.001)),IMDIV(1,'Design the AEF circuit'!$G$15*1000),IMPRODUCT(B69,'Design the AEF circuit'!$G$16*0.000000000001))), O69),COMPLEX(G69,H69,"j")) -> 0.000101450604390203+0.367047690075323j | L69: =IF(CMdata=1, IF(Lcm2_core=1, IMDIV(1, IMSUM(IMDIV(1,IMPRODUCT(B69,'Design the AEF circuit'!$H$14*0.001)), IMDIV(1,'Design the AEF circuit'!$H$15*1000), IMPRODUCT(B69,'Design the AEF circuit'!$H$16*0.000000000001))), Q69), COMPLEX(I69,J69,"j")) -> 0.0000150361640037713+0.458809650973813j | N69: =IMSUM(IMDIV(1,IMSUM(IMDIV(1,IMPRODUCT(B69,'Design the AEF circuit'!$G$14*0.001)),IMDIV(1,'Design the AEF circuit'!$G$15*1000))), IMDIV(1,IMSUM(IMDIV(1,IMPRODUCT(B69,'Design the AEF circuit'!$G$17*0.001)),IMDIV(1,'Design the AEF circuit'!$G$18*1000))), IMDIV(1,IMSUM(IMDIV(1,IMPRODUCT(B69,'Design the AEF circuit'!$G$19*0.001)),IMDIV(1,'Design the AEF circuit'!$G$20*1000))) ) -> 0.000101450604380884+0.367047690058464j | O69: =IMDIV(1, IMSUM( IMDIV(1, N69), IMPRODUCT(B69,'Design the AEF circuit'!$G$16*0.000000000001))) -> 0.000101450604390203+0.367047690075323j | P69: =IMSUM(IMDIV(1,IMSUM(IMDIV(1,IMPRODUCT(B69,'Design the AEF circuit'!$H$14*0.001)),IMDIV(1,'Design the AEF circuit'!$H$15*1000))), IMDIV(1,IMSUM(IMDIV(1,IMPRODUCT(B69,'Design the AEF circuit'!$H$17*0.001)),IMDIV(1,'Design the AEF circuit'!$H$18*1000))), IMDIV(1,IMSUM(IMDIV(1,IMPRODUCT(B69,'Design the AEF circuit'!$H$19*0.001)),IMDIV(1,'Design the AEF circuit'!$H$20*1000))) ) -> 0.0000186274461083733+0.513032609197709j | Q69: =IMDIV(1, IMSUM( IMDIV(1, P69), IMPRODUCT(B69,'Design the AEF circuit'!$H$16*0.000000000001) ) ) -> 0.0000186274461322893+0.513032609527054j
A70: ='Frequency vector'!G70 -> 16.72373716 | B70: =COMPLEX(0,2*PI()*'Frequency vector'!G70,"j") -> 105.07833961126j | C70: =IF(IF(CMdata=1,IMABS(K70),'CM choke'!C74)=0, C69, IF(CMdata=1,IMABS(K70),'CM choke'!C74)) -> 0.3698757382 | D70: =IF(IF(CMdata=1,DEGREES(IMARGUMENT(K70)),'CM choke'!D74)=0, D69, IF(CMdata=1,DEGREES(IMARGUMENT(K70)),'CM choke'!D74)) -> 89.98404165 | E70: =IF(IF(CMdata=1,IMABS(L70),'CM choke'!E74)=0, E69, IF(CMdata=1,IMABS(L70),'CM choke'!E74)) -> 0.4623446943 | F70: =IF(IF(CMdata=1,DEGREES(IMARGUMENT(L70)),'CM choke'!F74)=0, F69, IF(CMdata=1,DEGREES(IMARGUMENT(L70)),'CM choke'!F74)) -> 89.99810783 | G70: 0.0001030199429 | H70: 0.3698757238 | I70: 1.526875831e-05 | J70: 0.4623446941 | K70: =IF(CMdata=1, IF(Lcm1_core=1, IMDIV(1,IMSUM(IMDIV(1,IMPRODUCT(B70,'Design the AEF circuit'!$G$14*0.001)),IMDIV(1,'Design the AEF circuit'!$G$15*1000),IMPRODUCT(B70,'Design the AEF circuit'!$G$16*0.000000000001))), O70),COMPLEX(G70,H70,"j")) -> 0.000103019942871182+0.369875723824963j | L70: =IF(CMdata=1, IF(Lcm2_core=1, IMDIV(1, IMSUM(IMDIV(1,IMPRODUCT(B70,'Design the AEF circuit'!$H$14*0.001)), IMDIV(1,'Design the AEF circuit'!$H$15*1000), IMPRODUCT(B70,'Design the AEF circuit'!$H$16*0.000000000001))), Q70), COMPLEX(I70,J70,"j")) -> 0.0000152687583109857+0.462344694054842j | N70: =IMSUM(IMDIV(1,IMSUM(IMDIV(1,IMPRODUCT(B70,'Design the AEF circuit'!$G$14*0.001)),IMDIV(1,'Design the AEF circuit'!$G$15*1000))), IMDIV(1,IMSUM(IMDIV(1,IMPRODUCT(B70,'Design the AEF circuit'!$G$17*0.001)),IMDIV(1,'Design the AEF circuit'!$G$18*1000))), IMDIV(1,IMSUM(IMDIV(1,IMPRODUCT(B70,'Design the AEF circuit'!$G$19*0.001)),IMDIV(1,'Design the AEF circuit'!$G$20*1000))) ) -> 0.000103019942861573+0.369875723807713j | O70: =IMDIV(1, IMSUM( IMDIV(1, N70), IMPRODUCT(B70,'Design the AEF circuit'!$G$16*0.000000000001))) -> 0.000103019942871182+0.369875723824963j | P70: =IMSUM(IMDIV(1,IMSUM(IMDIV(1,IMPRODUCT(B70,'Design the AEF circuit'!$H$14*0.001)),IMDIV(1,'Design the AEF circuit'!$H$15*1000))), IMDIV(1,IMSUM(IMDIV(1,IMPRODUCT(B70,'Design the AEF circuit'!$H$17*0.001)),IMDIV(1,'Design the AEF circuit'!$H$18*1000))), IMDIV(1,IMSUM(IMDIV(1,IMPRODUCT(B70,'Design the AEF circuit'!$H$19*0.001)),IMDIV(1,'Design the AEF circuit'!$H$20*1000))) ) -> 0.0000189155939306372+0.516985430085116j | Q70: =IMDIV(1, IMSUM( IMDIV(1, P70), IMPRODUCT(B70,'Design the AEF circuit'!$H$16*0.000000000001) ) ) -> 0.000018915593955299+0.516985430422133j
A71: ='Frequency vector'!G71 -> 16.85259045 | B71: =COMPLEX(0,2*PI()*'Frequency vector'!G71,"j") -> 105.887948687695j | C71: =IF(IF(CMdata=1,IMABS(K71),'CM choke'!C75)=0, C70, IF(CMdata=1,IMABS(K71),'CM choke'!C75)) -> 0.3727255617 | D71: =IF(IF(CMdata=1,DEGREES(IMARGUMENT(K71)),'CM choke'!D75)=0, D70, IF(CMdata=1,DEGREES(IMARGUMENT(K71)),'CM choke'!D75)) -> 89.98391869 | E71: =IF(IF(CMdata=1,IMABS(L71),'CM choke'!E75)=0, E70, IF(CMdata=1,IMABS(L71),'CM choke'!E75)) -> 0.4659069742 | F71: =IF(IF(CMdata=1,DEGREES(IMARGUMENT(L71)),'CM choke'!F75)=0, F70, IF(CMdata=1,DEGREES(IMARGUMENT(L71)),'CM choke'!F75)) -> 89.99809325 | G71: 0.0001046135574 | H71: 0.372725547 | I71: 1.550495062e-05 | J71: 0.465906974 | K71: =IF(CMdata=1, IF(Lcm1_core=1, IMDIV(1,IMSUM(IMDIV(1,IMPRODUCT(B71,'Design the AEF circuit'!$G$14*0.001)),IMDIV(1,'Design the AEF circuit'!$G$15*1000),IMPRODUCT(B71,'Design the AEF circuit'!$G$16*0.000000000001))), O71),COMPLEX(G71,H71,"j")) -> 0.000104613557432553+0.372725547037802j | L71: =IF(CMdata=1, IF(Lcm2_core=1, IMDIV(1, IMSUM(IMDIV(1,IMPRODUCT(B71,'Design the AEF circuit'!$H$14*0.001)), IMDIV(1,'Design the AEF circuit'!$H$15*1000), IMPRODUCT(B71,'Design the AEF circuit'!$H$16*0.000000000001))), Q71), COMPLEX(I71,J71,"j")) -> 0.0000155049506177789+0.465906973985689j | N71: =IMSUM(IMDIV(1,IMSUM(IMDIV(1,IMPRODUCT(B71,'Design the AEF circuit'!$G$14*0.001)),IMDIV(1,'Design the AEF circuit'!$G$15*1000))), IMDIV(1,IMSUM(IMDIV(1,IMPRODUCT(B71,'Design the AEF circuit'!$G$17*0.001)),IMDIV(1,'Design the AEF circuit'!$G$18*1000))), IMDIV(1,IMSUM(IMDIV(1,IMPRODUCT(B71,'Design the AEF circuit'!$G$19*0.001)),IMDIV(1,'Design the AEF circuit'!$G$20*1000))) ) -> 0.000104613557422643+0.372725547020148j | O71: =IMDIV(1, IMSUM( IMDIV(1, N71), IMPRODUCT(B71,'Design the AEF circuit'!$G$16*0.000000000001))) -> 0.000104613557432553+0.372725547037802j | P71: =IMSUM(IMDIV(1,IMSUM(IMDIV(1,IMPRODUCT(B71,'Design the AEF circuit'!$H$14*0.001)),IMDIV(1,'Design the AEF circuit'!$H$15*1000))), IMDIV(1,IMSUM(IMDIV(1,IMPRODUCT(B71,'Design the AEF circuit'!$H$17*0.001)),IMDIV(1,'Design the AEF circuit'!$H$18*1000))), IMDIV(1,IMSUM(IMDIV(1,IMPRODUCT(B71,'Design the AEF circuit'!$H$19*0.001)),IMDIV(1,'Design the AEF circuit'!$H$20*1000))) ) -> 0.0000192081991093634+0.520968706722488j | Q71: =IMDIV(1, IMSUM( IMDIV(1, P71), IMPRODUCT(B71,'Design the AEF circuit'!$H$16*0.000000000001) ) ) -> 0.0000192081991347941+0.520968707067357j
A72: ='Frequency vector'!G72 -> 16.98243652 | B72: =COMPLEX(0,2*PI()*'Frequency vector'!G72,"j") -> 106.703795651587j | C72: =IF(IF(CMdata=1,IMABS(K72),'CM choke'!C76)=0, C71, IF(CMdata=1,IMABS(K72),'CM choke'!C76)) -> 0.3755973426 | D72: =IF(IF(CMdata=1,DEGREES(IMARGUMENT(K72)),'CM choke'!D76)=0, D71, IF(CMdata=1,DEGREES(IMARGUMENT(K72)),'CM choke'!D76)) -> 89.98379479 | E72: =IF(IF(CMdata=1,IMABS(L72),'CM choke'!E76)=0, E71, IF(CMdata=1,IMABS(L72),'CM choke'!E76)) -> 0.4694967009 | F72: =IF(IF(CMdata=1,DEGREES(IMARGUMENT(L72)),'CM choke'!F76)=0, F71, IF(CMdata=1,DEGREES(IMARGUMENT(L72)),'CM choke'!F76)) -> 89.99807856 | G72: 0.0001062318236 | H72: 0.3755973276 | I72: 1.574479658e-05 | J72: 0.4694967006 | K72: =IF(CMdata=1, IF(Lcm1_core=1, IMDIV(1,IMSUM(IMDIV(1,IMPRODUCT(B72,'Design the AEF circuit'!$G$14*0.001)),IMDIV(1,'Design the AEF circuit'!$G$15*1000),IMPRODUCT(B72,'Design the AEF circuit'!$G$16*0.000000000001))), O72),COMPLEX(G72,H72,"j")) -> 0.000106231823600669+0.375597327597339j | L72: =IF(CMdata=1, IF(Lcm2_core=1, IMDIV(1, IMSUM(IMDIV(1,IMPRODUCT(B72,'Design the AEF circuit'!$H$14*0.001)), IMDIV(1,'Design the AEF circuit'!$H$15*1000), IMPRODUCT(B72,'Design the AEF circuit'!$H$16*0.000000000001))), Q72), COMPLEX(I72,J72,"j")) -> 0.0000157447965815793+0.46949670062122j | N72: =IMSUM(IMDIV(1,IMSUM(IMDIV(1,IMPRODUCT(B72,'Design the AEF circuit'!$G$14*0.001)),IMDIV(1,'Design the AEF circuit'!$G$15*1000))), IMDIV(1,IMSUM(IMDIV(1,IMPRODUCT(B72,'Design the AEF circuit'!$G$17*0.001)),IMDIV(1,'Design the AEF circuit'!$G$18*1000))), IMDIV(1,IMSUM(IMDIV(1,IMPRODUCT(B72,'Design the AEF circuit'!$G$19*0.001)),IMDIV(1,'Design the AEF circuit'!$G$20*1000))) ) -> 0.000106231823590451+0.375597327579275j | O72: =IMDIV(1, IMSUM( IMDIV(1, N72), IMPRODUCT(B72,'Design the AEF circuit'!$G$16*0.000000000001))) -> 0.000106231823600669+0.375597327597339j | P72: =IMSUM(IMDIV(1,IMSUM(IMDIV(1,IMPRODUCT(B72,'Design the AEF circuit'!$H$14*0.001)),IMDIV(1,'Design the AEF circuit'!$H$15*1000))), IMDIV(1,IMSUM(IMDIV(1,IMPRODUCT(B72,'Design the AEF circuit'!$H$17*0.001)),IMDIV(1,'Design the AEF circuit'!$H$18*1000))), IMDIV(1,IMSUM(IMDIV(1,IMPRODUCT(B72,'Design the AEF circuit'!$H$19*0.001)),IMDIV(1,'Design the AEF circuit'!$H$20*1000))) ) -> 0.000019505330595365+0.524982673765714j | Q72: =IMDIV(1, IMSUM( IMDIV(1, P72), IMPRODUCT(B72,'Design the AEF circuit'!$H$16*0.000000000001) ) ) -> 0.0000195053306215884+0.524982674118614j
A73: ='Frequency vector'!G73 -> 17.11328304 | B73: =COMPLEX(0,2*PI()*'Frequency vector'!G73,"j") -> 107.525928564699j | C73: =IF(IF(CMdata=1,IMABS(K73),'CM choke'!C77)=0, C72, IF(CMdata=1,IMABS(K73),'CM choke'!C77)) -> 0.3784912501 | D73: =IF(IF(CMdata=1,DEGREES(IMARGUMENT(K73)),'CM choke'!D77)=0, D72, IF(CMdata=1,DEGREES(IMARGUMENT(K73)),'CM choke'!D77)) -> 89.98366993 | E73: =IF(IF(CMdata=1,IMABS(L73),'CM choke'!E77)=0, E72, IF(CMdata=1,IMABS(L73),'CM choke'!E77)) -> 0.4731140857 | F73: =IF(IF(CMdata=1,DEGREES(IMARGUMENT(L73)),'CM choke'!F77)=0, F72, IF(CMdata=1,DEGREES(IMARGUMENT(L73)),'CM choke'!F77)) -> 89.99806375 | G73: 0.0001078751227 | H73: 0.3784912347 | I73: 1.598835272e-05 | J73: 0.4731140854 | K73: =IF(CMdata=1, IF(Lcm1_core=1, IMDIV(1,IMSUM(IMDIV(1,IMPRODUCT(B73,'Design the AEF circuit'!$G$14*0.001)),IMDIV(1,'Design the AEF circuit'!$G$15*1000),IMPRODUCT(B73,'Design the AEF circuit'!$G$16*0.000000000001))), O73),COMPLEX(G73,H73,"j")) -> 0.0001078751227109+0.378491234680581j | L73: =IF(CMdata=1, IF(Lcm2_core=1, IMDIV(1, IMSUM(IMDIV(1,IMPRODUCT(B73,'Design the AEF circuit'!$H$14*0.001)), IMDIV(1,'Design the AEF circuit'!$H$15*1000), IMPRODUCT(B73,'Design the AEF circuit'!$H$16*0.000000000001))), Q73), COMPLEX(I73,J73,"j")) -> 0.0000159883527207792+0.473114085433187j | N73: =IMSUM(IMDIV(1,IMSUM(IMDIV(1,IMPRODUCT(B73,'Design the AEF circuit'!$G$14*0.001)),IMDIV(1,'Design the AEF circuit'!$G$15*1000))), IMDIV(1,IMSUM(IMDIV(1,IMPRODUCT(B73,'Design the AEF circuit'!$G$17*0.001)),IMDIV(1,'Design the AEF circuit'!$G$18*1000))), IMDIV(1,IMSUM(IMDIV(1,IMPRODUCT(B73,'Design the AEF circuit'!$G$19*0.001)),IMDIV(1,'Design the AEF circuit'!$G$20*1000))) ) -> 0.000107875122700363+0.378491234662097j | O73: =IMDIV(1, IMSUM( IMDIV(1, N73), IMPRODUCT(B73,'Design the AEF circuit'!$G$16*0.000000000001))) -> 0.0001078751227109+0.378491234680581j | P73: =IMSUM(IMDIV(1,IMSUM(IMDIV(1,IMPRODUCT(B73,'Design the AEF circuit'!$H$14*0.001)),IMDIV(1,'Design the AEF circuit'!$H$15*1000))), IMDIV(1,IMSUM(IMDIV(1,IMPRODUCT(B73,'Design the AEF circuit'!$H$17*0.001)),IMDIV(1,'Design the AEF circuit'!$H$18*1000))), IMDIV(1,IMSUM(IMDIV(1,IMPRODUCT(B73,'Design the AEF circuit'!$H$19*0.001)),IMDIV(1,'Design the AEF circuit'!$H$20*1000))) ) -> 0.0000198070584060539+0.529027567678657j | Q73: =IMDIV(1, IMSUM( IMDIV(1, P73), IMPRODUCT(B73,'Design the AEF circuit'!$H$16*0.000000000001) ) ) -> 0.0000198070584330949+0.529027568039777j
A74: ='Frequency vector'!G74 -> 17.24513771 | B74: =COMPLEX(0,2*PI()*'Frequency vector'!G74,"j") -> 108.354395859102j | C74: =IF(IF(CMdata=1,IMABS(K74),'CM choke'!C78)=0, C73, IF(CMdata=1,IMABS(K74),'CM choke'!C78)) -> 0.3814074545 | D74: =IF(IF(CMdata=1,DEGREES(IMARGUMENT(K74)),'CM choke'!D78)=0, D73, IF(CMdata=1,DEGREES(IMARGUMENT(K74)),'CM choke'!D78)) -> 89.98354411 | E74: =IF(IF(CMdata=1,IMABS(L74),'CM choke'!E78)=0, E73, IF(CMdata=1,IMABS(L74),'CM choke'!E78)) -> 0.4767593418 | F74: =IF(IF(CMdata=1,DEGREES(IMARGUMENT(L74)),'CM choke'!F78)=0, F73, IF(CMdata=1,DEGREES(IMARGUMENT(L74)),'CM choke'!F78)) -> 89.99804884 | G74: 0.000109543842 | H74: 0.3814074388 | I74: 1.623567643e-05 | J74: 0.4767593415 | K74: =IF(CMdata=1, IF(Lcm1_core=1, IMDIV(1,IMSUM(IMDIV(1,IMPRODUCT(B74,'Design the AEF circuit'!$G$14*0.001)),IMDIV(1,'Design the AEF circuit'!$G$15*1000),IMPRODUCT(B74,'Design the AEF circuit'!$G$16*0.000000000001))), O74),COMPLEX(G74,H74,"j")) -> 0.000109543841997483+0.381407438768014j | L74: =IF(CMdata=1, IF(Lcm2_core=1, IMDIV(1, IMSUM(IMDIV(1,IMPRODUCT(B74,'Design the AEF circuit'!$H$14*0.001)), IMDIV(1,'Design the AEF circuit'!$H$15*1000), IMPRODUCT(B74,'Design the AEF circuit'!$H$16*0.000000000001))), Q74), COMPLEX(I74,J74,"j")) -> 0.0000162356764280541+0.476759341522701j | N74: =IMSUM(IMDIV(1,IMSUM(IMDIV(1,IMPRODUCT(B74,'Design the AEF circuit'!$G$14*0.001)),IMDIV(1,'Design the AEF circuit'!$G$15*1000))), IMDIV(1,IMSUM(IMDIV(1,IMPRODUCT(B74,'Design the AEF circuit'!$G$17*0.001)),IMDIV(1,'Design the AEF circuit'!$G$18*1000))), IMDIV(1,IMSUM(IMDIV(1,IMPRODUCT(B74,'Design the AEF circuit'!$G$19*0.001)),IMDIV(1,'Design the AEF circuit'!$G$20*1000))) ) -> 0.000109543841986617+0.381407438749098j | O74: =IMDIV(1, IMSUM( IMDIV(1, N74), IMPRODUCT(B74,'Design the AEF circuit'!$G$16*0.000000000001))) -> 0.000109543841997483+0.381407438768014j | P74: =IMSUM(IMDIV(1,IMSUM(IMDIV(1,IMPRODUCT(B74,'Design the AEF circuit'!$H$14*0.001)),IMDIV(1,'Design the AEF circuit'!$H$15*1000))), IMDIV(1,IMSUM(IMDIV(1,IMPRODUCT(B74,'Design the AEF circuit'!$H$17*0.001)),IMDIV(1,'Design the AEF circuit'!$H$18*1000))), IMDIV(1,IMSUM(IMDIV(1,IMPRODUCT(B74,'Design the AEF circuit'!$H$19*0.001)),IMDIV(1,'Design the AEF circuit'!$H$20*1000))) ) -> 0.0000201134536419417+0.533103626747095j | Q74: =IMDIV(1, IMSUM( IMDIV(1, P74), IMPRODUCT(B74,'Design the AEF circuit'!$H$16*0.000000000001) ) ) -> 0.0000201134536698258+0.533103627116626j
A75: ='Frequency vector'!G75 -> 17.37800829 | B75: =COMPLEX(0,2*PI()*'Frequency vector'!G75,"j") -> 109.189246340027j | C75: =IF(IF(CMdata=1,IMABS(K75),'CM choke'!C79)=0, C74, IF(CMdata=1,IMABS(K75),'CM choke'!C79)) -> 0.3843461278 | D75: =IF(IF(CMdata=1,DEGREES(IMARGUMENT(K75)),'CM choke'!D79)=0, D74, IF(CMdata=1,DEGREES(IMARGUMENT(K75)),'CM choke'!D79)) -> 89.98341732 | E75: =IF(IF(CMdata=1,IMABS(L75),'CM choke'!E79)=0, E74, IF(CMdata=1,IMABS(L75),'CM choke'!E79)) -> 0.4804326839 | F75: =IF(IF(CMdata=1,DEGREES(IMARGUMENT(L75)),'CM choke'!F79)=0, F74, IF(CMdata=1,DEGREES(IMARGUMENT(L75)),'CM choke'!F79)) -> 89.9980338 | G75: 0.0001112383747 | H75: 0.3843461117 | I75: 1.648682598e-05 | J75: 0.4804326836 | K75: =IF(CMdata=1, IF(Lcm1_core=1, IMDIV(1,IMSUM(IMDIV(1,IMPRODUCT(B75,'Design the AEF circuit'!$G$14*0.001)),IMDIV(1,'Design the AEF circuit'!$G$15*1000),IMPRODUCT(B75,'Design the AEF circuit'!$G$16*0.000000000001))), O75),COMPLEX(G75,H75,"j")) -> 0.000111238374684772+0.384346111653627j | L75: =IF(CMdata=1, IF(Lcm2_core=1, IMDIV(1, IMSUM(IMDIV(1,IMPRODUCT(B75,'Design the AEF circuit'!$H$14*0.001)), IMDIV(1,'Design the AEF circuit'!$H$15*1000), IMPRODUCT(B75,'Design the AEF circuit'!$H$16*0.000000000001))), Q75), COMPLEX(I75,J75,"j")) -> 0.0000164868259838863+0.480432683632778j | N75: =IMSUM(IMDIV(1,IMSUM(IMDIV(1,IMPRODUCT(B75,'Design the AEF circuit'!$G$14*0.001)),IMDIV(1,'Design the AEF circuit'!$G$15*1000))), IMDIV(1,IMSUM(IMDIV(1,IMPRODUCT(B75,'Design the AEF circuit'!$G$17*0.001)),IMDIV(1,'Design the AEF circuit'!$G$18*1000))), IMDIV(1,IMSUM(IMDIV(1,IMPRODUCT(B75,'Design the AEF circuit'!$G$19*0.001)),IMDIV(1,'Design the AEF circuit'!$G$20*1000))) ) -> 0.000111238374673568+0.384346111634271j | O75: =IMDIV(1, IMSUM( IMDIV(1, N75), IMPRODUCT(B75,'Design the AEF circuit'!$G$16*0.000000000001))) -> 0.000111238374684772+0.384346111653627j | P75: =IMSUM(IMDIV(1,IMSUM(IMDIV(1,IMPRODUCT(B75,'Design the AEF circuit'!$H$14*0.001)),IMDIV(1,'Design the AEF circuit'!$H$15*1000))), IMDIV(1,IMSUM(IMDIV(1,IMPRODUCT(B75,'Design the AEF circuit'!$H$17*0.001)),IMDIV(1,'Design the AEF circuit'!$H$18*1000))), IMDIV(1,IMSUM(IMDIV(1,IMPRODUCT(B75,'Design the AEF circuit'!$H$19*0.001)),IMDIV(1,'Design the AEF circuit'!$H$20*1000))) ) -> 0.000020424588503393+0.537211091092757j | Q75: =IMDIV(1, IMSUM( IMDIV(1, P75), IMPRODUCT(B75,'Design the AEF circuit'!$H$16*0.000000000001) ) ) -> 0.0000204245885321465+0.537211091470896j
A76: ='Frequency vector'!G76 -> 17.51190261 | B76: =COMPLEX(0,2*PI()*'Frequency vector'!G76,"j") -> 110.030529188738j | C76: =IF(IF(CMdata=1,IMABS(K76),'CM choke'!C80)=0, C75, IF(CMdata=1,IMABS(K76),'CM choke'!C80)) -> 0.3873074429 | D76: =IF(IF(CMdata=1,DEGREES(IMARGUMENT(K76)),'CM choke'!D80)=0, D75, IF(CMdata=1,DEGREES(IMARGUMENT(K76)),'CM choke'!D80)) -> 89.98328955 | E76: =IF(IF(CMdata=1,IMABS(L76),'CM choke'!E80)=0, E75, IF(CMdata=1,IMABS(L76),'CM choke'!E80)) -> 0.4841343285 | F76: =IF(IF(CMdata=1,DEGREES(IMARGUMENT(L76)),'CM choke'!F80)=0, F75, IF(CMdata=1,DEGREES(IMARGUMENT(L76)),'CM choke'!F80)) -> 89.99801865 | G76: 0.0001129591201 | H76: 0.3873074265 | I76: 1.674186057e-05 | J76: 0.4841343282 | K76: =IF(CMdata=1, IF(Lcm1_core=1, IMDIV(1,IMSUM(IMDIV(1,IMPRODUCT(B76,'Design the AEF circuit'!$G$14*0.001)),IMDIV(1,'Design the AEF circuit'!$G$15*1000),IMPRODUCT(B76,'Design the AEF circuit'!$G$16*0.000000000001))), O76),COMPLEX(G76,H76,"j")) -> 0.000112959120079902+0.387307426455044j | L76: =IF(CMdata=1, IF(Lcm2_core=1, IMDIV(1, IMSUM(IMDIV(1,IMPRODUCT(B76,'Design the AEF circuit'!$H$14*0.001)), IMDIV(1,'Design the AEF circuit'!$H$15*1000), IMPRODUCT(B76,'Design the AEF circuit'!$H$16*0.000000000001))), Q76), COMPLEX(I76,J76,"j")) -> 0.0000167418605702976+0.484134328160974j | N76: =IMSUM(IMDIV(1,IMSUM(IMDIV(1,IMPRODUCT(B76,'Design the AEF circuit'!$G$14*0.001)),IMDIV(1,'Design the AEF circuit'!$G$15*1000))), IMDIV(1,IMSUM(IMDIV(1,IMPRODUCT(B76,'Design the AEF circuit'!$G$17*0.001)),IMDIV(1,'Design the AEF circuit'!$G$18*1000))), IMDIV(1,IMSUM(IMDIV(1,IMPRODUCT(B76,'Design the AEF circuit'!$G$19*0.001)),IMDIV(1,'Design the AEF circuit'!$G$20*1000))) ) -> 0.000112959120068349+0.387307426435237j | O76: =IMDIV(1, IMSUM( IMDIV(1, N76), IMPRODUCT(B76,'Design the AEF circuit'!$G$16*0.000000000001))) -> 0.000112959120079902+0.387307426455044j | P76: =IMSUM(IMDIV(1,IMSUM(IMDIV(1,IMPRODUCT(B76,'Design the AEF circuit'!$H$14*0.001)),IMDIV(1,'Design the AEF circuit'!$H$15*1000))), IMDIV(1,IMSUM(IMDIV(1,IMPRODUCT(B76,'Design the AEF circuit'!$H$17*0.001)),IMDIV(1,'Design the AEF circuit'!$H$18*1000))), IMDIV(1,IMSUM(IMDIV(1,IMPRODUCT(B76,'Design the AEF circuit'!$H$19*0.001)),IMDIV(1,'Design the AEF circuit'!$H$20*1000))) ) -> 0.0000207405363076382+0.541350202687447j | Q76: =IMDIV(1, IMSUM( IMDIV(1, P76), IMPRODUCT(B76,'Design the AEF circuit'!$H$16*0.000000000001) ) ) -> 0.0000207405363372881+0.541350203074394j
A77: ='Frequency vector'!G77 -> 17.64682857 | B77: =COMPLEX(0,2*PI()*'Frequency vector'!G77,"j") -> 110.878293965434j | C77: =IF(IF(CMdata=1,IMABS(K77),'CM choke'!C81)=0, C76, IF(CMdata=1,IMABS(K77),'CM choke'!C81)) -> 0.3902915745 | D77: =IF(IF(CMdata=1,DEGREES(IMARGUMENT(K77)),'CM choke'!D81)=0, D76, IF(CMdata=1,DEGREES(IMARGUMENT(K77)),'CM choke'!D81)) -> 89.9831608 | E77: =IF(IF(CMdata=1,IMABS(L77),'CM choke'!E81)=0, E76, IF(CMdata=1,IMABS(L77),'CM choke'!E81)) -> 0.4878644935 | F77: =IF(IF(CMdata=1,DEGREES(IMARGUMENT(L77)),'CM choke'!F81)=0, F76, IF(CMdata=1,DEGREES(IMARGUMENT(L77)),'CM choke'!F81)) -> 89.99800339 | G77: 0.0001147064837 | H77: 0.3902915576 | I77: 1.700084028e-05 | J77: 0.4878644932 | K77: =IF(CMdata=1, IF(Lcm1_core=1, IMDIV(1,IMSUM(IMDIV(1,IMPRODUCT(B77,'Design the AEF circuit'!$G$14*0.001)),IMDIV(1,'Design the AEF circuit'!$G$15*1000),IMPRODUCT(B77,'Design the AEF circuit'!$G$16*0.000000000001))), O77),COMPLEX(G77,H77,"j")) -> 0.000114706483666879+0.390291557623728j | L77: =IF(CMdata=1, IF(Lcm2_core=1, IMDIV(1, IMSUM(IMDIV(1,IMPRODUCT(B77,'Design the AEF circuit'!$H$14*0.001)), IMDIV(1,'Design the AEF circuit'!$H$15*1000), IMPRODUCT(B77,'Design the AEF circuit'!$H$16*0.000000000001))), Q77), COMPLEX(I77,J77,"j")) -> 0.0000170008402847967+0.487864493172157j | N77: =IMSUM(IMDIV(1,IMSUM(IMDIV(1,IMPRODUCT(B77,'Design the AEF circuit'!$G$14*0.001)),IMDIV(1,'Design the AEF circuit'!$G$15*1000))), IMDIV(1,IMSUM(IMDIV(1,IMPRODUCT(B77,'Design the AEF circuit'!$G$17*0.001)),IMDIV(1,'Design the AEF circuit'!$G$18*1000))), IMDIV(1,IMSUM(IMDIV(1,IMPRODUCT(B77,'Design the AEF circuit'!$G$19*0.001)),IMDIV(1,'Design the AEF circuit'!$G$20*1000))) ) -> 0.000114706483654966+0.39029155760346j | O77: =IMDIV(1, IMSUM( IMDIV(1, N77), IMPRODUCT(B77,'Design the AEF circuit'!$G$16*0.000000000001))) -> 0.000114706483666879+0.390291557623728j | P77: =IMSUM(IMDIV(1,IMSUM(IMDIV(1,IMPRODUCT(B77,'Design the AEF circuit'!$H$14*0.001)),IMDIV(1,'Design the AEF circuit'!$H$15*1000))), IMDIV(1,IMSUM(IMDIV(1,IMPRODUCT(B77,'Design the AEF circuit'!$H$17*0.001)),IMDIV(1,'Design the AEF circuit'!$H$18*1000))), IMDIV(1,IMSUM(IMDIV(1,IMPRODUCT(B77,'Design the AEF circuit'!$H$19*0.001)),IMDIV(1,'Design the AEF circuit'!$H$20*1000))) ) -> 0.0000210613715060526+0.545521205367334j | Q77: =IMDIV(1, IMSUM( IMDIV(1, P77), IMPRODUCT(B77,'Design the AEF circuit'!$H$16*0.000000000001) ) ) -> 0.0000210613715366268+0.545521205763293j
A78: ='Frequency vector'!G78 -> 17.7827941 | B78: =COMPLEX(0,2*PI()*'Frequency vector'!G78,"j") -> 111.732590612166j | C78: =IF(IF(CMdata=1,IMABS(K78),'CM choke'!C82)=0, C77, IF(CMdata=1,IMABS(K78),'CM choke'!C82)) -> 0.3932986982 | D78: =IF(IF(CMdata=1,DEGREES(IMARGUMENT(K78)),'CM choke'!D82)=0, D77, IF(CMdata=1,DEGREES(IMARGUMENT(K78)),'CM choke'!D82)) -> 89.98303106 | E78: =IF(IF(CMdata=1,IMABS(L78),'CM choke'!E82)=0, E77, IF(CMdata=1,IMABS(L78),'CM choke'!E82)) -> 0.4916233987 | F78: =IF(IF(CMdata=1,DEGREES(IMARGUMENT(L78)),'CM choke'!F82)=0, F77, IF(CMdata=1,DEGREES(IMARGUMENT(L78)),'CM choke'!F82)) -> 89.997988 | G78: 0.0001164808772 | H78: 0.393298681 | I78: 1.726382615e-05 | J78: 0.4916233984 | K78: =IF(CMdata=1, IF(Lcm1_core=1, IMDIV(1,IMSUM(IMDIV(1,IMPRODUCT(B78,'Design the AEF circuit'!$G$14*0.001)),IMDIV(1,'Design the AEF circuit'!$G$15*1000),IMPRODUCT(B78,'Design the AEF circuit'!$G$16*0.000000000001))), O78),COMPLEX(G78,H78,"j")) -> 0.000116480877202139+0.393298680955248j | L78: =IF(CMdata=1, IF(Lcm2_core=1, IMDIV(1, IMSUM(IMDIV(1,IMPRODUCT(B78,'Design the AEF circuit'!$H$14*0.001)), IMDIV(1,'Design the AEF circuit'!$H$15*1000), IMPRODUCT(B78,'Design the AEF circuit'!$H$16*0.000000000001))), Q78), COMPLEX(I78,J78,"j")) -> 0.0000172638261545406+0.491623398411354j | N78: =IMSUM(IMDIV(1,IMSUM(IMDIV(1,IMPRODUCT(B78,'Design the AEF circuit'!$G$14*0.001)),IMDIV(1,'Design the AEF circuit'!$G$15*1000))), IMDIV(1,IMSUM(IMDIV(1,IMPRODUCT(B78,'Design the AEF circuit'!$G$17*0.001)),IMDIV(1,'Design the AEF circuit'!$G$18*1000))), IMDIV(1,IMSUM(IMDIV(1,IMPRODUCT(B78,'Design the AEF circuit'!$G$19*0.001)),IMDIV(1,'Design the AEF circuit'!$G$20*1000))) ) -> 0.000116480877189854+0.393298680934508j | O78: =IMDIV(1, IMSUM( IMDIV(1, N78), IMPRODUCT(B78,'Design the AEF circuit'!$G$16*0.000000000001))) -> 0.000116480877202139+0.393298680955248j | P78: =IMSUM(IMDIV(1,IMSUM(IMDIV(1,IMPRODUCT(B78,'Design the AEF circuit'!$H$14*0.001)),IMDIV(1,'Design the AEF circuit'!$H$15*1000))), IMDIV(1,IMSUM(IMDIV(1,IMPRODUCT(B78,'Design the AEF circuit'!$H$17*0.001)),IMDIV(1,'Design the AEF circuit'!$H$18*1000))), IMDIV(1,IMSUM(IMDIV(1,IMPRODUCT(B78,'Design the AEF circuit'!$H$19*0.001)),IMDIV(1,'Design the AEF circuit'!$H$20*1000))) ) -> 0.0000213871697016994+0.549724344847299j | Q78: =IMDIV(1, IMSUM( IMDIV(1, P78), IMPRODUCT(B78,'Design the AEF circuit'!$H$16*0.000000000001) ) ) -> 0.0000213871697332269+0.549724345252482j
A79: ='Frequency vector'!G79 -> 17.91980722 | B79: =COMPLEX(0,2*PI()*'Frequency vector'!G79,"j") -> 112.593469455778j | C79: =IF(IF(CMdata=1,IMABS(K79),'CM choke'!C83)=0, C78, IF(CMdata=1,IMABS(K79),'CM choke'!C83)) -> 0.3963289913 | D79: =IF(IF(CMdata=1,DEGREES(IMARGUMENT(K79)),'CM choke'!D83)=0, D78, IF(CMdata=1,DEGREES(IMARGUMENT(K79)),'CM choke'!D83)) -> 89.98290032 | E79: =IF(IF(CMdata=1,IMABS(L79),'CM choke'!E83)=0, E78, IF(CMdata=1,IMABS(L79),'CM choke'!E83)) -> 0.4954112656 | F79: =IF(IF(CMdata=1,DEGREES(IMARGUMENT(L79)),'CM choke'!F83)=0, F78, IF(CMdata=1,DEGREES(IMARGUMENT(L79)),'CM choke'!F83)) -> 89.9979725 | G79: 0.0001182827188 | H79: 0.3963289736 | I79: 1.753088015e-05 | J79: 0.4954112653 | K79: =IF(CMdata=1, IF(Lcm1_core=1, IMDIV(1,IMSUM(IMDIV(1,IMPRODUCT(B79,'Design the AEF circuit'!$G$14*0.001)),IMDIV(1,'Design the AEF circuit'!$G$15*1000),IMPRODUCT(B79,'Design the AEF circuit'!$G$16*0.000000000001))), O79),COMPLEX(G79,H79,"j")) -> 0.000118282718811563+0.396328973599637j | L79: =IF(CMdata=1, IF(Lcm2_core=1, IMDIV(1, IMSUM(IMDIV(1,IMPRODUCT(B79,'Design the AEF circuit'!$H$14*0.001)), IMDIV(1,'Design the AEF circuit'!$H$15*1000), IMPRODUCT(B79,'Design the AEF circuit'!$H$16*0.000000000001))), Q79), COMPLEX(I79,J79,"j")) -> 0.0000175308801507143+0.495411265316675j | N79: =IMSUM(IMDIV(1,IMSUM(IMDIV(1,IMPRODUCT(B79,'Design the AEF circuit'!$G$14*0.001)),IMDIV(1,'Design the AEF circuit'!$G$15*1000))), IMDIV(1,IMSUM(IMDIV(1,IMPRODUCT(B79,'Design the AEF circuit'!$G$17*0.001)),IMDIV(1,'Design the AEF circuit'!$G$18*1000))), IMDIV(1,IMSUM(IMDIV(1,IMPRODUCT(B79,'Design the AEF circuit'!$G$19*0.001)),IMDIV(1,'Design the AEF circuit'!$G$20*1000))) ) -> 0.000118282718798896+0.396328973578415j | O79: =IMDIV(1, IMSUM( IMDIV(1, N79), IMPRODUCT(B79,'Design the AEF circuit'!$G$16*0.000000000001))) -> 0.000118282718811563+0.396328973599637j | P79: =IMSUM(IMDIV(1,IMSUM(IMDIV(1,IMPRODUCT(B79,'Design the AEF circuit'!$H$14*0.001)),IMDIV(1,'Design the AEF circuit'!$H$15*1000))), IMDIV(1,IMSUM(IMDIV(1,IMPRODUCT(B79,'Design the AEF circuit'!$H$17*0.001)),IMDIV(1,'Design the AEF circuit'!$H$18*1000))), IMDIV(1,IMSUM(IMDIV(1,IMPRODUCT(B79,'Design the AEF circuit'!$H$19*0.001)),IMDIV(1,'Design the AEF circuit'!$H$20*1000))) ) -> 0.000021718007667144+0.553959868735403j | Q79: =IMDIV(1, IMSUM( IMDIV(1, P79), IMPRODUCT(B79,'Design the AEF circuit'!$H$16*0.000000000001) ) ) -> 0.0000217180076996544+0.553959869150024j
A80: ='Frequency vector'!G80 -> 18.05787601 | B80: =COMPLEX(0,2*PI()*'Frequency vector'!G80,"j") -> 113.460981210874j | C80: =IF(IF(CMdata=1,IMABS(K80),'CM choke'!C84)=0, C79, IF(CMdata=1,IMABS(K80),'CM choke'!C84)) -> 0.3993826321 | D80: =IF(IF(CMdata=1,DEGREES(IMARGUMENT(K80)),'CM choke'!D84)=0, D79, IF(CMdata=1,DEGREES(IMARGUMENT(K80)),'CM choke'!D84)) -> 89.98276857 | E80: =IF(IF(CMdata=1,IMABS(L80),'CM choke'!E84)=0, E79, IF(CMdata=1,IMABS(L80),'CM choke'!E84)) -> 0.4992283173 | F80: =IF(IF(CMdata=1,DEGREES(IMARGUMENT(L80)),'CM choke'!F84)=0, F79, IF(CMdata=1,DEGREES(IMARGUMENT(L80)),'CM choke'!F84)) -> 89.99795688 | G80: 0.0001201124331 | H80: 0.3993826141 | I80: 1.78020652e-05 | J80: 0.499228317 | K80: =IF(CMdata=1, IF(Lcm1_core=1, IMDIV(1,IMSUM(IMDIV(1,IMPRODUCT(B80,'Design the AEF circuit'!$G$14*0.001)),IMDIV(1,'Design the AEF circuit'!$G$15*1000),IMPRODUCT(B80,'Design the AEF circuit'!$G$16*0.000000000001))), O80),COMPLEX(G80,H80,"j")) -> 0.000120112433089018+0.399382614071834j | L80: =IF(CMdata=1, IF(Lcm2_core=1, IMDIV(1, IMSUM(IMDIV(1,IMPRODUCT(B80,'Design the AEF circuit'!$H$14*0.001)), IMDIV(1,'Design the AEF circuit'!$H$15*1000), IMPRODUCT(B80,'Design the AEF circuit'!$H$16*0.000000000001))), Q80), COMPLEX(I80,J80,"j")) -> 0.0000178020652031349+0.499228317032373j | N80: =IMSUM(IMDIV(1,IMSUM(IMDIV(1,IMPRODUCT(B80,'Design the AEF circuit'!$G$14*0.001)),IMDIV(1,'Design the AEF circuit'!$G$15*1000))), IMDIV(1,IMSUM(IMDIV(1,IMPRODUCT(B80,'Design the AEF circuit'!$G$17*0.001)),IMDIV(1,'Design the AEF circuit'!$G$18*1000))), IMDIV(1,IMSUM(IMDIV(1,IMPRODUCT(B80,'Design the AEF circuit'!$G$19*0.001)),IMDIV(1,'Design the AEF circuit'!$G$20*1000))) ) -> 0.000120112433075956+0.399382614050118j | O80: =IMDIV(1, IMSUM( IMDIV(1, N80), IMPRODUCT(B80,'Design the AEF circuit'!$G$16*0.000000000001))) -> 0.000120112433089018+0.399382614071834j | P80: =IMSUM(IMDIV(1,IMSUM(IMDIV(1,IMPRODUCT(B80,'Design the AEF circuit'!$H$14*0.001)),IMDIV(1,'Design the AEF circuit'!$H$15*1000))), IMDIV(1,IMSUM(IMDIV(1,IMPRODUCT(B80,'Design the AEF circuit'!$H$17*0.001)),IMDIV(1,'Design the AEF circuit'!$H$18*1000))), IMDIV(1,IMSUM(IMDIV(1,IMPRODUCT(B80,'Design the AEF circuit'!$H$19*0.001)),IMDIV(1,'Design the AEF circuit'!$H$20*1000))) ) -> 0.0000220539633625467+0.558228026547486j | Q80: =IMDIV(1, IMSUM( IMDIV(1, P80), IMPRODUCT(B80,'Design the AEF circuit'!$H$16*0.000000000001) ) ) -> 0.0000220539633960706+0.558228026971763j
A81: ='Frequency vector'!G81 -> 18.19700859 | B81: =COMPLEX(0,2*PI()*'Frequency vector'!G81,"j") -> 114.335176982804j | C81: =IF(IF(CMdata=1,IMABS(K81),'CM choke'!C85)=0, C80, IF(CMdata=1,IMABS(K81),'CM choke'!C85)) -> 0.4024598007 | D81: =IF(IF(CMdata=1,DEGREES(IMARGUMENT(K81)),'CM choke'!D85)=0, D80, IF(CMdata=1,DEGREES(IMARGUMENT(K81)),'CM choke'!D85)) -> 89.9826358 | E81: =IF(IF(CMdata=1,IMABS(L81),'CM choke'!E85)=0, E80, IF(CMdata=1,IMABS(L81),'CM choke'!E85)) -> 0.5030747787 | F81: =IF(IF(CMdata=1,DEGREES(IMARGUMENT(L81)),'CM choke'!F85)=0, F80, IF(CMdata=1,DEGREES(IMARGUMENT(L81)),'CM choke'!F85)) -> 89.99794114 | G81: 0.0001219704512 | H81: 0.4024597823 | I81: 1.807744522e-05 | J81: 0.5030747784 | K81: =IF(CMdata=1, IF(Lcm1_core=1, IMDIV(1,IMSUM(IMDIV(1,IMPRODUCT(B81,'Design the AEF circuit'!$G$14*0.001)),IMDIV(1,'Design the AEF circuit'!$G$15*1000),IMPRODUCT(B81,'Design the AEF circuit'!$G$16*0.000000000001))), O81),COMPLEX(G81,H81,"j")) -> 0.000121970451196402+0.402459782262191j | L81: =IF(CMdata=1, IF(Lcm2_core=1, IMDIV(1, IMSUM(IMDIV(1,IMPRODUCT(B81,'Design the AEF circuit'!$H$14*0.001)), IMDIV(1,'Design the AEF circuit'!$H$15*1000), IMPRODUCT(B81,'Design the AEF circuit'!$H$16*0.000000000001))), Q81), COMPLEX(I81,J81,"j")) -> 0.0000180774452150799+0.503074778421981j | N81: =IMSUM(IMDIV(1,IMSUM(IMDIV(1,IMPRODUCT(B81,'Design the AEF circuit'!$G$14*0.001)),IMDIV(1,'Design the AEF circuit'!$G$15*1000))), IMDIV(1,IMSUM(IMDIV(1,IMPRODUCT(B81,'Design the AEF circuit'!$G$17*0.001)),IMDIV(1,'Design the AEF circuit'!$G$18*1000))), IMDIV(1,IMSUM(IMDIV(1,IMPRODUCT(B81,'Design the AEF circuit'!$G$19*0.001)),IMDIV(1,'Design the AEF circuit'!$G$20*1000))) ) -> 0.000121970451182932+0.402459782239968j | O81: =IMDIV(1, IMSUM( IMDIV(1, N81), IMPRODUCT(B81,'Design the AEF circuit'!$G$16*0.000000000001))) -> 0.000121970451196402+0.402459782262191j | P81: =IMSUM(IMDIV(1,IMSUM(IMDIV(1,IMPRODUCT(B81,'Design the AEF circuit'!$H$14*0.001)),IMDIV(1,'Design the AEF circuit'!$H$15*1000))), IMDIV(1,IMSUM(IMDIV(1,IMPRODUCT(B81,'Design the AEF circuit'!$H$17*0.001)),IMDIV(1,'Design the AEF circuit'!$H$18*1000))), IMDIV(1,IMSUM(IMDIV(1,IMPRODUCT(B81,'Design the AEF circuit'!$H$19*0.001)),IMDIV(1,'Design the AEF circuit'!$H$20*1000))) ) -> 0.0000223951159540324+0.562529069721854j | Q81: =IMDIV(1, IMSUM( IMDIV(1, P81), IMPRODUCT(B81,'Design the AEF circuit'!$H$16*0.000000000001) ) ) -> 0.0000223951159886016+0.562529070156015j
A82: ='Frequency vector'!G82 -> 18.33721316 | B82: =COMPLEX(0,2*PI()*'Frequency vector'!G82,"j") -> 115.216108270675j | C82: =IF(IF(CMdata=1,IMABS(K82),'CM choke'!C86)=0, C81, IF(CMdata=1,IMABS(K82),'CM choke'!C86)) -> 0.4055606784 | D82: =IF(IF(CMdata=1,DEGREES(IMARGUMENT(K82)),'CM choke'!D86)=0, D81, IF(CMdata=1,DEGREES(IMARGUMENT(K82)),'CM choke'!D86)) -> 89.98250201 | E82: =IF(IF(CMdata=1,IMABS(L82),'CM choke'!E86)=0, E81, IF(CMdata=1,IMABS(L82),'CM choke'!E86)) -> 0.5069508764 | F82: =IF(IF(CMdata=1,DEGREES(IMARGUMENT(L82)),'CM choke'!F86)=0, F81, IF(CMdata=1,DEGREES(IMARGUMENT(L82)),'CM choke'!F86)) -> 89.99792528 | G82: 0.000123857211 | H82: 0.4055606594 | I82: 1.835708508e-05 | J82: 0.5069508761 | K82: =IF(CMdata=1, IF(Lcm1_core=1, IMDIV(1,IMSUM(IMDIV(1,IMPRODUCT(B82,'Design the AEF circuit'!$G$14*0.001)),IMDIV(1,'Design the AEF circuit'!$G$15*1000),IMPRODUCT(B82,'Design the AEF circuit'!$G$16*0.000000000001))), O82),COMPLEX(G82,H82,"j")) -> 0.000123857210965243+0.405560659447071j | L82: =IF(CMdata=1, IF(Lcm2_core=1, IMDIV(1, IMSUM(IMDIV(1,IMPRODUCT(B82,'Design the AEF circuit'!$H$14*0.001)), IMDIV(1,'Design the AEF circuit'!$H$15*1000), IMPRODUCT(B82,'Design the AEF circuit'!$H$16*0.000000000001))), Q82), COMPLEX(I82,J82,"j")) -> 0.0000183570850783468+0.506950876081571j | N82: =IMSUM(IMDIV(1,IMSUM(IMDIV(1,IMPRODUCT(B82,'Design the AEF circuit'!$G$14*0.001)),IMDIV(1,'Design the AEF circuit'!$G$15*1000))), IMDIV(1,IMSUM(IMDIV(1,IMPRODUCT(B82,'Design the AEF circuit'!$G$17*0.001)),IMDIV(1,'Design the AEF circuit'!$G$18*1000))), IMDIV(1,IMSUM(IMDIV(1,IMPRODUCT(B82,'Design the AEF circuit'!$G$19*0.001)),IMDIV(1,'Design the AEF circuit'!$G$20*1000))) ) -> 0.000123857210951352+0.405560659424329j | O82: =IMDIV(1, IMSUM( IMDIV(1, N82), IMPRODUCT(B82,'Design the AEF circuit'!$G$16*0.000000000001))) -> 0.000123857210965243+0.405560659447071j | P82: =IMSUM(IMDIV(1,IMSUM(IMDIV(1,IMPRODUCT(B82,'Design the AEF circuit'!$H$14*0.001)),IMDIV(1,'Design the AEF circuit'!$H$15*1000))), IMDIV(1,IMSUM(IMDIV(1,IMPRODUCT(B82,'Design the AEF circuit'!$H$17*0.001)),IMDIV(1,'Design the AEF circuit'!$H$18*1000))), IMDIV(1,IMSUM(IMDIV(1,IMPRODUCT(B82,'Design the AEF circuit'!$H$19*0.001)),IMDIV(1,'Design the AEF circuit'!$H$20*1000))) ) -> 0.0000227415458323467+0.566863251634106j | Q82: =IMDIV(1, IMSUM( IMDIV(1, P82), IMPRODUCT(B82,'Design the AEF circuit'!$H$16*0.000000000001) ) ) -> 0.0000227415458679935+0.566863252078378j
A83: ='Frequency vector'!G83 -> 18.47849797 | B83: =COMPLEX(0,2*PI()*'Frequency vector'!G83,"j") -> 116.103826970386j | C83: =IF(IF(CMdata=1,IMABS(K83),'CM choke'!C87)=0, C82, IF(CMdata=1,IMABS(K83),'CM choke'!C87)) -> 0.4086854477 | D83: =IF(IF(CMdata=1,DEGREES(IMARGUMENT(K83)),'CM choke'!D87)=0, D82, IF(CMdata=1,DEGREES(IMARGUMENT(K83)),'CM choke'!D87)) -> 89.98236719 | E83: =IF(IF(CMdata=1,IMABS(L83),'CM choke'!E87)=0, E82, IF(CMdata=1,IMABS(L83),'CM choke'!E87)) -> 0.5108568387 | F83: =IF(IF(CMdata=1,DEGREES(IMARGUMENT(L83)),'CM choke'!F87)=0, F82, IF(CMdata=1,DEGREES(IMARGUMENT(L83)),'CM choke'!F87)) -> 89.99790929 | G83: 0.000125773157 | H83: 0.4086854283 | I83: 1.864105069e-05 | J83: 0.5108568384 | K83: =IF(CMdata=1, IF(Lcm1_core=1, IMDIV(1,IMSUM(IMDIV(1,IMPRODUCT(B83,'Design the AEF circuit'!$G$14*0.001)),IMDIV(1,'Design the AEF circuit'!$G$15*1000),IMPRODUCT(B83,'Design the AEF circuit'!$G$16*0.000000000001))), O83),COMPLEX(G83,H83,"j")) -> 0.000125773156999882+0.408685428299533j | L83: =IF(CMdata=1, IF(Lcm2_core=1, IMDIV(1, IMSUM(IMDIV(1,IMPRODUCT(B83,'Design the AEF circuit'!$H$14*0.001)), IMDIV(1,'Design the AEF circuit'!$H$15*1000), IMPRODUCT(B83,'Design the AEF circuit'!$H$16*0.000000000001))), Q83), COMPLEX(I83,J83,"j")) -> 0.0000186410506885434+0.510856838353094j | N83: =IMSUM(IMDIV(1,IMSUM(IMDIV(1,IMPRODUCT(B83,'Design the AEF circuit'!$G$14*0.001)),IMDIV(1,'Design the AEF circuit'!$G$15*1000))), IMDIV(1,IMSUM(IMDIV(1,IMPRODUCT(B83,'Design the AEF circuit'!$G$17*0.001)),IMDIV(1,'Design the AEF circuit'!$G$18*1000))), IMDIV(1,IMSUM(IMDIV(1,IMPRODUCT(B83,'Design the AEF circuit'!$G$19*0.001)),IMDIV(1,'Design the AEF circuit'!$G$20*1000))) ) -> 0.000125773156985559+0.408685428276263j | O83: =IMDIV(1, IMSUM( IMDIV(1, N83), IMPRODUCT(B83,'Design the AEF circuit'!$G$16*0.000000000001))) -> 0.000125773156999882+0.408685428299533j | P83: =IMSUM(IMDIV(1,IMSUM(IMDIV(1,IMPRODUCT(B83,'Design the AEF circuit'!$H$14*0.001)),IMDIV(1,'Design the AEF circuit'!$H$15*1000))), IMDIV(1,IMSUM(IMDIV(1,IMPRODUCT(B83,'Design the AEF circuit'!$H$17*0.001)),IMDIV(1,'Design the AEF circuit'!$H$18*1000))), IMDIV(1,IMSUM(IMDIV(1,IMPRODUCT(B83,'Design the AEF circuit'!$H$19*0.001)),IMDIV(1,'Design the AEF circuit'!$H$20*1000))) ) -> 0.0000230933346317986+0.571230827612049j | Q83: =IMDIV(1, IMSUM( IMDIV(1, P83), IMPRODUCT(B83,'Design the AEF circuit'!$H$16*0.000000000001) ) ) -> 0.000023093334668557+0.571230828066672j
A84: ='Frequency vector'!G84 -> 18.62087137 | B84: =COMPLEX(0,2*PI()*'Frequency vector'!G84,"j") -> 116.998385377683j | C84: =IF(IF(CMdata=1,IMABS(K84),'CM choke'!C88)=0, C83, IF(CMdata=1,IMABS(K84),'CM choke'!C88)) -> 0.4118342927 | D84: =IF(IF(CMdata=1,DEGREES(IMARGUMENT(K84)),'CM choke'!D88)=0, D83, IF(CMdata=1,DEGREES(IMARGUMENT(K84)),'CM choke'!D88)) -> 89.98223134 | E84: =IF(IF(CMdata=1,IMABS(L84),'CM choke'!E88)=0, E83, IF(CMdata=1,IMABS(L84),'CM choke'!E88)) -> 0.5147928957 | F84: =IF(IF(CMdata=1,DEGREES(IMARGUMENT(L84)),'CM choke'!F88)=0, F83, IF(CMdata=1,DEGREES(IMARGUMENT(L84)),'CM choke'!F88)) -> 89.99789318 | G84: 0.0001277187408 | H84: 0.4118342729 | I84: 1.892940896e-05 | J84: 0.5147928953 | K84: =IF(CMdata=1, IF(Lcm1_core=1, IMDIV(1,IMSUM(IMDIV(1,IMPRODUCT(B84,'Design the AEF circuit'!$G$14*0.001)),IMDIV(1,'Design the AEF circuit'!$G$15*1000),IMPRODUCT(B84,'Design the AEF circuit'!$G$16*0.000000000001))), O84),COMPLEX(G84,H84,"j")) -> 0.000127718740782231+0.411834272900093j | L84: =IF(CMdata=1, IF(Lcm2_core=1, IMDIV(1, IMSUM(IMDIV(1,IMPRODUCT(B84,'Design the AEF circuit'!$H$14*0.001)), IMDIV(1,'Design the AEF circuit'!$H$15*1000), IMPRODUCT(B84,'Design the AEF circuit'!$H$16*0.000000000001))), Q84), COMPLEX(I84,J84,"j")) -> 0.0000189294089606158+0.514792895337823j | N84: =IMSUM(IMDIV(1,IMSUM(IMDIV(1,IMPRODUCT(B84,'Design the AEF circuit'!$G$14*0.001)),IMDIV(1,'Design the AEF circuit'!$G$15*1000))), IMDIV(1,IMSUM(IMDIV(1,IMPRODUCT(B84,'Design the AEF circuit'!$G$17*0.001)),IMDIV(1,'Design the AEF circuit'!$G$18*1000))), IMDIV(1,IMSUM(IMDIV(1,IMPRODUCT(B84,'Design the AEF circuit'!$G$19*0.001)),IMDIV(1,'Design the AEF circuit'!$G$20*1000))) ) -> 0.000127718740767462+0.411834272876281j | O84: =IMDIV(1, IMSUM( IMDIV(1, N84), IMPRODUCT(B84,'Design the AEF circuit'!$G$16*0.000000000001))) -> 0.000127718740782231+0.411834272900093j | P84: =IMSUM(IMDIV(1,IMSUM(IMDIV(1,IMPRODUCT(B84,'Design the AEF circuit'!$H$14*0.001)),IMDIV(1,'Design the AEF circuit'!$H$15*1000))), IMDIV(1,IMSUM(IMDIV(1,IMPRODUCT(B84,'Design the AEF circuit'!$H$17*0.001)),IMDIV(1,'Design the AEF circuit'!$H$18*1000))), IMDIV(1,IMSUM(IMDIV(1,IMPRODUCT(B84,'Design the AEF circuit'!$H$19*0.001)),IMDIV(1,'Design the AEF circuit'!$H$20*1000))) ) -> 0.0000234505652494976+0.575632054950739j | Q84: =IMDIV(1, IMSUM( IMDIV(1, P84), IMPRODUCT(B84,'Design the AEF circuit'!$H$16*0.000000000001) ) ) -> 0.0000234505652874019+0.57563205541595j
A85: ='Frequency vector'!G85 -> 18.76434172 | B85: =COMPLEX(0,2*PI()*'Frequency vector'!G85,"j") -> 117.899836191243j | C85: =IF(IF(CMdata=1,IMABS(K85),'CM choke'!C89)=0, C84, IF(CMdata=1,IMABS(K85),'CM choke'!C89)) -> 0.415007399 | D85: =IF(IF(CMdata=1,DEGREES(IMARGUMENT(K85)),'CM choke'!D89)=0, D84, IF(CMdata=1,DEGREES(IMARGUMENT(K85)),'CM choke'!D89)) -> 89.98209443 | E85: =IF(IF(CMdata=1,IMABS(L85),'CM choke'!E89)=0, E84, IF(CMdata=1,IMABS(L85),'CM choke'!E89)) -> 0.5187592793 | F85: =IF(IF(CMdata=1,DEGREES(IMARGUMENT(L85)),'CM choke'!F89)=0, F84, IF(CMdata=1,DEGREES(IMARGUMENT(L85)),'CM choke'!F89)) -> 89.99787695 | G85: 0.0001296944208 | H85: 0.4150073787 | I85: 1.922222784e-05 | J85: 0.5187592789 | K85: =IF(CMdata=1, IF(Lcm1_core=1, IMDIV(1,IMSUM(IMDIV(1,IMPRODUCT(B85,'Design the AEF circuit'!$G$14*0.001)),IMDIV(1,'Design the AEF circuit'!$G$15*1000),IMPRODUCT(B85,'Design the AEF circuit'!$G$16*0.000000000001))), O85),COMPLEX(G85,H85,"j")) -> 0.000129694420778169+0.415007378747565j | L85: =IF(CMdata=1, IF(Lcm2_core=1, IMDIV(1, IMSUM(IMDIV(1,IMPRODUCT(B85,'Design the AEF circuit'!$H$14*0.001)), IMDIV(1,'Design the AEF circuit'!$H$15*1000), IMPRODUCT(B85,'Design the AEF circuit'!$H$16*0.000000000001))), Q85), COMPLEX(I85,J85,"j")) -> 0.0000192222278446183+0.518759278909942j | N85: =IMSUM(IMDIV(1,IMSUM(IMDIV(1,IMPRODUCT(B85,'Design the AEF circuit'!$G$14*0.001)),IMDIV(1,'Design the AEF circuit'!$G$15*1000))), IMDIV(1,IMSUM(IMDIV(1,IMPRODUCT(B85,'Design the AEF circuit'!$G$17*0.001)),IMDIV(1,'Design the AEF circuit'!$G$18*1000))), IMDIV(1,IMSUM(IMDIV(1,IMPRODUCT(B85,'Design the AEF circuit'!$G$19*0.001)),IMDIV(1,'Design the AEF circuit'!$G$20*1000))) ) -> 0.000129694420762939+0.415007378723198j | O85: =IMDIV(1, IMSUM( IMDIV(1, N85), IMPRODUCT(B85,'Design the AEF circuit'!$G$16*0.000000000001))) -> 0.000129694420778169+0.415007378747565j | P85: =IMSUM(IMDIV(1,IMSUM(IMDIV(1,IMPRODUCT(B85,'Design the AEF circuit'!$H$14*0.001)),IMDIV(1,'Design the AEF circuit'!$H$15*1000))), IMDIV(1,IMSUM(IMDIV(1,IMPRODUCT(B85,'Design the AEF circuit'!$H$17*0.001)),IMDIV(1,'Design the AEF circuit'!$H$18*1000))), IMDIV(1,IMSUM(IMDIV(1,IMPRODUCT(B85,'Design the AEF circuit'!$H$19*0.001)),IMDIV(1,'Design the AEF circuit'!$H$20*1000))) ) -> 0.0000238133218648888+0.580067192927659j | Q85: =IMDIV(1, IMSUM( IMDIV(1, P85), IMPRODUCT(B85,'Design the AEF circuit'!$H$16*0.000000000001) ) ) -> 0.000023813321903975+0.580067193403708j
A86: ='Frequency vector'!G86 -> 18.90891748 | B86: =COMPLEX(0,2*PI()*'Frequency vector'!G86,"j") -> 118.808232515773j | C86: =IF(IF(CMdata=1,IMABS(K86),'CM choke'!C90)=0, C85, IF(CMdata=1,IMABS(K86),'CM choke'!C90)) -> 0.4182049535 | D86: =IF(IF(CMdata=1,DEGREES(IMARGUMENT(K86)),'CM choke'!D90)=0, D85, IF(CMdata=1,DEGREES(IMARGUMENT(K86)),'CM choke'!D90)) -> 89.98195647 | E86: =IF(IF(CMdata=1,IMABS(L86),'CM choke'!E90)=0, E85, IF(CMdata=1,IMABS(L86),'CM choke'!E90)) -> 0.5227562231 | F86: =IF(IF(CMdata=1,DEGREES(IMARGUMENT(L86)),'CM choke'!F90)=0, F85, IF(CMdata=1,DEGREES(IMARGUMENT(L86)),'CM choke'!F90)) -> 89.99786059 | G86: 0.0001317006625 | H86: 0.4182049328 | I86: 1.951957634e-05 | J86: 0.5227562227 | K86: =IF(CMdata=1, IF(Lcm1_core=1, IMDIV(1,IMSUM(IMDIV(1,IMPRODUCT(B86,'Design the AEF circuit'!$G$14*0.001)),IMDIV(1,'Design the AEF circuit'!$G$15*1000),IMPRODUCT(B86,'Design the AEF circuit'!$G$16*0.000000000001))), O86),COMPLEX(G86,H86,"j")) -> 0.000131700662545568+0.418204932769983j | L86: =IF(CMdata=1, IF(Lcm2_core=1, IMDIV(1, IMSUM(IMDIV(1,IMPRODUCT(B86,'Design the AEF circuit'!$H$14*0.001)), IMDIV(1,'Design the AEF circuit'!$H$15*1000), IMPRODUCT(B86,'Design the AEF circuit'!$H$16*0.000000000001))), Q86), COMPLEX(I86,J86,"j")) -> 0.0000195195763417222+0.522756222730152j | N86: =IMSUM(IMDIV(1,IMSUM(IMDIV(1,IMPRODUCT(B86,'Design the AEF circuit'!$G$14*0.001)),IMDIV(1,'Design the AEF circuit'!$G$15*1000))), IMDIV(1,IMSUM(IMDIV(1,IMPRODUCT(B86,'Design the AEF circuit'!$G$17*0.001)),IMDIV(1,'Design the AEF circuit'!$G$18*1000))), IMDIV(1,IMSUM(IMDIV(1,IMPRODUCT(B86,'Design the AEF circuit'!$G$19*0.001)),IMDIV(1,'Design the AEF circuit'!$G$20*1000))) ) -> 0.000131700662529863+0.418204932745048j | O86: =IMDIV(1, IMSUM( IMDIV(1, N86), IMPRODUCT(B86,'Design the AEF circuit'!$G$16*0.000000000001))) -> 0.000131700662545568+0.418204932769983j | P86: =IMSUM(IMDIV(1,IMSUM(IMDIV(1,IMPRODUCT(B86,'Design the AEF circuit'!$H$14*0.001)),IMDIV(1,'Design the AEF circuit'!$H$15*1000))), IMDIV(1,IMSUM(IMDIV(1,IMPRODUCT(B86,'Design the AEF circuit'!$H$17*0.001)),IMDIV(1,'Design the AEF circuit'!$H$18*1000))), IMDIV(1,IMSUM(IMDIV(1,IMPRODUCT(B86,'Design the AEF circuit'!$H$19*0.001)),IMDIV(1,'Design the AEF circuit'!$H$20*1000))) ) -> 0.0000241816899595866+0.584536502817951j | Q86: =IMDIV(1, IMSUM( IMDIV(1, P86), IMPRODUCT(B86,'Design the AEF circuit'!$H$16*0.000000000001) ) ) -> 0.0000241816899998913+0.584536503305088j
A87: ='Frequency vector'!G87 -> 19.05460718 | B87: =COMPLEX(0,2*PI()*'Frequency vector'!G87,"j") -> 119.723627865146j | C87: =IF(IF(CMdata=1,IMABS(K87),'CM choke'!C91)=0, C86, IF(CMdata=1,IMABS(K87),'CM choke'!C91)) -> 0.4214271446 | D87: =IF(IF(CMdata=1,DEGREES(IMARGUMENT(K87)),'CM choke'!D91)=0, D86, IF(CMdata=1,DEGREES(IMARGUMENT(K87)),'CM choke'!D91)) -> 89.98181745 | E87: =IF(IF(CMdata=1,IMABS(L87),'CM choke'!E91)=0, E86, IF(CMdata=1,IMABS(L87),'CM choke'!E91)) -> 0.5267839626 | F87: =IF(IF(CMdata=1,DEGREES(IMARGUMENT(L87)),'CM choke'!F91)=0, F86, IF(CMdata=1,DEGREES(IMARGUMENT(L87)),'CM choke'!F91)) -> 89.99784411 | G87: 0.0001337379388 | H87: 0.4214271233 | I87: 1.982152452e-05 | J87: 0.5267839623 | K87: =IF(CMdata=1, IF(Lcm1_core=1, IMDIV(1,IMSUM(IMDIV(1,IMPRODUCT(B87,'Design the AEF circuit'!$G$14*0.001)),IMDIV(1,'Design the AEF circuit'!$G$15*1000),IMPRODUCT(B87,'Design the AEF circuit'!$G$16*0.000000000001))), O87),COMPLEX(G87,H87,"j")) -> 0.00013373793884401+0.421427123335622j | L87: =IF(CMdata=1, IF(Lcm2_core=1, IMDIV(1, IMSUM(IMDIV(1,IMPRODUCT(B87,'Design the AEF circuit'!$H$14*0.001)), IMDIV(1,'Design the AEF circuit'!$H$15*1000), IMPRODUCT(B87,'Design the AEF circuit'!$H$16*0.000000000001))), Q87), COMPLEX(I87,J87,"j")) -> 0.0000198215245204787+0.526783962259491j | N87: =IMSUM(IMDIV(1,IMSUM(IMDIV(1,IMPRODUCT(B87,'Design the AEF circuit'!$G$14*0.001)),IMDIV(1,'Design the AEF circuit'!$G$15*1000))), IMDIV(1,IMSUM(IMDIV(1,IMPRODUCT(B87,'Design the AEF circuit'!$G$17*0.001)),IMDIV(1,'Design the AEF circuit'!$G$18*1000))), IMDIV(1,IMSUM(IMDIV(1,IMPRODUCT(B87,'Design the AEF circuit'!$G$19*0.001)),IMDIV(1,'Design the AEF circuit'!$G$20*1000))) ) -> 0.000133737938827815+0.421427123310106j | O87: =IMDIV(1, IMSUM( IMDIV(1, N87), IMPRODUCT(B87,'Design the AEF circuit'!$G$16*0.000000000001))) -> 0.00013373793884401+0.421427123335622j | P87: =IMSUM(IMDIV(1,IMSUM(IMDIV(1,IMPRODUCT(B87,'Design the AEF circuit'!$H$14*0.001)),IMDIV(1,'Design the AEF circuit'!$H$15*1000))), IMDIV(1,IMSUM(IMDIV(1,IMPRODUCT(B87,'Design the AEF circuit'!$H$17*0.001)),IMDIV(1,'Design the AEF circuit'!$H$18*1000))), IMDIV(1,IMSUM(IMDIV(1,IMPRODUCT(B87,'Design the AEF circuit'!$H$19*0.001)),IMDIV(1,'Design the AEF circuit'!$H$20*1000))) ) -> 0.0000245557563375218+0.589040247909854j | Q87: =IMDIV(1, IMSUM( IMDIV(1, P87), IMPRODUCT(B87,'Design the AEF circuit'!$H$16*0.000000000001) ) ) -> 0.0000245557563790829+0.589040248408335j
A88: ='Frequency vector'!G88 -> 19.20141939 | B88: =COMPLEX(0,2*PI()*'Frequency vector'!G88,"j") -> 120.646076165547j | C88: =IF(IF(CMdata=1,IMABS(K88),'CM choke'!C92)=0, C87, IF(CMdata=1,IMABS(K88),'CM choke'!C92)) -> 0.424674162 | D88: =IF(IF(CMdata=1,DEGREES(IMARGUMENT(K88)),'CM choke'!D92)=0, D87, IF(CMdata=1,DEGREES(IMARGUMENT(K88)),'CM choke'!D92)) -> 89.98167736 | E88: =IF(IF(CMdata=1,IMABS(L88),'CM choke'!E92)=0, E87, IF(CMdata=1,IMABS(L88),'CM choke'!E92)) -> 0.5308427352 | F88: =IF(IF(CMdata=1,DEGREES(IMARGUMENT(L88)),'CM choke'!F92)=0, F87, IF(CMdata=1,DEGREES(IMARGUMENT(L88)),'CM choke'!F92)) -> 89.9978275 | G88: 0.0001358067297 | H88: 0.4246741403 | I88: 2.012814353e-05 | J88: 0.5308427348 | K88: =IF(CMdata=1, IF(Lcm1_core=1, IMDIV(1,IMSUM(IMDIV(1,IMPRODUCT(B88,'Design the AEF circuit'!$G$14*0.001)),IMDIV(1,'Design the AEF circuit'!$G$15*1000),IMPRODUCT(B88,'Design the AEF circuit'!$G$16*0.000000000001))), O88),COMPLEX(G88,H88,"j")) -> 0.00013580672974618+0.424674140264093j | L88: =IF(CMdata=1, IF(Lcm2_core=1, IMDIV(1, IMSUM(IMDIV(1,IMPRODUCT(B88,'Design the AEF circuit'!$H$14*0.001)), IMDIV(1,'Design the AEF circuit'!$H$15*1000), IMPRODUCT(B88,'Design the AEF circuit'!$H$16*0.000000000001))), Q88), COMPLEX(I88,J88,"j")) -> 0.0000201281435333285+0.530842734773169j | N88: =IMSUM(IMDIV(1,IMSUM(IMDIV(1,IMPRODUCT(B88,'Design the AEF circuit'!$G$14*0.001)),IMDIV(1,'Design the AEF circuit'!$G$15*1000))), IMDIV(1,IMSUM(IMDIV(1,IMPRODUCT(B88,'Design the AEF circuit'!$G$17*0.001)),IMDIV(1,'Design the AEF circuit'!$G$18*1000))), IMDIV(1,IMSUM(IMDIV(1,IMPRODUCT(B88,'Design the AEF circuit'!$G$19*0.001)),IMDIV(1,'Design the AEF circuit'!$G$20*1000))) ) -> 0.00013580672972948+0.424674140237983j | O88: =IMDIV(1, IMSUM( IMDIV(1, N88), IMPRODUCT(B88,'Design the AEF circuit'!$G$16*0.000000000001))) -> 0.00013580672974618+0.424674140264093j | P88: =IMSUM(IMDIV(1,IMSUM(IMDIV(1,IMPRODUCT(B88,'Design the AEF circuit'!$H$14*0.001)),IMDIV(1,'Design the AEF circuit'!$H$15*1000))), IMDIV(1,IMSUM(IMDIV(1,IMPRODUCT(B88,'Design the AEF circuit'!$H$17*0.001)),IMDIV(1,'Design the AEF circuit'!$H$18*1000))), IMDIV(1,IMSUM(IMDIV(1,IMPRODUCT(B88,'Design the AEF circuit'!$H$19*0.001)),IMDIV(1,'Design the AEF circuit'!$H$20*1000))) ) -> 0.0000249356091453935+0.593578693520186j | Q88: =IMDIV(1, IMSUM( IMDIV(1, P88), IMPRODUCT(B88,'Design the AEF circuit'!$H$16*0.000000000001) ) ) -> 0.0000249356091882504+0.593578694030278j
A89: ='Frequency vector'!G89 -> 19.34936275 | B89: =COMPLEX(0,2*PI()*'Frequency vector'!G89,"j") -> 121.575631758653j | C89: =IF(IF(CMdata=1,IMABS(K89),'CM choke'!C93)=0, C88, IF(CMdata=1,IMABS(K89),'CM choke'!C93)) -> 0.4279461971 | D89: =IF(IF(CMdata=1,DEGREES(IMARGUMENT(K89)),'CM choke'!D93)=0, D88, IF(CMdata=1,DEGREES(IMARGUMENT(K89)),'CM choke'!D93)) -> 89.98153619 | E89: =IF(IF(CMdata=1,IMABS(L89),'CM choke'!E93)=0, E88, IF(CMdata=1,IMABS(L89),'CM choke'!E93)) -> 0.5349327798 | F89: =IF(IF(CMdata=1,DEGREES(IMARGUMENT(L89)),'CM choke'!F93)=0, F88, IF(CMdata=1,DEGREES(IMARGUMENT(L89)),'CM choke'!F93)) -> 89.99781076 | G89: 0.0001379075228 | H89: 0.4279461748 | I89: 2.043950563e-05 | J89: 0.5349327794 | K89: =IF(CMdata=1, IF(Lcm1_core=1, IMDIV(1,IMSUM(IMDIV(1,IMPRODUCT(B89,'Design the AEF circuit'!$G$14*0.001)),IMDIV(1,'Design the AEF circuit'!$G$15*1000),IMPRODUCT(B89,'Design the AEF circuit'!$G$16*0.000000000001))), O89),COMPLEX(G89,H89,"j")) -> 0.000137907522751+0.427946174837523j | L89: =IF(CMdata=1, IF(Lcm2_core=1, IMDIV(1, IMSUM(IMDIV(1,IMPRODUCT(B89,'Design the AEF circuit'!$H$14*0.001)), IMDIV(1,'Design the AEF circuit'!$H$15*1000), IMPRODUCT(B89,'Design the AEF circuit'!$H$16*0.000000000001))), Q89), COMPLEX(I89,J89,"j")) -> 0.000020439505633369+0.534932779374561j | N89: =IMSUM(IMDIV(1,IMSUM(IMDIV(1,IMPRODUCT(B89,'Design the AEF circuit'!$G$14*0.001)),IMDIV(1,'Design the AEF circuit'!$G$15*1000))), IMDIV(1,IMSUM(IMDIV(1,IMPRODUCT(B89,'Design the AEF circuit'!$G$17*0.001)),IMDIV(1,'Design the AEF circuit'!$G$18*1000))), IMDIV(1,IMSUM(IMDIV(1,IMPRODUCT(B89,'Design the AEF circuit'!$G$19*0.001)),IMDIV(1,'Design the AEF circuit'!$G$20*1000))) ) -> 0.000137907522733779+0.427946174810804j | O89: =IMDIV(1, IMSUM( IMDIV(1, N89), IMPRODUCT(B89,'Design the AEF circuit'!$G$16*0.000000000001))) -> 0.000137907522751+0.427946174837523j | P89: =IMSUM(IMDIV(1,IMSUM(IMDIV(1,IMPRODUCT(B89,'Design the AEF circuit'!$H$14*0.001)),IMDIV(1,'Design the AEF circuit'!$H$15*1000))), IMDIV(1,IMSUM(IMDIV(1,IMPRODUCT(B89,'Design the AEF circuit'!$H$17*0.001)),IMDIV(1,'Design the AEF circuit'!$H$18*1000))), IMDIV(1,IMSUM(IMDIV(1,IMPRODUCT(B89,'Design the AEF circuit'!$H$19*0.001)),IMDIV(1,'Design the AEF circuit'!$H$20*1000))) ) -> 0.0000253213378934414+0.598152107009982j | Q89: =IMDIV(1, IMSUM( IMDIV(1, P89), IMPRODUCT(B89,'Design the AEF circuit'!$H$16*0.000000000001) ) ) -> 0.0000253213379376348+0.59815210753196j
A90: ='Frequency vector'!G90 -> 19.498446 | B90: =COMPLEX(0,2*PI()*'Frequency vector'!G90,"j") -> 122.512349404833j | C90: =IF(IF(CMdata=1,IMABS(K90),'CM choke'!C94)=0, C89, IF(CMdata=1,IMABS(K90),'CM choke'!C94)) -> 0.4312434426 | D90: =IF(IF(CMdata=1,DEGREES(IMARGUMENT(K90)),'CM choke'!D94)=0, D89, IF(CMdata=1,DEGREES(IMARGUMENT(K90)),'CM choke'!D94)) -> 89.98139393 | E90: =IF(IF(CMdata=1,IMABS(L90),'CM choke'!E94)=0, E89, IF(CMdata=1,IMABS(L90),'CM choke'!E94)) -> 0.5390543374 | F90: =IF(IF(CMdata=1,DEGREES(IMARGUMENT(L90)),'CM choke'!F94)=0, F89, IF(CMdata=1,DEGREES(IMARGUMENT(L90)),'CM choke'!F94)) -> 89.99779389 | G90: 0.0001400408129 | H90: 0.4312434198 | I90: 2.075568419e-05 | J90: 0.539054337 | K90: =IF(CMdata=1, IF(Lcm1_core=1, IMDIV(1,IMSUM(IMDIV(1,IMPRODUCT(B90,'Design the AEF circuit'!$G$14*0.001)),IMDIV(1,'Design the AEF circuit'!$G$15*1000),IMPRODUCT(B90,'Design the AEF circuit'!$G$16*0.000000000001))), O90),COMPLEX(G90,H90,"j")) -> 0.000140040812898495+0.431243419811815j | L90: =IF(CMdata=1, IF(Lcm2_core=1, IMDIV(1, IMSUM(IMDIV(1,IMPRODUCT(B90,'Design the AEF circuit'!$H$14*0.001)), IMDIV(1,'Design the AEF circuit'!$H$15*1000), IMPRODUCT(B90,'Design the AEF circuit'!$H$16*0.000000000001))), Q90), COMPLEX(I90,J90,"j")) -> 0.0000207556841913799+0.539054337009285j | N90: =IMSUM(IMDIV(1,IMSUM(IMDIV(1,IMPRODUCT(B90,'Design the AEF circuit'!$G$14*0.001)),IMDIV(1,'Design the AEF circuit'!$G$15*1000))), IMDIV(1,IMSUM(IMDIV(1,IMPRODUCT(B90,'Design the AEF circuit'!$G$17*0.001)),IMDIV(1,'Design the AEF circuit'!$G$18*1000))), IMDIV(1,IMSUM(IMDIV(1,IMPRODUCT(B90,'Design the AEF circuit'!$G$19*0.001)),IMDIV(1,'Design the AEF circuit'!$G$20*1000))) ) -> 0.000140040812880738+0.431243419784475j | O90: =IMDIV(1, IMSUM( IMDIV(1, N90), IMPRODUCT(B90,'Design the AEF circuit'!$G$16*0.000000000001))) -> 0.000140040812898495+0.431243419811815j | P90: =IMSUM(IMDIV(1,IMSUM(IMDIV(1,IMPRODUCT(B90,'Design the AEF circuit'!$H$14*0.001)),IMDIV(1,'Design the AEF circuit'!$H$15*1000))), IMDIV(1,IMSUM(IMDIV(1,IMPRODUCT(B90,'Design the AEF circuit'!$H$17*0.001)),IMDIV(1,'Design the AEF circuit'!$H$18*1000))), IMDIV(1,IMSUM(IMDIV(1,IMPRODUCT(B90,'Design the AEF circuit'!$H$19*0.001)),IMDIV(1,'Design the AEF circuit'!$H$20*1000))) ) -> 0.0000257130334765387+0.602760757800243j | Q90: =IMDIV(1, IMSUM( IMDIV(1, P90), IMPRODUCT(B90,'Design the AEF circuit'!$H$16*0.000000000001) ) ) -> 0.0000257130335221098+0.602760758334378j
A91: ='Frequency vector'!G91 -> 19.6486779 | B91: =COMPLEX(0,2*PI()*'Frequency vector'!G91,"j") -> 123.456284286375j | C91: =IF(IF(CMdata=1,IMABS(K91),'CM choke'!C95)=0, C90, IF(CMdata=1,IMABS(K91),'CM choke'!C95)) -> 0.4345660927 | D91: =IF(IF(CMdata=1,DEGREES(IMARGUMENT(K91)),'CM choke'!D95)=0, D90, IF(CMdata=1,DEGREES(IMARGUMENT(K91)),'CM choke'!D95)) -> 89.98125057 | E91: =IF(IF(CMdata=1,IMABS(L91),'CM choke'!E95)=0, E90, IF(CMdata=1,IMABS(L91),'CM choke'!E95)) -> 0.5432076509 | F91: =IF(IF(CMdata=1,DEGREES(IMARGUMENT(L91)),'CM choke'!F95)=0, F90, IF(CMdata=1,DEGREES(IMARGUMENT(L91)),'CM choke'!F95)) -> 89.99777689 | G91: 0.0001422071029 | H91: 0.4345660694 | I91: 2.107675371e-05 | J91: 0.5432076505 | K91: =IF(CMdata=1, IF(Lcm1_core=1, IMDIV(1,IMSUM(IMDIV(1,IMPRODUCT(B91,'Design the AEF circuit'!$G$14*0.001)),IMDIV(1,'Design the AEF circuit'!$G$15*1000),IMPRODUCT(B91,'Design the AEF circuit'!$G$16*0.000000000001))), O91),COMPLEX(G91,H91,"j")) -> 0.000142207102886462+0.434566069428023j | L91: =IF(CMdata=1, IF(Lcm2_core=1, IMDIV(1, IMSUM(IMDIV(1,IMPRODUCT(B91,'Design the AEF circuit'!$H$14*0.001)), IMDIV(1,'Design the AEF circuit'!$H$15*1000), IMPRODUCT(B91,'Design the AEF circuit'!$H$16*0.000000000001))), Q91), COMPLEX(I91,J91,"j")) -> 0.0000210767537131135+0.543207650479408j | N91: =IMSUM(IMDIV(1,IMSUM(IMDIV(1,IMPRODUCT(B91,'Design the AEF circuit'!$G$14*0.001)),IMDIV(1,'Design the AEF circuit'!$G$15*1000))), IMDIV(1,IMSUM(IMDIV(1,IMPRODUCT(B91,'Design the AEF circuit'!$G$17*0.001)),IMDIV(1,'Design the AEF circuit'!$G$18*1000))), IMDIV(1,IMSUM(IMDIV(1,IMPRODUCT(B91,'Design the AEF circuit'!$G$19*0.001)),IMDIV(1,'Design the AEF circuit'!$G$20*1000))) ) -> 0.000142207102868151+0.434566069400045j | O91: =IMDIV(1, IMSUM( IMDIV(1, N91), IMPRODUCT(B91,'Design the AEF circuit'!$G$16*0.000000000001))) -> 0.000142207102886462+0.434566069428023j | P91: =IMSUM(IMDIV(1,IMSUM(IMDIV(1,IMPRODUCT(B91,'Design the AEF circuit'!$H$14*0.001)),IMDIV(1,'Design the AEF circuit'!$H$15*1000))), IMDIV(1,IMSUM(IMDIV(1,IMPRODUCT(B91,'Design the AEF circuit'!$H$17*0.001)),IMDIV(1,'Design the AEF circuit'!$H$18*1000))), IMDIV(1,IMSUM(IMDIV(1,IMPRODUCT(B91,'Design the AEF circuit'!$H$19*0.001)),IMDIV(1,'Design the AEF circuit'!$H$20*1000))) ) -> 0.0000261107881956108+0.607404917387814j | Q91: =IMDIV(1, IMSUM( IMDIV(1, P91), IMPRODUCT(B91,'Design the AEF circuit'!$H$16*0.000000000001) ) ) -> 0.0000261107882426028+0.607404917934392j
A92: ='Frequency vector'!G92 -> 19.80006731 | B92: =COMPLEX(0,2*PI()*'Frequency vector'!G92,"j") -> 124.407492010735j | C92: =IF(IF(CMdata=1,IMABS(K92),'CM choke'!C96)=0, C91, IF(CMdata=1,IMABS(K92),'CM choke'!C96)) -> 0.4379143432 | D92: =IF(IF(CMdata=1,DEGREES(IMARGUMENT(K92)),'CM choke'!D96)=0, D91, IF(CMdata=1,DEGREES(IMARGUMENT(K92)),'CM choke'!D96)) -> 89.98110611 | E92: =IF(IF(CMdata=1,IMABS(L92),'CM choke'!E96)=0, E91, IF(CMdata=1,IMABS(L92),'CM choke'!E96)) -> 0.5473929649 | F92: =IF(IF(CMdata=1,DEGREES(IMARGUMENT(L92)),'CM choke'!F96)=0, F91, IF(CMdata=1,DEGREES(IMARGUMENT(L92)),'CM choke'!F96)) -> 89.99775976 | G92: 0.0001444069032 | H92: 0.4379143194 | I92: 2.140278986e-05 | J92: 0.5473929645 | K92: =IF(CMdata=1, IF(Lcm1_core=1, IMDIV(1,IMSUM(IMDIV(1,IMPRODUCT(B92,'Design the AEF circuit'!$G$14*0.001)),IMDIV(1,'Design the AEF circuit'!$G$15*1000),IMPRODUCT(B92,'Design the AEF circuit'!$G$16*0.000000000001))), O92),COMPLEX(G92,H92,"j")) -> 0.000144406903188908+0.437914319423772j | L92: =IF(CMdata=1, IF(Lcm2_core=1, IMDIV(1, IMSUM(IMDIV(1,IMPRODUCT(B92,'Design the AEF circuit'!$H$14*0.001)), IMDIV(1,'Design the AEF circuit'!$H$15*1000), IMPRODUCT(B92,'Design the AEF circuit'!$H$16*0.000000000001))), Q92), COMPLEX(I92,J92,"j")) -> 0.0000214027898568497+0.547392964457725j | N92: =IMSUM(IMDIV(1,IMSUM(IMDIV(1,IMPRODUCT(B92,'Design the AEF circuit'!$G$14*0.001)),IMDIV(1,'Design the AEF circuit'!$G$15*1000))), IMDIV(1,IMSUM(IMDIV(1,IMPRODUCT(B92,'Design the AEF circuit'!$G$17*0.001)),IMDIV(1,'Design the AEF circuit'!$G$18*1000))), IMDIV(1,IMSUM(IMDIV(1,IMPRODUCT(B92,'Design the AEF circuit'!$G$19*0.001)),IMDIV(1,'Design the AEF circuit'!$G$20*1000))) ) -> 0.000144406903170026+0.437914319395142j | O92: =IMDIV(1, IMSUM( IMDIV(1, N92), IMPRODUCT(B92,'Design the AEF circuit'!$G$16*0.000000000001))) -> 0.000144406903188908+0.437914319423772j | P92: =IMSUM(IMDIV(1,IMSUM(IMDIV(1,IMPRODUCT(B92,'Design the AEF circuit'!$H$14*0.001)),IMDIV(1,'Design the AEF circuit'!$H$15*1000))), IMDIV(1,IMSUM(IMDIV(1,IMPRODUCT(B92,'Design the AEF circuit'!$H$17*0.001)),IMDIV(1,'Design the AEF circuit'!$H$18*1000))), IMDIV(1,IMSUM(IMDIV(1,IMPRODUCT(B92,'Design the AEF circuit'!$H$19*0.001)),IMDIV(1,'Design the AEF circuit'!$H$20*1000))) ) -> 0.0000265146957793842+0.612084859361358j | Q92: =IMDIV(1, IMSUM( IMDIV(1, P92), IMPRODUCT(B92,'Design the AEF circuit'!$H$16*0.000000000001) ) ) -> 0.0000265146958278413+0.612084859920668j
A93: ='Frequency vector'!G93 -> 19.95262315 | B93: =COMPLEX(0,2*PI()*'Frequency vector'!G93,"j") -> 125.366028613817j | C93: =IF(IF(CMdata=1,IMABS(K93),'CM choke'!C97)=0, C92, IF(CMdata=1,IMABS(K93),'CM choke'!C97)) -> 0.4412883914 | D93: =IF(IF(CMdata=1,DEGREES(IMARGUMENT(K93)),'CM choke'!D97)=0, D92, IF(CMdata=1,DEGREES(IMARGUMENT(K93)),'CM choke'!D97)) -> 89.98096053 | E93: =IF(IF(CMdata=1,IMABS(L93),'CM choke'!E97)=0, E92, IF(CMdata=1,IMABS(L93),'CM choke'!E97)) -> 0.5516105259 | F93: =IF(IF(CMdata=1,DEGREES(IMARGUMENT(L93)),'CM choke'!F97)=0, F92, IF(CMdata=1,DEGREES(IMARGUMENT(L93)),'CM choke'!F97)) -> 89.9977425 | G93: 0.0001466407322 | H93: 0.441288367 | I93: 2.173386945e-05 | J93: 0.5516105255 | K93: =IF(CMdata=1, IF(Lcm1_core=1, IMDIV(1,IMSUM(IMDIV(1,IMPRODUCT(B93,'Design the AEF circuit'!$G$14*0.001)),IMDIV(1,'Design the AEF circuit'!$G$15*1000),IMPRODUCT(B93,'Design the AEF circuit'!$G$16*0.000000000001))), O93),COMPLEX(G93,H93,"j")) -> 0.00014664073217636+0.44128836704481j | L93: =IF(CMdata=1, IF(Lcm2_core=1, IMDIV(1, IMSUM(IMDIV(1,IMPRODUCT(B93,'Design the AEF circuit'!$H$14*0.001)), IMDIV(1,'Design the AEF circuit'!$H$15*1000), IMPRODUCT(B93,'Design the AEF circuit'!$H$16*0.000000000001))), Q93), COMPLEX(I93,J93,"j")) -> 0.0000217338694512275+0.55161052550221j | N93: =IMSUM(IMDIV(1,IMSUM(IMDIV(1,IMPRODUCT(B93,'Design the AEF circuit'!$G$14*0.001)),IMDIV(1,'Design the AEF circuit'!$G$15*1000))), IMDIV(1,IMSUM(IMDIV(1,IMPRODUCT(B93,'Design the AEF circuit'!$G$17*0.001)),IMDIV(1,'Design the AEF circuit'!$G$18*1000))), IMDIV(1,IMSUM(IMDIV(1,IMPRODUCT(B93,'Design the AEF circuit'!$G$19*0.001)),IMDIV(1,'Design the AEF circuit'!$G$20*1000))) ) -> 0.000146640732156889+0.441288367015513j | O93: =IMDIV(1, IMSUM( IMDIV(1, N93), IMPRODUCT(B93,'Design the AEF circuit'!$G$16*0.000000000001))) -> 0.00014664073217636+0.44128836704481j | P93: =IMSUM(IMDIV(1,IMSUM(IMDIV(1,IMPRODUCT(B93,'Design the AEF circuit'!$H$14*0.001)),IMDIV(1,'Design the AEF circuit'!$H$15*1000))), IMDIV(1,IMSUM(IMDIV(1,IMPRODUCT(B93,'Design the AEF circuit'!$H$17*0.001)),IMDIV(1,'Design the AEF circuit'!$H$18*1000))), IMDIV(1,IMSUM(IMDIV(1,IMPRODUCT(B93,'Design the AEF circuit'!$H$19*0.001)),IMDIV(1,'Design the AEF circuit'!$H$20*1000))) ) -> 0.0000269248514064759+0.616800859417505j | Q93: =IMDIV(1, IMSUM( IMDIV(1, P93), IMPRODUCT(B93,'Design the AEF circuit'!$H$16*0.000000000001) ) ) -> 0.0000269248514564436+0.616800859989841j
A94: ='Frequency vector'!G94 -> 20.1063544 | B94: =COMPLEX(0,2*PI()*'Frequency vector'!G94,"j") -> 126.331950563268j | C94: =IF(IF(CMdata=1,IMABS(K94),'CM choke'!C98)=0, C93, IF(CMdata=1,IMABS(K94),'CM choke'!C98)) -> 0.444688436 | D94: =IF(IF(CMdata=1,DEGREES(IMARGUMENT(K94)),'CM choke'!D98)=0, D93, IF(CMdata=1,DEGREES(IMARGUMENT(K94)),'CM choke'!D98)) -> 89.98081384 | E94: =IF(IF(CMdata=1,IMABS(L94),'CM choke'!E98)=0, E93, IF(CMdata=1,IMABS(L94),'CM choke'!E98)) -> 0.5558605825 | F94: =IF(IF(CMdata=1,DEGREES(IMARGUMENT(L94)),'CM choke'!F98)=0, F93, IF(CMdata=1,DEGREES(IMARGUMENT(L94)),'CM choke'!F98)) -> 89.99772511 | G94: 0.0001489091162 | H94: 0.4446884111 | I94: 2.207007051e-05 | J94: 0.5558605821 | K94: =IF(CMdata=1, IF(Lcm1_core=1, IMDIV(1,IMSUM(IMDIV(1,IMPRODUCT(B94,'Design the AEF circuit'!$G$14*0.001)),IMDIV(1,'Design the AEF circuit'!$G$15*1000),IMPRODUCT(B94,'Design the AEF circuit'!$G$16*0.000000000001))), O94),COMPLEX(G94,H94,"j")) -> 0.000148909116237995+0.444688411056606j | L94: =IF(CMdata=1, IF(Lcm2_core=1, IMDIV(1, IMSUM(IMDIV(1,IMPRODUCT(B94,'Design the AEF circuit'!$H$14*0.001)), IMDIV(1,'Design the AEF circuit'!$H$15*1000), IMPRODUCT(B94,'Design the AEF circuit'!$H$16*0.000000000001))), Q94), COMPLEX(I94,J94,"j")) -> 0.0000220700705133469+0.555860582070512j | N94: =IMSUM(IMDIV(1,IMSUM(IMDIV(1,IMPRODUCT(B94,'Design the AEF circuit'!$G$14*0.001)),IMDIV(1,'Design the AEF circuit'!$G$15*1000))), IMDIV(1,IMSUM(IMDIV(1,IMPRODUCT(B94,'Design the AEF circuit'!$G$17*0.001)),IMDIV(1,'Design the AEF circuit'!$G$18*1000))), IMDIV(1,IMSUM(IMDIV(1,IMPRODUCT(B94,'Design the AEF circuit'!$G$19*0.001)),IMDIV(1,'Design the AEF circuit'!$G$20*1000))) ) -> 0.000148909116217918+0.444688411026628j | O94: =IMDIV(1, IMSUM( IMDIV(1, N94), IMPRODUCT(B94,'Design the AEF circuit'!$G$16*0.000000000001))) -> 0.000148909116237995+0.444688411056606j | P94: =IMSUM(IMDIV(1,IMSUM(IMDIV(1,IMPRODUCT(B94,'Design the AEF circuit'!$H$14*0.001)),IMDIV(1,'Design the AEF circuit'!$H$15*1000))), IMDIV(1,IMSUM(IMDIV(1,IMPRODUCT(B94,'Design the AEF circuit'!$H$17*0.001)),IMDIV(1,'Design the AEF circuit'!$H$18*1000))), IMDIV(1,IMSUM(IMDIV(1,IMPRODUCT(B94,'Design the AEF circuit'!$H$19*0.001)),IMDIV(1,'Design the AEF circuit'!$H$20*1000))) ) -> 0.0000273413517278199+0.621553195377071j | Q94: =IMDIV(1, IMSUM( IMDIV(1, P94), IMPRODUCT(B94,'Design the AEF circuit'!$H$16*0.000000000001) ) ) -> 0.0000273413517793453+0.621553195962737j
A95: ='Frequency vector'!G95 -> 20.26127013 | B95: =COMPLEX(0,2*PI()*'Frequency vector'!G95,"j") -> 127.305314761809j | C95: =IF(IF(CMdata=1,IMABS(K95),'CM choke'!C99)=0, C94, IF(CMdata=1,IMABS(K95),'CM choke'!C99)) -> 0.4481146773 | D95: =IF(IF(CMdata=1,DEGREES(IMARGUMENT(K95)),'CM choke'!D99)=0, D94, IF(CMdata=1,DEGREES(IMARGUMENT(K95)),'CM choke'!D99)) -> 89.98066601 | E95: =IF(IF(CMdata=1,IMABS(L95),'CM choke'!E99)=0, E94, IF(CMdata=1,IMABS(L95),'CM choke'!E99)) -> 0.560143385 | F95: =IF(IF(CMdata=1,DEGREES(IMARGUMENT(L95)),'CM choke'!F99)=0, F94, IF(CMdata=1,DEGREES(IMARGUMENT(L95)),'CM choke'!F99)) -> 89.99770758 | G95: 0.0001512125899 | H95: 0.4481146518 | I95: 2.241147227e-05 | J95: 0.5601433845 | K95: =IF(CMdata=1, IF(Lcm1_core=1, IMDIV(1,IMSUM(IMDIV(1,IMPRODUCT(B95,'Design the AEF circuit'!$G$14*0.001)),IMDIV(1,'Design the AEF circuit'!$G$15*1000),IMPRODUCT(B95,'Design the AEF circuit'!$G$16*0.000000000001))), O95),COMPLEX(G95,H95,"j")) -> 0.000151212589905703+0.448114651756078j | L95: =IF(CMdata=1, IF(Lcm2_core=1, IMDIV(1, IMSUM(IMDIV(1,IMPRODUCT(B95,'Design the AEF circuit'!$H$14*0.001)), IMDIV(1,'Design the AEF circuit'!$H$15*1000), IMPRODUCT(B95,'Design the AEF circuit'!$H$16*0.000000000001))), Q95), COMPLEX(I95,J95,"j")) -> 0.0000224114722671529+0.560143384534591j | N95: =IMSUM(IMDIV(1,IMSUM(IMDIV(1,IMPRODUCT(B95,'Design the AEF circuit'!$G$14*0.001)),IMDIV(1,'Design the AEF circuit'!$G$15*1000))), IMDIV(1,IMSUM(IMDIV(1,IMPRODUCT(B95,'Design the AEF circuit'!$G$17*0.001)),IMDIV(1,'Design the AEF circuit'!$G$18*1000))), IMDIV(1,IMSUM(IMDIV(1,IMPRODUCT(B95,'Design the AEF circuit'!$G$19*0.001)),IMDIV(1,'Design the AEF circuit'!$G$20*1000))) ) -> 0.000151212589884999+0.448114651725401j | O95: =IMDIV(1, IMSUM( IMDIV(1, N95), IMPRODUCT(B95,'Design the AEF circuit'!$G$16*0.000000000001))) -> 0.000151212589905703+0.448114651756078j | P95: =IMSUM(IMDIV(1,IMSUM(IMDIV(1,IMPRODUCT(B95,'Design the AEF circuit'!$H$14*0.001)),IMDIV(1,'Design the AEF circuit'!$H$15*1000))), IMDIV(1,IMSUM(IMDIV(1,IMPRODUCT(B95,'Design the AEF circuit'!$H$17*0.001)),IMDIV(1,'Design the AEF circuit'!$H$18*1000))), IMDIV(1,IMSUM(IMDIV(1,IMPRODUCT(B95,'Design the AEF circuit'!$H$19*0.001)),IMDIV(1,'Design the AEF circuit'!$H$20*1000))) ) -> 0.0000277642948894411+0.626342147201416j | Q95: =IMDIV(1, IMSUM( IMDIV(1, P95), IMPRODUCT(B95,'Design the AEF circuit'!$H$16*0.000000000001) ) ) -> 0.0000277642949425731+0.626342147800725j
A96: ='Frequency vector'!G96 -> 20.41737945 | B96: =COMPLEX(0,2*PI()*'Frequency vector'!G96,"j") -> 128.286178550587j | C96: =IF(IF(CMdata=1,IMABS(K96),'CM choke'!C100)=0, C95, IF(CMdata=1,IMABS(K96),'CM choke'!C100)) -> 0.4515673171 | D96: =IF(IF(CMdata=1,DEGREES(IMARGUMENT(K96)),'CM choke'!D100)=0, D95, IF(CMdata=1,DEGREES(IMARGUMENT(K96)),'CM choke'!D100)) -> 89.98051705 | E96: =IF(IF(CMdata=1,IMABS(L96),'CM choke'!E100)=0, E95, IF(CMdata=1,IMABS(L96),'CM choke'!E100)) -> 0.5644591857 | F96: =IF(IF(CMdata=1,DEGREES(IMARGUMENT(L96)),'CM choke'!F100)=0, F95, IF(CMdata=1,DEGREES(IMARGUMENT(L96)),'CM choke'!F100)) -> 89.99768992 | G96: 0.000153551696 | H96: 0.451567291 | I96: 2.275815516e-05 | J96: 0.5644591852 | K96: =IF(CMdata=1, IF(Lcm1_core=1, IMDIV(1,IMSUM(IMDIV(1,IMPRODUCT(B96,'Design the AEF circuit'!$G$14*0.001)),IMDIV(1,'Design the AEF circuit'!$G$15*1000),IMPRODUCT(B96,'Design the AEF circuit'!$G$16*0.000000000001))), O96),COMPLEX(G96,H96,"j")) -> 0.000153551695980024+0.451567290983383j | L96: =IF(CMdata=1, IF(Lcm2_core=1, IMDIV(1, IMSUM(IMDIV(1,IMPRODUCT(B96,'Design the AEF circuit'!$H$14*0.001)), IMDIV(1,'Design the AEF circuit'!$H$15*1000), IMPRODUCT(B96,'Design the AEF circuit'!$H$16*0.000000000001))), Q96), COMPLEX(I96,J96,"j")) -> 0.0000227581551621065+0.564459185195491j | N96: =IMSUM(IMDIV(1,IMSUM(IMDIV(1,IMPRODUCT(B96,'Design the AEF circuit'!$G$14*0.001)),IMDIV(1,'Design the AEF circuit'!$G$15*1000))), IMDIV(1,IMSUM(IMDIV(1,IMPRODUCT(B96,'Design the AEF circuit'!$G$17*0.001)),IMDIV(1,'Design the AEF circuit'!$G$18*1000))), IMDIV(1,IMSUM(IMDIV(1,IMPRODUCT(B96,'Design the AEF circuit'!$G$19*0.001)),IMDIV(1,'Design the AEF circuit'!$G$20*1000))) ) -> 0.000153551695958676+0.451567290951992j | O96: =IMDIV(1, IMSUM( IMDIV(1, N96), IMPRODUCT(B96,'Design the AEF circuit'!$G$16*0.000000000001))) -> 0.000153551695980024+0.451567290983383j | P96: =IMSUM(IMDIV(1,IMSUM(IMDIV(1,IMPRODUCT(B96,'Design the AEF circuit'!$H$14*0.001)),IMDIV(1,'Design the AEF circuit'!$H$15*1000))), IMDIV(1,IMSUM(IMDIV(1,IMPRODUCT(B96,'Design the AEF circuit'!$H$17*0.001)),IMDIV(1,'Design the AEF circuit'!$H$18*1000))), IMDIV(1,IMSUM(IMDIV(1,IMPRODUCT(B96,'Design the AEF circuit'!$H$19*0.001)),IMDIV(1,'Design the AEF circuit'!$H$20*1000))) ) -> 0.0000281937805555867+0.631167997008971j | Q96: =IMDIV(1, IMSUM( IMDIV(1, P96), IMPRODUCT(B96,'Design the AEF circuit'!$H$16*0.000000000001) ) ) -> 0.000028193780610375+0.631167997622238j
A97: ='Frequency vector'!G97 -> 20.57469156 | B97: =COMPLEX(0,2*PI()*'Frequency vector'!G97,"j") -> 129.274599712551j | C97: =IF(IF(CMdata=1,IMABS(K97),'CM choke'!C101)=0, C96, IF(CMdata=1,IMABS(K97),'CM choke'!C101)) -> 0.4550465588 | D97: =IF(IF(CMdata=1,DEGREES(IMARGUMENT(K97)),'CM choke'!D101)=0, D96, IF(CMdata=1,DEGREES(IMARGUMENT(K97)),'CM choke'!D101)) -> 89.98036694 | E97: =IF(IF(CMdata=1,IMABS(L97),'CM choke'!E101)=0, E96, IF(CMdata=1,IMABS(L97),'CM choke'!E101)) -> 0.5688082388 | F97: =IF(IF(CMdata=1,DEGREES(IMARGUMENT(L97)),'CM choke'!F101)=0, F96, IF(CMdata=1,DEGREES(IMARGUMENT(L97)),'CM choke'!F101)) -> 89.99767212 | G97: 0.0001559269857 | H97: 0.4550465321 | I97: 2.311020089e-05 | J97: 0.5688082383 | K97: =IF(CMdata=1, IF(Lcm1_core=1, IMDIV(1,IMSUM(IMDIV(1,IMPRODUCT(B97,'Design the AEF circuit'!$G$14*0.001)),IMDIV(1,'Design the AEF circuit'!$G$15*1000),IMPRODUCT(B97,'Design the AEF circuit'!$G$16*0.000000000001))), O97),COMPLEX(G97,H97,"j")) -> 0.000155926985658076+0.455046532133807j | L97: =IF(CMdata=1, IF(Lcm2_core=1, IMDIV(1, IMSUM(IMDIV(1,IMPRODUCT(B97,'Design the AEF circuit'!$H$14*0.001)), IMDIV(1,'Design the AEF circuit'!$H$15*1000), IMPRODUCT(B97,'Design the AEF circuit'!$H$16*0.000000000001))), Q97), COMPLEX(I97,J97,"j")) -> 0.0000231102008921408+0.568808238298189j | N97: =IMSUM(IMDIV(1,IMSUM(IMDIV(1,IMPRODUCT(B97,'Design the AEF circuit'!$G$14*0.001)),IMDIV(1,'Design the AEF circuit'!$G$15*1000))), IMDIV(1,IMSUM(IMDIV(1,IMPRODUCT(B97,'Design the AEF circuit'!$G$17*0.001)),IMDIV(1,'Design the AEF circuit'!$G$18*1000))), IMDIV(1,IMSUM(IMDIV(1,IMPRODUCT(B97,'Design the AEF circuit'!$G$19*0.001)),IMDIV(1,'Design the AEF circuit'!$G$20*1000))) ) -> 0.000155926985636062+0.455046532101684j | O97: =IMDIV(1, IMSUM( IMDIV(1, N97), IMPRODUCT(B97,'Design the AEF circuit'!$G$16*0.000000000001))) -> 0.000155926985658076+0.455046532133807j | P97: =IMSUM(IMDIV(1,IMSUM(IMDIV(1,IMPRODUCT(B97,'Design the AEF circuit'!$H$14*0.001)),IMDIV(1,'Design the AEF circuit'!$H$15*1000))), IMDIV(1,IMSUM(IMDIV(1,IMPRODUCT(B97,'Design the AEF circuit'!$H$17*0.001)),IMDIV(1,'Design the AEF circuit'!$H$18*1000))), IMDIV(1,IMSUM(IMDIV(1,IMPRODUCT(B97,'Design the AEF circuit'!$H$19*0.001)),IMDIV(1,'Design the AEF circuit'!$H$20*1000))) ) -> 0.0000286299099322087+0.636031029091829j | Q97: =IMDIV(1, IMSUM( IMDIV(1, P97), IMPRODUCT(B97,'Design the AEF circuit'!$H$16*0.000000000001) ) ) -> 0.0000286299099887057+0.636031029719386j
